Workbook

Sheet Introduction
I2: < -- Currency Symbol
B3: =Translations!A116 -> Calculating Transparent Prices | N3: Additional Currency Info to add to bottom of dropdown
B4: =IF(V5=TRUE,"WARNING!!!! This tool is NOT locked!!! Do not distribute! Click the PREPARE FOR DISTRIBUTION button to far-right",".") -> . | N4: Descrip | O4: Symbol
B5: =Translations!A112 -> Version: | C5: =TEXT(References!D13,"0.00")&" "&BetaVersion -> 3.00 | G5: =Translations!A114 -> Promoting transparent pricing in the microfinance industry | N5: Peso | O5: P | V5: =DevMode -> FALSE
B6: =Translations!A113 -> Date: | C6: =References!D14 -> 2015-07-20 | F6: www.mftransparency.org | N6: TZS | O6: T\Z\S\
B7: =Translations!A178 -> Excel version: | C7: =ExcelVersion -> 14.1 | D7: =Translations!A111 -> Developed by Chuck Waterfield (MicroFinance Transparency)
B8: Can use XIRR? | C8: =IF(UseXIRR,"Yes","No") -> Yes | D8: =Translations!A115 -> For comments or questions, please email: | E8: info@mftransparency.org | N8: INSTRUCTIONS:
N9: Adding a single symbol is simple
A10: =IF(MacrosEnab=FALSE,Translations!A252,DevOk) ->  | D10: =Translations!A104 -> Overview of this Tool: | F10: =Translations!A254 -> This is a very useful tool, once you understand the key concepts of pricing and learn how to use the tool properly | N10: Adding multiple symbols, like EUR, must be done as follows E\U\R
D11: =Translations!A105 -> This is a basic tool to help you understand the factors influencing the Effective Interest Rate (EIR) and the Annual Percentage Rate (APR) formulas used in the financial world to calculate comparative costs of different loan products. | N11: To have a space between the symbol and the amount, use the \ sign followed by a space
D12: =Translations!A106 -> We will continue to expand upon this tool in the near future, so please contact us for updates. We are also very open to your suggestions on how we can improve this tool. | F12: =Translations!A255 -> Click here to view our training materials and videos for using this tool.
D13: =Translations!A107 -> There are four main areas to this tool: | F13: =Translations!A251 -> Customization of the Workbook
C14: 1 | D14: =Translations!A108 -> APR Calculator, Simple: The Interest Rate Graph sheet and the Repayment Schedule sheet work together to allow you to enter basic loan conditions and calculate the APR for that loan product as well as see a number of other interesting cost calculations. | G14: =Translations!A242&IF(NOT(ISBLANK(ShowBasic)),TranHidden,TranVisible) -> The APR - Simple sheets are visible
C15: 2 | D15: =Translations!A109 -> APR/EIR Calculator, Advanced: This section expands on the "simple" sheets, offering more options for pricing variables and calculating both the APR and the EIR of the loan. It also includes an IRR FLOW visual for loans with 12 payments or less. | G15: =Translations!A245&IF(NOT(ISBLANK(ShowBasic)),TranHidden,TranVisible) -> The APR - Advanced sheets are visible
G16: =Translations!A246&IF(NOT(ISBLANK(ShowBasic)),TranHidden,TranVisible) -> The IRR Cash Flow sheet is visible
A17: =IF(MacrosEnab=FALSE,Translations!A253,DevOk) ->  | C17: 3 | D17: Exact Pricing Worksheet: This sheet can be used for more precise pricing an the Advanced Calculator Sheet. It can also be use to modify the dates and amounts of all the data that generates the APR. If you have a real repayment schedule, this worksheet will give the exacdt price of that loan. | G17: Exact Pricing Worksheet
C18: 4 | D18: =Translations!A209 -> Model Repayment Schedule: This is an example of the information that an MFI should include in repayment schedules given to clients. | G18: =Translations!A247&IF(NOT(ISBLANK(ShowBasic)),TranHidden,TranVisible) -> The Model Repay Schedule sheet is visible
C19: 5 | D19: =Translations!A110 -> Cost Structure Data: The Cost Structure Data sheet allows you to enter a range of loan amounts and then estimate delivery and maintenance costs for each of those loans. This data is then displayed in the Graphs sheet and is also used in the Breakeven Point sheet. There is also a "Quick Calculator" that allows demonstration of the basic principles. | G19: =Translations!A249&IF(NOT(ISBLANK(ShowBasic)),TranHidden,TranVisible) -> The Cost Structure sheets are visible
G20: =Translations!A248&IF(NOT(ISBLANK(ShowBasic)),TranHidden,TranVisible) -> The Quick Cost Curve Calculator sheet is visible
C21: 6 | D21: =Translations!A241 -> Bangladesh Weekly Repayment Price Calculator: the most common loan product in Bangladesh charges flat interest, but provides multiple grace periods throughout the loan term, related to holidays. This sheet allows the price to be calculated. | F21: x | G21: =Translations!A250&IF(NOT(ISBLANK(ShowBasic)),TranHidden,TranVisible) -> The Bangladesh Wk Loan sheet is visible
D23: Development of this software was partially funded by Deutsche Bank and MicroNed
C41: Change Log
C42: 2.01 | D42: Was rounding principle payment to two decimals on the Advanced calculation sheet. This resulted in the last payment being off by a few cents and the APRs being off by a very small amount.
C43: 2.02 | D43: Added manual discount rate test figure to IRR FLOW sheet
D44: Modified VBA so that window would maximize on MAC OS
C45: 2.03 | D45: Changed APR on ADVANCED sheet to show the "exact APR" based on XIRR in MANUAL mode; otherwise periodic assumption calculation
D46: Correct "number of days" figure on bottom row of Advanced APR Sheet
C47: 2.04 | D47: add TRANSLATE button to show the translations sheet for input of user-defined languages
D48: Improved to not show VALUE errors if XIRR function not available in this version of Excel
C49: 2.05 | D49: Improvements to layout of the IRR FLOW sheet
D50: Improvements to MODEL REPAYMENT SCHEDULE, including user-inputs for many cells
C51: 2.06 | D51: Correct format of TAX column on manual inputs of Advanced Repay Schedule
C52: 2.07 | D52: Change Excel version to numeric format so it would work in French language Excel
C53: 2.1 | D53: Add Monthly Equivalent Interest Rate
D54: Translated "breakeven point" calculation page
D55: Corrected pop-up help on on-going insurance input cell
C56: 2.2 | D56: Improved Mac compatiblity, including version number testing and window sizing
D57: Refinements to IRR Flow sheet
D58: Disable IRR if irregular payments, forcing use of XIRR
D59: Added numeric data validation on input cells on ADVANCED sheet to avoid problems with COMMAS for decimal points
C60: 2.21 | D60: Correct input validation on upfront insurance percent input cell, advanced sheet
D61: Added Portuguese Translation
C62: 2.22 | D62: Added user-option to hide certain sheet sections using input cells on right of INTRO sheet
C63: 2.23 | D63: Added links for training videos and websites
C64: 3 | D64: Added the Exact Pricing Worksheet

Sheet Pricing - Basic
B1: =Translations!A180 -> Calculation of APR based on Loan Conditions and Pricing -- SIMPLE APPROACH
B3: ='Pricing - Advanced'!B3 -> Basic Loan Conditions
B4: ='Pricing - Advanced'!B4 -> Loan Amount: | C4: 1000
B5: ='Pricing - Advanced'!B5 -> Term & Repay Freq. | C5: 12 | D5: Months
B7: ='Pricing - Advanced'!B9 -> Loan Pricing | C7: Inputs | D7: Incremental Cost | E7: APR | G7: Factor
B8: =Translations!A182 -> Interest Method | C8: Balance
B9: =Translations!A183 -> Annual Interest Rate (%) | C9: 0.12 | E9: ='Rep Schedule - Basic'!I127 -> 0.1200039028 | G9: =IF($C$9>0,E9/$C$9,"-") -> 1.000032523
B10: =Translations!A184 -> Up-front Fee (%) | D10: =E10-E9 -> 0 | E10: ='Rep Schedule - Basic'!J127 -> 0.1200039028 | G10: =IF($C$9>0,E10/$C$9,"-") -> 1.000032523
B11: =Translations!A185 -> Value-Added Tax (%) | D11: =E11-E10 -> 0 | E11: ='Rep Schedule - Basic'!K127 -> 0.1200039028 | G11: =IF($C$9>0,E11/$C$9,"-") -> 1.000032523
B12: ='Pricing - Advanced'!B20 -> Security Deposit (%) | D12: =E12-E11 -> 0 | E12: ='Rep Schedule - Basic'!P127 -> 0.1200039028 | G12: =IF($C$9>0,E12/$C$9,"-") -> 1.000032523
B13: ='Pricing - Advanced'!B22 -> Interest Paid on Deposit (%) | D13: =IF(ISERR(D12),"Int Rate Pd is too high to calculate",".") -> .
B15: ='Pricing - Advanced'!L18 -> Total Financial Cost to the Client
A16: ='Pricing - Advanced'!L19 -> Total Cost (less Sec.Dep. int): | C16: =('Rep Schedule - Basic'!$E$127+'Rep Schedule - Basic'!$G$127+'Rep Schedule - Basic'!$H$127) -> 65.0022 | D16: =Translations!A81&C5&" "&D5 -> in12 Months
B17: =Translations!A186 -> Annualized | C17: =('Rep Schedule - Basic'!$E$127+'Rep Schedule - Basic'!$G$127+'Rep Schedule - Basic'!$H$127)*IF(D5="Weeks",52,12)/C5 -> 65.0022 | D17: =Translations!A83 -> in 1 year
B19: ='Pricing - Advanced'!L20 -> Avg net loan balance: | C19: ='Rep Schedule - Basic'!U127/'Pricing - Basic'!C5 -> 541.685 | D19: =TEXT(C42,"00%")&" "&Translations!A89 -> 54% of original loan amount
B20: =Translations!A187 -> This is the amount the client has to invest in her business
B22: ='Pricing - Advanced'!L21 -> Client Breakeven Point: | C22: =C19/(C17-'Rep Schedule - Basic'!M127)*12 -> 100 | D22: Months
B23: =Translations!A188 -> The month when the total loan cost equals the avg loan balance
B25: =Translations!A189 -> Amount of Time with Negative Net Balance
B26: =D5&":" -> Months: | C26: =IF('Rep Schedule - Basic'!T127>0,'Rep Schedule - Basic'!T127+1,0) -> 0
B27: =Translations!A92&":" -> % of loan term: | C27: =IF(C5>0,C26/C5,"") -> 0
B30: =Translations!A190 -> Note: This SIMPLE APPROACH allows only a few basic inputs and makes assumptions on other factors. This sheet should only be used for experimentation and learning, not for actual calculation
B31: =Translations!A191 -> of prices of actual loan products. To study an actual loan product, use the ADVANCED sheet later in this workbook.
B41: Seed number for IRR | C41: 0.01 | D41: Try changing this if APR does not calculate properly. The default figure for this should be 0.01
C42: =C19/C4 -> 0.541685

Sheet Rep Schedule - Basic
B1: RepSched | D1: =TRUE -> TRUE
C2: Repayment Schedule - SIMPLE APPROACH
C3: ='Rep Schedule - Advanced'!H1 -> The following table shows the repayment schedule and cashflow for the loan given the conditions indicated on the companion sheet with the Interest Rate Graph.
C4: ='Rep Schedule - Advanced'!G4 -> Loan Cost and Cashflow | L4: ='Rep Schedule - Advanced'!X4 -> Security Deposit | Q4: Int Charged to: | R4: Savings Balance | S4: Cash Balance | T4: Negative Balance | U4: Cum Balance | W4: Active Row?
B5: ='Rep Schedule - Advanced'!B5 -> Period # | C5: ='Rep Schedule - Advanced'!J5 -> Balance | D5: ='Rep Schedule - Advanced'!H5 -> Principal Paid | E5: ='Rep Schedule - Advanced'!K5 -> Interest Paid | F5: Indexing | G5: ='Rep Schedule - Advanced'!N5 -> Fees Paid | H5: ='Rep Schedule - Advanced'!U5 -> Taxes | I5: ='Rep Schedule - Advanced'!M5 -> Cashflow incl. Interest | J5: ='Rep Schedule - Advanced'!P5 -> Cashflow incl. Fees | K5: ='Rep Schedule - Advanced'!W5 -> Cashflow Incl. Taxes | L5: ='Rep Schedule - Advanced'!X5 -> Security Deposit | M5: ='Rep Schedule - Advanced'!Y5 -> Interest Paid | N5: ='Rep Schedule - Advanced'!Z5 -> Deposit Withdr. | O5: ='Rep Schedule - Advanced'!AB5 -> Deposit Balance | P5: ='Rep Schedule - Advanced'!AC5 -> Cashflow incl. Sec.Dep. | X5: =J127/INDEX('Client Cost HIDE'!E164:E166,'Client Cost HIDE'!A164) -> 0.01000032523 | Y5: opportunity cost
B6: 0 | C6: =+'Client Cost HIDE'!B12 -> 1000 | G6: =IF('Client Cost HIDE'!C30<1,C6*'Client Cost HIDE'!C30,'Client Cost HIDE'!C30)+IF('Client Cost HIDE'!C31<1,C6*'Client Cost HIDE'!C31,'Client Cost HIDE'!C31) -> 0 | H6: =SUM(E6:G6)*'Client Cost HIDE'!$B$28 -> 0 | I6: =C6 -> 1000 | J6: =+C6-G6 -> 1000 | K6: =+C6-G6-H6 -> 1000 | L6: =IF('Client Cost HIDE'!C38<1,C6*'Client Cost HIDE'!C38,'Client Cost HIDE'!C38) -> 0 | O6: =+L6 -> 0 | P6: =+K6-L6+N6 -> 1000 | Q6: =C6 -> 1000 | R6: =IF(O6>0,O6,NA()) ->  | S6: =C6-G6-O6 -> 1000 | T6: =IF(AND(S6<0,B6<=term),1,0) -> 0 | U6: =S6 -> 1000 | W6: x | AA6: for period | AB6: accruals
B7: 1 | C7: =IF(C6-D7>1,ROUND(+C6-D7,2),0) -> 916.67 | D7: =IF(AND(B7>='Client Cost HIDE'!$D$152,B7<='Client Cost HIDE'!$B$14),IF(amortized=1,'Client Cost HIDE'!$B$12/'Client Cost HIDE'!$D$151,-PPMT('Client Cost HIDE'!$B$172,$B7-'Client Cost HIDE'!$D$152+1,'Client Cost HIDE'!$D$151,'Client Cost HIDE'!$B$12)),0) -> 83.33333333 | E7: =IF(OR('Client Cost HIDE'!$E$152>B7,C6<1),0,AB7) -> 10 | F7: =IF(indexing,D7*(1+'Client Cost HIDE'!$B$175)^(B7-$B$6)-D7,0) -> 0 | G7: =IF('Client Cost HIDE'!$C$32<1,'Client Cost HIDE'!$C$32*D7,IF(C6>1,'Client Cost HIDE'!$C$32,0)) -> 0 | H7: =SUM(E7:G7)*'Client Cost HIDE'!$B$28 -> 0 | I7: =-D7-E7-F7 -> -93.33333333 | J7: =-D7-E7-F7-G7 -> -93.33333333 | K7: =-D7-E7-F7-G7-H7 -> -93.33333333 | L7: =IF('Client Cost HIDE'!$C$39<1,'Client Cost HIDE'!$C$39*D7,IF(C7>1,'Client Cost HIDE'!$C$39,0)) -> 0 | M7: =IF(O6>0,O6*'Client Cost HIDE'!$A$177,0) -> 0 | N7: =IF('Client Cost HIDE'!$B$14=B7,O6+L7+M7,0) -> 0 | O7: =+O6+L7+M7-N7 -> 0 | P7: -93.33333333 | Q7: =IF(int_method=1,'Rep Schedule - Basic'!Q6,'Rep Schedule - Basic'!C7) -> 916.67 | S7: =IF(C7=0,0,C7-SUM($G$6:G7)-O6) -> 916.67 | T7: 0 | U7: =U6+S7 -> 1916.67 | W7: x | AA7: =IF(C6>1,IF(int_method=2,'Client Cost HIDE'!$B$172*C6,'Client Cost HIDE'!$B$172*'Client Cost HIDE'!$B$12),0) -> 10 | AB7: =IF(B7>'Client Cost HIDE'!$B$22,AA7,0) -> 10
B8: 2 | C8: 833.34 | D8: =IF(AND(B8>='Client Cost HIDE'!$D$152,B8<='Client Cost HIDE'!$B$14),IF(amortized=1,'Client Cost HIDE'!$B$12/'Client Cost HIDE'!$D$151,-PPMT('Client Cost HIDE'!$B$172,$B8-'Client Cost HIDE'!$D$152+1,'Client Cost HIDE'!$D$151,'Client Cost HIDE'!$B$12)),0) -> 83.33333333 | E8: =IF(OR('Client Cost HIDE'!$E$152>B8,C7<1),0,AB8) -> 9.1667 | F8: =IF(indexing,D8*(1+'Client Cost HIDE'!$B$175)^(B8-$B$6)-D8,0) -> 0 | G8: =IF('Client Cost HIDE'!$C$32<1,'Client Cost HIDE'!$C$32*D8,IF(C7>1,'Client Cost HIDE'!$C$32,0)) -> 0 | H8: =SUM(E8:G8)*'Client Cost HIDE'!$B$28 -> 0 | I8: -92.50003333 | J8: -92.50003333 | K8: -92.50003333 | L8: =IF('Client Cost HIDE'!$C$39<1,'Client Cost HIDE'!$C$39*D8,IF(C8>1,'Client Cost HIDE'!$C$39,0)) -> 0 | M8: =IF(O7>0,O7*'Client Cost HIDE'!$A$177,0) -> 0 | N8: =IF('Client Cost HIDE'!$B$14=B8,O7+L8+M8,0) -> 0 | O8: 0 | P8: -92.50003333 | Q8: =IF(int_method=1,'Rep Schedule - Basic'!Q7,'Rep Schedule - Basic'!C8) -> 833.34 | S8: =IF(C8=0,0,C8-SUM($G$6:G8)-O7) -> 833.34 | T8: 0 | U8: 2750.01 | W8: =IF(B8<=term,"x",TRUE) -> x | AA8: =IF(C7>1,IF(int_method=2,'Client Cost HIDE'!$B$172*C7,'Client Cost HIDE'!$B$172*'Client Cost HIDE'!$B$12),0) -> 9.1667 | AB8: =IF(B8>'Client Cost HIDE'!$B$22,AA8,0)+AB7-E7 -> 9.1667
B9: 3 | C9: 750.01 | D9: =IF(AND(B9>='Client Cost HIDE'!$D$152,B9<='Client Cost HIDE'!$B$14),IF(amortized=1,'Client Cost HIDE'!$B$12/'Client Cost HIDE'!$D$151,-PPMT('Client Cost HIDE'!$B$172,$B9-'Client Cost HIDE'!$D$152+1,'Client Cost HIDE'!$D$151,'Client Cost HIDE'!$B$12)),0) -> 83.33333333 | E9: =IF(OR('Client Cost HIDE'!$E$152>B9,C8<1),0,AB9) -> 8.3334 | F9: =IF(indexing,D9*(1+'Client Cost HIDE'!$B$175)^(B9-$B$6)-D9,0) -> 0 | G9: =IF('Client Cost HIDE'!$C$32<1,'Client Cost HIDE'!$C$32*D9,IF(C8>1,'Client Cost HIDE'!$C$32,0)) -> 0 | H9: =SUM(E9:G9)*'Client Cost HIDE'!$B$28 -> 0 | I9: -91.66673333 | J9: -91.66673333 | K9: -91.66673333 | L9: =IF('Client Cost HIDE'!$C$39<1,'Client Cost HIDE'!$C$39*D9,IF(C9>1,'Client Cost HIDE'!$C$39,0)) -> 0 | M9: =IF(O8>0,O8*'Client Cost HIDE'!$A$177,0) -> 0 | N9: =IF('Client Cost HIDE'!$B$14=B9,O8+L9+M9,0) -> 0 | O9: 0 | P9: -91.66673333 | Q9: =IF(int_method=1,'Rep Schedule - Basic'!Q8,'Rep Schedule - Basic'!C9) -> 750.01 | S9: =IF(C9=0,0,C9-SUM($G$6:G9)-O8) -> 750.01 | T9: 0 | U9: 3500.02 | W9: x | AA9: =IF(C8>1,IF(int_method=2,'Client Cost HIDE'!$B$172*C8,'Client Cost HIDE'!$B$172*'Client Cost HIDE'!$B$12),0) -> 8.3334 | AB9: =IF(B9>'Client Cost HIDE'!$B$22,AA9,0)+AB8-E8 -> 8.3334
B10: 4 | C10: 666.68 | D10: =IF(AND(B10>='Client Cost HIDE'!$D$152,B10<='Client Cost HIDE'!$B$14),IF(amortized=1,'Client Cost HIDE'!$B$12/'Client Cost HIDE'!$D$151,-PPMT('Client Cost HIDE'!$B$172,$B10-'Client Cost HIDE'!$D$152+1,'Client Cost HIDE'!$D$151,'Client Cost HIDE'!$B$12)),0) -> 83.33333333 | E10: =IF(OR('Client Cost HIDE'!$E$152>B10,C9<1),0,AB10) -> 7.5001 | F10: =IF(indexing,D10*(1+'Client Cost HIDE'!$B$175)^(B10-$B$6)-D10,0) -> 0 | G10: =IF('Client Cost HIDE'!$C$32<1,'Client Cost HIDE'!$C$32*D10,IF(C9>1,'Client Cost HIDE'!$C$32,0)) -> 0 | H10: =SUM(E10:G10)*'Client Cost HIDE'!$B$28 -> 0 | I10: -90.83343333 | J10: -90.83343333 | K10: -90.83343333 | L10: =IF('Client Cost HIDE'!$C$39<1,'Client Cost HIDE'!$C$39*D10,IF(C10>1,'Client Cost HIDE'!$C$39,0)) -> 0 | M10: =IF(O9>0,O9*'Client Cost HIDE'!$A$177,0) -> 0 | N10: =IF('Client Cost HIDE'!$B$14=B10,O9+L10+M10,0) -> 0 | O10: 0 | P10: -90.83343333 | Q10: =IF(int_method=1,'Rep Schedule - Basic'!Q9,'Rep Schedule - Basic'!C10) -> 666.68 | S10: =IF(C10=0,0,C10-SUM($G$6:G10)-O9) -> 666.68 | T10: 0 | U10: 4166.7 | W10: x | AA10: =IF(C9>1,IF(int_method=2,'Client Cost HIDE'!$B$172*C9,'Client Cost HIDE'!$B$172*'Client Cost HIDE'!$B$12),0) -> 7.5001 | AB10: =IF(B10>'Client Cost HIDE'!$B$22,AA10,0)+AB9-E9 -> 7.5001
B11: 5 | C11: 583.35 | D11: =IF(AND(B11>='Client Cost HIDE'!$D$152,B11<='Client Cost HIDE'!$B$14),IF(amortized=1,'Client Cost HIDE'!$B$12/'Client Cost HIDE'!$D$151,-PPMT('Client Cost HIDE'!$B$172,$B11-'Client Cost HIDE'!$D$152+1,'Client Cost HIDE'!$D$151,'Client Cost HIDE'!$B$12)),0) -> 83.33333333 | E11: =IF(OR('Client Cost HIDE'!$E$152>B11,C10<1),0,AB11) -> 6.6668 | F11: =IF(indexing,D11*(1+'Client Cost HIDE'!$B$175)^(B11-$B$6)-D11,0) -> 0 | G11: =IF('Client Cost HIDE'!$C$32<1,'Client Cost HIDE'!$C$32*D11,IF(C10>1,'Client Cost HIDE'!$C$32,0)) -> 0 | H11: =SUM(E11:G11)*'Client Cost HIDE'!$B$28 -> 0 | I11: -90.00013333 | J11: -90.00013333 | K11: -90.00013333 | L11: =IF('Client Cost HIDE'!$C$39<1,'Client Cost HIDE'!$C$39*D11,IF(C11>1,'Client Cost HIDE'!$C$39,0)) -> 0 | M11: =IF(O10>0,O10*'Client Cost HIDE'!$A$177,0) -> 0 | N11: =IF('Client Cost HIDE'!$B$14=B11,O10+L11+M11,0) -> 0 | O11: 0 | P11: -90.00013333 | Q11: =IF(int_method=1,'Rep Schedule - Basic'!Q10,'Rep Schedule - Basic'!C11) -> 583.35 | S11: =IF(C11=0,0,C11-SUM($G$6:G11)-O10) -> 583.35 | T11: 0 | U11: 4750.05 | W11: x | AA11: =IF(C10>1,IF(int_method=2,'Client Cost HIDE'!$B$172*C10,'Client Cost HIDE'!$B$172*'Client Cost HIDE'!$B$12),0) -> 6.6668 | AB11: =IF(B11>'Client Cost HIDE'!$B$22,AA11,0)+AB10-E10 -> 6.6668
B12: 6 | C12: 500.02 | D12: =IF(AND(B12>='Client Cost HIDE'!$D$152,B12<='Client Cost HIDE'!$B$14),IF(amortized=1,'Client Cost HIDE'!$B$12/'Client Cost HIDE'!$D$151,-PPMT('Client Cost HIDE'!$B$172,$B12-'Client Cost HIDE'!$D$152+1,'Client Cost HIDE'!$D$151,'Client Cost HIDE'!$B$12)),0) -> 83.33333333 | E12: =IF(OR('Client Cost HIDE'!$E$152>B12,C11<1),0,AB12) -> 5.8335 | F12: =IF(indexing,D12*(1+'Client Cost HIDE'!$B$175)^(B12-$B$6)-D12,0) -> 0 | G12: =IF('Client Cost HIDE'!$C$32<1,'Client Cost HIDE'!$C$32*D12,IF(C11>1,'Client Cost HIDE'!$C$32,0)) -> 0 | H12: =SUM(E12:G12)*'Client Cost HIDE'!$B$28 -> 0 | I12: -89.16683333 | J12: -89.16683333 | K12: -89.16683333 | L12: =IF('Client Cost HIDE'!$C$39<1,'Client Cost HIDE'!$C$39*D12,IF(C12>1,'Client Cost HIDE'!$C$39,0)) -> 0 | M12: =IF(O11>0,O11*'Client Cost HIDE'!$A$177,0) -> 0 | N12: =IF('Client Cost HIDE'!$B$14=B12,O11+L12+M12,0) -> 0 | O12: 0 | P12: -89.16683333 | Q12: =IF(int_method=1,'Rep Schedule - Basic'!Q11,'Rep Schedule - Basic'!C12) -> 500.02 | S12: =IF(C12=0,0,C12-SUM($G$6:G12)-O11) -> 500.02 | T12: 0 | U12: 5250.07 | W12: x | AA12: =IF(C11>1,IF(int_method=2,'Client Cost HIDE'!$B$172*C11,'Client Cost HIDE'!$B$172*'Client Cost HIDE'!$B$12),0) -> 5.8335 | AB12: =IF(B12>'Client Cost HIDE'!$B$22,AA12,0)+AB11-E11 -> 5.8335
B13: 7 | C13: 416.69 | D13: =IF(AND(B13>='Client Cost HIDE'!$D$152,B13<='Client Cost HIDE'!$B$14),IF(amortized=1,'Client Cost HIDE'!$B$12/'Client Cost HIDE'!$D$151,-PPMT('Client Cost HIDE'!$B$172,$B13-'Client Cost HIDE'!$D$152+1,'Client Cost HIDE'!$D$151,'Client Cost HIDE'!$B$12)),0) -> 83.33333333 | E13: =IF(OR('Client Cost HIDE'!$E$152>B13,C12<1),0,AB13) -> 5.0002 | F13: =IF(indexing,D13*(1+'Client Cost HIDE'!$B$175)^(B13-$B$6)-D13,0) -> 0 | G13: =IF('Client Cost HIDE'!$C$32<1,'Client Cost HIDE'!$C$32*D13,IF(C12>1,'Client Cost HIDE'!$C$32,0)) -> 0 | H13: =SUM(E13:G13)*'Client Cost HIDE'!$B$28 -> 0 | I13: -88.33353333 | J13: -88.33353333 | K13: -88.33353333 | L13: =IF('Client Cost HIDE'!$C$39<1,'Client Cost HIDE'!$C$39*D13,IF(C13>1,'Client Cost HIDE'!$C$39,0)) -> 0 | M13: =IF(O12>0,O12*'Client Cost HIDE'!$A$177,0) -> 0 | N13: =IF('Client Cost HIDE'!$B$14=B13,O12+L13+M13,0) -> 0 | O13: 0 | P13: -88.33353333 | Q13: =IF(int_method=1,'Rep Schedule - Basic'!Q12,'Rep Schedule - Basic'!C13) -> 416.69 | S13: =IF(C13=0,0,C13-SUM($G$6:G13)-O12) -> 416.69 | T13: 0 | U13: 5666.76 | W13: x | AA13: =IF(C12>1,IF(int_method=2,'Client Cost HIDE'!$B$172*C12,'Client Cost HIDE'!$B$172*'Client Cost HIDE'!$B$12),0) -> 5.0002 | AB13: =IF(B13>'Client Cost HIDE'!$B$22,AA13,0)+AB12-E12 -> 5.0002
B14: 8 | C14: 333.36 | D14: =IF(AND(B14>='Client Cost HIDE'!$D$152,B14<='Client Cost HIDE'!$B$14),IF(amortized=1,'Client Cost HIDE'!$B$12/'Client Cost HIDE'!$D$151,-PPMT('Client Cost HIDE'!$B$172,$B14-'Client Cost HIDE'!$D$152+1,'Client Cost HIDE'!$D$151,'Client Cost HIDE'!$B$12)),0) -> 83.33333333 | E14: =IF(OR('Client Cost HIDE'!$E$152>B14,C13<1),0,AB14) -> 4.1669 | F14: =IF(indexing,D14*(1+'Client Cost HIDE'!$B$175)^(B14-$B$6)-D14,0) -> 0 | G14: =IF('Client Cost HIDE'!$C$32<1,'Client Cost HIDE'!$C$32*D14,IF(C13>1,'Client Cost HIDE'!$C$32,0)) -> 0 | H14: =SUM(E14:G14)*'Client Cost HIDE'!$B$28 -> 0 | I14: -87.50023333 | J14: -87.50023333 | K14: -87.50023333 | L14: =IF('Client Cost HIDE'!$C$39<1,'Client Cost HIDE'!$C$39*D14,IF(C14>1,'Client Cost HIDE'!$C$39,0)) -> 0 | M14: =IF(O13>0,O13*'Client Cost HIDE'!$A$177,0) -> 0 | N14: =IF('Client Cost HIDE'!$B$14=B14,O13+L14+M14,0) -> 0 | O14: 0 | P14: -87.50023333 | Q14: =IF(int_method=1,'Rep Schedule - Basic'!Q13,'Rep Schedule - Basic'!C14) -> 333.36 | S14: =IF(C14=0,0,C14-SUM($G$6:G14)-O13) -> 333.36 | T14: 0 | U14: 6000.12 | W14: x | AA14: =IF(C13>1,IF(int_method=2,'Client Cost HIDE'!$B$172*C13,'Client Cost HIDE'!$B$172*'Client Cost HIDE'!$B$12),0) -> 4.1669 | AB14: =IF(B14>'Client Cost HIDE'!$B$22,AA14,0)+AB13-E13 -> 4.1669
B15: 9 | C15: 250.03 | D15: =IF(AND(B15>='Client Cost HIDE'!$D$152,B15<='Client Cost HIDE'!$B$14),IF(amortized=1,'Client Cost HIDE'!$B$12/'Client Cost HIDE'!$D$151,-PPMT('Client Cost HIDE'!$B$172,$B15-'Client Cost HIDE'!$D$152+1,'Client Cost HIDE'!$D$151,'Client Cost HIDE'!$B$12)),0) -> 83.33333333 | E15: =IF(OR('Client Cost HIDE'!$E$152>B15,C14<1),0,AB15) -> 3.3336 | F15: =IF(indexing,D15*(1+'Client Cost HIDE'!$B$175)^(B15-$B$6)-D15,0) -> 0 | G15: =IF('Client Cost HIDE'!$C$32<1,'Client Cost HIDE'!$C$32*D15,IF(C14>1,'Client Cost HIDE'!$C$32,0)) -> 0 | H15: =SUM(E15:G15)*'Client Cost HIDE'!$B$28 -> 0 | I15: -86.66693333 | J15: -86.66693333 | K15: -86.66693333 | L15: =IF('Client Cost HIDE'!$C$39<1,'Client Cost HIDE'!$C$39*D15,IF(C15>1,'Client Cost HIDE'!$C$39,0)) -> 0 | M15: =IF(O14>0,O14*'Client Cost HIDE'!$A$177,0) -> 0 | N15: =IF('Client Cost HIDE'!$B$14=B15,O14+L15+M15,0) -> 0 | O15: 0 | P15: -86.66693333 | Q15: =IF(int_method=1,'Rep Schedule - Basic'!Q14,'Rep Schedule - Basic'!C15) -> 250.03 | S15: =IF(C15=0,0,C15-SUM($G$6:G15)-O14) -> 250.03 | T15: 0 | U15: 6250.15 | W15: x | AA15: =IF(C14>1,IF(int_method=2,'Client Cost HIDE'!$B$172*C14,'Client Cost HIDE'!$B$172*'Client Cost HIDE'!$B$12),0) -> 3.3336 | AB15: =IF(B15>'Client Cost HIDE'!$B$22,AA15,0)+AB14-E14 -> 3.3336
B16: 10 | C16: 166.7 | D16: =IF(AND(B16>='Client Cost HIDE'!$D$152,B16<='Client Cost HIDE'!$B$14),IF(amortized=1,'Client Cost HIDE'!$B$12/'Client Cost HIDE'!$D$151,-PPMT('Client Cost HIDE'!$B$172,$B16-'Client Cost HIDE'!$D$152+1,'Client Cost HIDE'!$D$151,'Client Cost HIDE'!$B$12)),0) -> 83.33333333 | E16: =IF(OR('Client Cost HIDE'!$E$152>B16,C15<1),0,AB16) -> 2.5003 | F16: =IF(indexing,D16*(1+'Client Cost HIDE'!$B$175)^(B16-$B$6)-D16,0) -> 0 | G16: =IF('Client Cost HIDE'!$C$32<1,'Client Cost HIDE'!$C$32*D16,IF(C15>1,'Client Cost HIDE'!$C$32,0)) -> 0 | H16: =SUM(E16:G16)*'Client Cost HIDE'!$B$28 -> 0 | I16: -85.83363333 | J16: -85.83363333 | K16: -85.83363333 | L16: =IF('Client Cost HIDE'!$C$39<1,'Client Cost HIDE'!$C$39*D16,IF(C16>1,'Client Cost HIDE'!$C$39,0)) -> 0 | M16: =IF(O15>0,O15*'Client Cost HIDE'!$A$177,0) -> 0 | N16: =IF('Client Cost HIDE'!$B$14=B16,O15+L16+M16,0) -> 0 | O16: 0 | P16: -85.83363333 | Q16: =IF(int_method=1,'Rep Schedule - Basic'!Q15,'Rep Schedule - Basic'!C16) -> 166.7 | S16: =IF(C16=0,0,C16-SUM($G$6:G16)-O15) -> 166.7 | T16: 0 | U16: 6416.85 | W16: x | AA16: =IF(C15>1,IF(int_method=2,'Client Cost HIDE'!$B$172*C15,'Client Cost HIDE'!$B$172*'Client Cost HIDE'!$B$12),0) -> 2.5003 | AB16: =IF(B16>'Client Cost HIDE'!$B$22,AA16,0)+AB15-E15 -> 2.5003
B17: 11 | C17: 83.37 | D17: =IF(AND(B17>='Client Cost HIDE'!$D$152,B17<='Client Cost HIDE'!$B$14),IF(amortized=1,'Client Cost HIDE'!$B$12/'Client Cost HIDE'!$D$151,-PPMT('Client Cost HIDE'!$B$172,$B17-'Client Cost HIDE'!$D$152+1,'Client Cost HIDE'!$D$151,'Client Cost HIDE'!$B$12)),0) -> 83.33333333 | E17: =IF(OR('Client Cost HIDE'!$E$152>B17,C16<1),0,AB17) -> 1.667 | F17: =IF(indexing,D17*(1+'Client Cost HIDE'!$B$175)^(B17-$B$6)-D17,0) -> 0 | G17: =IF('Client Cost HIDE'!$C$32<1,'Client Cost HIDE'!$C$32*D17,IF(C16>1,'Client Cost HIDE'!$C$32,0)) -> 0 | H17: =SUM(E17:G17)*'Client Cost HIDE'!$B$28 -> 0 | I17: -85.00033333 | J17: -85.00033333 | K17: -85.00033333 | L17: =IF('Client Cost HIDE'!$C$39<1,'Client Cost HIDE'!$C$39*D17,IF(C17>1,'Client Cost HIDE'!$C$39,0)) -> 0 | M17: =IF(O16>0,O16*'Client Cost HIDE'!$A$177,0) -> 0 | N17: =IF('Client Cost HIDE'!$B$14=B17,O16+L17+M17,0) -> 0 | O17: 0 | P17: -85.00033333 | Q17: =IF(int_method=1,'Rep Schedule - Basic'!Q16,'Rep Schedule - Basic'!C17) -> 83.37 | S17: =IF(C17=0,0,C17-SUM($G$6:G17)-O16) -> 83.37 | T17: 0 | U17: 6500.22 | W17: x | AA17: =IF(C16>1,IF(int_method=2,'Client Cost HIDE'!$B$172*C16,'Client Cost HIDE'!$B$172*'Client Cost HIDE'!$B$12),0) -> 1.667 | AB17: =IF(B17>'Client Cost HIDE'!$B$22,AA17,0)+AB16-E16 -> 1.667
B18: 12 | C18: 0 | D18: =IF(AND(B18>='Client Cost HIDE'!$D$152,B18<='Client Cost HIDE'!$B$14),IF(amortized=1,'Client Cost HIDE'!$B$12/'Client Cost HIDE'!$D$151,-PPMT('Client Cost HIDE'!$B$172,$B18-'Client Cost HIDE'!$D$152+1,'Client Cost HIDE'!$D$151,'Client Cost HIDE'!$B$12)),0) -> 83.33333333 | E18: =IF(OR('Client Cost HIDE'!$E$152>B18,C17<1),0,AB18) -> 0.8337 | F18: =IF(indexing,D18*(1+'Client Cost HIDE'!$B$175)^(B18-$B$6)-D18,0) -> 0 | G18: =IF('Client Cost HIDE'!$C$32<1,'Client Cost HIDE'!$C$32*D18,IF(C17>1,'Client Cost HIDE'!$C$32,0)) -> 0 | H18: =SUM(E18:G18)*'Client Cost HIDE'!$B$28 -> 0 | I18: -84.16703333 | J18: -84.16703333 | K18: -84.16703333 | L18: =IF('Client Cost HIDE'!$C$39<1,'Client Cost HIDE'!$C$39*D18,IF(C18>1,'Client Cost HIDE'!$C$39,0)) -> 0 | M18: =IF(O17>0,O17*'Client Cost HIDE'!$A$177,0) -> 0 | N18: =IF('Client Cost HIDE'!$B$14=B18,O17+L18+M18,0) -> 0 | O18: 0 | P18: -84.16703333 | Q18: =IF(int_method=1,'Rep Schedule - Basic'!Q17,'Rep Schedule - Basic'!C18) -> 0 | S18: =IF(C18=0,0,C18-SUM($G$6:G18)-O17) -> 0 | T18: 0 | U18: 6500.22 | W18: x | AA18: =IF(C17>1,IF(int_method=2,'Client Cost HIDE'!$B$172*C17,'Client Cost HIDE'!$B$172*'Client Cost HIDE'!$B$12),0) -> 0.8337 | AB18: =IF(B18>'Client Cost HIDE'!$B$22,AA18,0)+AB17-E17 -> 0.8337
B19: 13 | C19: 0 | D19: =IF(AND(B19>='Client Cost HIDE'!$D$152,B19<='Client Cost HIDE'!$B$14),IF(amortized=1,'Client Cost HIDE'!$B$12/'Client Cost HIDE'!$D$151,-PPMT('Client Cost HIDE'!$B$172,$B19-'Client Cost HIDE'!$D$152+1,'Client Cost HIDE'!$D$151,'Client Cost HIDE'!$B$12)),0) -> 0 | E19: =IF(OR('Client Cost HIDE'!$E$152>B19,C18<1),0,AB19) -> 0 | F19: =IF(indexing,D19*(1+'Client Cost HIDE'!$B$175)^(B19-$B$6)-D19,0) -> 0 | G19: =IF('Client Cost HIDE'!$C$32<1,'Client Cost HIDE'!$C$32*D19,IF(C18>1,'Client Cost HIDE'!$C$32,0)) -> 0 | H19: =SUM(E19:G19)*'Client Cost HIDE'!$B$28 -> 0 | I19: 0 | J19: 0 | K19: 0 | L19: =IF('Client Cost HIDE'!$C$39<1,'Client Cost HIDE'!$C$39*D19,IF(C19>1,'Client Cost HIDE'!$C$39,0)) -> 0 | M19: =IF(O18>0,O18*'Client Cost HIDE'!$A$177,0) -> 0 | N19: =IF('Client Cost HIDE'!$B$14=B19,O18+L19+M19,0) -> 0 | O19: 0 | P19: 0 | Q19: =IF(int_method=1,'Rep Schedule - Basic'!Q18,'Rep Schedule - Basic'!C19) -> 0 | S19: =IF(C19=0,0,C19-SUM($G$6:G19)-O18) -> 0 | T19: 0 | U19: 6500.22 | W19: TRUE | AA19: =IF(C18>1,IF(int_method=2,'Client Cost HIDE'!$B$172*C18,'Client Cost HIDE'!$B$172*'Client Cost HIDE'!$B$12),0) -> 0 | AB19: =IF(B19>'Client Cost HIDE'!$B$22,AA19,0)+AB18-E18 -> 0
B20: 14 | C20: 0 | D20: =IF(AND(B20>='Client Cost HIDE'!$D$152,B20<='Client Cost HIDE'!$B$14),IF(amortized=1,'Client Cost HIDE'!$B$12/'Client Cost HIDE'!$D$151,-PPMT('Client Cost HIDE'!$B$172,$B20-'Client Cost HIDE'!$D$152+1,'Client Cost HIDE'!$D$151,'Client Cost HIDE'!$B$12)),0) -> 0 | E20: =IF(OR('Client Cost HIDE'!$E$152>B20,C19<1),0,AB20) -> 0 | F20: =IF(indexing,D20*(1+'Client Cost HIDE'!$B$175)^(B20-$B$6)-D20,0) -> 0 | G20: =IF('Client Cost HIDE'!$C$32<1,'Client Cost HIDE'!$C$32*D20,IF(C19>1,'Client Cost HIDE'!$C$32,0)) -> 0 | H20: =SUM(E20:G20)*'Client Cost HIDE'!$B$28 -> 0 | I20: 0 | J20: 0 | K20: 0 | L20: =IF('Client Cost HIDE'!$C$39<1,'Client Cost HIDE'!$C$39*D20,IF(C20>1,'Client Cost HIDE'!$C$39,0)) -> 0 | M20: =IF(O19>0,O19*'Client Cost HIDE'!$A$177,0) -> 0 | N20: =IF('Client Cost HIDE'!$B$14=B20,O19+L20+M20,0) -> 0 | O20: 0 | P20: 0 | Q20: =IF(int_method=1,'Rep Schedule - Basic'!Q19,'Rep Schedule - Basic'!C20) -> 0 | S20: =IF(C20=0,0,C20-SUM($G$6:G20)-O19) -> 0 | T20: 0 | U20: 6500.22 | W20: TRUE | AA20: =IF(C19>1,IF(int_method=2,'Client Cost HIDE'!$B$172*C19,'Client Cost HIDE'!$B$172*'Client Cost HIDE'!$B$12),0) -> 0 | AB20: =IF(B20>'Client Cost HIDE'!$B$22,AA20,0)+AB19-E19 -> 0
B21: 15 | C21: 0 | D21: =IF(AND(B21>='Client Cost HIDE'!$D$152,B21<='Client Cost HIDE'!$B$14),IF(amortized=1,'Client Cost HIDE'!$B$12/'Client Cost HIDE'!$D$151,-PPMT('Client Cost HIDE'!$B$172,$B21-'Client Cost HIDE'!$D$152+1,'Client Cost HIDE'!$D$151,'Client Cost HIDE'!$B$12)),0) -> 0 | E21: =IF(OR('Client Cost HIDE'!$E$152>B21,C20<1),0,AB21) -> 0 | F21: =IF(indexing,D21*(1+'Client Cost HIDE'!$B$175)^(B21-$B$6)-D21,0) -> 0 | G21: =IF('Client Cost HIDE'!$C$32<1,'Client Cost HIDE'!$C$32*D21,IF(C20>1,'Client Cost HIDE'!$C$32,0)) -> 0 | H21: =SUM(E21:G21)*'Client Cost HIDE'!$B$28 -> 0 | I21: 0 | J21: 0 | K21: 0 | L21: =IF('Client Cost HIDE'!$C$39<1,'Client Cost HIDE'!$C$39*D21,IF(C21>1,'Client Cost HIDE'!$C$39,0)) -> 0 | M21: =IF(O20>0,O20*'Client Cost HIDE'!$A$177,0) -> 0 | N21: =IF('Client Cost HIDE'!$B$14=B21,O20+L21+M21,0) -> 0 | O21: 0 | P21: 0 | Q21: =IF(int_method=1,'Rep Schedule - Basic'!Q20,'Rep Schedule - Basic'!C21) -> 0 | S21: =IF(C21=0,0,C21-SUM($G$6:G21)-O20) -> 0 | T21: 0 | U21: 6500.22 | W21: TRUE | AA21: =IF(C20>1,IF(int_method=2,'Client Cost HIDE'!$B$172*C20,'Client Cost HIDE'!$B$172*'Client Cost HIDE'!$B$12),0) -> 0 | AB21: =IF(B21>'Client Cost HIDE'!$B$22,AA21,0)+AB20-E20 -> 0
B22: 16 | C22: 0 | D22: =IF(AND(B22>='Client Cost HIDE'!$D$152,B22<='Client Cost HIDE'!$B$14),IF(amortized=1,'Client Cost HIDE'!$B$12/'Client Cost HIDE'!$D$151,-PPMT('Client Cost HIDE'!$B$172,$B22-'Client Cost HIDE'!$D$152+1,'Client Cost HIDE'!$D$151,'Client Cost HIDE'!$B$12)),0) -> 0 | E22: =IF(OR('Client Cost HIDE'!$E$152>B22,C21<1),0,AB22) -> 0 | F22: =IF(indexing,D22*(1+'Client Cost HIDE'!$B$175)^(B22-$B$6)-D22,0) -> 0 | G22: =IF('Client Cost HIDE'!$C$32<1,'Client Cost HIDE'!$C$32*D22,IF(C21>1,'Client Cost HIDE'!$C$32,0)) -> 0 | H22: =SUM(E22:G22)*'Client Cost HIDE'!$B$28 -> 0 | I22: 0 | J22: 0 | K22: 0 | L22: =IF('Client Cost HIDE'!$C$39<1,'Client Cost HIDE'!$C$39*D22,IF(C22>1,'Client Cost HIDE'!$C$39,0)) -> 0 | M22: =IF(O21>0,O21*'Client Cost HIDE'!$A$177,0) -> 0 | N22: =IF('Client Cost HIDE'!$B$14=B22,O21+L22+M22,0) -> 0 | O22: 0 | P22: 0 | Q22: =IF(int_method=1,'Rep Schedule - Basic'!Q21,'Rep Schedule - Basic'!C22) -> 0 | S22: =IF(C22=0,0,C22-SUM($G$6:G22)-O21) -> 0 | T22: 0 | U22: 6500.22 | W22: TRUE | AA22: =IF(C21>1,IF(int_method=2,'Client Cost HIDE'!$B$172*C21,'Client Cost HIDE'!$B$172*'Client Cost HIDE'!$B$12),0) -> 0 | AB22: =IF(B22>'Client Cost HIDE'!$B$22,AA22,0)+AB21-E21 -> 0
B23: 17 | C23: 0 | D23: =IF(AND(B23>='Client Cost HIDE'!$D$152,B23<='Client Cost HIDE'!$B$14),IF(amortized=1,'Client Cost HIDE'!$B$12/'Client Cost HIDE'!$D$151,-PPMT('Client Cost HIDE'!$B$172,$B23-'Client Cost HIDE'!$D$152+1,'Client Cost HIDE'!$D$151,'Client Cost HIDE'!$B$12)),0) -> 0 | E23: =IF(OR('Client Cost HIDE'!$E$152>B23,C22<1),0,AB23) -> 0 | F23: =IF(indexing,D23*(1+'Client Cost HIDE'!$B$175)^(B23-$B$6)-D23,0) -> 0 | G23: =IF('Client Cost HIDE'!$C$32<1,'Client Cost HIDE'!$C$32*D23,IF(C22>1,'Client Cost HIDE'!$C$32,0)) -> 0 | H23: =SUM(E23:G23)*'Client Cost HIDE'!$B$28 -> 0 | I23: 0 | J23: 0 | K23: 0 | L23: =IF('Client Cost HIDE'!$C$39<1,'Client Cost HIDE'!$C$39*D23,IF(C23>1,'Client Cost HIDE'!$C$39,0)) -> 0 | M23: =IF(O22>0,O22*'Client Cost HIDE'!$A$177,0) -> 0 | N23: =IF('Client Cost HIDE'!$B$14=B23,O22+L23+M23,0) -> 0 | O23: 0 | P23: 0 | Q23: =IF(int_method=1,'Rep Schedule - Basic'!Q22,'Rep Schedule - Basic'!C23) -> 0 | S23: =IF(C23=0,0,C23-SUM($G$6:G23)-O22) -> 0 | T23: 0 | U23: 6500.22 | W23: TRUE | AA23: =IF(C22>1,IF(int_method=2,'Client Cost HIDE'!$B$172*C22,'Client Cost HIDE'!$B$172*'Client Cost HIDE'!$B$12),0) -> 0 | AB23: =IF(B23>'Client Cost HIDE'!$B$22,AA23,0)+AB22-E22 -> 0
B24: 18 | C24: 0 | D24: =IF(AND(B24>='Client Cost HIDE'!$D$152,B24<='Client Cost HIDE'!$B$14),IF(amortized=1,'Client Cost HIDE'!$B$12/'Client Cost HIDE'!$D$151,-PPMT('Client Cost HIDE'!$B$172,$B24-'Client Cost HIDE'!$D$152+1,'Client Cost HIDE'!$D$151,'Client Cost HIDE'!$B$12)),0) -> 0 | E24: =IF(OR('Client Cost HIDE'!$E$152>B24,C23<1),0,AB24) -> 0 | F24: =IF(indexing,D24*(1+'Client Cost HIDE'!$B$175)^(B24-$B$6)-D24,0) -> 0 | G24: =IF('Client Cost HIDE'!$C$32<1,'Client Cost HIDE'!$C$32*D24,IF(C23>1,'Client Cost HIDE'!$C$32,0)) -> 0 | H24: =SUM(E24:G24)*'Client Cost HIDE'!$B$28 -> 0 | I24: 0 | J24: 0 | K24: 0 | L24: =IF('Client Cost HIDE'!$C$39<1,'Client Cost HIDE'!$C$39*D24,IF(C24>1,'Client Cost HIDE'!$C$39,0)) -> 0 | M24: =IF(O23>0,O23*'Client Cost HIDE'!$A$177,0) -> 0 | N24: =IF('Client Cost HIDE'!$B$14=B24,O23+L24+M24,0) -> 0 | O24: 0 | P24: 0 | Q24: =IF(int_method=1,'Rep Schedule - Basic'!Q23,'Rep Schedule - Basic'!C24) -> 0 | S24: =IF(C24=0,0,C24-SUM($G$6:G24)-O23) -> 0 | T24: 0 | U24: 6500.22 | W24: TRUE | AA24: =IF(C23>1,IF(int_method=2,'Client Cost HIDE'!$B$172*C23,'Client Cost HIDE'!$B$172*'Client Cost HIDE'!$B$12),0) -> 0 | AB24: =IF(B24>'Client Cost HIDE'!$B$22,AA24,0)+AB23-E23 -> 0
B25: 19 | C25: 0 | D25: =IF(AND(B25>='Client Cost HIDE'!$D$152,B25<='Client Cost HIDE'!$B$14),IF(amortized=1,'Client Cost HIDE'!$B$12/'Client Cost HIDE'!$D$151,-PPMT('Client Cost HIDE'!$B$172,$B25-'Client Cost HIDE'!$D$152+1,'Client Cost HIDE'!$D$151,'Client Cost HIDE'!$B$12)),0) -> 0 | E25: =IF(OR('Client Cost HIDE'!$E$152>B25,C24<1),0,AB25) -> 0 | F25: =IF(indexing,D25*(1+'Client Cost HIDE'!$B$175)^(B25-$B$6)-D25,0) -> 0 | G25: =IF('Client Cost HIDE'!$C$32<1,'Client Cost HIDE'!$C$32*D25,IF(C24>1,'Client Cost HIDE'!$C$32,0)) -> 0 | H25: =SUM(E25:G25)*'Client Cost HIDE'!$B$28 -> 0 | I25: 0 | J25: 0 | K25: 0 | L25: =IF('Client Cost HIDE'!$C$39<1,'Client Cost HIDE'!$C$39*D25,IF(C25>1,'Client Cost HIDE'!$C$39,0)) -> 0 | M25: =IF(O24>0,O24*'Client Cost HIDE'!$A$177,0) -> 0 | N25: =IF('Client Cost HIDE'!$B$14=B25,O24+L25+M25,0) -> 0 | O25: 0 | P25: 0 | Q25: =IF(int_method=1,'Rep Schedule - Basic'!Q24,'Rep Schedule - Basic'!C25) -> 0 | S25: =IF(C25=0,0,C25-SUM($G$6:G25)-O24) -> 0 | T25: 0 | U25: 6500.22 | W25: TRUE | AA25: =IF(C24>1,IF(int_method=2,'Client Cost HIDE'!$B$172*C24,'Client Cost HIDE'!$B$172*'Client Cost HIDE'!$B$12),0) -> 0 | AB25: =IF(B25>'Client Cost HIDE'!$B$22,AA25,0)+AB24-E24 -> 0
B26: 20 | C26: 0 | D26: =IF(AND(B26>='Client Cost HIDE'!$D$152,B26<='Client Cost HIDE'!$B$14),IF(amortized=1,'Client Cost HIDE'!$B$12/'Client Cost HIDE'!$D$151,-PPMT('Client Cost HIDE'!$B$172,$B26-'Client Cost HIDE'!$D$152+1,'Client Cost HIDE'!$D$151,'Client Cost HIDE'!$B$12)),0) -> 0 | E26: =IF(OR('Client Cost HIDE'!$E$152>B26,C25<1),0,AB26) -> 0 | F26: =IF(indexing,D26*(1+'Client Cost HIDE'!$B$175)^(B26-$B$6)-D26,0) -> 0 | G26: =IF('Client Cost HIDE'!$C$32<1,'Client Cost HIDE'!$C$32*D26,IF(C25>1,'Client Cost HIDE'!$C$32,0)) -> 0 | H26: =SUM(E26:G26)*'Client Cost HIDE'!$B$28 -> 0 | I26: 0 | J26: 0 | K26: 0 | L26: =IF('Client Cost HIDE'!$C$39<1,'Client Cost HIDE'!$C$39*D26,IF(C26>1,'Client Cost HIDE'!$C$39,0)) -> 0 | M26: =IF(O25>0,O25*'Client Cost HIDE'!$A$177,0) -> 0 | N26: =IF('Client Cost HIDE'!$B$14=B26,O25+L26+M26,0) -> 0 | O26: 0 | P26: 0 | Q26: =IF(int_method=1,'Rep Schedule - Basic'!Q25,'Rep Schedule - Basic'!C26) -> 0 | S26: =IF(C26=0,0,C26-SUM($G$6:G26)-O25) -> 0 | T26: 0 | U26: 6500.22 | W26: TRUE | AA26: =IF(C25>1,IF(int_method=2,'Client Cost HIDE'!$B$172*C25,'Client Cost HIDE'!$B$172*'Client Cost HIDE'!$B$12),0) -> 0 | AB26: =IF(B26>'Client Cost HIDE'!$B$22,AA26,0)+AB25-E25 -> 0
B27: 21 | C27: 0 | D27: =IF(AND(B27>='Client Cost HIDE'!$D$152,B27<='Client Cost HIDE'!$B$14),IF(amortized=1,'Client Cost HIDE'!$B$12/'Client Cost HIDE'!$D$151,-PPMT('Client Cost HIDE'!$B$172,$B27-'Client Cost HIDE'!$D$152+1,'Client Cost HIDE'!$D$151,'Client Cost HIDE'!$B$12)),0) -> 0 | E27: =IF(OR('Client Cost HIDE'!$E$152>B27,C26<1),0,AB27) -> 0 | F27: =IF(indexing,D27*(1+'Client Cost HIDE'!$B$175)^(B27-$B$6)-D27,0) -> 0 | G27: =IF('Client Cost HIDE'!$C$32<1,'Client Cost HIDE'!$C$32*D27,IF(C26>1,'Client Cost HIDE'!$C$32,0)) -> 0 | H27: =SUM(E27:G27)*'Client Cost HIDE'!$B$28 -> 0 | I27: 0 | J27: 0 | K27: 0 | L27: =IF('Client Cost HIDE'!$C$39<1,'Client Cost HIDE'!$C$39*D27,IF(C27>1,'Client Cost HIDE'!$C$39,0)) -> 0 | M27: =IF(O26>0,O26*'Client Cost HIDE'!$A$177,0) -> 0 | N27: =IF('Client Cost HIDE'!$B$14=B27,O26+L27+M27,0) -> 0 | O27: 0 | P27: 0 | Q27: =IF(int_method=1,'Rep Schedule - Basic'!Q26,'Rep Schedule - Basic'!C27) -> 0 | S27: =IF(C27=0,0,C27-SUM($G$6:G27)-O26) -> 0 | T27: 0 | U27: 6500.22 | W27: TRUE | AA27: =IF(C26>1,IF(int_method=2,'Client Cost HIDE'!$B$172*C26,'Client Cost HIDE'!$B$172*'Client Cost HIDE'!$B$12),0) -> 0 | AB27: =IF(B27>'Client Cost HIDE'!$B$22,AA27,0)+AB26-E26 -> 0
B28: 22 | C28: 0 | D28: =IF(AND(B28>='Client Cost HIDE'!$D$152,B28<='Client Cost HIDE'!$B$14),IF(amortized=1,'Client Cost HIDE'!$B$12/'Client Cost HIDE'!$D$151,-PPMT('Client Cost HIDE'!$B$172,$B28-'Client Cost HIDE'!$D$152+1,'Client Cost HIDE'!$D$151,'Client Cost HIDE'!$B$12)),0) -> 0 | E28: =IF(OR('Client Cost HIDE'!$E$152>B28,C27<1),0,AB28) -> 0 | F28: =IF(indexing,D28*(1+'Client Cost HIDE'!$B$175)^(B28-$B$6)-D28,0) -> 0 | G28: =IF('Client Cost HIDE'!$C$32<1,'Client Cost HIDE'!$C$32*D28,IF(C27>1,'Client Cost HIDE'!$C$32,0)) -> 0 | H28: =SUM(E28:G28)*'Client Cost HIDE'!$B$28 -> 0 | I28: 0 | J28: 0 | K28: 0 | L28: =IF('Client Cost HIDE'!$C$39<1,'Client Cost HIDE'!$C$39*D28,IF(C28>1,'Client Cost HIDE'!$C$39,0)) -> 0 | M28: =IF(O27>0,O27*'Client Cost HIDE'!$A$177,0) -> 0 | N28: =IF('Client Cost HIDE'!$B$14=B28,O27+L28+M28,0) -> 0 | O28: 0 | P28: 0 | Q28: =IF(int_method=1,'Rep Schedule - Basic'!Q27,'Rep Schedule - Basic'!C28) -> 0 | S28: =IF(C28=0,0,C28-SUM($G$6:G28)-O27) -> 0 | T28: 0 | U28: 6500.22 | W28: TRUE | AA28: =IF(C27>1,IF(int_method=2,'Client Cost HIDE'!$B$172*C27,'Client Cost HIDE'!$B$172*'Client Cost HIDE'!$B$12),0) -> 0 | AB28: =IF(B28>'Client Cost HIDE'!$B$22,AA28,0)+AB27-E27 -> 0
B29: 23 | C29: 0 | D29: =IF(AND(B29>='Client Cost HIDE'!$D$152,B29<='Client Cost HIDE'!$B$14),IF(amortized=1,'Client Cost HIDE'!$B$12/'Client Cost HIDE'!$D$151,-PPMT('Client Cost HIDE'!$B$172,$B29-'Client Cost HIDE'!$D$152+1,'Client Cost HIDE'!$D$151,'Client Cost HIDE'!$B$12)),0) -> 0 | E29: =IF(OR('Client Cost HIDE'!$E$152>B29,C28<1),0,AB29) -> 0 | F29: =IF(indexing,D29*(1+'Client Cost HIDE'!$B$175)^(B29-$B$6)-D29,0) -> 0 | G29: =IF('Client Cost HIDE'!$C$32<1,'Client Cost HIDE'!$C$32*D29,IF(C28>1,'Client Cost HIDE'!$C$32,0)) -> 0 | H29: =SUM(E29:G29)*'Client Cost HIDE'!$B$28 -> 0 | I29: 0 | J29: 0 | K29: 0 | L29: =IF('Client Cost HIDE'!$C$39<1,'Client Cost HIDE'!$C$39*D29,IF(C29>1,'Client Cost HIDE'!$C$39,0)) -> 0 | M29: =IF(O28>0,O28*'Client Cost HIDE'!$A$177,0) -> 0 | N29: =IF('Client Cost HIDE'!$B$14=B29,O28+L29+M29,0) -> 0 | O29: 0 | P29: 0 | Q29: =IF(int_method=1,'Rep Schedule - Basic'!Q28,'Rep Schedule - Basic'!C29) -> 0 | S29: =IF(C29=0,0,C29-SUM($G$6:G29)-O28) -> 0 | T29: 0 | U29: 6500.22 | W29: TRUE | AA29: =IF(C28>1,IF(int_method=2,'Client Cost HIDE'!$B$172*C28,'Client Cost HIDE'!$B$172*'Client Cost HIDE'!$B$12),0) -> 0 | AB29: =IF(B29>'Client Cost HIDE'!$B$22,AA29,0)+AB28-E28 -> 0
B30: 24 | C30: 0 | D30: =IF(AND(B30>='Client Cost HIDE'!$D$152,B30<='Client Cost HIDE'!$B$14),IF(amortized=1,'Client Cost HIDE'!$B$12/'Client Cost HIDE'!$D$151,-PPMT('Client Cost HIDE'!$B$172,$B30-'Client Cost HIDE'!$D$152+1,'Client Cost HIDE'!$D$151,'Client Cost HIDE'!$B$12)),0) -> 0 | E30: =IF(OR('Client Cost HIDE'!$E$152>B30,C29<1),0,AB30) -> 0 | F30: =IF(indexing,D30*(1+'Client Cost HIDE'!$B$175)^(B30-$B$6)-D30,0) -> 0 | G30: =IF('Client Cost HIDE'!$C$32<1,'Client Cost HIDE'!$C$32*D30,IF(C29>1,'Client Cost HIDE'!$C$32,0)) -> 0 | H30: =SUM(E30:G30)*'Client Cost HIDE'!$B$28 -> 0 | I30: 0 | J30: 0 | K30: 0 | L30: =IF('Client Cost HIDE'!$C$39<1,'Client Cost HIDE'!$C$39*D30,IF(C30>1,'Client Cost HIDE'!$C$39,0)) -> 0 | M30: =IF(O29>0,O29*'Client Cost HIDE'!$A$177,0) -> 0 | N30: =IF('Client Cost HIDE'!$B$14=B30,O29+L30+M30,0) -> 0 | O30: 0 | P30: 0 | Q30: =IF(int_method=1,'Rep Schedule - Basic'!Q29,'Rep Schedule - Basic'!C30) -> 0 | S30: =IF(C30=0,0,C30-SUM($G$6:G30)-O29) -> 0 | T30: 0 | U30: 6500.22 | W30: TRUE | AA30: =IF(C29>1,IF(int_method=2,'Client Cost HIDE'!$B$172*C29,'Client Cost HIDE'!$B$172*'Client Cost HIDE'!$B$12),0) -> 0 | AB30: =IF(B30>'Client Cost HIDE'!$B$22,AA30,0)+AB29-E29 -> 0
B31: 25 | C31: 0 | D31: =IF(AND(B31>='Client Cost HIDE'!$D$152,B31<='Client Cost HIDE'!$B$14),IF(amortized=1,'Client Cost HIDE'!$B$12/'Client Cost HIDE'!$D$151,-PPMT('Client Cost HIDE'!$B$172,$B31-'Client Cost HIDE'!$D$152+1,'Client Cost HIDE'!$D$151,'Client Cost HIDE'!$B$12)),0) -> 0 | E31: =IF(OR('Client Cost HIDE'!$E$152>B31,C30<1),0,AB31) -> 0 | F31: =IF(indexing,D31*(1+'Client Cost HIDE'!$B$175)^(B31-$B$6)-D31,0) -> 0 | G31: =IF('Client Cost HIDE'!$C$32<1,'Client Cost HIDE'!$C$32*D31,IF(C30>1,'Client Cost HIDE'!$C$32,0)) -> 0 | H31: =SUM(E31:G31)*'Client Cost HIDE'!$B$28 -> 0 | I31: 0 | J31: 0 | K31: 0 | L31: =IF('Client Cost HIDE'!$C$39<1,'Client Cost HIDE'!$C$39*D31,IF(C31>1,'Client Cost HIDE'!$C$39,0)) -> 0 | M31: =IF(O30>0,O30*'Client Cost HIDE'!$A$177,0) -> 0 | N31: =IF('Client Cost HIDE'!$B$14=B31,O30+L31+M31,0) -> 0 | O31: 0 | P31: 0 | Q31: =IF(int_method=1,'Rep Schedule - Basic'!Q30,'Rep Schedule - Basic'!C31) -> 0 | S31: =IF(C31=0,0,C31-SUM($G$6:G31)-O30) -> 0 | T31: 0 | U31: 6500.22 | W31: TRUE | AA31: =IF(C30>1,IF(int_method=2,'Client Cost HIDE'!$B$172*C30,'Client Cost HIDE'!$B$172*'Client Cost HIDE'!$B$12),0) -> 0 | AB31: =IF(B31>'Client Cost HIDE'!$B$22,AA31,0)+AB30-E30 -> 0
B32: 26 | C32: 0 | D32: =IF(AND(B32>='Client Cost HIDE'!$D$152,B32<='Client Cost HIDE'!$B$14),IF(amortized=1,'Client Cost HIDE'!$B$12/'Client Cost HIDE'!$D$151,-PPMT('Client Cost HIDE'!$B$172,$B32-'Client Cost HIDE'!$D$152+1,'Client Cost HIDE'!$D$151,'Client Cost HIDE'!$B$12)),0) -> 0 | E32: =IF(OR('Client Cost HIDE'!$E$152>B32,C31<1),0,AB32) -> 0 | F32: =IF(indexing,D32*(1+'Client Cost HIDE'!$B$175)^(B32-$B$6)-D32,0) -> 0 | G32: =IF('Client Cost HIDE'!$C$32<1,'Client Cost HIDE'!$C$32*D32,IF(C31>1,'Client Cost HIDE'!$C$32,0)) -> 0 | H32: =SUM(E32:G32)*'Client Cost HIDE'!$B$28 -> 0 | I32: 0 | J32: 0 | K32: 0 | L32: =IF('Client Cost HIDE'!$C$39<1,'Client Cost HIDE'!$C$39*D32,IF(C32>1,'Client Cost HIDE'!$C$39,0)) -> 0 | M32: =IF(O31>0,O31*'Client Cost HIDE'!$A$177,0) -> 0 | N32: =IF('Client Cost HIDE'!$B$14=B32,O31+L32+M32,0) -> 0 | O32: 0 | P32: 0 | Q32: =IF(int_method=1,'Rep Schedule - Basic'!Q31,'Rep Schedule - Basic'!C32) -> 0 | S32: =IF(C32=0,0,C32-SUM($G$6:G32)-O31) -> 0 | T32: 0 | U32: 6500.22 | W32: TRUE | AA32: =IF(C31>1,IF(int_method=2,'Client Cost HIDE'!$B$172*C31,'Client Cost HIDE'!$B$172*'Client Cost HIDE'!$B$12),0) -> 0 | AB32: =IF(B32>'Client Cost HIDE'!$B$22,AA32,0)+AB31-E31 -> 0
B33: 27 | C33: 0 | D33: =IF(AND(B33>='Client Cost HIDE'!$D$152,B33<='Client Cost HIDE'!$B$14),IF(amortized=1,'Client Cost HIDE'!$B$12/'Client Cost HIDE'!$D$151,-PPMT('Client Cost HIDE'!$B$172,$B33-'Client Cost HIDE'!$D$152+1,'Client Cost HIDE'!$D$151,'Client Cost HIDE'!$B$12)),0) -> 0 | E33: =IF(OR('Client Cost HIDE'!$E$152>B33,C32<1),0,AB33) -> 0 | F33: =IF(indexing,D33*(1+'Client Cost HIDE'!$B$175)^(B33-$B$6)-D33,0) -> 0 | G33: =IF('Client Cost HIDE'!$C$32<1,'Client Cost HIDE'!$C$32*D33,IF(C32>1,'Client Cost HIDE'!$C$32,0)) -> 0 | H33: =SUM(E33:G33)*'Client Cost HIDE'!$B$28 -> 0 | I33: 0 | J33: 0 | K33: 0 | L33: =IF('Client Cost HIDE'!$C$39<1,'Client Cost HIDE'!$C$39*D33,IF(C33>1,'Client Cost HIDE'!$C$39,0)) -> 0 | M33: =IF(O32>0,O32*'Client Cost HIDE'!$A$177,0) -> 0 | N33: =IF('Client Cost HIDE'!$B$14=B33,O32+L33+M33,0) -> 0 | O33: 0 | P33: 0 | Q33: =IF(int_method=1,'Rep Schedule - Basic'!Q32,'Rep Schedule - Basic'!C33) -> 0 | S33: =IF(C33=0,0,C33-SUM($G$6:G33)-O32) -> 0 | T33: 0 | U33: 6500.22 | W33: TRUE | AA33: =IF(C32>1,IF(int_method=2,'Client Cost HIDE'!$B$172*C32,'Client Cost HIDE'!$B$172*'Client Cost HIDE'!$B$12),0) -> 0 | AB33: =IF(B33>'Client Cost HIDE'!$B$22,AA33,0)+AB32-E32 -> 0
B34: 28 | C34: 0 | D34: =IF(AND(B34>='Client Cost HIDE'!$D$152,B34<='Client Cost HIDE'!$B$14),IF(amortized=1,'Client Cost HIDE'!$B$12/'Client Cost HIDE'!$D$151,-PPMT('Client Cost HIDE'!$B$172,$B34-'Client Cost HIDE'!$D$152+1,'Client Cost HIDE'!$D$151,'Client Cost HIDE'!$B$12)),0) -> 0 | E34: =IF(OR('Client Cost HIDE'!$E$152>B34,C33<1),0,AB34) -> 0 | F34: =IF(indexing,D34*(1+'Client Cost HIDE'!$B$175)^(B34-$B$6)-D34,0) -> 0 | G34: =IF('Client Cost HIDE'!$C$32<1,'Client Cost HIDE'!$C$32*D34,IF(C33>1,'Client Cost HIDE'!$C$32,0)) -> 0 | H34: =SUM(E34:G34)*'Client Cost HIDE'!$B$28 -> 0 | I34: 0 | J34: 0 | K34: 0 | L34: =IF('Client Cost HIDE'!$C$39<1,'Client Cost HIDE'!$C$39*D34,IF(C34>1,'Client Cost HIDE'!$C$39,0)) -> 0 | M34: =IF(O33>0,O33*'Client Cost HIDE'!$A$177,0) -> 0 | N34: =IF('Client Cost HIDE'!$B$14=B34,O33+L34+M34,0) -> 0 | O34: 0 | P34: 0 | Q34: =IF(int_method=1,'Rep Schedule - Basic'!Q33,'Rep Schedule - Basic'!C34) -> 0 | S34: =IF(C34=0,0,C34-SUM($G$6:G34)-O33) -> 0 | T34: 0 | U34: 6500.22 | W34: TRUE | AA34: =IF(C33>1,IF(int_method=2,'Client Cost HIDE'!$B$172*C33,'Client Cost HIDE'!$B$172*'Client Cost HIDE'!$B$12),0) -> 0 | AB34: =IF(B34>'Client Cost HIDE'!$B$22,AA34,0)+AB33-E33 -> 0
B35: 29 | C35: 0 | D35: =IF(AND(B35>='Client Cost HIDE'!$D$152,B35<='Client Cost HIDE'!$B$14),IF(amortized=1,'Client Cost HIDE'!$B$12/'Client Cost HIDE'!$D$151,-PPMT('Client Cost HIDE'!$B$172,$B35-'Client Cost HIDE'!$D$152+1,'Client Cost HIDE'!$D$151,'Client Cost HIDE'!$B$12)),0) -> 0 | E35: =IF(OR('Client Cost HIDE'!$E$152>B35,C34<1),0,AB35) -> 0 | F35: =IF(indexing,D35*(1+'Client Cost HIDE'!$B$175)^(B35-$B$6)-D35,0) -> 0 | G35: =IF('Client Cost HIDE'!$C$32<1,'Client Cost HIDE'!$C$32*D35,IF(C34>1,'Client Cost HIDE'!$C$32,0)) -> 0 | H35: =SUM(E35:G35)*'Client Cost HIDE'!$B$28 -> 0 | I35: 0 | J35: 0 | K35: 0 | L35: =IF('Client Cost HIDE'!$C$39<1,'Client Cost HIDE'!$C$39*D35,IF(C35>1,'Client Cost HIDE'!$C$39,0)) -> 0 | M35: =IF(O34>0,O34*'Client Cost HIDE'!$A$177,0) -> 0 | N35: =IF('Client Cost HIDE'!$B$14=B35,O34+L35+M35,0) -> 0 | O35: 0 | P35: 0 | Q35: =IF(int_method=1,'Rep Schedule - Basic'!Q34,'Rep Schedule - Basic'!C35) -> 0 | S35: =IF(C35=0,0,C35-SUM($G$6:G35)-O34) -> 0 | T35: 0 | U35: 6500.22 | W35: TRUE | AA35: =IF(C34>1,IF(int_method=2,'Client Cost HIDE'!$B$172*C34,'Client Cost HIDE'!$B$172*'Client Cost HIDE'!$B$12),0) -> 0 | AB35: =IF(B35>'Client Cost HIDE'!$B$22,AA35,0)+AB34-E34 -> 0
B36: 30 | C36: 0 | D36: =IF(AND(B36>='Client Cost HIDE'!$D$152,B36<='Client Cost HIDE'!$B$14),IF(amortized=1,'Client Cost HIDE'!$B$12/'Client Cost HIDE'!$D$151,-PPMT('Client Cost HIDE'!$B$172,$B36-'Client Cost HIDE'!$D$152+1,'Client Cost HIDE'!$D$151,'Client Cost HIDE'!$B$12)),0) -> 0 | E36: =IF(OR('Client Cost HIDE'!$E$152>B36,C35<1),0,AB36) -> 0 | F36: =IF(indexing,D36*(1+'Client Cost HIDE'!$B$175)^(B36-$B$6)-D36,0) -> 0 | G36: =IF('Client Cost HIDE'!$C$32<1,'Client Cost HIDE'!$C$32*D36,IF(C35>1,'Client Cost HIDE'!$C$32,0)) -> 0 | H36: =SUM(E36:G36)*'Client Cost HIDE'!$B$28 -> 0 | I36: 0 | J36: 0 | K36: 0 | L36: =IF('Client Cost HIDE'!$C$39<1,'Client Cost HIDE'!$C$39*D36,IF(C36>1,'Client Cost HIDE'!$C$39,0)) -> 0 | M36: =IF(O35>0,O35*'Client Cost HIDE'!$A$177,0) -> 0 | N36: =IF('Client Cost HIDE'!$B$14=B36,O35+L36+M36,0) -> 0 | O36: 0 | P36: 0 | Q36: =IF(int_method=1,'Rep Schedule - Basic'!Q35,'Rep Schedule - Basic'!C36) -> 0 | S36: =IF(C36=0,0,C36-SUM($G$6:G36)-O35) -> 0 | T36: 0 | U36: 6500.22 | W36: TRUE | AA36: =IF(C35>1,IF(int_method=2,'Client Cost HIDE'!$B$172*C35,'Client Cost HIDE'!$B$172*'Client Cost HIDE'!$B$12),0) -> 0 | AB36: =IF(B36>'Client Cost HIDE'!$B$22,AA36,0)+AB35-E35 -> 0
B37: 31 | C37: 0 | D37: =IF(AND(B37>='Client Cost HIDE'!$D$152,B37<='Client Cost HIDE'!$B$14),IF(amortized=1,'Client Cost HIDE'!$B$12/'Client Cost HIDE'!$D$151,-PPMT('Client Cost HIDE'!$B$172,$B37-'Client Cost HIDE'!$D$152+1,'Client Cost HIDE'!$D$151,'Client Cost HIDE'!$B$12)),0) -> 0 | E37: =IF(OR('Client Cost HIDE'!$E$152>B37,C36<1),0,AB37) -> 0 | F37: =IF(indexing,D37*(1+'Client Cost HIDE'!$B$175)^(B37-$B$6)-D37,0) -> 0 | G37: =IF('Client Cost HIDE'!$C$32<1,'Client Cost HIDE'!$C$32*D37,IF(C36>1,'Client Cost HIDE'!$C$32,0)) -> 0 | H37: =SUM(E37:G37)*'Client Cost HIDE'!$B$28 -> 0 | I37: 0 | J37: 0 | K37: 0 | L37: =IF('Client Cost HIDE'!$C$39<1,'Client Cost HIDE'!$C$39*D37,IF(C37>1,'Client Cost HIDE'!$C$39,0)) -> 0 | M37: =IF(O36>0,O36*'Client Cost HIDE'!$A$177,0) -> 0 | N37: =IF('Client Cost HIDE'!$B$14=B37,O36+L37+M37,0) -> 0 | O37: 0 | P37: 0 | Q37: =IF(int_method=1,'Rep Schedule - Basic'!Q36,'Rep Schedule - Basic'!C37) -> 0 | S37: =IF(C37=0,0,C37-SUM($G$6:G37)-O36) -> 0 | T37: 0 | U37: 6500.22 | W37: TRUE | AA37: =IF(C36>1,IF(int_method=2,'Client Cost HIDE'!$B$172*C36,'Client Cost HIDE'!$B$172*'Client Cost HIDE'!$B$12),0) -> 0 | AB37: =IF(B37>'Client Cost HIDE'!$B$22,AA37,0)+AB36-E36 -> 0
B38: 32 | C38: 0 | D38: =IF(AND(B38>='Client Cost HIDE'!$D$152,B38<='Client Cost HIDE'!$B$14),IF(amortized=1,'Client Cost HIDE'!$B$12/'Client Cost HIDE'!$D$151,-PPMT('Client Cost HIDE'!$B$172,$B38-'Client Cost HIDE'!$D$152+1,'Client Cost HIDE'!$D$151,'Client Cost HIDE'!$B$12)),0) -> 0 | E38: =IF(OR('Client Cost HIDE'!$E$152>B38,C37<1),0,AB38) -> 0 | F38: =IF(indexing,D38*(1+'Client Cost HIDE'!$B$175)^(B38-$B$6)-D38,0) -> 0 | G38: =IF('Client Cost HIDE'!$C$32<1,'Client Cost HIDE'!$C$32*D38,IF(C37>1,'Client Cost HIDE'!$C$32,0)) -> 0 | H38: =SUM(E38:G38)*'Client Cost HIDE'!$B$28 -> 0 | I38: 0 | J38: 0 | K38: 0 | L38: =IF('Client Cost HIDE'!$C$39<1,'Client Cost HIDE'!$C$39*D38,IF(C38>1,'Client Cost HIDE'!$C$39,0)) -> 0 | M38: =IF(O37>0,O37*'Client Cost HIDE'!$A$177,0) -> 0 | N38: =IF('Client Cost HIDE'!$B$14=B38,O37+L38+M38,0) -> 0 | O38: 0 | P38: =+K38-L38+N38 -> 0 | Q38: =IF(int_method=1,'Rep Schedule - Basic'!Q37,'Rep Schedule - Basic'!C38) -> 0 | R38: =IF(O38>0,O38,NA()) ->  | S38: =IF(C38=0,0,C38-SUM($G$6:G38)-O37) -> 0 | T38: =IF(AND(S38<0,B38<=term),1,0) -> 0 | U38: 6500.22 | W38: TRUE | AA38: =IF(C37>1,IF(int_method=2,'Client Cost HIDE'!$B$172*C37,'Client Cost HIDE'!$B$172*'Client Cost HIDE'!$B$12),0) -> 0 | AB38: =IF(B38>'Client Cost HIDE'!$B$22,AA38,0)+AB37-E37 -> 0
B39: 33 | C39: =IF(C38-D39>1,ROUND(+C38-D39,2),0) -> 0 | D39: =IF(AND(B39>='Client Cost HIDE'!$D$152,B39<='Client Cost HIDE'!$B$14),IF(amortized=1,'Client Cost HIDE'!$B$12/'Client Cost HIDE'!$D$151,-PPMT('Client Cost HIDE'!$B$172,$B39-'Client Cost HIDE'!$D$152+1,'Client Cost HIDE'!$D$151,'Client Cost HIDE'!$B$12)),0) -> 0 | E39: =IF(OR('Client Cost HIDE'!$E$152>B39,C38<1),0,AB39) -> 0 | F39: =IF(indexing,D39*(1+'Client Cost HIDE'!$B$175)^(B39-$B$6)-D39,0) -> 0 | G39: =IF('Client Cost HIDE'!$C$32<1,'Client Cost HIDE'!$C$32*D39,IF(C38>1,'Client Cost HIDE'!$C$32,0)) -> 0 | H39: =SUM(E39:G39)*'Client Cost HIDE'!$B$28 -> 0 | I39: =-D39-E39-F39 -> 0 | J39: =-D39-E39-F39-G39 -> 0 | K39: =-D39-E39-F39-G39-H39 -> 0 | L39: =IF('Client Cost HIDE'!$C$39<1,'Client Cost HIDE'!$C$39*D39,IF(C39>1,'Client Cost HIDE'!$C$39,0)) -> 0 | M39: =IF(O38>0,O38*'Client Cost HIDE'!$A$177,0) -> 0 | N39: =IF('Client Cost HIDE'!$B$14=B39,O38+L39+M39,0) -> 0 | O39: =+O38+L39+M39-N39 -> 0 | P39: 0 | Q39: =IF(int_method=1,'Rep Schedule - Basic'!Q38,'Rep Schedule - Basic'!C39) -> 0 | S39: =IF(C39=0,0,C39-SUM($G$6:G39)-O38) -> 0 | T39: 0 | U39: =U38+S39 -> 6500.22 | W39: TRUE | AA39: =IF(C38>1,IF(int_method=2,'Client Cost HIDE'!$B$172*C38,'Client Cost HIDE'!$B$172*'Client Cost HIDE'!$B$12),0) -> 0 | AB39: =IF(B39>'Client Cost HIDE'!$B$22,AA39,0)+AB38-E38 -> 0
B40: 34 | C40: 0 | D40: =IF(AND(B40>='Client Cost HIDE'!$D$152,B40<='Client Cost HIDE'!$B$14),IF(amortized=1,'Client Cost HIDE'!$B$12/'Client Cost HIDE'!$D$151,-PPMT('Client Cost HIDE'!$B$172,$B40-'Client Cost HIDE'!$D$152+1,'Client Cost HIDE'!$D$151,'Client Cost HIDE'!$B$12)),0) -> 0 | E40: =IF(OR('Client Cost HIDE'!$E$152>B40,C39<1),0,AB40) -> 0 | F40: =IF(indexing,D40*(1+'Client Cost HIDE'!$B$175)^(B40-$B$6)-D40,0) -> 0 | G40: =IF('Client Cost HIDE'!$C$32<1,'Client Cost HIDE'!$C$32*D40,IF(C39>1,'Client Cost HIDE'!$C$32,0)) -> 0 | H40: =SUM(E40:G40)*'Client Cost HIDE'!$B$28 -> 0 | I40: 0 | J40: 0 | K40: 0 | L40: =IF('Client Cost HIDE'!$C$39<1,'Client Cost HIDE'!$C$39*D40,IF(C40>1,'Client Cost HIDE'!$C$39,0)) -> 0 | M40: =IF(O39>0,O39*'Client Cost HIDE'!$A$177,0) -> 0 | N40: =IF('Client Cost HIDE'!$B$14=B40,O39+L40+M40,0) -> 0 | O40: 0 | P40: 0 | Q40: =IF(int_method=1,'Rep Schedule - Basic'!Q39,'Rep Schedule - Basic'!C40) -> 0 | S40: =IF(C40=0,0,C40-SUM($G$6:G40)-O39) -> 0 | T40: 0 | U40: 6500.22 | W40: =IF(B40<=term,"x",TRUE) -> TRUE | AA40: =IF(C39>1,IF(int_method=2,'Client Cost HIDE'!$B$172*C39,'Client Cost HIDE'!$B$172*'Client Cost HIDE'!$B$12),0) -> 0 | AB40: =IF(B40>'Client Cost HIDE'!$B$22,AA40,0)+AB39-E39 -> 0
B41: 35 | C41: 0 | D41: =IF(AND(B41>='Client Cost HIDE'!$D$152,B41<='Client Cost HIDE'!$B$14),IF(amortized=1,'Client Cost HIDE'!$B$12/'Client Cost HIDE'!$D$151,-PPMT('Client Cost HIDE'!$B$172,$B41-'Client Cost HIDE'!$D$152+1,'Client Cost HIDE'!$D$151,'Client Cost HIDE'!$B$12)),0) -> 0 | E41: =IF(OR('Client Cost HIDE'!$E$152>B41,C40<1),0,AB41) -> 0 | F41: =IF(indexing,D41*(1+'Client Cost HIDE'!$B$175)^(B41-$B$6)-D41,0) -> 0 | G41: =IF('Client Cost HIDE'!$C$32<1,'Client Cost HIDE'!$C$32*D41,IF(C40>1,'Client Cost HIDE'!$C$32,0)) -> 0 | H41: =SUM(E41:G41)*'Client Cost HIDE'!$B$28 -> 0 | I41: 0 | J41: 0 | K41: 0 | L41: =IF('Client Cost HIDE'!$C$39<1,'Client Cost HIDE'!$C$39*D41,IF(C41>1,'Client Cost HIDE'!$C$39,0)) -> 0 | M41: =IF(O40>0,O40*'Client Cost HIDE'!$A$177,0) -> 0 | N41: =IF('Client Cost HIDE'!$B$14=B41,O40+L41+M41,0) -> 0 | O41: 0 | P41: 0 | Q41: =IF(int_method=1,'Rep Schedule - Basic'!Q40,'Rep Schedule - Basic'!C41) -> 0 | S41: =IF(C41=0,0,C41-SUM($G$6:G41)-O40) -> 0 | T41: 0 | U41: 6500.22 | W41: TRUE | AA41: =IF(C40>1,IF(int_method=2,'Client Cost HIDE'!$B$172*C40,'Client Cost HIDE'!$B$172*'Client Cost HIDE'!$B$12),0) -> 0 | AB41: =IF(B41>'Client Cost HIDE'!$B$22,AA41,0)+AB40-E40 -> 0
B42: 36 | C42: 0 | D42: =IF(AND(B42>='Client Cost HIDE'!$D$152,B42<='Client Cost HIDE'!$B$14),IF(amortized=1,'Client Cost HIDE'!$B$12/'Client Cost HIDE'!$D$151,-PPMT('Client Cost HIDE'!$B$172,$B42-'Client Cost HIDE'!$D$152+1,'Client Cost HIDE'!$D$151,'Client Cost HIDE'!$B$12)),0) -> 0 | E42: =IF(OR('Client Cost HIDE'!$E$152>B42,C41<1),0,AB42) -> 0 | F42: =IF(indexing,D42*(1+'Client Cost HIDE'!$B$175)^(B42-$B$6)-D42,0) -> 0 | G42: =IF('Client Cost HIDE'!$C$32<1,'Client Cost HIDE'!$C$32*D42,IF(C41>1,'Client Cost HIDE'!$C$32,0)) -> 0 | H42: =SUM(E42:G42)*'Client Cost HIDE'!$B$28 -> 0 | I42: 0 | J42: 0 | K42: 0 | L42: =IF('Client Cost HIDE'!$C$39<1,'Client Cost HIDE'!$C$39*D42,IF(C42>1,'Client Cost HIDE'!$C$39,0)) -> 0 | M42: =IF(O41>0,O41*'Client Cost HIDE'!$A$177,0) -> 0 | N42: =IF('Client Cost HIDE'!$B$14=B42,O41+L42+M42,0) -> 0 | O42: 0 | P42: 0 | Q42: =IF(int_method=1,'Rep Schedule - Basic'!Q41,'Rep Schedule - Basic'!C42) -> 0 | S42: =IF(C42=0,0,C42-SUM($G$6:G42)-O41) -> 0 | T42: 0 | U42: 6500.22 | W42: TRUE | AA42: =IF(C41>1,IF(int_method=2,'Client Cost HIDE'!$B$172*C41,'Client Cost HIDE'!$B$172*'Client Cost HIDE'!$B$12),0) -> 0 | AB42: =IF(B42>'Client Cost HIDE'!$B$22,AA42,0)+AB41-E41 -> 0
B43: 37 | C43: 0 | D43: =IF(AND(B43>='Client Cost HIDE'!$D$152,B43<='Client Cost HIDE'!$B$14),IF(amortized=1,'Client Cost HIDE'!$B$12/'Client Cost HIDE'!$D$151,-PPMT('Client Cost HIDE'!$B$172,$B43-'Client Cost HIDE'!$D$152+1,'Client Cost HIDE'!$D$151,'Client Cost HIDE'!$B$12)),0) -> 0 | E43: =IF(OR('Client Cost HIDE'!$E$152>B43,C42<1),0,AB43) -> 0 | F43: =IF(indexing,D43*(1+'Client Cost HIDE'!$B$175)^(B43-$B$6)-D43,0) -> 0 | G43: =IF('Client Cost HIDE'!$C$32<1,'Client Cost HIDE'!$C$32*D43,IF(C42>1,'Client Cost HIDE'!$C$32,0)) -> 0 | H43: =SUM(E43:G43)*'Client Cost HIDE'!$B$28 -> 0 | I43: 0 | J43: 0 | K43: 0 | L43: =IF('Client Cost HIDE'!$C$39<1,'Client Cost HIDE'!$C$39*D43,IF(C43>1,'Client Cost HIDE'!$C$39,0)) -> 0 | M43: =IF(O42>0,O42*'Client Cost HIDE'!$A$177,0) -> 0 | N43: =IF('Client Cost HIDE'!$B$14=B43,O42+L43+M43,0) -> 0 | O43: 0 | P43: 0 | Q43: =IF(int_method=1,'Rep Schedule - Basic'!Q42,'Rep Schedule - Basic'!C43) -> 0 | S43: =IF(C43=0,0,C43-SUM($G$6:G43)-O42) -> 0 | T43: 0 | U43: 6500.22 | W43: TRUE | AA43: =IF(C42>1,IF(int_method=2,'Client Cost HIDE'!$B$172*C42,'Client Cost HIDE'!$B$172*'Client Cost HIDE'!$B$12),0) -> 0 | AB43: =IF(B43>'Client Cost HIDE'!$B$22,AA43,0)+AB42-E42 -> 0
B44: 38 | C44: 0 | D44: =IF(AND(B44>='Client Cost HIDE'!$D$152,B44<='Client Cost HIDE'!$B$14),IF(amortized=1,'Client Cost HIDE'!$B$12/'Client Cost HIDE'!$D$151,-PPMT('Client Cost HIDE'!$B$172,$B44-'Client Cost HIDE'!$D$152+1,'Client Cost HIDE'!$D$151,'Client Cost HIDE'!$B$12)),0) -> 0 | E44: =IF(OR('Client Cost HIDE'!$E$152>B44,C43<1),0,AB44) -> 0 | F44: =IF(indexing,D44*(1+'Client Cost HIDE'!$B$175)^(B44-$B$6)-D44,0) -> 0 | G44: =IF('Client Cost HIDE'!$C$32<1,'Client Cost HIDE'!$C$32*D44,IF(C43>1,'Client Cost HIDE'!$C$32,0)) -> 0 | H44: =SUM(E44:G44)*'Client Cost HIDE'!$B$28 -> 0 | I44: 0 | J44: 0 | K44: 0 | L44: =IF('Client Cost HIDE'!$C$39<1,'Client Cost HIDE'!$C$39*D44,IF(C44>1,'Client Cost HIDE'!$C$39,0)) -> 0 | M44: =IF(O43>0,O43*'Client Cost HIDE'!$A$177,0) -> 0 | N44: =IF('Client Cost HIDE'!$B$14=B44,O43+L44+M44,0) -> 0 | O44: 0 | P44: 0 | Q44: =IF(int_method=1,'Rep Schedule - Basic'!Q43,'Rep Schedule - Basic'!C44) -> 0 | S44: =IF(C44=0,0,C44-SUM($G$6:G44)-O43) -> 0 | T44: 0 | U44: 6500.22 | W44: TRUE | AA44: =IF(C43>1,IF(int_method=2,'Client Cost HIDE'!$B$172*C43,'Client Cost HIDE'!$B$172*'Client Cost HIDE'!$B$12),0) -> 0 | AB44: =IF(B44>'Client Cost HIDE'!$B$22,AA44,0)+AB43-E43 -> 0
B45: 39 | C45: 0 | D45: =IF(AND(B45>='Client Cost HIDE'!$D$152,B45<='Client Cost HIDE'!$B$14),IF(amortized=1,'Client Cost HIDE'!$B$12/'Client Cost HIDE'!$D$151,-PPMT('Client Cost HIDE'!$B$172,$B45-'Client Cost HIDE'!$D$152+1,'Client Cost HIDE'!$D$151,'Client Cost HIDE'!$B$12)),0) -> 0 | E45: =IF(OR('Client Cost HIDE'!$E$152>B45,C44<1),0,AB45) -> 0 | F45: =IF(indexing,D45*(1+'Client Cost HIDE'!$B$175)^(B45-$B$6)-D45,0) -> 0 | G45: =IF('Client Cost HIDE'!$C$32<1,'Client Cost HIDE'!$C$32*D45,IF(C44>1,'Client Cost HIDE'!$C$32,0)) -> 0 | H45: =SUM(E45:G45)*'Client Cost HIDE'!$B$28 -> 0 | I45: 0 | J45: 0 | K45: 0 | L45: =IF('Client Cost HIDE'!$C$39<1,'Client Cost HIDE'!$C$39*D45,IF(C45>1,'Client Cost HIDE'!$C$39,0)) -> 0 | M45: =IF(O44>0,O44*'Client Cost HIDE'!$A$177,0) -> 0 | N45: =IF('Client Cost HIDE'!$B$14=B45,O44+L45+M45,0) -> 0 | O45: 0 | P45: 0 | Q45: =IF(int_method=1,'Rep Schedule - Basic'!Q44,'Rep Schedule - Basic'!C45) -> 0 | S45: =IF(C45=0,0,C45-SUM($G$6:G45)-O44) -> 0 | T45: 0 | U45: 6500.22 | W45: TRUE | AA45: =IF(C44>1,IF(int_method=2,'Client Cost HIDE'!$B$172*C44,'Client Cost HIDE'!$B$172*'Client Cost HIDE'!$B$12),0) -> 0 | AB45: =IF(B45>'Client Cost HIDE'!$B$22,AA45,0)+AB44-E44 -> 0
B46: 40 | C46: 0 | D46: =IF(AND(B46>='Client Cost HIDE'!$D$152,B46<='Client Cost HIDE'!$B$14),IF(amortized=1,'Client Cost HIDE'!$B$12/'Client Cost HIDE'!$D$151,-PPMT('Client Cost HIDE'!$B$172,$B46-'Client Cost HIDE'!$D$152+1,'Client Cost HIDE'!$D$151,'Client Cost HIDE'!$B$12)),0) -> 0 | E46: =IF(OR('Client Cost HIDE'!$E$152>B46,C45<1),0,AB46) -> 0 | F46: =IF(indexing,D46*(1+'Client Cost HIDE'!$B$175)^(B46-$B$6)-D46,0) -> 0 | G46: =IF('Client Cost HIDE'!$C$32<1,'Client Cost HIDE'!$C$32*D46,IF(C45>1,'Client Cost HIDE'!$C$32,0)) -> 0 | H46: =SUM(E46:G46)*'Client Cost HIDE'!$B$28 -> 0 | I46: 0 | J46: 0 | K46: 0 | L46: =IF('Client Cost HIDE'!$C$39<1,'Client Cost HIDE'!$C$39*D46,IF(C46>1,'Client Cost HIDE'!$C$39,0)) -> 0 | M46: =IF(O45>0,O45*'Client Cost HIDE'!$A$177,0) -> 0 | N46: =IF('Client Cost HIDE'!$B$14=B46,O45+L46+M46,0) -> 0 | O46: 0 | P46: 0 | Q46: =IF(int_method=1,'Rep Schedule - Basic'!Q45,'Rep Schedule - Basic'!C46) -> 0 | S46: =IF(C46=0,0,C46-SUM($G$6:G46)-O45) -> 0 | T46: 0 | U46: 6500.22 | W46: TRUE | AA46: =IF(C45>1,IF(int_method=2,'Client Cost HIDE'!$B$172*C45,'Client Cost HIDE'!$B$172*'Client Cost HIDE'!$B$12),0) -> 0 | AB46: =IF(B46>'Client Cost HIDE'!$B$22,AA46,0)+AB45-E45 -> 0
B47: 41 | C47: 0 | D47: =IF(AND(B47>='Client Cost HIDE'!$D$152,B47<='Client Cost HIDE'!$B$14),IF(amortized=1,'Client Cost HIDE'!$B$12/'Client Cost HIDE'!$D$151,-PPMT('Client Cost HIDE'!$B$172,$B47-'Client Cost HIDE'!$D$152+1,'Client Cost HIDE'!$D$151,'Client Cost HIDE'!$B$12)),0) -> 0 | E47: =IF(OR('Client Cost HIDE'!$E$152>B47,C46<1),0,AB47) -> 0 | F47: =IF(indexing,D47*(1+'Client Cost HIDE'!$B$175)^(B47-$B$6)-D47,0) -> 0 | G47: =IF('Client Cost HIDE'!$C$32<1,'Client Cost HIDE'!$C$32*D47,IF(C46>1,'Client Cost HIDE'!$C$32,0)) -> 0 | H47: =SUM(E47:G47)*'Client Cost HIDE'!$B$28 -> 0 | I47: 0 | J47: 0 | K47: 0 | L47: =IF('Client Cost HIDE'!$C$39<1,'Client Cost HIDE'!$C$39*D47,IF(C47>1,'Client Cost HIDE'!$C$39,0)) -> 0 | M47: =IF(O46>0,O46*'Client Cost HIDE'!$A$177,0) -> 0 | N47: =IF('Client Cost HIDE'!$B$14=B47,O46+L47+M47,0) -> 0 | O47: 0 | P47: 0 | Q47: =IF(int_method=1,'Rep Schedule - Basic'!Q46,'Rep Schedule - Basic'!C47) -> 0 | S47: =IF(C47=0,0,C47-SUM($G$6:G47)-O46) -> 0 | T47: 0 | U47: 6500.22 | W47: TRUE | AA47: =IF(C46>1,IF(int_method=2,'Client Cost HIDE'!$B$172*C46,'Client Cost HIDE'!$B$172*'Client Cost HIDE'!$B$12),0) -> 0 | AB47: =IF(B47>'Client Cost HIDE'!$B$22,AA47,0)+AB46-E46 -> 0
B48: 42 | C48: 0 | D48: =IF(AND(B48>='Client Cost HIDE'!$D$152,B48<='Client Cost HIDE'!$B$14),IF(amortized=1,'Client Cost HIDE'!$B$12/'Client Cost HIDE'!$D$151,-PPMT('Client Cost HIDE'!$B$172,$B48-'Client Cost HIDE'!$D$152+1,'Client Cost HIDE'!$D$151,'Client Cost HIDE'!$B$12)),0) -> 0 | E48: =IF(OR('Client Cost HIDE'!$E$152>B48,C47<1),0,AB48) -> 0 | F48: =IF(indexing,D48*(1+'Client Cost HIDE'!$B$175)^(B48-$B$6)-D48,0) -> 0 | G48: =IF('Client Cost HIDE'!$C$32<1,'Client Cost HIDE'!$C$32*D48,IF(C47>1,'Client Cost HIDE'!$C$32,0)) -> 0 | H48: =SUM(E48:G48)*'Client Cost HIDE'!$B$28 -> 0 | I48: 0 | J48: 0 | K48: 0 | L48: =IF('Client Cost HIDE'!$C$39<1,'Client Cost HIDE'!$C$39*D48,IF(C48>1,'Client Cost HIDE'!$C$39,0)) -> 0 | M48: =IF(O47>0,O47*'Client Cost HIDE'!$A$177,0) -> 0 | N48: =IF('Client Cost HIDE'!$B$14=B48,O47+L48+M48,0) -> 0 | O48: 0 | P48: 0 | Q48: =IF(int_method=1,'Rep Schedule - Basic'!Q47,'Rep Schedule - Basic'!C48) -> 0 | S48: =IF(C48=0,0,C48-SUM($G$6:G48)-O47) -> 0 | T48: 0 | U48: 6500.22 | W48: TRUE | AA48: =IF(C47>1,IF(int_method=2,'Client Cost HIDE'!$B$172*C47,'Client Cost HIDE'!$B$172*'Client Cost HIDE'!$B$12),0) -> 0 | AB48: =IF(B48>'Client Cost HIDE'!$B$22,AA48,0)+AB47-E47 -> 0
B49: 43 | C49: 0 | D49: =IF(AND(B49>='Client Cost HIDE'!$D$152,B49<='Client Cost HIDE'!$B$14),IF(amortized=1,'Client Cost HIDE'!$B$12/'Client Cost HIDE'!$D$151,-PPMT('Client Cost HIDE'!$B$172,$B49-'Client Cost HIDE'!$D$152+1,'Client Cost HIDE'!$D$151,'Client Cost HIDE'!$B$12)),0) -> 0 | E49: =IF(OR('Client Cost HIDE'!$E$152>B49,C48<1),0,AB49) -> 0 | F49: =IF(indexing,D49*(1+'Client Cost HIDE'!$B$175)^(B49-$B$6)-D49,0) -> 0 | G49: =IF('Client Cost HIDE'!$C$32<1,'Client Cost HIDE'!$C$32*D49,IF(C48>1,'Client Cost HIDE'!$C$32,0)) -> 0 | H49: =SUM(E49:G49)*'Client Cost HIDE'!$B$28 -> 0 | I49: 0 | J49: 0 | K49: 0 | L49: =IF('Client Cost HIDE'!$C$39<1,'Client Cost HIDE'!$C$39*D49,IF(C49>1,'Client Cost HIDE'!$C$39,0)) -> 0 | M49: =IF(O48>0,O48*'Client Cost HIDE'!$A$177,0) -> 0 | N49: =IF('Client Cost HIDE'!$B$14=B49,O48+L49+M49,0) -> 0 | O49: 0 | P49: 0 | Q49: =IF(int_method=1,'Rep Schedule - Basic'!Q48,'Rep Schedule - Basic'!C49) -> 0 | S49: =IF(C49=0,0,C49-SUM($G$6:G49)-O48) -> 0 | T49: 0 | U49: 6500.22 | W49: TRUE | AA49: =IF(C48>1,IF(int_method=2,'Client Cost HIDE'!$B$172*C48,'Client Cost HIDE'!$B$172*'Client Cost HIDE'!$B$12),0) -> 0 | AB49: =IF(B49>'Client Cost HIDE'!$B$22,AA49,0)+AB48-E48 -> 0
B50: 44 | C50: 0 | D50: =IF(AND(B50>='Client Cost HIDE'!$D$152,B50<='Client Cost HIDE'!$B$14),IF(amortized=1,'Client Cost HIDE'!$B$12/'Client Cost HIDE'!$D$151,-PPMT('Client Cost HIDE'!$B$172,$B50-'Client Cost HIDE'!$D$152+1,'Client Cost HIDE'!$D$151,'Client Cost HIDE'!$B$12)),0) -> 0 | E50: =IF(OR('Client Cost HIDE'!$E$152>B50,C49<1),0,AB50) -> 0 | F50: =IF(indexing,D50*(1+'Client Cost HIDE'!$B$175)^(B50-$B$6)-D50,0) -> 0 | G50: =IF('Client Cost HIDE'!$C$32<1,'Client Cost HIDE'!$C$32*D50,IF(C49>1,'Client Cost HIDE'!$C$32,0)) -> 0 | H50: =SUM(E50:G50)*'Client Cost HIDE'!$B$28 -> 0 | I50: 0 | J50: 0 | K50: 0 | L50: =IF('Client Cost HIDE'!$C$39<1,'Client Cost HIDE'!$C$39*D50,IF(C50>1,'Client Cost HIDE'!$C$39,0)) -> 0 | M50: =IF(O49>0,O49*'Client Cost HIDE'!$A$177,0) -> 0 | N50: =IF('Client Cost HIDE'!$B$14=B50,O49+L50+M50,0) -> 0 | O50: 0 | P50: 0 | Q50: =IF(int_method=1,'Rep Schedule - Basic'!Q49,'Rep Schedule - Basic'!C50) -> 0 | S50: =IF(C50=0,0,C50-SUM($G$6:G50)-O49) -> 0 | T50: 0 | U50: 6500.22 | W50: TRUE | AA50: =IF(C49>1,IF(int_method=2,'Client Cost HIDE'!$B$172*C49,'Client Cost HIDE'!$B$172*'Client Cost HIDE'!$B$12),0) -> 0 | AB50: =IF(B50>'Client Cost HIDE'!$B$22,AA50,0)+AB49-E49 -> 0
B51: 45 | C51: 0 | D51: =IF(AND(B51>='Client Cost HIDE'!$D$152,B51<='Client Cost HIDE'!$B$14),IF(amortized=1,'Client Cost HIDE'!$B$12/'Client Cost HIDE'!$D$151,-PPMT('Client Cost HIDE'!$B$172,$B51-'Client Cost HIDE'!$D$152+1,'Client Cost HIDE'!$D$151,'Client Cost HIDE'!$B$12)),0) -> 0 | E51: =IF(OR('Client Cost HIDE'!$E$152>B51,C50<1),0,AB51) -> 0 | F51: =IF(indexing,D51*(1+'Client Cost HIDE'!$B$175)^(B51-$B$6)-D51,0) -> 0 | G51: =IF('Client Cost HIDE'!$C$32<1,'Client Cost HIDE'!$C$32*D51,IF(C50>1,'Client Cost HIDE'!$C$32,0)) -> 0 | H51: =SUM(E51:G51)*'Client Cost HIDE'!$B$28 -> 0 | I51: 0 | J51: 0 | K51: 0 | L51: =IF('Client Cost HIDE'!$C$39<1,'Client Cost HIDE'!$C$39*D51,IF(C51>1,'Client Cost HIDE'!$C$39,0)) -> 0 | M51: =IF(O50>0,O50*'Client Cost HIDE'!$A$177,0) -> 0 | N51: =IF('Client Cost HIDE'!$B$14=B51,O50+L51+M51,0) -> 0 | O51: 0 | P51: 0 | Q51: =IF(int_method=1,'Rep Schedule - Basic'!Q50,'Rep Schedule - Basic'!C51) -> 0 | S51: =IF(C51=0,0,C51-SUM($G$6:G51)-O50) -> 0 | T51: 0 | U51: 6500.22 | W51: TRUE | AA51: =IF(C50>1,IF(int_method=2,'Client Cost HIDE'!$B$172*C50,'Client Cost HIDE'!$B$172*'Client Cost HIDE'!$B$12),0) -> 0 | AB51: =IF(B51>'Client Cost HIDE'!$B$22,AA51,0)+AB50-E50 -> 0
B52: 46 | C52: 0 | D52: =IF(AND(B52>='Client Cost HIDE'!$D$152,B52<='Client Cost HIDE'!$B$14),IF(amortized=1,'Client Cost HIDE'!$B$12/'Client Cost HIDE'!$D$151,-PPMT('Client Cost HIDE'!$B$172,$B52-'Client Cost HIDE'!$D$152+1,'Client Cost HIDE'!$D$151,'Client Cost HIDE'!$B$12)),0) -> 0 | E52: =IF(OR('Client Cost HIDE'!$E$152>B52,C51<1),0,AB52) -> 0 | F52: =IF(indexing,D52*(1+'Client Cost HIDE'!$B$175)^(B52-$B$6)-D52,0) -> 0 | G52: =IF('Client Cost HIDE'!$C$32<1,'Client Cost HIDE'!$C$32*D52,IF(C51>1,'Client Cost HIDE'!$C$32,0)) -> 0 | H52: =SUM(E52:G52)*'Client Cost HIDE'!$B$28 -> 0 | I52: 0 | J52: 0 | K52: 0 | L52: =IF('Client Cost HIDE'!$C$39<1,'Client Cost HIDE'!$C$39*D52,IF(C52>1,'Client Cost HIDE'!$C$39,0)) -> 0 | M52: =IF(O51>0,O51*'Client Cost HIDE'!$A$177,0) -> 0 | N52: =IF('Client Cost HIDE'!$B$14=B52,O51+L52+M52,0) -> 0 | O52: 0 | P52: 0 | Q52: =IF(int_method=1,'Rep Schedule - Basic'!Q51,'Rep Schedule - Basic'!C52) -> 0 | S52: =IF(C52=0,0,C52-SUM($G$6:G52)-O51) -> 0 | T52: 0 | U52: 6500.22 | W52: TRUE | AA52: =IF(C51>1,IF(int_method=2,'Client Cost HIDE'!$B$172*C51,'Client Cost HIDE'!$B$172*'Client Cost HIDE'!$B$12),0) -> 0 | AB52: =IF(B52>'Client Cost HIDE'!$B$22,AA52,0)+AB51-E51 -> 0
B53: 47 | C53: 0 | D53: =IF(AND(B53>='Client Cost HIDE'!$D$152,B53<='Client Cost HIDE'!$B$14),IF(amortized=1,'Client Cost HIDE'!$B$12/'Client Cost HIDE'!$D$151,-PPMT('Client Cost HIDE'!$B$172,$B53-'Client Cost HIDE'!$D$152+1,'Client Cost HIDE'!$D$151,'Client Cost HIDE'!$B$12)),0) -> 0 | E53: =IF(OR('Client Cost HIDE'!$E$152>B53,C52<1),0,AB53) -> 0 | F53: =IF(indexing,D53*(1+'Client Cost HIDE'!$B$175)^(B53-$B$6)-D53,0) -> 0 | G53: =IF('Client Cost HIDE'!$C$32<1,'Client Cost HIDE'!$C$32*D53,IF(C52>1,'Client Cost HIDE'!$C$32,0)) -> 0 | H53: =SUM(E53:G53)*'Client Cost HIDE'!$B$28 -> 0 | I53: 0 | J53: 0 | K53: 0 | L53: =IF('Client Cost HIDE'!$C$39<1,'Client Cost HIDE'!$C$39*D53,IF(C53>1,'Client Cost HIDE'!$C$39,0)) -> 0 | M53: =IF(O52>0,O52*'Client Cost HIDE'!$A$177,0) -> 0 | N53: =IF('Client Cost HIDE'!$B$14=B53,O52+L53+M53,0) -> 0 | O53: 0 | P53: 0 | Q53: =IF(int_method=1,'Rep Schedule - Basic'!Q52,'Rep Schedule - Basic'!C53) -> 0 | S53: =IF(C53=0,0,C53-SUM($G$6:G53)-O52) -> 0 | T53: 0 | U53: 6500.22 | W53: TRUE | AA53: =IF(C52>1,IF(int_method=2,'Client Cost HIDE'!$B$172*C52,'Client Cost HIDE'!$B$172*'Client Cost HIDE'!$B$12),0) -> 0 | AB53: =IF(B53>'Client Cost HIDE'!$B$22,AA53,0)+AB52-E52 -> 0
B54: 48 | C54: 0 | D54: =IF(AND(B54>='Client Cost HIDE'!$D$152,B54<='Client Cost HIDE'!$B$14),IF(amortized=1,'Client Cost HIDE'!$B$12/'Client Cost HIDE'!$D$151,-PPMT('Client Cost HIDE'!$B$172,$B54-'Client Cost HIDE'!$D$152+1,'Client Cost HIDE'!$D$151,'Client Cost HIDE'!$B$12)),0) -> 0 | E54: =IF(OR('Client Cost HIDE'!$E$152>B54,C53<1),0,AB54) -> 0 | F54: =IF(indexing,D54*(1+'Client Cost HIDE'!$B$175)^(B54-$B$6)-D54,0) -> 0 | G54: =IF('Client Cost HIDE'!$C$32<1,'Client Cost HIDE'!$C$32*D54,IF(C53>1,'Client Cost HIDE'!$C$32,0)) -> 0 | H54: =SUM(E54:G54)*'Client Cost HIDE'!$B$28 -> 0 | I54: 0 | J54: 0 | K54: 0 | L54: =IF('Client Cost HIDE'!$C$39<1,'Client Cost HIDE'!$C$39*D54,IF(C54>1,'Client Cost HIDE'!$C$39,0)) -> 0 | M54: =IF(O53>0,O53*'Client Cost HIDE'!$A$177,0) -> 0 | N54: =IF('Client Cost HIDE'!$B$14=B54,O53+L54+M54,0) -> 0 | O54: 0 | P54: 0 | Q54: =IF(int_method=1,'Rep Schedule - Basic'!Q53,'Rep Schedule - Basic'!C54) -> 0 | S54: =IF(C54=0,0,C54-SUM($G$6:G54)-O53) -> 0 | T54: 0 | U54: 6500.22 | W54: TRUE | AA54: =IF(C53>1,IF(int_method=2,'Client Cost HIDE'!$B$172*C53,'Client Cost HIDE'!$B$172*'Client Cost HIDE'!$B$12),0) -> 0 | AB54: =IF(B54>'Client Cost HIDE'!$B$22,AA54,0)+AB53-E53 -> 0
B55: 49 | C55: 0 | D55: =IF(AND(B55>='Client Cost HIDE'!$D$152,B55<='Client Cost HIDE'!$B$14),IF(amortized=1,'Client Cost HIDE'!$B$12/'Client Cost HIDE'!$D$151,-PPMT('Client Cost HIDE'!$B$172,$B55-'Client Cost HIDE'!$D$152+1,'Client Cost HIDE'!$D$151,'Client Cost HIDE'!$B$12)),0) -> 0 | E55: =IF(OR('Client Cost HIDE'!$E$152>B55,C54<1),0,AB55) -> 0 | F55: =IF(indexing,D55*(1+'Client Cost HIDE'!$B$175)^(B55-$B$6)-D55,0) -> 0 | G55: =IF('Client Cost HIDE'!$C$32<1,'Client Cost HIDE'!$C$32*D55,IF(C54>1,'Client Cost HIDE'!$C$32,0)) -> 0 | H55: =SUM(E55:G55)*'Client Cost HIDE'!$B$28 -> 0 | I55: 0 | J55: 0 | K55: 0 | L55: =IF('Client Cost HIDE'!$C$39<1,'Client Cost HIDE'!$C$39*D55,IF(C55>1,'Client Cost HIDE'!$C$39,0)) -> 0 | M55: =IF(O54>0,O54*'Client Cost HIDE'!$A$177,0) -> 0 | N55: =IF('Client Cost HIDE'!$B$14=B55,O54+L55+M55,0) -> 0 | O55: 0 | P55: 0 | Q55: =IF(int_method=1,'Rep Schedule - Basic'!Q54,'Rep Schedule - Basic'!C55) -> 0 | S55: =IF(C55=0,0,C55-SUM($G$6:G55)-O54) -> 0 | T55: 0 | U55: 6500.22 | W55: TRUE | AA55: =IF(C54>1,IF(int_method=2,'Client Cost HIDE'!$B$172*C54,'Client Cost HIDE'!$B$172*'Client Cost HIDE'!$B$12),0) -> 0 | AB55: =IF(B55>'Client Cost HIDE'!$B$22,AA55,0)+AB54-E54 -> 0
B56: 50 | C56: 0 | D56: =IF(AND(B56>='Client Cost HIDE'!$D$152,B56<='Client Cost HIDE'!$B$14),IF(amortized=1,'Client Cost HIDE'!$B$12/'Client Cost HIDE'!$D$151,-PPMT('Client Cost HIDE'!$B$172,$B56-'Client Cost HIDE'!$D$152+1,'Client Cost HIDE'!$D$151,'Client Cost HIDE'!$B$12)),0) -> 0 | E56: =IF(OR('Client Cost HIDE'!$E$152>B56,C55<1),0,AB56) -> 0 | F56: =IF(indexing,D56*(1+'Client Cost HIDE'!$B$175)^(B56-$B$6)-D56,0) -> 0 | G56: =IF('Client Cost HIDE'!$C$32<1,'Client Cost HIDE'!$C$32*D56,IF(C55>1,'Client Cost HIDE'!$C$32,0)) -> 0 | H56: =SUM(E56:G56)*'Client Cost HIDE'!$B$28 -> 0 | I56: 0 | J56: 0 | K56: 0 | L56: =IF('Client Cost HIDE'!$C$39<1,'Client Cost HIDE'!$C$39*D56,IF(C56>1,'Client Cost HIDE'!$C$39,0)) -> 0 | M56: =IF(O55>0,O55*'Client Cost HIDE'!$A$177,0) -> 0 | N56: =IF('Client Cost HIDE'!$B$14=B56,O55+L56+M56,0) -> 0 | O56: 0 | P56: 0 | Q56: =IF(int_method=1,'Rep Schedule - Basic'!Q55,'Rep Schedule - Basic'!C56) -> 0 | S56: =IF(C56=0,0,C56-SUM($G$6:G56)-O55) -> 0 | T56: 0 | U56: 6500.22 | W56: TRUE | AA56: =IF(C55>1,IF(int_method=2,'Client Cost HIDE'!$B$172*C55,'Client Cost HIDE'!$B$172*'Client Cost HIDE'!$B$12),0) -> 0 | AB56: =IF(B56>'Client Cost HIDE'!$B$22,AA56,0)+AB55-E55 -> 0
B57: 51 | C57: 0 | D57: =IF(AND(B57>='Client Cost HIDE'!$D$152,B57<='Client Cost HIDE'!$B$14),IF(amortized=1,'Client Cost HIDE'!$B$12/'Client Cost HIDE'!$D$151,-PPMT('Client Cost HIDE'!$B$172,$B57-'Client Cost HIDE'!$D$152+1,'Client Cost HIDE'!$D$151,'Client Cost HIDE'!$B$12)),0) -> 0 | E57: =IF(OR('Client Cost HIDE'!$E$152>B57,C56<1),0,AB57) -> 0 | F57: =IF(indexing,D57*(1+'Client Cost HIDE'!$B$175)^(B57-$B$6)-D57,0) -> 0 | G57: =IF('Client Cost HIDE'!$C$32<1,'Client Cost HIDE'!$C$32*D57,IF(C56>1,'Client Cost HIDE'!$C$32,0)) -> 0 | H57: =SUM(E57:G57)*'Client Cost HIDE'!$B$28 -> 0 | I57: 0 | J57: 0 | K57: 0 | L57: =IF('Client Cost HIDE'!$C$39<1,'Client Cost HIDE'!$C$39*D57,IF(C57>1,'Client Cost HIDE'!$C$39,0)) -> 0 | M57: =IF(O56>0,O56*'Client Cost HIDE'!$A$177,0) -> 0 | N57: =IF('Client Cost HIDE'!$B$14=B57,O56+L57+M57,0) -> 0 | O57: 0 | P57: 0 | Q57: =IF(int_method=1,'Rep Schedule - Basic'!Q56,'Rep Schedule - Basic'!C57) -> 0 | S57: =IF(C57=0,0,C57-SUM($G$6:G57)-O56) -> 0 | T57: 0 | U57: 6500.22 | W57: TRUE | AA57: =IF(C56>1,IF(int_method=2,'Client Cost HIDE'!$B$172*C56,'Client Cost HIDE'!$B$172*'Client Cost HIDE'!$B$12),0) -> 0 | AB57: =IF(B57>'Client Cost HIDE'!$B$22,AA57,0)+AB56-E56 -> 0
B58: 52 | C58: 0 | D58: =IF(AND(B58>='Client Cost HIDE'!$D$152,B58<='Client Cost HIDE'!$B$14),IF(amortized=1,'Client Cost HIDE'!$B$12/'Client Cost HIDE'!$D$151,-PPMT('Client Cost HIDE'!$B$172,$B58-'Client Cost HIDE'!$D$152+1,'Client Cost HIDE'!$D$151,'Client Cost HIDE'!$B$12)),0) -> 0 | E58: =IF(OR('Client Cost HIDE'!$E$152>B58,C57<1),0,AB58) -> 0 | F58: =IF(indexing,D58*(1+'Client Cost HIDE'!$B$175)^(B58-$B$6)-D58,0) -> 0 | G58: =IF('Client Cost HIDE'!$C$32<1,'Client Cost HIDE'!$C$32*D58,IF(C57>1,'Client Cost HIDE'!$C$32,0)) -> 0 | H58: =SUM(E58:G58)*'Client Cost HIDE'!$B$28 -> 0 | I58: 0 | J58: 0 | K58: 0 | L58: =IF('Client Cost HIDE'!$C$39<1,'Client Cost HIDE'!$C$39*D58,IF(C58>1,'Client Cost HIDE'!$C$39,0)) -> 0 | M58: =IF(O57>0,O57*'Client Cost HIDE'!$A$177,0) -> 0 | N58: =IF('Client Cost HIDE'!$B$14=B58,O57+L58+M58,0) -> 0 | O58: 0 | P58: 0 | Q58: =IF(int_method=1,'Rep Schedule - Basic'!Q57,'Rep Schedule - Basic'!C58) -> 0 | S58: =IF(C58=0,0,C58-SUM($G$6:G58)-O57) -> 0 | T58: 0 | U58: 6500.22 | W58: TRUE | AA58: =IF(C57>1,IF(int_method=2,'Client Cost HIDE'!$B$172*C57,'Client Cost HIDE'!$B$172*'Client Cost HIDE'!$B$12),0) -> 0 | AB58: =IF(B58>'Client Cost HIDE'!$B$22,AA58,0)+AB57-E57 -> 0
B59: 53 | C59: 0 | D59: =IF(AND(B59>='Client Cost HIDE'!$D$152,B59<='Client Cost HIDE'!$B$14),IF(amortized=1,'Client Cost HIDE'!$B$12/'Client Cost HIDE'!$D$151,-PPMT('Client Cost HIDE'!$B$172,$B59-'Client Cost HIDE'!$D$152+1,'Client Cost HIDE'!$D$151,'Client Cost HIDE'!$B$12)),0) -> 0 | E59: =IF(OR('Client Cost HIDE'!$E$152>B59,C58<1),0,AB59) -> 0 | F59: =IF(indexing,D59*(1+'Client Cost HIDE'!$B$175)^(B59-$B$6)-D59,0) -> 0 | G59: =IF('Client Cost HIDE'!$C$32<1,'Client Cost HIDE'!$C$32*D59,IF(C58>1,'Client Cost HIDE'!$C$32,0)) -> 0 | H59: =SUM(E59:G59)*'Client Cost HIDE'!$B$28 -> 0 | I59: 0 | J59: 0 | K59: 0 | L59: =IF('Client Cost HIDE'!$C$39<1,'Client Cost HIDE'!$C$39*D59,IF(C59>1,'Client Cost HIDE'!$C$39,0)) -> 0 | M59: =IF(O58>0,O58*'Client Cost HIDE'!$A$177,0) -> 0 | N59: =IF('Client Cost HIDE'!$B$14=B59,O58+L59+M59,0) -> 0 | O59: 0 | P59: 0 | Q59: =IF(int_method=1,'Rep Schedule - Basic'!Q58,'Rep Schedule - Basic'!C59) -> 0 | S59: =IF(C59=0,0,C59-SUM($G$6:G59)-O58) -> 0 | T59: 0 | U59: 6500.22 | W59: TRUE | AA59: =IF(C58>1,IF(int_method=2,'Client Cost HIDE'!$B$172*C58,'Client Cost HIDE'!$B$172*'Client Cost HIDE'!$B$12),0) -> 0 | AB59: =IF(B59>'Client Cost HIDE'!$B$22,AA59,0)+AB58-E58 -> 0
B60: 54 | C60: 0 | D60: =IF(AND(B60>='Client Cost HIDE'!$D$152,B60<='Client Cost HIDE'!$B$14),IF(amortized=1,'Client Cost HIDE'!$B$12/'Client Cost HIDE'!$D$151,-PPMT('Client Cost HIDE'!$B$172,$B60-'Client Cost HIDE'!$D$152+1,'Client Cost HIDE'!$D$151,'Client Cost HIDE'!$B$12)),0) -> 0 | E60: =IF(OR('Client Cost HIDE'!$E$152>B60,C59<1),0,AB60) -> 0 | F60: =IF(indexing,D60*(1+'Client Cost HIDE'!$B$175)^(B60-$B$6)-D60,0) -> 0 | G60: =IF('Client Cost HIDE'!$C$32<1,'Client Cost HIDE'!$C$32*D60,IF(C59>1,'Client Cost HIDE'!$C$32,0)) -> 0 | H60: =SUM(E60:G60)*'Client Cost HIDE'!$B$28 -> 0 | I60: 0 | J60: 0 | K60: 0 | L60: =IF('Client Cost HIDE'!$C$39<1,'Client Cost HIDE'!$C$39*D60,IF(C60>1,'Client Cost HIDE'!$C$39,0)) -> 0 | M60: =IF(O59>0,O59*'Client Cost HIDE'!$A$177,0) -> 0 | N60: =IF('Client Cost HIDE'!$B$14=B60,O59+L60+M60,0) -> 0 | O60: 0 | P60: 0 | Q60: =IF(int_method=1,'Rep Schedule - Basic'!Q59,'Rep Schedule - Basic'!C60) -> 0 | S60: =IF(C60=0,0,C60-SUM($G$6:G60)-O59) -> 0 | T60: 0 | U60: 6500.22 | W60: TRUE | AA60: =IF(C59>1,IF(int_method=2,'Client Cost HIDE'!$B$172*C59,'Client Cost HIDE'!$B$172*'Client Cost HIDE'!$B$12),0) -> 0 | AB60: =IF(B60>'Client Cost HIDE'!$B$22,AA60,0)+AB59-E59 -> 0
B61: 55 | C61: 0 | D61: =IF(AND(B61>='Client Cost HIDE'!$D$152,B61<='Client Cost HIDE'!$B$14),IF(amortized=1,'Client Cost HIDE'!$B$12/'Client Cost HIDE'!$D$151,-PPMT('Client Cost HIDE'!$B$172,$B61-'Client Cost HIDE'!$D$152+1,'Client Cost HIDE'!$D$151,'Client Cost HIDE'!$B$12)),0) -> 0 | E61: =IF(OR('Client Cost HIDE'!$E$152>B61,C60<1),0,AB61) -> 0 | F61: =IF(indexing,D61*(1+'Client Cost HIDE'!$B$175)^(B61-$B$6)-D61,0) -> 0 | G61: =IF('Client Cost HIDE'!$C$32<1,'Client Cost HIDE'!$C$32*D61,IF(C60>1,'Client Cost HIDE'!$C$32,0)) -> 0 | H61: =SUM(E61:G61)*'Client Cost HIDE'!$B$28 -> 0 | I61: 0 | J61: 0 | K61: 0 | L61: =IF('Client Cost HIDE'!$C$39<1,'Client Cost HIDE'!$C$39*D61,IF(C61>1,'Client Cost HIDE'!$C$39,0)) -> 0 | M61: =IF(O60>0,O60*'Client Cost HIDE'!$A$177,0) -> 0 | N61: =IF('Client Cost HIDE'!$B$14=B61,O60+L61+M61,0) -> 0 | O61: 0 | P61: 0 | Q61: =IF(int_method=1,'Rep Schedule - Basic'!Q60,'Rep Schedule - Basic'!C61) -> 0 | S61: =IF(C61=0,0,C61-SUM($G$6:G61)-O60) -> 0 | T61: 0 | U61: 6500.22 | W61: TRUE | AA61: =IF(C60>1,IF(int_method=2,'Client Cost HIDE'!$B$172*C60,'Client Cost HIDE'!$B$172*'Client Cost HIDE'!$B$12),0) -> 0 | AB61: =IF(B61>'Client Cost HIDE'!$B$22,AA61,0)+AB60-E60 -> 0
B62: 56 | C62: 0 | D62: =IF(AND(B62>='Client Cost HIDE'!$D$152,B62<='Client Cost HIDE'!$B$14),IF(amortized=1,'Client Cost HIDE'!$B$12/'Client Cost HIDE'!$D$151,-PPMT('Client Cost HIDE'!$B$172,$B62-'Client Cost HIDE'!$D$152+1,'Client Cost HIDE'!$D$151,'Client Cost HIDE'!$B$12)),0) -> 0 | E62: =IF(OR('Client Cost HIDE'!$E$152>B62,C61<1),0,AB62) -> 0 | F62: =IF(indexing,D62*(1+'Client Cost HIDE'!$B$175)^(B62-$B$6)-D62,0) -> 0 | G62: =IF('Client Cost HIDE'!$C$32<1,'Client Cost HIDE'!$C$32*D62,IF(C61>1,'Client Cost HIDE'!$C$32,0)) -> 0 | H62: =SUM(E62:G62)*'Client Cost HIDE'!$B$28 -> 0 | I62: 0 | J62: 0 | K62: 0 | L62: =IF('Client Cost HIDE'!$C$39<1,'Client Cost HIDE'!$C$39*D62,IF(C62>1,'Client Cost HIDE'!$C$39,0)) -> 0 | M62: =IF(O61>0,O61*'Client Cost HIDE'!$A$177,0) -> 0 | N62: =IF('Client Cost HIDE'!$B$14=B62,O61+L62+M62,0) -> 0 | O62: 0 | P62: 0 | Q62: =IF(int_method=1,'Rep Schedule - Basic'!Q61,'Rep Schedule - Basic'!C62) -> 0 | S62: =IF(C62=0,0,C62-SUM($G$6:G62)-O61) -> 0 | T62: 0 | U62: 6500.22 | W62: TRUE | AA62: =IF(C61>1,IF(int_method=2,'Client Cost HIDE'!$B$172*C61,'Client Cost HIDE'!$B$172*'Client Cost HIDE'!$B$12),0) -> 0 | AB62: =IF(B62>'Client Cost HIDE'!$B$22,AA62,0)+AB61-E61 -> 0
B63: 57 | C63: 0 | D63: =IF(AND(B63>='Client Cost HIDE'!$D$152,B63<='Client Cost HIDE'!$B$14),IF(amortized=1,'Client Cost HIDE'!$B$12/'Client Cost HIDE'!$D$151,-PPMT('Client Cost HIDE'!$B$172,$B63-'Client Cost HIDE'!$D$152+1,'Client Cost HIDE'!$D$151,'Client Cost HIDE'!$B$12)),0) -> 0 | E63: =IF(OR('Client Cost HIDE'!$E$152>B63,C62<1),0,AB63) -> 0 | F63: =IF(indexing,D63*(1+'Client Cost HIDE'!$B$175)^(B63-$B$6)-D63,0) -> 0 | G63: =IF('Client Cost HIDE'!$C$32<1,'Client Cost HIDE'!$C$32*D63,IF(C62>1,'Client Cost HIDE'!$C$32,0)) -> 0 | H63: =SUM(E63:G63)*'Client Cost HIDE'!$B$28 -> 0 | I63: 0 | J63: 0 | K63: 0 | L63: =IF('Client Cost HIDE'!$C$39<1,'Client Cost HIDE'!$C$39*D63,IF(C63>1,'Client Cost HIDE'!$C$39,0)) -> 0 | M63: =IF(O62>0,O62*'Client Cost HIDE'!$A$177,0) -> 0 | N63: =IF('Client Cost HIDE'!$B$14=B63,O62+L63+M63,0) -> 0 | O63: 0 | P63: 0 | Q63: =IF(int_method=1,'Rep Schedule - Basic'!Q62,'Rep Schedule - Basic'!C63) -> 0 | S63: =IF(C63=0,0,C63-SUM($G$6:G63)-O62) -> 0 | T63: 0 | U63: 6500.22 | W63: TRUE | AA63: =IF(C62>1,IF(int_method=2,'Client Cost HIDE'!$B$172*C62,'Client Cost HIDE'!$B$172*'Client Cost HIDE'!$B$12),0) -> 0 | AB63: =IF(B63>'Client Cost HIDE'!$B$22,AA63,0)+AB62-E62 -> 0
B64: 58 | C64: 0 | D64: =IF(AND(B64>='Client Cost HIDE'!$D$152,B64<='Client Cost HIDE'!$B$14),IF(amortized=1,'Client Cost HIDE'!$B$12/'Client Cost HIDE'!$D$151,-PPMT('Client Cost HIDE'!$B$172,$B64-'Client Cost HIDE'!$D$152+1,'Client Cost HIDE'!$D$151,'Client Cost HIDE'!$B$12)),0) -> 0 | E64: =IF(OR('Client Cost HIDE'!$E$152>B64,C63<1),0,AB64) -> 0 | F64: =IF(indexing,D64*(1+'Client Cost HIDE'!$B$175)^(B64-$B$6)-D64,0) -> 0 | G64: =IF('Client Cost HIDE'!$C$32<1,'Client Cost HIDE'!$C$32*D64,IF(C63>1,'Client Cost HIDE'!$C$32,0)) -> 0 | H64: =SUM(E64:G64)*'Client Cost HIDE'!$B$28 -> 0 | I64: 0 | J64: 0 | K64: 0 | L64: =IF('Client Cost HIDE'!$C$39<1,'Client Cost HIDE'!$C$39*D64,IF(C64>1,'Client Cost HIDE'!$C$39,0)) -> 0 | M64: =IF(O63>0,O63*'Client Cost HIDE'!$A$177,0) -> 0 | N64: =IF('Client Cost HIDE'!$B$14=B64,O63+L64+M64,0) -> 0 | O64: 0 | P64: 0 | Q64: =IF(int_method=1,'Rep Schedule - Basic'!Q63,'Rep Schedule - Basic'!C64) -> 0 | S64: =IF(C64=0,0,C64-SUM($G$6:G64)-O63) -> 0 | T64: 0 | U64: 6500.22 | W64: TRUE | AA64: =IF(C63>1,IF(int_method=2,'Client Cost HIDE'!$B$172*C63,'Client Cost HIDE'!$B$172*'Client Cost HIDE'!$B$12),0) -> 0 | AB64: =IF(B64>'Client Cost HIDE'!$B$22,AA64,0)+AB63-E63 -> 0
B65: 59 | C65: 0 | D65: =IF(AND(B65>='Client Cost HIDE'!$D$152,B65<='Client Cost HIDE'!$B$14),IF(amortized=1,'Client Cost HIDE'!$B$12/'Client Cost HIDE'!$D$151,-PPMT('Client Cost HIDE'!$B$172,$B65-'Client Cost HIDE'!$D$152+1,'Client Cost HIDE'!$D$151,'Client Cost HIDE'!$B$12)),0) -> 0 | E65: =IF(OR('Client Cost HIDE'!$E$152>B65,C64<1),0,AB65) -> 0 | F65: =IF(indexing,D65*(1+'Client Cost HIDE'!$B$175)^(B65-$B$6)-D65,0) -> 0 | G65: =IF('Client Cost HIDE'!$C$32<1,'Client Cost HIDE'!$C$32*D65,IF(C64>1,'Client Cost HIDE'!$C$32,0)) -> 0 | H65: =SUM(E65:G65)*'Client Cost HIDE'!$B$28 -> 0 | I65: 0 | J65: 0 | K65: 0 | L65: =IF('Client Cost HIDE'!$C$39<1,'Client Cost HIDE'!$C$39*D65,IF(C65>1,'Client Cost HIDE'!$C$39,0)) -> 0 | M65: =IF(O64>0,O64*'Client Cost HIDE'!$A$177,0) -> 0 | N65: =IF('Client Cost HIDE'!$B$14=B65,O64+L65+M65,0) -> 0 | O65: 0 | P65: 0 | Q65: =IF(int_method=1,'Rep Schedule - Basic'!Q64,'Rep Schedule - Basic'!C65) -> 0 | S65: =IF(C65=0,0,C65-SUM($G$6:G65)-O64) -> 0 | T65: 0 | U65: 6500.22 | W65: TRUE | AA65: =IF(C64>1,IF(int_method=2,'Client Cost HIDE'!$B$172*C64,'Client Cost HIDE'!$B$172*'Client Cost HIDE'!$B$12),0) -> 0 | AB65: =IF(B65>'Client Cost HIDE'!$B$22,AA65,0)+AB64-E64 -> 0
B66: 60 | C66: 0 | D66: =IF(AND(B66>='Client Cost HIDE'!$D$152,B66<='Client Cost HIDE'!$B$14),IF(amortized=1,'Client Cost HIDE'!$B$12/'Client Cost HIDE'!$D$151,-PPMT('Client Cost HIDE'!$B$172,$B66-'Client Cost HIDE'!$D$152+1,'Client Cost HIDE'!$D$151,'Client Cost HIDE'!$B$12)),0) -> 0 | E66: =IF(OR('Client Cost HIDE'!$E$152>B66,C65<1),0,AB66) -> 0 | F66: =IF(indexing,D66*(1+'Client Cost HIDE'!$B$175)^(B66-$B$6)-D66,0) -> 0 | G66: =IF('Client Cost HIDE'!$C$32<1,'Client Cost HIDE'!$C$32*D66,IF(C65>1,'Client Cost HIDE'!$C$32,0)) -> 0 | H66: =SUM(E66:G66)*'Client Cost HIDE'!$B$28 -> 0 | I66: 0 | J66: 0 | K66: 0 | L66: =IF('Client Cost HIDE'!$C$39<1,'Client Cost HIDE'!$C$39*D66,IF(C66>1,'Client Cost HIDE'!$C$39,0)) -> 0 | M66: =IF(O65>0,O65*'Client Cost HIDE'!$A$177,0) -> 0 | N66: =IF('Client Cost HIDE'!$B$14=B66,O65+L66+M66,0) -> 0 | O66: 0 | P66: 0 | Q66: =IF(int_method=1,'Rep Schedule - Basic'!Q65,'Rep Schedule - Basic'!C66) -> 0 | S66: =IF(C66=0,0,C66-SUM($G$6:G66)-O65) -> 0 | T66: 0 | U66: 6500.22 | W66: TRUE | AA66: =IF(C65>1,IF(int_method=2,'Client Cost HIDE'!$B$172*C65,'Client Cost HIDE'!$B$172*'Client Cost HIDE'!$B$12),0) -> 0 | AB66: =IF(B66>'Client Cost HIDE'!$B$22,AA66,0)+AB65-E65 -> 0
B67: 61 | C67: 0 | D67: =IF(AND(B67>='Client Cost HIDE'!$D$152,B67<='Client Cost HIDE'!$B$14),IF(amortized=1,'Client Cost HIDE'!$B$12/'Client Cost HIDE'!$D$151,-PPMT('Client Cost HIDE'!$B$172,$B67-'Client Cost HIDE'!$D$152+1,'Client Cost HIDE'!$D$151,'Client Cost HIDE'!$B$12)),0) -> 0 | E67: =IF(OR('Client Cost HIDE'!$E$152>B67,C66<1),0,AB67) -> 0 | F67: =IF(indexing,D67*(1+'Client Cost HIDE'!$B$175)^(B67-$B$6)-D67,0) -> 0 | G67: =IF('Client Cost HIDE'!$C$32<1,'Client Cost HIDE'!$C$32*D67,IF(C66>1,'Client Cost HIDE'!$C$32,0)) -> 0 | H67: =SUM(E67:G67)*'Client Cost HIDE'!$B$28 -> 0 | I67: 0 | J67: 0 | K67: 0 | L67: =IF('Client Cost HIDE'!$C$39<1,'Client Cost HIDE'!$C$39*D67,IF(C67>1,'Client Cost HIDE'!$C$39,0)) -> 0 | M67: =IF(O66>0,O66*'Client Cost HIDE'!$A$177,0) -> 0 | N67: =IF('Client Cost HIDE'!$B$14=B67,O66+L67+M67,0) -> 0 | O67: 0 | P67: 0 | Q67: =IF(int_method=1,'Rep Schedule - Basic'!Q66,'Rep Schedule - Basic'!C67) -> 0 | S67: =IF(C67=0,0,C67-SUM($G$6:G67)-O66) -> 0 | T67: 0 | U67: 6500.22 | W67: TRUE | AA67: =IF(C66>1,IF(int_method=2,'Client Cost HIDE'!$B$172*C66,'Client Cost HIDE'!$B$172*'Client Cost HIDE'!$B$12),0) -> 0 | AB67: =IF(B67>'Client Cost HIDE'!$B$22,AA67,0)+AB66-E66 -> 0
B68: 62 | C68: 0 | D68: =IF(AND(B68>='Client Cost HIDE'!$D$152,B68<='Client Cost HIDE'!$B$14),IF(amortized=1,'Client Cost HIDE'!$B$12/'Client Cost HIDE'!$D$151,-PPMT('Client Cost HIDE'!$B$172,$B68-'Client Cost HIDE'!$D$152+1,'Client Cost HIDE'!$D$151,'Client Cost HIDE'!$B$12)),0) -> 0 | E68: =IF(OR('Client Cost HIDE'!$E$152>B68,C67<1),0,AB68) -> 0 | F68: =IF(indexing,D68*(1+'Client Cost HIDE'!$B$175)^(B68-$B$6)-D68,0) -> 0 | G68: =IF('Client Cost HIDE'!$C$32<1,'Client Cost HIDE'!$C$32*D68,IF(C67>1,'Client Cost HIDE'!$C$32,0)) -> 0 | H68: =SUM(E68:G68)*'Client Cost HIDE'!$B$28 -> 0 | I68: 0 | J68: 0 | K68: 0 | L68: =IF('Client Cost HIDE'!$C$39<1,'Client Cost HIDE'!$C$39*D68,IF(C68>1,'Client Cost HIDE'!$C$39,0)) -> 0 | M68: =IF(O67>0,O67*'Client Cost HIDE'!$A$177,0) -> 0 | N68: =IF('Client Cost HIDE'!$B$14=B68,O67+L68+M68,0) -> 0 | O68: 0 | P68: 0 | Q68: =IF(int_method=1,'Rep Schedule - Basic'!Q67,'Rep Schedule - Basic'!C68) -> 0 | S68: =IF(C68=0,0,C68-SUM($G$6:G68)-O67) -> 0 | T68: 0 | U68: 6500.22 | W68: TRUE | AA68: =IF(C67>1,IF(int_method=2,'Client Cost HIDE'!$B$172*C67,'Client Cost HIDE'!$B$172*'Client Cost HIDE'!$B$12),0) -> 0 | AB68: =IF(B68>'Client Cost HIDE'!$B$22,AA68,0)+AB67-E67 -> 0
B69: 63 | C69: 0 | D69: =IF(AND(B69>='Client Cost HIDE'!$D$152,B69<='Client Cost HIDE'!$B$14),IF(amortized=1,'Client Cost HIDE'!$B$12/'Client Cost HIDE'!$D$151,-PPMT('Client Cost HIDE'!$B$172,$B69-'Client Cost HIDE'!$D$152+1,'Client Cost HIDE'!$D$151,'Client Cost HIDE'!$B$12)),0) -> 0 | E69: =IF(OR('Client Cost HIDE'!$E$152>B69,C68<1),0,AB69) -> 0 | F69: =IF(indexing,D69*(1+'Client Cost HIDE'!$B$175)^(B69-$B$6)-D69,0) -> 0 | G69: =IF('Client Cost HIDE'!$C$32<1,'Client Cost HIDE'!$C$32*D69,IF(C68>1,'Client Cost HIDE'!$C$32,0)) -> 0 | H69: =SUM(E69:G69)*'Client Cost HIDE'!$B$28 -> 0 | I69: 0 | J69: 0 | K69: 0 | L69: =IF('Client Cost HIDE'!$C$39<1,'Client Cost HIDE'!$C$39*D69,IF(C69>1,'Client Cost HIDE'!$C$39,0)) -> 0 | M69: =IF(O68>0,O68*'Client Cost HIDE'!$A$177,0) -> 0 | N69: =IF('Client Cost HIDE'!$B$14=B69,O68+L69+M69,0) -> 0 | O69: 0 | P69: 0 | Q69: =IF(int_method=1,'Rep Schedule - Basic'!Q68,'Rep Schedule - Basic'!C69) -> 0 | S69: =IF(C69=0,0,C69-SUM($G$6:G69)-O68) -> 0 | T69: 0 | U69: 6500.22 | W69: TRUE | AA69: =IF(C68>1,IF(int_method=2,'Client Cost HIDE'!$B$172*C68,'Client Cost HIDE'!$B$172*'Client Cost HIDE'!$B$12),0) -> 0 | AB69: =IF(B69>'Client Cost HIDE'!$B$22,AA69,0)+AB68-E68 -> 0
B70: 64 | C70: 0 | D70: =IF(AND(B70>='Client Cost HIDE'!$D$152,B70<='Client Cost HIDE'!$B$14),IF(amortized=1,'Client Cost HIDE'!$B$12/'Client Cost HIDE'!$D$151,-PPMT('Client Cost HIDE'!$B$172,$B70-'Client Cost HIDE'!$D$152+1,'Client Cost HIDE'!$D$151,'Client Cost HIDE'!$B$12)),0) -> 0 | E70: =IF(OR('Client Cost HIDE'!$E$152>B70,C69<1),0,AB70) -> 0 | F70: =IF(indexing,D70*(1+'Client Cost HIDE'!$B$175)^(B70-$B$6)-D70,0) -> 0 | G70: =IF('Client Cost HIDE'!$C$32<1,'Client Cost HIDE'!$C$32*D70,IF(C69>1,'Client Cost HIDE'!$C$32,0)) -> 0 | H70: =SUM(E70:G70)*'Client Cost HIDE'!$B$28 -> 0 | I70: 0 | J70: 0 | K70: 0 | L70: =IF('Client Cost HIDE'!$C$39<1,'Client Cost HIDE'!$C$39*D70,IF(C70>1,'Client Cost HIDE'!$C$39,0)) -> 0 | M70: =IF(O69>0,O69*'Client Cost HIDE'!$A$177,0) -> 0 | N70: =IF('Client Cost HIDE'!$B$14=B70,O69+L70+M70,0) -> 0 | O70: 0 | P70: =+K70-L70+N70 -> 0 | Q70: =IF(int_method=1,'Rep Schedule - Basic'!Q69,'Rep Schedule - Basic'!C70) -> 0 | R70: =IF(O70>0,O70,NA()) ->  | S70: =IF(C70=0,0,C70-SUM($G$6:G70)-O69) -> 0 | T70: =IF(AND(S70<0,B70<=term),1,0) -> 0 | U70: 6500.22 | W70: TRUE | AA70: =IF(C69>1,IF(int_method=2,'Client Cost HIDE'!$B$172*C69,'Client Cost HIDE'!$B$172*'Client Cost HIDE'!$B$12),0) -> 0 | AB70: =IF(B70>'Client Cost HIDE'!$B$22,AA70,0)+AB69-E69 -> 0
B71: 65 | C71: =IF(C70-D71>1,ROUND(+C70-D71,2),0) -> 0 | D71: =IF(AND(B71>='Client Cost HIDE'!$D$152,B71<='Client Cost HIDE'!$B$14),IF(amortized=1,'Client Cost HIDE'!$B$12/'Client Cost HIDE'!$D$151,-PPMT('Client Cost HIDE'!$B$172,$B71-'Client Cost HIDE'!$D$152+1,'Client Cost HIDE'!$D$151,'Client Cost HIDE'!$B$12)),0) -> 0 | E71: =IF(OR('Client Cost HIDE'!$E$152>B71,C70<1),0,AB71) -> 0 | F71: =IF(indexing,D71*(1+'Client Cost HIDE'!$B$175)^(B71-$B$6)-D71,0) -> 0 | G71: =IF('Client Cost HIDE'!$C$32<1,'Client Cost HIDE'!$C$32*D71,IF(C70>1,'Client Cost HIDE'!$C$32,0)) -> 0 | H71: =SUM(E71:G71)*'Client Cost HIDE'!$B$28 -> 0 | I71: =-D71-E71-F71 -> 0 | J71: =-D71-E71-F71-G71 -> 0 | K71: =-D71-E71-F71-G71-H71 -> 0 | L71: =IF('Client Cost HIDE'!$C$39<1,'Client Cost HIDE'!$C$39*D71,IF(C71>1,'Client Cost HIDE'!$C$39,0)) -> 0 | M71: =IF(O70>0,O70*'Client Cost HIDE'!$A$177,0) -> 0 | N71: =IF('Client Cost HIDE'!$B$14=B71,O70+L71+M71,0) -> 0 | O71: =+O70+L71+M71-N71 -> 0 | P71: 0 | Q71: =IF(int_method=1,'Rep Schedule - Basic'!Q70,'Rep Schedule - Basic'!C71) -> 0 | S71: =IF(C71=0,0,C71-SUM($G$6:G71)-O70) -> 0 | T71: 0 | U71: =U70+S71 -> 6500.22 | W71: TRUE | AA71: =IF(C70>1,IF(int_method=2,'Client Cost HIDE'!$B$172*C70,'Client Cost HIDE'!$B$172*'Client Cost HIDE'!$B$12),0) -> 0 | AB71: =IF(B71>'Client Cost HIDE'!$B$22,AA71,0)+AB70-E70 -> 0
B72: 66 | C72: 0 | D72: =IF(AND(B72>='Client Cost HIDE'!$D$152,B72<='Client Cost HIDE'!$B$14),IF(amortized=1,'Client Cost HIDE'!$B$12/'Client Cost HIDE'!$D$151,-PPMT('Client Cost HIDE'!$B$172,$B72-'Client Cost HIDE'!$D$152+1,'Client Cost HIDE'!$D$151,'Client Cost HIDE'!$B$12)),0) -> 0 | E72: =IF(OR('Client Cost HIDE'!$E$152>B72,C71<1),0,AB72) -> 0 | F72: =IF(indexing,D72*(1+'Client Cost HIDE'!$B$175)^(B72-$B$6)-D72,0) -> 0 | G72: =IF('Client Cost HIDE'!$C$32<1,'Client Cost HIDE'!$C$32*D72,IF(C71>1,'Client Cost HIDE'!$C$32,0)) -> 0 | H72: =SUM(E72:G72)*'Client Cost HIDE'!$B$28 -> 0 | I72: 0 | J72: 0 | K72: 0 | L72: =IF('Client Cost HIDE'!$C$39<1,'Client Cost HIDE'!$C$39*D72,IF(C72>1,'Client Cost HIDE'!$C$39,0)) -> 0 | M72: =IF(O71>0,O71*'Client Cost HIDE'!$A$177,0) -> 0 | N72: =IF('Client Cost HIDE'!$B$14=B72,O71+L72+M72,0) -> 0 | O72: 0 | P72: 0 | Q72: =IF(int_method=1,'Rep Schedule - Basic'!Q71,'Rep Schedule - Basic'!C72) -> 0 | S72: =IF(C72=0,0,C72-SUM($G$6:G72)-O71) -> 0 | T72: 0 | U72: 6500.22 | W72: =IF(B72<=term,"x",TRUE) -> TRUE | AA72: =IF(C71>1,IF(int_method=2,'Client Cost HIDE'!$B$172*C71,'Client Cost HIDE'!$B$172*'Client Cost HIDE'!$B$12),0) -> 0 | AB72: =IF(B72>'Client Cost HIDE'!$B$22,AA72,0)+AB71-E71 -> 0
B73: 67 | C73: 0 | D73: =IF(AND(B73>='Client Cost HIDE'!$D$152,B73<='Client Cost HIDE'!$B$14),IF(amortized=1,'Client Cost HIDE'!$B$12/'Client Cost HIDE'!$D$151,-PPMT('Client Cost HIDE'!$B$172,$B73-'Client Cost HIDE'!$D$152+1,'Client Cost HIDE'!$D$151,'Client Cost HIDE'!$B$12)),0) -> 0 | E73: =IF(OR('Client Cost HIDE'!$E$152>B73,C72<1),0,AB73) -> 0 | F73: =IF(indexing,D73*(1+'Client Cost HIDE'!$B$175)^(B73-$B$6)-D73,0) -> 0 | G73: =IF('Client Cost HIDE'!$C$32<1,'Client Cost HIDE'!$C$32*D73,IF(C72>1,'Client Cost HIDE'!$C$32,0)) -> 0 | H73: =SUM(E73:G73)*'Client Cost HIDE'!$B$28 -> 0 | I73: 0 | J73: 0 | K73: 0 | L73: =IF('Client Cost HIDE'!$C$39<1,'Client Cost HIDE'!$C$39*D73,IF(C73>1,'Client Cost HIDE'!$C$39,0)) -> 0 | M73: =IF(O72>0,O72*'Client Cost HIDE'!$A$177,0) -> 0 | N73: =IF('Client Cost HIDE'!$B$14=B73,O72+L73+M73,0) -> 0 | O73: 0 | P73: 0 | Q73: =IF(int_method=1,'Rep Schedule - Basic'!Q72,'Rep Schedule - Basic'!C73) -> 0 | S73: =IF(C73=0,0,C73-SUM($G$6:G73)-O72) -> 0 | T73: 0 | U73: 6500.22 | W73: TRUE | AA73: =IF(C72>1,IF(int_method=2,'Client Cost HIDE'!$B$172*C72,'Client Cost HIDE'!$B$172*'Client Cost HIDE'!$B$12),0) -> 0 | AB73: =IF(B73>'Client Cost HIDE'!$B$22,AA73,0)+AB72-E72 -> 0
B74: 68 | C74: 0 | D74: =IF(AND(B74>='Client Cost HIDE'!$D$152,B74<='Client Cost HIDE'!$B$14),IF(amortized=1,'Client Cost HIDE'!$B$12/'Client Cost HIDE'!$D$151,-PPMT('Client Cost HIDE'!$B$172,$B74-'Client Cost HIDE'!$D$152+1,'Client Cost HIDE'!$D$151,'Client Cost HIDE'!$B$12)),0) -> 0 | E74: =IF(OR('Client Cost HIDE'!$E$152>B74,C73<1),0,AB74) -> 0 | F74: =IF(indexing,D74*(1+'Client Cost HIDE'!$B$175)^(B74-$B$6)-D74,0) -> 0 | G74: =IF('Client Cost HIDE'!$C$32<1,'Client Cost HIDE'!$C$32*D74,IF(C73>1,'Client Cost HIDE'!$C$32,0)) -> 0 | H74: =SUM(E74:G74)*'Client Cost HIDE'!$B$28 -> 0 | I74: 0 | J74: 0 | K74: 0 | L74: =IF('Client Cost HIDE'!$C$39<1,'Client Cost HIDE'!$C$39*D74,IF(C74>1,'Client Cost HIDE'!$C$39,0)) -> 0 | M74: =IF(O73>0,O73*'Client Cost HIDE'!$A$177,0) -> 0 | N74: =IF('Client Cost HIDE'!$B$14=B74,O73+L74+M74,0) -> 0 | O74: 0 | P74: 0 | Q74: =IF(int_method=1,'Rep Schedule - Basic'!Q73,'Rep Schedule - Basic'!C74) -> 0 | S74: =IF(C74=0,0,C74-SUM($G$6:G74)-O73) -> 0 | T74: 0 | U74: 6500.22 | W74: TRUE | AA74: =IF(C73>1,IF(int_method=2,'Client Cost HIDE'!$B$172*C73,'Client Cost HIDE'!$B$172*'Client Cost HIDE'!$B$12),0) -> 0 | AB74: =IF(B74>'Client Cost HIDE'!$B$22,AA74,0)+AB73-E73 -> 0
B75: 69 | C75: 0 | D75: =IF(AND(B75>='Client Cost HIDE'!$D$152,B75<='Client Cost HIDE'!$B$14),IF(amortized=1,'Client Cost HIDE'!$B$12/'Client Cost HIDE'!$D$151,-PPMT('Client Cost HIDE'!$B$172,$B75-'Client Cost HIDE'!$D$152+1,'Client Cost HIDE'!$D$151,'Client Cost HIDE'!$B$12)),0) -> 0 | E75: =IF(OR('Client Cost HIDE'!$E$152>B75,C74<1),0,AB75) -> 0 | F75: =IF(indexing,D75*(1+'Client Cost HIDE'!$B$175)^(B75-$B$6)-D75,0) -> 0 | G75: =IF('Client Cost HIDE'!$C$32<1,'Client Cost HIDE'!$C$32*D75,IF(C74>1,'Client Cost HIDE'!$C$32,0)) -> 0 | H75: =SUM(E75:G75)*'Client Cost HIDE'!$B$28 -> 0 | I75: 0 | J75: 0 | K75: 0 | L75: =IF('Client Cost HIDE'!$C$39<1,'Client Cost HIDE'!$C$39*D75,IF(C75>1,'Client Cost HIDE'!$C$39,0)) -> 0 | M75: =IF(O74>0,O74*'Client Cost HIDE'!$A$177,0) -> 0 | N75: =IF('Client Cost HIDE'!$B$14=B75,O74+L75+M75,0) -> 0 | O75: 0 | P75: 0 | Q75: =IF(int_method=1,'Rep Schedule - Basic'!Q74,'Rep Schedule - Basic'!C75) -> 0 | S75: =IF(C75=0,0,C75-SUM($G$6:G75)-O74) -> 0 | T75: 0 | U75: 6500.22 | W75: TRUE | AA75: =IF(C74>1,IF(int_method=2,'Client Cost HIDE'!$B$172*C74,'Client Cost HIDE'!$B$172*'Client Cost HIDE'!$B$12),0) -> 0 | AB75: =IF(B75>'Client Cost HIDE'!$B$22,AA75,0)+AB74-E74 -> 0
B76: 70 | C76: 0 | D76: =IF(AND(B76>='Client Cost HIDE'!$D$152,B76<='Client Cost HIDE'!$B$14),IF(amortized=1,'Client Cost HIDE'!$B$12/'Client Cost HIDE'!$D$151,-PPMT('Client Cost HIDE'!$B$172,$B76-'Client Cost HIDE'!$D$152+1,'Client Cost HIDE'!$D$151,'Client Cost HIDE'!$B$12)),0) -> 0 | E76: =IF(OR('Client Cost HIDE'!$E$152>B76,C75<1),0,AB76) -> 0 | F76: =IF(indexing,D76*(1+'Client Cost HIDE'!$B$175)^(B76-$B$6)-D76,0) -> 0 | G76: =IF('Client Cost HIDE'!$C$32<1,'Client Cost HIDE'!$C$32*D76,IF(C75>1,'Client Cost HIDE'!$C$32,0)) -> 0 | H76: =SUM(E76:G76)*'Client Cost HIDE'!$B$28 -> 0 | I76: 0 | J76: 0 | K76: 0 | L76: =IF('Client Cost HIDE'!$C$39<1,'Client Cost HIDE'!$C$39*D76,IF(C76>1,'Client Cost HIDE'!$C$39,0)) -> 0 | M76: =IF(O75>0,O75*'Client Cost HIDE'!$A$177,0) -> 0 | N76: =IF('Client Cost HIDE'!$B$14=B76,O75+L76+M76,0) -> 0 | O76: 0 | P76: 0 | Q76: =IF(int_method=1,'Rep Schedule - Basic'!Q75,'Rep Schedule - Basic'!C76) -> 0 | S76: =IF(C76=0,0,C76-SUM($G$6:G76)-O75) -> 0 | T76: 0 | U76: 6500.22 | W76: TRUE | AA76: =IF(C75>1,IF(int_method=2,'Client Cost HIDE'!$B$172*C75,'Client Cost HIDE'!$B$172*'Client Cost HIDE'!$B$12),0) -> 0 | AB76: =IF(B76>'Client Cost HIDE'!$B$22,AA76,0)+AB75-E75 -> 0
B77: 71 | C77: 0 | D77: =IF(AND(B77>='Client Cost HIDE'!$D$152,B77<='Client Cost HIDE'!$B$14),IF(amortized=1,'Client Cost HIDE'!$B$12/'Client Cost HIDE'!$D$151,-PPMT('Client Cost HIDE'!$B$172,$B77-'Client Cost HIDE'!$D$152+1,'Client Cost HIDE'!$D$151,'Client Cost HIDE'!$B$12)),0) -> 0 | E77: =IF(OR('Client Cost HIDE'!$E$152>B77,C76<1),0,AB77) -> 0 | F77: =IF(indexing,D77*(1+'Client Cost HIDE'!$B$175)^(B77-$B$6)-D77,0) -> 0 | G77: =IF('Client Cost HIDE'!$C$32<1,'Client Cost HIDE'!$C$32*D77,IF(C76>1,'Client Cost HIDE'!$C$32,0)) -> 0 | H77: =SUM(E77:G77)*'Client Cost HIDE'!$B$28 -> 0 | I77: 0 | J77: 0 | K77: 0 | L77: =IF('Client Cost HIDE'!$C$39<1,'Client Cost HIDE'!$C$39*D77,IF(C77>1,'Client Cost HIDE'!$C$39,0)) -> 0 | M77: =IF(O76>0,O76*'Client Cost HIDE'!$A$177,0) -> 0 | N77: =IF('Client Cost HIDE'!$B$14=B77,O76+L77+M77,0) -> 0 | O77: 0 | P77: 0 | Q77: =IF(int_method=1,'Rep Schedule - Basic'!Q76,'Rep Schedule - Basic'!C77) -> 0 | S77: =IF(C77=0,0,C77-SUM($G$6:G77)-O76) -> 0 | T77: 0 | U77: 6500.22 | W77: TRUE | AA77: =IF(C76>1,IF(int_method=2,'Client Cost HIDE'!$B$172*C76,'Client Cost HIDE'!$B$172*'Client Cost HIDE'!$B$12),0) -> 0 | AB77: =IF(B77>'Client Cost HIDE'!$B$22,AA77,0)+AB76-E76 -> 0
B78: 72 | C78: 0 | D78: =IF(AND(B78>='Client Cost HIDE'!$D$152,B78<='Client Cost HIDE'!$B$14),IF(amortized=1,'Client Cost HIDE'!$B$12/'Client Cost HIDE'!$D$151,-PPMT('Client Cost HIDE'!$B$172,$B78-'Client Cost HIDE'!$D$152+1,'Client Cost HIDE'!$D$151,'Client Cost HIDE'!$B$12)),0) -> 0 | E78: =IF(OR('Client Cost HIDE'!$E$152>B78,C77<1),0,AB78) -> 0 | F78: =IF(indexing,D78*(1+'Client Cost HIDE'!$B$175)^(B78-$B$6)-D78,0) -> 0 | G78: =IF('Client Cost HIDE'!$C$32<1,'Client Cost HIDE'!$C$32*D78,IF(C77>1,'Client Cost HIDE'!$C$32,0)) -> 0 | H78: =SUM(E78:G78)*'Client Cost HIDE'!$B$28 -> 0 | I78: 0 | J78: 0 | K78: 0 | L78: =IF('Client Cost HIDE'!$C$39<1,'Client Cost HIDE'!$C$39*D78,IF(C78>1,'Client Cost HIDE'!$C$39,0)) -> 0 | M78: =IF(O77>0,O77*'Client Cost HIDE'!$A$177,0) -> 0 | N78: =IF('Client Cost HIDE'!$B$14=B78,O77+L78+M78,0) -> 0 | O78: 0 | P78: 0 | Q78: =IF(int_method=1,'Rep Schedule - Basic'!Q77,'Rep Schedule - Basic'!C78) -> 0 | S78: =IF(C78=0,0,C78-SUM($G$6:G78)-O77) -> 0 | T78: 0 | U78: 6500.22 | W78: TRUE | AA78: =IF(C77>1,IF(int_method=2,'Client Cost HIDE'!$B$172*C77,'Client Cost HIDE'!$B$172*'Client Cost HIDE'!$B$12),0) -> 0 | AB78: =IF(B78>'Client Cost HIDE'!$B$22,AA78,0)+AB77-E77 -> 0
B79: 73 | C79: 0 | D79: =IF(AND(B79>='Client Cost HIDE'!$D$152,B79<='Client Cost HIDE'!$B$14),IF(amortized=1,'Client Cost HIDE'!$B$12/'Client Cost HIDE'!$D$151,-PPMT('Client Cost HIDE'!$B$172,$B79-'Client Cost HIDE'!$D$152+1,'Client Cost HIDE'!$D$151,'Client Cost HIDE'!$B$12)),0) -> 0 | E79: =IF(OR('Client Cost HIDE'!$E$152>B79,C78<1),0,AB79) -> 0 | F79: =IF(indexing,D79*(1+'Client Cost HIDE'!$B$175)^(B79-$B$6)-D79,0) -> 0 | G79: =IF('Client Cost HIDE'!$C$32<1,'Client Cost HIDE'!$C$32*D79,IF(C78>1,'Client Cost HIDE'!$C$32,0)) -> 0 | H79: =SUM(E79:G79)*'Client Cost HIDE'!$B$28 -> 0 | I79: 0 | J79: 0 | K79: 0 | L79: =IF('Client Cost HIDE'!$C$39<1,'Client Cost HIDE'!$C$39*D79,IF(C79>1,'Client Cost HIDE'!$C$39,0)) -> 0 | M79: =IF(O78>0,O78*'Client Cost HIDE'!$A$177,0) -> 0 | N79: =IF('Client Cost HIDE'!$B$14=B79,O78+L79+M79,0) -> 0 | O79: 0 | P79: 0 | Q79: =IF(int_method=1,'Rep Schedule - Basic'!Q78,'Rep Schedule - Basic'!C79) -> 0 | S79: =IF(C79=0,0,C79-SUM($G$6:G79)-O78) -> 0 | T79: 0 | U79: 6500.22 | W79: TRUE | AA79: =IF(C78>1,IF(int_method=2,'Client Cost HIDE'!$B$172*C78,'Client Cost HIDE'!$B$172*'Client Cost HIDE'!$B$12),0) -> 0 | AB79: =IF(B79>'Client Cost HIDE'!$B$22,AA79,0)+AB78-E78 -> 0
B80: 74 | C80: 0 | D80: =IF(AND(B80>='Client Cost HIDE'!$D$152,B80<='Client Cost HIDE'!$B$14),IF(amortized=1,'Client Cost HIDE'!$B$12/'Client Cost HIDE'!$D$151,-PPMT('Client Cost HIDE'!$B$172,$B80-'Client Cost HIDE'!$D$152+1,'Client Cost HIDE'!$D$151,'Client Cost HIDE'!$B$12)),0) -> 0 | E80: =IF(OR('Client Cost HIDE'!$E$152>B80,C79<1),0,AB80) -> 0 | F80: =IF(indexing,D80*(1+'Client Cost HIDE'!$B$175)^(B80-$B$6)-D80,0) -> 0 | G80: =IF('Client Cost HIDE'!$C$32<1,'Client Cost HIDE'!$C$32*D80,IF(C79>1,'Client Cost HIDE'!$C$32,0)) -> 0 | H80: =SUM(E80:G80)*'Client Cost HIDE'!$B$28 -> 0 | I80: 0 | J80: 0 | K80: 0 | L80: =IF('Client Cost HIDE'!$C$39<1,'Client Cost HIDE'!$C$39*D80,IF(C80>1,'Client Cost HIDE'!$C$39,0)) -> 0 | M80: =IF(O79>0,O79*'Client Cost HIDE'!$A$177,0) -> 0 | N80: =IF('Client Cost HIDE'!$B$14=B80,O79+L80+M80,0) -> 0 | O80: 0 | P80: 0 | Q80: =IF(int_method=1,'Rep Schedule - Basic'!Q79,'Rep Schedule - Basic'!C80) -> 0 | S80: =IF(C80=0,0,C80-SUM($G$6:G80)-O79) -> 0 | T80: 0 | U80: 6500.22 | W80: TRUE | AA80: =IF(C79>1,IF(int_method=2,'Client Cost HIDE'!$B$172*C79,'Client Cost HIDE'!$B$172*'Client Cost HIDE'!$B$12),0) -> 0 | AB80: =IF(B80>'Client Cost HIDE'!$B$22,AA80,0)+AB79-E79 -> 0
B81: 75 | C81: 0 | D81: =IF(AND(B81>='Client Cost HIDE'!$D$152,B81<='Client Cost HIDE'!$B$14),IF(amortized=1,'Client Cost HIDE'!$B$12/'Client Cost HIDE'!$D$151,-PPMT('Client Cost HIDE'!$B$172,$B81-'Client Cost HIDE'!$D$152+1,'Client Cost HIDE'!$D$151,'Client Cost HIDE'!$B$12)),0) -> 0 | E81: =IF(OR('Client Cost HIDE'!$E$152>B81,C80<1),0,AB81) -> 0 | F81: =IF(indexing,D81*(1+'Client Cost HIDE'!$B$175)^(B81-$B$6)-D81,0) -> 0 | G81: =IF('Client Cost HIDE'!$C$32<1,'Client Cost HIDE'!$C$32*D81,IF(C80>1,'Client Cost HIDE'!$C$32,0)) -> 0 | H81: =SUM(E81:G81)*'Client Cost HIDE'!$B$28 -> 0 | I81: 0 | J81: 0 | K81: 0 | L81: =IF('Client Cost HIDE'!$C$39<1,'Client Cost HIDE'!$C$39*D81,IF(C81>1,'Client Cost HIDE'!$C$39,0)) -> 0 | M81: =IF(O80>0,O80*'Client Cost HIDE'!$A$177,0) -> 0 | N81: =IF('Client Cost HIDE'!$B$14=B81,O80+L81+M81,0) -> 0 | O81: 0 | P81: 0 | Q81: =IF(int_method=1,'Rep Schedule - Basic'!Q80,'Rep Schedule - Basic'!C81) -> 0 | S81: =IF(C81=0,0,C81-SUM($G$6:G81)-O80) -> 0 | T81: 0 | U81: 6500.22 | W81: TRUE | AA81: =IF(C80>1,IF(int_method=2,'Client Cost HIDE'!$B$172*C80,'Client Cost HIDE'!$B$172*'Client Cost HIDE'!$B$12),0) -> 0 | AB81: =IF(B81>'Client Cost HIDE'!$B$22,AA81,0)+AB80-E80 -> 0
B82: 76 | C82: 0 | D82: =IF(AND(B82>='Client Cost HIDE'!$D$152,B82<='Client Cost HIDE'!$B$14),IF(amortized=1,'Client Cost HIDE'!$B$12/'Client Cost HIDE'!$D$151,-PPMT('Client Cost HIDE'!$B$172,$B82-'Client Cost HIDE'!$D$152+1,'Client Cost HIDE'!$D$151,'Client Cost HIDE'!$B$12)),0) -> 0 | E82: =IF(OR('Client Cost HIDE'!$E$152>B82,C81<1),0,AB82) -> 0 | F82: =IF(indexing,D82*(1+'Client Cost HIDE'!$B$175)^(B82-$B$6)-D82,0) -> 0 | G82: =IF('Client Cost HIDE'!$C$32<1,'Client Cost HIDE'!$C$32*D82,IF(C81>1,'Client Cost HIDE'!$C$32,0)) -> 0 | H82: =SUM(E82:G82)*'Client Cost HIDE'!$B$28 -> 0 | I82: 0 | J82: 0 | K82: 0 | L82: =IF('Client Cost HIDE'!$C$39<1,'Client Cost HIDE'!$C$39*D82,IF(C82>1,'Client Cost HIDE'!$C$39,0)) -> 0 | M82: =IF(O81>0,O81*'Client Cost HIDE'!$A$177,0) -> 0 | N82: =IF('Client Cost HIDE'!$B$14=B82,O81+L82+M82,0) -> 0 | O82: 0 | P82: 0 | Q82: =IF(int_method=1,'Rep Schedule - Basic'!Q81,'Rep Schedule - Basic'!C82) -> 0 | S82: =IF(C82=0,0,C82-SUM($G$6:G82)-O81) -> 0 | T82: 0 | U82: 6500.22 | W82: TRUE | AA82: =IF(C81>1,IF(int_method=2,'Client Cost HIDE'!$B$172*C81,'Client Cost HIDE'!$B$172*'Client Cost HIDE'!$B$12),0) -> 0 | AB82: =IF(B82>'Client Cost HIDE'!$B$22,AA82,0)+AB81-E81 -> 0
B83: 77 | C83: 0 | D83: =IF(AND(B83>='Client Cost HIDE'!$D$152,B83<='Client Cost HIDE'!$B$14),IF(amortized=1,'Client Cost HIDE'!$B$12/'Client Cost HIDE'!$D$151,-PPMT('Client Cost HIDE'!$B$172,$B83-'Client Cost HIDE'!$D$152+1,'Client Cost HIDE'!$D$151,'Client Cost HIDE'!$B$12)),0) -> 0 | E83: =IF(OR('Client Cost HIDE'!$E$152>B83,C82<1),0,AB83) -> 0 | F83: =IF(indexing,D83*(1+'Client Cost HIDE'!$B$175)^(B83-$B$6)-D83,0) -> 0 | G83: =IF('Client Cost HIDE'!$C$32<1,'Client Cost HIDE'!$C$32*D83,IF(C82>1,'Client Cost HIDE'!$C$32,0)) -> 0 | H83: =SUM(E83:G83)*'Client Cost HIDE'!$B$28 -> 0 | I83: 0 | J83: 0 | K83: 0 | L83: =IF('Client Cost HIDE'!$C$39<1,'Client Cost HIDE'!$C$39*D83,IF(C83>1,'Client Cost HIDE'!$C$39,0)) -> 0 | M83: =IF(O82>0,O82*'Client Cost HIDE'!$A$177,0) -> 0 | N83: =IF('Client Cost HIDE'!$B$14=B83,O82+L83+M83,0) -> 0 | O83: 0 | P83: 0 | Q83: =IF(int_method=1,'Rep Schedule - Basic'!Q82,'Rep Schedule - Basic'!C83) -> 0 | S83: =IF(C83=0,0,C83-SUM($G$6:G83)-O82) -> 0 | T83: 0 | U83: 6500.22 | W83: TRUE | AA83: =IF(C82>1,IF(int_method=2,'Client Cost HIDE'!$B$172*C82,'Client Cost HIDE'!$B$172*'Client Cost HIDE'!$B$12),0) -> 0 | AB83: =IF(B83>'Client Cost HIDE'!$B$22,AA83,0)+AB82-E82 -> 0
B84: 78 | C84: 0 | D84: =IF(AND(B84>='Client Cost HIDE'!$D$152,B84<='Client Cost HIDE'!$B$14),IF(amortized=1,'Client Cost HIDE'!$B$12/'Client Cost HIDE'!$D$151,-PPMT('Client Cost HIDE'!$B$172,$B84-'Client Cost HIDE'!$D$152+1,'Client Cost HIDE'!$D$151,'Client Cost HIDE'!$B$12)),0) -> 0 | E84: =IF(OR('Client Cost HIDE'!$E$152>B84,C83<1),0,AB84) -> 0 | F84: =IF(indexing,D84*(1+'Client Cost HIDE'!$B$175)^(B84-$B$6)-D84,0) -> 0 | G84: =IF('Client Cost HIDE'!$C$32<1,'Client Cost HIDE'!$C$32*D84,IF(C83>1,'Client Cost HIDE'!$C$32,0)) -> 0 | H84: =SUM(E84:G84)*'Client Cost HIDE'!$B$28 -> 0 | I84: 0 | J84: 0 | K84: 0 | L84: =IF('Client Cost HIDE'!$C$39<1,'Client Cost HIDE'!$C$39*D84,IF(C84>1,'Client Cost HIDE'!$C$39,0)) -> 0 | M84: =IF(O83>0,O83*'Client Cost HIDE'!$A$177,0) -> 0 | N84: =IF('Client Cost HIDE'!$B$14=B84,O83+L84+M84,0) -> 0 | O84: 0 | P84: 0 | Q84: =IF(int_method=1,'Rep Schedule - Basic'!Q83,'Rep Schedule - Basic'!C84) -> 0 | S84: =IF(C84=0,0,C84-SUM($G$6:G84)-O83) -> 0 | T84: 0 | U84: 6500.22 | W84: TRUE | AA84: =IF(C83>1,IF(int_method=2,'Client Cost HIDE'!$B$172*C83,'Client Cost HIDE'!$B$172*'Client Cost HIDE'!$B$12),0) -> 0 | AB84: =IF(B84>'Client Cost HIDE'!$B$22,AA84,0)+AB83-E83 -> 0
B85: 79 | C85: 0 | D85: =IF(AND(B85>='Client Cost HIDE'!$D$152,B85<='Client Cost HIDE'!$B$14),IF(amortized=1,'Client Cost HIDE'!$B$12/'Client Cost HIDE'!$D$151,-PPMT('Client Cost HIDE'!$B$172,$B85-'Client Cost HIDE'!$D$152+1,'Client Cost HIDE'!$D$151,'Client Cost HIDE'!$B$12)),0) -> 0 | E85: =IF(OR('Client Cost HIDE'!$E$152>B85,C84<1),0,AB85) -> 0 | F85: =IF(indexing,D85*(1+'Client Cost HIDE'!$B$175)^(B85-$B$6)-D85,0) -> 0 | G85: =IF('Client Cost HIDE'!$C$32<1,'Client Cost HIDE'!$C$32*D85,IF(C84>1,'Client Cost HIDE'!$C$32,0)) -> 0 | H85: =SUM(E85:G85)*'Client Cost HIDE'!$B$28 -> 0 | I85: 0 | J85: 0 | K85: 0 | L85: =IF('Client Cost HIDE'!$C$39<1,'Client Cost HIDE'!$C$39*D85,IF(C85>1,'Client Cost HIDE'!$C$39,0)) -> 0 | M85: =IF(O84>0,O84*'Client Cost HIDE'!$A$177,0) -> 0 | N85: =IF('Client Cost HIDE'!$B$14=B85,O84+L85+M85,0) -> 0 | O85: 0 | P85: 0 | Q85: =IF(int_method=1,'Rep Schedule - Basic'!Q84,'Rep Schedule - Basic'!C85) -> 0 | S85: =IF(C85=0,0,C85-SUM($G$6:G85)-O84) -> 0 | T85: 0 | U85: 6500.22 | W85: TRUE | AA85: =IF(C84>1,IF(int_method=2,'Client Cost HIDE'!$B$172*C84,'Client Cost HIDE'!$B$172*'Client Cost HIDE'!$B$12),0) -> 0 | AB85: =IF(B85>'Client Cost HIDE'!$B$22,AA85,0)+AB84-E84 -> 0
B86: 80 | C86: 0 | D86: =IF(AND(B86>='Client Cost HIDE'!$D$152,B86<='Client Cost HIDE'!$B$14),IF(amortized=1,'Client Cost HIDE'!$B$12/'Client Cost HIDE'!$D$151,-PPMT('Client Cost HIDE'!$B$172,$B86-'Client Cost HIDE'!$D$152+1,'Client Cost HIDE'!$D$151,'Client Cost HIDE'!$B$12)),0) -> 0 | E86: =IF(OR('Client Cost HIDE'!$E$152>B86,C85<1),0,AB86) -> 0 | F86: =IF(indexing,D86*(1+'Client Cost HIDE'!$B$175)^(B86-$B$6)-D86,0) -> 0 | G86: =IF('Client Cost HIDE'!$C$32<1,'Client Cost HIDE'!$C$32*D86,IF(C85>1,'Client Cost HIDE'!$C$32,0)) -> 0 | H86: =SUM(E86:G86)*'Client Cost HIDE'!$B$28 -> 0 | I86: 0 | J86: 0 | K86: 0 | L86: =IF('Client Cost HIDE'!$C$39<1,'Client Cost HIDE'!$C$39*D86,IF(C86>1,'Client Cost HIDE'!$C$39,0)) -> 0 | M86: =IF(O85>0,O85*'Client Cost HIDE'!$A$177,0) -> 0 | N86: =IF('Client Cost HIDE'!$B$14=B86,O85+L86+M86,0) -> 0 | O86: 0 | P86: 0 | Q86: =IF(int_method=1,'Rep Schedule - Basic'!Q85,'Rep Schedule - Basic'!C86) -> 0 | S86: =IF(C86=0,0,C86-SUM($G$6:G86)-O85) -> 0 | T86: 0 | U86: 6500.22 | W86: TRUE | AA86: =IF(C85>1,IF(int_method=2,'Client Cost HIDE'!$B$172*C85,'Client Cost HIDE'!$B$172*'Client Cost HIDE'!$B$12),0) -> 0 | AB86: =IF(B86>'Client Cost HIDE'!$B$22,AA86,0)+AB85-E85 -> 0
B87: 81 | C87: 0 | D87: =IF(AND(B87>='Client Cost HIDE'!$D$152,B87<='Client Cost HIDE'!$B$14),IF(amortized=1,'Client Cost HIDE'!$B$12/'Client Cost HIDE'!$D$151,-PPMT('Client Cost HIDE'!$B$172,$B87-'Client Cost HIDE'!$D$152+1,'Client Cost HIDE'!$D$151,'Client Cost HIDE'!$B$12)),0) -> 0 | E87: =IF(OR('Client Cost HIDE'!$E$152>B87,C86<1),0,AB87) -> 0 | F87: =IF(indexing,D87*(1+'Client Cost HIDE'!$B$175)^(B87-$B$6)-D87,0) -> 0 | G87: =IF('Client Cost HIDE'!$C$32<1,'Client Cost HIDE'!$C$32*D87,IF(C86>1,'Client Cost HIDE'!$C$32,0)) -> 0 | H87: =SUM(E87:G87)*'Client Cost HIDE'!$B$28 -> 0 | I87: 0 | J87: 0 | K87: 0 | L87: =IF('Client Cost HIDE'!$C$39<1,'Client Cost HIDE'!$C$39*D87,IF(C87>1,'Client Cost HIDE'!$C$39,0)) -> 0 | M87: =IF(O86>0,O86*'Client Cost HIDE'!$A$177,0) -> 0 | N87: =IF('Client Cost HIDE'!$B$14=B87,O86+L87+M87,0) -> 0 | O87: 0 | P87: 0 | Q87: =IF(int_method=1,'Rep Schedule - Basic'!Q86,'Rep Schedule - Basic'!C87) -> 0 | S87: =IF(C87=0,0,C87-SUM($G$6:G87)-O86) -> 0 | T87: 0 | U87: 6500.22 | W87: TRUE | AA87: =IF(C86>1,IF(int_method=2,'Client Cost HIDE'!$B$172*C86,'Client Cost HIDE'!$B$172*'Client Cost HIDE'!$B$12),0) -> 0 | AB87: =IF(B87>'Client Cost HIDE'!$B$22,AA87,0)+AB86-E86 -> 0
B88: 82 | C88: 0 | D88: =IF(AND(B88>='Client Cost HIDE'!$D$152,B88<='Client Cost HIDE'!$B$14),IF(amortized=1,'Client Cost HIDE'!$B$12/'Client Cost HIDE'!$D$151,-PPMT('Client Cost HIDE'!$B$172,$B88-'Client Cost HIDE'!$D$152+1,'Client Cost HIDE'!$D$151,'Client Cost HIDE'!$B$12)),0) -> 0 | E88: =IF(OR('Client Cost HIDE'!$E$152>B88,C87<1),0,AB88) -> 0 | F88: =IF(indexing,D88*(1+'Client Cost HIDE'!$B$175)^(B88-$B$6)-D88,0) -> 0 | G88: =IF('Client Cost HIDE'!$C$32<1,'Client Cost HIDE'!$C$32*D88,IF(C87>1,'Client Cost HIDE'!$C$32,0)) -> 0 | H88: =SUM(E88:G88)*'Client Cost HIDE'!$B$28 -> 0 | I88: 0 | J88: 0 | K88: 0 | L88: =IF('Client Cost HIDE'!$C$39<1,'Client Cost HIDE'!$C$39*D88,IF(C88>1,'Client Cost HIDE'!$C$39,0)) -> 0 | M88: =IF(O87>0,O87*'Client Cost HIDE'!$A$177,0) -> 0 | N88: =IF('Client Cost HIDE'!$B$14=B88,O87+L88+M88,0) -> 0 | O88: 0 | P88: 0 | Q88: =IF(int_method=1,'Rep Schedule - Basic'!Q87,'Rep Schedule - Basic'!C88) -> 0 | S88: =IF(C88=0,0,C88-SUM($G$6:G88)-O87) -> 0 | T88: 0 | U88: 6500.22 | W88: TRUE | AA88: =IF(C87>1,IF(int_method=2,'Client Cost HIDE'!$B$172*C87,'Client Cost HIDE'!$B$172*'Client Cost HIDE'!$B$12),0) -> 0 | AB88: =IF(B88>'Client Cost HIDE'!$B$22,AA88,0)+AB87-E87 -> 0
B89: 83 | C89: 0 | D89: =IF(AND(B89>='Client Cost HIDE'!$D$152,B89<='Client Cost HIDE'!$B$14),IF(amortized=1,'Client Cost HIDE'!$B$12/'Client Cost HIDE'!$D$151,-PPMT('Client Cost HIDE'!$B$172,$B89-'Client Cost HIDE'!$D$152+1,'Client Cost HIDE'!$D$151,'Client Cost HIDE'!$B$12)),0) -> 0 | E89: =IF(OR('Client Cost HIDE'!$E$152>B89,C88<1),0,AB89) -> 0 | F89: =IF(indexing,D89*(1+'Client Cost HIDE'!$B$175)^(B89-$B$6)-D89,0) -> 0 | G89: =IF('Client Cost HIDE'!$C$32<1,'Client Cost HIDE'!$C$32*D89,IF(C88>1,'Client Cost HIDE'!$C$32,0)) -> 0 | H89: =SUM(E89:G89)*'Client Cost HIDE'!$B$28 -> 0 | I89: 0 | J89: 0 | K89: 0 | L89: =IF('Client Cost HIDE'!$C$39<1,'Client Cost HIDE'!$C$39*D89,IF(C89>1,'Client Cost HIDE'!$C$39,0)) -> 0 | M89: =IF(O88>0,O88*'Client Cost HIDE'!$A$177,0) -> 0 | N89: =IF('Client Cost HIDE'!$B$14=B89,O88+L89+M89,0) -> 0 | O89: 0 | P89: 0 | Q89: =IF(int_method=1,'Rep Schedule - Basic'!Q88,'Rep Schedule - Basic'!C89) -> 0 | S89: =IF(C89=0,0,C89-SUM($G$6:G89)-O88) -> 0 | T89: 0 | U89: 6500.22 | W89: TRUE | AA89: =IF(C88>1,IF(int_method=2,'Client Cost HIDE'!$B$172*C88,'Client Cost HIDE'!$B$172*'Client Cost HIDE'!$B$12),0) -> 0 | AB89: =IF(B89>'Client Cost HIDE'!$B$22,AA89,0)+AB88-E88 -> 0
B90: 84 | C90: 0 | D90: =IF(AND(B90>='Client Cost HIDE'!$D$152,B90<='Client Cost HIDE'!$B$14),IF(amortized=1,'Client Cost HIDE'!$B$12/'Client Cost HIDE'!$D$151,-PPMT('Client Cost HIDE'!$B$172,$B90-'Client Cost HIDE'!$D$152+1,'Client Cost HIDE'!$D$151,'Client Cost HIDE'!$B$12)),0) -> 0 | E90: =IF(OR('Client Cost HIDE'!$E$152>B90,C89<1),0,AB90) -> 0 | F90: =IF(indexing,D90*(1+'Client Cost HIDE'!$B$175)^(B90-$B$6)-D90,0) -> 0 | G90: =IF('Client Cost HIDE'!$C$32<1,'Client Cost HIDE'!$C$32*D90,IF(C89>1,'Client Cost HIDE'!$C$32,0)) -> 0 | H90: =SUM(E90:G90)*'Client Cost HIDE'!$B$28 -> 0 | I90: 0 | J90: 0 | K90: 0 | L90: =IF('Client Cost HIDE'!$C$39<1,'Client Cost HIDE'!$C$39*D90,IF(C90>1,'Client Cost HIDE'!$C$39,0)) -> 0 | M90: =IF(O89>0,O89*'Client Cost HIDE'!$A$177,0) -> 0 | N90: =IF('Client Cost HIDE'!$B$14=B90,O89+L90+M90,0) -> 0 | O90: 0 | P90: 0 | Q90: =IF(int_method=1,'Rep Schedule - Basic'!Q89,'Rep Schedule - Basic'!C90) -> 0 | S90: =IF(C90=0,0,C90-SUM($G$6:G90)-O89) -> 0 | T90: 0 | U90: 6500.22 | W90: TRUE | AA90: =IF(C89>1,IF(int_method=2,'Client Cost HIDE'!$B$172*C89,'Client Cost HIDE'!$B$172*'Client Cost HIDE'!$B$12),0) -> 0 | AB90: =IF(B90>'Client Cost HIDE'!$B$22,AA90,0)+AB89-E89 -> 0
B91: 85 | C91: 0 | D91: =IF(AND(B91>='Client Cost HIDE'!$D$152,B91<='Client Cost HIDE'!$B$14),IF(amortized=1,'Client Cost HIDE'!$B$12/'Client Cost HIDE'!$D$151,-PPMT('Client Cost HIDE'!$B$172,$B91-'Client Cost HIDE'!$D$152+1,'Client Cost HIDE'!$D$151,'Client Cost HIDE'!$B$12)),0) -> 0 | E91: =IF(OR('Client Cost HIDE'!$E$152>B91,C90<1),0,AB91) -> 0 | F91: =IF(indexing,D91*(1+'Client Cost HIDE'!$B$175)^(B91-$B$6)-D91,0) -> 0 | G91: =IF('Client Cost HIDE'!$C$32<1,'Client Cost HIDE'!$C$32*D91,IF(C90>1,'Client Cost HIDE'!$C$32,0)) -> 0 | H91: =SUM(E91:G91)*'Client Cost HIDE'!$B$28 -> 0 | I91: 0 | J91: 0 | K91: 0 | L91: =IF('Client Cost HIDE'!$C$39<1,'Client Cost HIDE'!$C$39*D91,IF(C91>1,'Client Cost HIDE'!$C$39,0)) -> 0 | M91: =IF(O90>0,O90*'Client Cost HIDE'!$A$177,0) -> 0 | N91: =IF('Client Cost HIDE'!$B$14=B91,O90+L91+M91,0) -> 0 | O91: 0 | P91: 0 | Q91: =IF(int_method=1,'Rep Schedule - Basic'!Q90,'Rep Schedule - Basic'!C91) -> 0 | S91: =IF(C91=0,0,C91-SUM($G$6:G91)-O90) -> 0 | T91: 0 | U91: 6500.22 | W91: TRUE | AA91: =IF(C90>1,IF(int_method=2,'Client Cost HIDE'!$B$172*C90,'Client Cost HIDE'!$B$172*'Client Cost HIDE'!$B$12),0) -> 0 | AB91: =IF(B91>'Client Cost HIDE'!$B$22,AA91,0)+AB90-E90 -> 0
B92: 86 | C92: 0 | D92: =IF(AND(B92>='Client Cost HIDE'!$D$152,B92<='Client Cost HIDE'!$B$14),IF(amortized=1,'Client Cost HIDE'!$B$12/'Client Cost HIDE'!$D$151,-PPMT('Client Cost HIDE'!$B$172,$B92-'Client Cost HIDE'!$D$152+1,'Client Cost HIDE'!$D$151,'Client Cost HIDE'!$B$12)),0) -> 0 | E92: =IF(OR('Client Cost HIDE'!$E$152>B92,C91<1),0,AB92) -> 0 | F92: =IF(indexing,D92*(1+'Client Cost HIDE'!$B$175)^(B92-$B$6)-D92,0) -> 0 | G92: =IF('Client Cost HIDE'!$C$32<1,'Client Cost HIDE'!$C$32*D92,IF(C91>1,'Client Cost HIDE'!$C$32,0)) -> 0 | H92: =SUM(E92:G92)*'Client Cost HIDE'!$B$28 -> 0 | I92: 0 | J92: 0 | K92: 0 | L92: =IF('Client Cost HIDE'!$C$39<1,'Client Cost HIDE'!$C$39*D92,IF(C92>1,'Client Cost HIDE'!$C$39,0)) -> 0 | M92: =IF(O91>0,O91*'Client Cost HIDE'!$A$177,0) -> 0 | N92: =IF('Client Cost HIDE'!$B$14=B92,O91+L92+M92,0) -> 0 | O92: 0 | P92: 0 | Q92: =IF(int_method=1,'Rep Schedule - Basic'!Q91,'Rep Schedule - Basic'!C92) -> 0 | S92: =IF(C92=0,0,C92-SUM($G$6:G92)-O91) -> 0 | T92: 0 | U92: 6500.22 | W92: TRUE | AA92: =IF(C91>1,IF(int_method=2,'Client Cost HIDE'!$B$172*C91,'Client Cost HIDE'!$B$172*'Client Cost HIDE'!$B$12),0) -> 0 | AB92: =IF(B92>'Client Cost HIDE'!$B$22,AA92,0)+AB91-E91 -> 0
B93: 87 | C93: 0 | D93: =IF(AND(B93>='Client Cost HIDE'!$D$152,B93<='Client Cost HIDE'!$B$14),IF(amortized=1,'Client Cost HIDE'!$B$12/'Client Cost HIDE'!$D$151,-PPMT('Client Cost HIDE'!$B$172,$B93-'Client Cost HIDE'!$D$152+1,'Client Cost HIDE'!$D$151,'Client Cost HIDE'!$B$12)),0) -> 0 | E93: =IF(OR('Client Cost HIDE'!$E$152>B93,C92<1),0,AB93) -> 0 | F93: =IF(indexing,D93*(1+'Client Cost HIDE'!$B$175)^(B93-$B$6)-D93,0) -> 0 | G93: =IF('Client Cost HIDE'!$C$32<1,'Client Cost HIDE'!$C$32*D93,IF(C92>1,'Client Cost HIDE'!$C$32,0)) -> 0 | H93: =SUM(E93:G93)*'Client Cost HIDE'!$B$28 -> 0 | I93: 0 | J93: 0 | K93: 0 | L93: =IF('Client Cost HIDE'!$C$39<1,'Client Cost HIDE'!$C$39*D93,IF(C93>1,'Client Cost HIDE'!$C$39,0)) -> 0 | M93: =IF(O92>0,O92*'Client Cost HIDE'!$A$177,0) -> 0 | N93: =IF('Client Cost HIDE'!$B$14=B93,O92+L93+M93,0) -> 0 | O93: 0 | P93: 0 | Q93: =IF(int_method=1,'Rep Schedule - Basic'!Q92,'Rep Schedule - Basic'!C93) -> 0 | S93: =IF(C93=0,0,C93-SUM($G$6:G93)-O92) -> 0 | T93: 0 | U93: 6500.22 | W93: TRUE | AA93: =IF(C92>1,IF(int_method=2,'Client Cost HIDE'!$B$172*C92,'Client Cost HIDE'!$B$172*'Client Cost HIDE'!$B$12),0) -> 0 | AB93: =IF(B93>'Client Cost HIDE'!$B$22,AA93,0)+AB92-E92 -> 0
B94: 88 | C94: 0 | D94: =IF(AND(B94>='Client Cost HIDE'!$D$152,B94<='Client Cost HIDE'!$B$14),IF(amortized=1,'Client Cost HIDE'!$B$12/'Client Cost HIDE'!$D$151,-PPMT('Client Cost HIDE'!$B$172,$B94-'Client Cost HIDE'!$D$152+1,'Client Cost HIDE'!$D$151,'Client Cost HIDE'!$B$12)),0) -> 0 | E94: =IF(OR('Client Cost HIDE'!$E$152>B94,C93<1),0,AB94) -> 0 | F94: =IF(indexing,D94*(1+'Client Cost HIDE'!$B$175)^(B94-$B$6)-D94,0) -> 0 | G94: =IF('Client Cost HIDE'!$C$32<1,'Client Cost HIDE'!$C$32*D94,IF(C93>1,'Client Cost HIDE'!$C$32,0)) -> 0 | H94: =SUM(E94:G94)*'Client Cost HIDE'!$B$28 -> 0 | I94: 0 | J94: 0 | K94: 0 | L94: =IF('Client Cost HIDE'!$C$39<1,'Client Cost HIDE'!$C$39*D94,IF(C94>1,'Client Cost HIDE'!$C$39,0)) -> 0 | M94: =IF(O93>0,O93*'Client Cost HIDE'!$A$177,0) -> 0 | N94: =IF('Client Cost HIDE'!$B$14=B94,O93+L94+M94,0) -> 0 | O94: 0 | P94: 0 | Q94: =IF(int_method=1,'Rep Schedule - Basic'!Q93,'Rep Schedule - Basic'!C94) -> 0 | S94: =IF(C94=0,0,C94-SUM($G$6:G94)-O93) -> 0 | T94: 0 | U94: 6500.22 | W94: TRUE | AA94: =IF(C93>1,IF(int_method=2,'Client Cost HIDE'!$B$172*C93,'Client Cost HIDE'!$B$172*'Client Cost HIDE'!$B$12),0) -> 0 | AB94: =IF(B94>'Client Cost HIDE'!$B$22,AA94,0)+AB93-E93 -> 0
B95: 89 | C95: 0 | D95: =IF(AND(B95>='Client Cost HIDE'!$D$152,B95<='Client Cost HIDE'!$B$14),IF(amortized=1,'Client Cost HIDE'!$B$12/'Client Cost HIDE'!$D$151,-PPMT('Client Cost HIDE'!$B$172,$B95-'Client Cost HIDE'!$D$152+1,'Client Cost HIDE'!$D$151,'Client Cost HIDE'!$B$12)),0) -> 0 | E95: =IF(OR('Client Cost HIDE'!$E$152>B95,C94<1),0,AB95) -> 0 | F95: =IF(indexing,D95*(1+'Client Cost HIDE'!$B$175)^(B95-$B$6)-D95,0) -> 0 | G95: =IF('Client Cost HIDE'!$C$32<1,'Client Cost HIDE'!$C$32*D95,IF(C94>1,'Client Cost HIDE'!$C$32,0)) -> 0 | H95: =SUM(E95:G95)*'Client Cost HIDE'!$B$28 -> 0 | I95: 0 | J95: 0 | K95: 0 | L95: =IF('Client Cost HIDE'!$C$39<1,'Client Cost HIDE'!$C$39*D95,IF(C95>1,'Client Cost HIDE'!$C$39,0)) -> 0 | M95: =IF(O94>0,O94*'Client Cost HIDE'!$A$177,0) -> 0 | N95: =IF('Client Cost HIDE'!$B$14=B95,O94+L95+M95,0) -> 0 | O95: 0 | P95: 0 | Q95: =IF(int_method=1,'Rep Schedule - Basic'!Q94,'Rep Schedule - Basic'!C95) -> 0 | S95: =IF(C95=0,0,C95-SUM($G$6:G95)-O94) -> 0 | T95: 0 | U95: 6500.22 | W95: TRUE | AA95: =IF(C94>1,IF(int_method=2,'Client Cost HIDE'!$B$172*C94,'Client Cost HIDE'!$B$172*'Client Cost HIDE'!$B$12),0) -> 0 | AB95: =IF(B95>'Client Cost HIDE'!$B$22,AA95,0)+AB94-E94 -> 0
B96: 90 | C96: 0 | D96: =IF(AND(B96>='Client Cost HIDE'!$D$152,B96<='Client Cost HIDE'!$B$14),IF(amortized=1,'Client Cost HIDE'!$B$12/'Client Cost HIDE'!$D$151,-PPMT('Client Cost HIDE'!$B$172,$B96-'Client Cost HIDE'!$D$152+1,'Client Cost HIDE'!$D$151,'Client Cost HIDE'!$B$12)),0) -> 0 | E96: =IF(OR('Client Cost HIDE'!$E$152>B96,C95<1),0,AB96) -> 0 | F96: =IF(indexing,D96*(1+'Client Cost HIDE'!$B$175)^(B96-$B$6)-D96,0) -> 0 | G96: =IF('Client Cost HIDE'!$C$32<1,'Client Cost HIDE'!$C$32*D96,IF(C95>1,'Client Cost HIDE'!$C$32,0)) -> 0 | H96: =SUM(E96:G96)*'Client Cost HIDE'!$B$28 -> 0 | I96: 0 | J96: 0 | K96: 0 | L96: =IF('Client Cost HIDE'!$C$39<1,'Client Cost HIDE'!$C$39*D96,IF(C96>1,'Client Cost HIDE'!$C$39,0)) -> 0 | M96: =IF(O95>0,O95*'Client Cost HIDE'!$A$177,0) -> 0 | N96: =IF('Client Cost HIDE'!$B$14=B96,O95+L96+M96,0) -> 0 | O96: 0 | P96: 0 | Q96: =IF(int_method=1,'Rep Schedule - Basic'!Q95,'Rep Schedule - Basic'!C96) -> 0 | S96: =IF(C96=0,0,C96-SUM($G$6:G96)-O95) -> 0 | T96: 0 | U96: 6500.22 | W96: TRUE | AA96: =IF(C95>1,IF(int_method=2,'Client Cost HIDE'!$B$172*C95,'Client Cost HIDE'!$B$172*'Client Cost HIDE'!$B$12),0) -> 0 | AB96: =IF(B96>'Client Cost HIDE'!$B$22,AA96,0)+AB95-E95 -> 0
B97: 91 | C97: 0 | D97: =IF(AND(B97>='Client Cost HIDE'!$D$152,B97<='Client Cost HIDE'!$B$14),IF(amortized=1,'Client Cost HIDE'!$B$12/'Client Cost HIDE'!$D$151,-PPMT('Client Cost HIDE'!$B$172,$B97-'Client Cost HIDE'!$D$152+1,'Client Cost HIDE'!$D$151,'Client Cost HIDE'!$B$12)),0) -> 0 | E97: =IF(OR('Client Cost HIDE'!$E$152>B97,C96<1),0,AB97) -> 0 | F97: =IF(indexing,D97*(1+'Client Cost HIDE'!$B$175)^(B97-$B$6)-D97,0) -> 0 | G97: =IF('Client Cost HIDE'!$C$32<1,'Client Cost HIDE'!$C$32*D97,IF(C96>1,'Client Cost HIDE'!$C$32,0)) -> 0 | H97: =SUM(E97:G97)*'Client Cost HIDE'!$B$28 -> 0 | I97: 0 | J97: 0 | K97: 0 | L97: =IF('Client Cost HIDE'!$C$39<1,'Client Cost HIDE'!$C$39*D97,IF(C97>1,'Client Cost HIDE'!$C$39,0)) -> 0 | M97: =IF(O96>0,O96*'Client Cost HIDE'!$A$177,0) -> 0 | N97: =IF('Client Cost HIDE'!$B$14=B97,O96+L97+M97,0) -> 0 | O97: 0 | P97: 0 | Q97: =IF(int_method=1,'Rep Schedule - Basic'!Q96,'Rep Schedule - Basic'!C97) -> 0 | S97: =IF(C97=0,0,C97-SUM($G$6:G97)-O96) -> 0 | T97: 0 | U97: 6500.22 | W97: TRUE | AA97: =IF(C96>1,IF(int_method=2,'Client Cost HIDE'!$B$172*C96,'Client Cost HIDE'!$B$172*'Client Cost HIDE'!$B$12),0) -> 0 | AB97: =IF(B97>'Client Cost HIDE'!$B$22,AA97,0)+AB96-E96 -> 0
B98: 92 | C98: 0 | D98: =IF(AND(B98>='Client Cost HIDE'!$D$152,B98<='Client Cost HIDE'!$B$14),IF(amortized=1,'Client Cost HIDE'!$B$12/'Client Cost HIDE'!$D$151,-PPMT('Client Cost HIDE'!$B$172,$B98-'Client Cost HIDE'!$D$152+1,'Client Cost HIDE'!$D$151,'Client Cost HIDE'!$B$12)),0) -> 0 | E98: =IF(OR('Client Cost HIDE'!$E$152>B98,C97<1),0,AB98) -> 0 | F98: =IF(indexing,D98*(1+'Client Cost HIDE'!$B$175)^(B98-$B$6)-D98,0) -> 0 | G98: =IF('Client Cost HIDE'!$C$32<1,'Client Cost HIDE'!$C$32*D98,IF(C97>1,'Client Cost HIDE'!$C$32,0)) -> 0 | H98: =SUM(E98:G98)*'Client Cost HIDE'!$B$28 -> 0 | I98: 0 | J98: 0 | K98: 0 | L98: =IF('Client Cost HIDE'!$C$39<1,'Client Cost HIDE'!$C$39*D98,IF(C98>1,'Client Cost HIDE'!$C$39,0)) -> 0 | M98: =IF(O97>0,O97*'Client Cost HIDE'!$A$177,0) -> 0 | N98: =IF('Client Cost HIDE'!$B$14=B98,O97+L98+M98,0) -> 0 | O98: 0 | P98: 0 | Q98: =IF(int_method=1,'Rep Schedule - Basic'!Q97,'Rep Schedule - Basic'!C98) -> 0 | S98: =IF(C98=0,0,C98-SUM($G$6:G98)-O97) -> 0 | T98: 0 | U98: 6500.22 | W98: TRUE | AA98: =IF(C97>1,IF(int_method=2,'Client Cost HIDE'!$B$172*C97,'Client Cost HIDE'!$B$172*'Client Cost HIDE'!$B$12),0) -> 0 | AB98: =IF(B98>'Client Cost HIDE'!$B$22,AA98,0)+AB97-E97 -> 0
B99: 93 | C99: 0 | D99: =IF(AND(B99>='Client Cost HIDE'!$D$152,B99<='Client Cost HIDE'!$B$14),IF(amortized=1,'Client Cost HIDE'!$B$12/'Client Cost HIDE'!$D$151,-PPMT('Client Cost HIDE'!$B$172,$B99-'Client Cost HIDE'!$D$152+1,'Client Cost HIDE'!$D$151,'Client Cost HIDE'!$B$12)),0) -> 0 | E99: =IF(OR('Client Cost HIDE'!$E$152>B99,C98<1),0,AB99) -> 0 | F99: =IF(indexing,D99*(1+'Client Cost HIDE'!$B$175)^(B99-$B$6)-D99,0) -> 0 | G99: =IF('Client Cost HIDE'!$C$32<1,'Client Cost HIDE'!$C$32*D99,IF(C98>1,'Client Cost HIDE'!$C$32,0)) -> 0 | H99: =SUM(E99:G99)*'Client Cost HIDE'!$B$28 -> 0 | I99: 0 | J99: 0 | K99: 0 | L99: =IF('Client Cost HIDE'!$C$39<1,'Client Cost HIDE'!$C$39*D99,IF(C99>1,'Client Cost HIDE'!$C$39,0)) -> 0 | M99: =IF(O98>0,O98*'Client Cost HIDE'!$A$177,0) -> 0 | N99: =IF('Client Cost HIDE'!$B$14=B99,O98+L99+M99,0) -> 0 | O99: 0 | P99: 0 | Q99: =IF(int_method=1,'Rep Schedule - Basic'!Q98,'Rep Schedule - Basic'!C99) -> 0 | S99: =IF(C99=0,0,C99-SUM($G$6:G99)-O98) -> 0 | T99: 0 | U99: 6500.22 | W99: TRUE | AA99: =IF(C98>1,IF(int_method=2,'Client Cost HIDE'!$B$172*C98,'Client Cost HIDE'!$B$172*'Client Cost HIDE'!$B$12),0) -> 0 | AB99: =IF(B99>'Client Cost HIDE'!$B$22,AA99,0)+AB98-E98 -> 0
B100: 94 | C100: 0 | D100: =IF(AND(B100>='Client Cost HIDE'!$D$152,B100<='Client Cost HIDE'!$B$14),IF(amortized=1,'Client Cost HIDE'!$B$12/'Client Cost HIDE'!$D$151,-PPMT('Client Cost HIDE'!$B$172,$B100-'Client Cost HIDE'!$D$152+1,'Client Cost HIDE'!$D$151,'Client Cost HIDE'!$B$12)),0) -> 0 | E100: =IF(OR('Client Cost HIDE'!$E$152>B100,C99<1),0,AB100) -> 0 | F100: =IF(indexing,D100*(1+'Client Cost HIDE'!$B$175)^(B100-$B$6)-D100,0) -> 0 | G100: =IF('Client Cost HIDE'!$C$32<1,'Client Cost HIDE'!$C$32*D100,IF(C99>1,'Client Cost HIDE'!$C$32,0)) -> 0 | H100: =SUM(E100:G100)*'Client Cost HIDE'!$B$28 -> 0 | I100: 0 | J100: 0 | K100: 0 | L100: =IF('Client Cost HIDE'!$C$39<1,'Client Cost HIDE'!$C$39*D100,IF(C100>1,'Client Cost HIDE'!$C$39,0)) -> 0 | M100: =IF(O99>0,O99*'Client Cost HIDE'!$A$177,0) -> 0 | N100: =IF('Client Cost HIDE'!$B$14=B100,O99+L100+M100,0) -> 0 | O100: 0 | P100: 0 | Q100: =IF(int_method=1,'Rep Schedule - Basic'!Q99,'Rep Schedule - Basic'!C100) -> 0 | S100: =IF(C100=0,0,C100-SUM($G$6:G100)-O99) -> 0 | T100: 0 | U100: 6500.22 | W100: TRUE | AA100: =IF(C99>1,IF(int_method=2,'Client Cost HIDE'!$B$172*C99,'Client Cost HIDE'!$B$172*'Client Cost HIDE'!$B$12),0) -> 0 | AB100: =IF(B100>'Client Cost HIDE'!$B$22,AA100,0)+AB99-E99 -> 0
B101: 95 | C101: 0 | D101: =IF(AND(B101>='Client Cost HIDE'!$D$152,B101<='Client Cost HIDE'!$B$14),IF(amortized=1,'Client Cost HIDE'!$B$12/'Client Cost HIDE'!$D$151,-PPMT('Client Cost HIDE'!$B$172,$B101-'Client Cost HIDE'!$D$152+1,'Client Cost HIDE'!$D$151,'Client Cost HIDE'!$B$12)),0) -> 0 | E101: =IF(OR('Client Cost HIDE'!$E$152>B101,C100<1),0,AB101) -> 0 | F101: =IF(indexing,D101*(1+'Client Cost HIDE'!$B$175)^(B101-$B$6)-D101,0) -> 0 | G101: =IF('Client Cost HIDE'!$C$32<1,'Client Cost HIDE'!$C$32*D101,IF(C100>1,'Client Cost HIDE'!$C$32,0)) -> 0 | H101: =SUM(E101:G101)*'Client Cost HIDE'!$B$28 -> 0 | I101: 0 | J101: 0 | K101: 0 | L101: =IF('Client Cost HIDE'!$C$39<1,'Client Cost HIDE'!$C$39*D101,IF(C101>1,'Client Cost HIDE'!$C$39,0)) -> 0 | M101: =IF(O100>0,O100*'Client Cost HIDE'!$A$177,0) -> 0 | N101: =IF('Client Cost HIDE'!$B$14=B101,O100+L101+M101,0) -> 0 | O101: 0 | P101: 0 | Q101: =IF(int_method=1,'Rep Schedule - Basic'!Q100,'Rep Schedule - Basic'!C101) -> 0 | S101: =IF(C101=0,0,C101-SUM($G$6:G101)-O100) -> 0 | T101: 0 | U101: 6500.22 | W101: TRUE | AA101: =IF(C100>1,IF(int_method=2,'Client Cost HIDE'!$B$172*C100,'Client Cost HIDE'!$B$172*'Client Cost HIDE'!$B$12),0) -> 0 | AB101: =IF(B101>'Client Cost HIDE'!$B$22,AA101,0)+AB100-E100 -> 0
B102: 96 | C102: 0 | D102: =IF(AND(B102>='Client Cost HIDE'!$D$152,B102<='Client Cost HIDE'!$B$14),IF(amortized=1,'Client Cost HIDE'!$B$12/'Client Cost HIDE'!$D$151,-PPMT('Client Cost HIDE'!$B$172,$B102-'Client Cost HIDE'!$D$152+1,'Client Cost HIDE'!$D$151,'Client Cost HIDE'!$B$12)),0) -> 0 | E102: =IF(OR('Client Cost HIDE'!$E$152>B102,C101<1),0,AB102) -> 0 | F102: =IF(indexing,D102*(1+'Client Cost HIDE'!$B$175)^(B102-$B$6)-D102,0) -> 0 | G102: =IF('Client Cost HIDE'!$C$32<1,'Client Cost HIDE'!$C$32*D102,IF(C101>1,'Client Cost HIDE'!$C$32,0)) -> 0 | H102: =SUM(E102:G102)*'Client Cost HIDE'!$B$28 -> 0 | I102: 0 | J102: 0 | K102: 0 | L102: =IF('Client Cost HIDE'!$C$39<1,'Client Cost HIDE'!$C$39*D102,IF(C102>1,'Client Cost HIDE'!$C$39,0)) -> 0 | M102: =IF(O101>0,O101*'Client Cost HIDE'!$A$177,0) -> 0 | N102: =IF('Client Cost HIDE'!$B$14=B102,O101+L102+M102,0) -> 0 | O102: 0 | P102: =+K102-L102+N102 -> 0 | Q102: =IF(int_method=1,'Rep Schedule - Basic'!Q101,'Rep Schedule - Basic'!C102) -> 0 | R102: =IF(O102>0,O102,NA()) ->  | S102: =IF(C102=0,0,C102-SUM($G$6:G102)-O101) -> 0 | T102: =IF(AND(S102<0,B102<=term),1,0) -> 0 | U102: 6500.22 | W102: TRUE | AA102: =IF(C101>1,IF(int_method=2,'Client Cost HIDE'!$B$172*C101,'Client Cost HIDE'!$B$172*'Client Cost HIDE'!$B$12),0) -> 0 | AB102: =IF(B102>'Client Cost HIDE'!$B$22,AA102,0)+AB101-E101 -> 0
B103: 97 | C103: =IF(C102-D103>1,ROUND(+C102-D103,2),0) -> 0 | D103: =IF(AND(B103>='Client Cost HIDE'!$D$152,B103<='Client Cost HIDE'!$B$14),IF(amortized=1,'Client Cost HIDE'!$B$12/'Client Cost HIDE'!$D$151,-PPMT('Client Cost HIDE'!$B$172,$B103-'Client Cost HIDE'!$D$152+1,'Client Cost HIDE'!$D$151,'Client Cost HIDE'!$B$12)),0) -> 0 | E103: =IF(OR('Client Cost HIDE'!$E$152>B103,C102<1),0,AB103) -> 0 | F103: =IF(indexing,D103*(1+'Client Cost HIDE'!$B$175)^(B103-$B$6)-D103,0) -> 0 | G103: =IF('Client Cost HIDE'!$C$32<1,'Client Cost HIDE'!$C$32*D103,IF(C102>1,'Client Cost HIDE'!$C$32,0)) -> 0 | H103: =SUM(E103:G103)*'Client Cost HIDE'!$B$28 -> 0 | I103: =-D103-E103-F103 -> 0 | J103: =-D103-E103-F103-G103 -> 0 | K103: =-D103-E103-F103-G103-H103 -> 0 | L103: =IF('Client Cost HIDE'!$C$39<1,'Client Cost HIDE'!$C$39*D103,IF(C103>1,'Client Cost HIDE'!$C$39,0)) -> 0 | M103: =IF(O102>0,O102*'Client Cost HIDE'!$A$177,0) -> 0 | N103: =IF('Client Cost HIDE'!$B$14=B103,O102+L103+M103,0) -> 0 | O103: =+O102+L103+M103-N103 -> 0 | P103: 0 | Q103: =IF(int_method=1,'Rep Schedule - Basic'!Q102,'Rep Schedule - Basic'!C103) -> 0 | S103: =IF(C103=0,0,C103-SUM($G$6:G103)-O102) -> 0 | T103: 0 | U103: =U102+S103 -> 6500.22 | W103: TRUE | AA103: =IF(C102>1,IF(int_method=2,'Client Cost HIDE'!$B$172*C102,'Client Cost HIDE'!$B$172*'Client Cost HIDE'!$B$12),0) -> 0 | AB103: =IF(B103>'Client Cost HIDE'!$B$22,AA103,0)+AB102-E102 -> 0
B104: 98 | C104: 0 | D104: =IF(AND(B104>='Client Cost HIDE'!$D$152,B104<='Client Cost HIDE'!$B$14),IF(amortized=1,'Client Cost HIDE'!$B$12/'Client Cost HIDE'!$D$151,-PPMT('Client Cost HIDE'!$B$172,$B104-'Client Cost HIDE'!$D$152+1,'Client Cost HIDE'!$D$151,'Client Cost HIDE'!$B$12)),0) -> 0 | E104: =IF(OR('Client Cost HIDE'!$E$152>B104,C103<1),0,AB104) -> 0 | F104: =IF(indexing,D104*(1+'Client Cost HIDE'!$B$175)^(B104-$B$6)-D104,0) -> 0 | G104: =IF('Client Cost HIDE'!$C$32<1,'Client Cost HIDE'!$C$32*D104,IF(C103>1,'Client Cost HIDE'!$C$32,0)) -> 0 | H104: =SUM(E104:G104)*'Client Cost HIDE'!$B$28 -> 0 | I104: 0 | J104: 0 | K104: 0 | L104: =IF('Client Cost HIDE'!$C$39<1,'Client Cost HIDE'!$C$39*D104,IF(C104>1,'Client Cost HIDE'!$C$39,0)) -> 0 | M104: =IF(O103>0,O103*'Client Cost HIDE'!$A$177,0) -> 0 | N104: =IF('Client Cost HIDE'!$B$14=B104,O103+L104+M104,0) -> 0 | O104: 0 | P104: 0 | Q104: =IF(int_method=1,'Rep Schedule - Basic'!Q103,'Rep Schedule - Basic'!C104) -> 0 | S104: =IF(C104=0,0,C104-SUM($G$6:G104)-O103) -> 0 | T104: 0 | U104: 6500.22 | W104: =IF(B104<=term,"x",TRUE) -> TRUE | AA104: =IF(C103>1,IF(int_method=2,'Client Cost HIDE'!$B$172*C103,'Client Cost HIDE'!$B$172*'Client Cost HIDE'!$B$12),0) -> 0 | AB104: =IF(B104>'Client Cost HIDE'!$B$22,AA104,0)+AB103-E103 -> 0
B105: 99 | C105: 0 | D105: =IF(AND(B105>='Client Cost HIDE'!$D$152,B105<='Client Cost HIDE'!$B$14),IF(amortized=1,'Client Cost HIDE'!$B$12/'Client Cost HIDE'!$D$151,-PPMT('Client Cost HIDE'!$B$172,$B105-'Client Cost HIDE'!$D$152+1,'Client Cost HIDE'!$D$151,'Client Cost HIDE'!$B$12)),0) -> 0 | E105: =IF(OR('Client Cost HIDE'!$E$152>B105,C104<1),0,AB105) -> 0 | F105: =IF(indexing,D105*(1+'Client Cost HIDE'!$B$175)^(B105-$B$6)-D105,0) -> 0 | G105: =IF('Client Cost HIDE'!$C$32<1,'Client Cost HIDE'!$C$32*D105,IF(C104>1,'Client Cost HIDE'!$C$32,0)) -> 0 | H105: =SUM(E105:G105)*'Client Cost HIDE'!$B$28 -> 0 | I105: 0 | J105: 0 | K105: 0 | L105: =IF('Client Cost HIDE'!$C$39<1,'Client Cost HIDE'!$C$39*D105,IF(C105>1,'Client Cost HIDE'!$C$39,0)) -> 0 | M105: =IF(O104>0,O104*'Client Cost HIDE'!$A$177,0) -> 0 | N105: =IF('Client Cost HIDE'!$B$14=B105,O104+L105+M105,0) -> 0 | O105: 0 | P105: 0 | Q105: =IF(int_method=1,'Rep Schedule - Basic'!Q104,'Rep Schedule - Basic'!C105) -> 0 | S105: =IF(C105=0,0,C105-SUM($G$6:G105)-O104) -> 0 | T105: 0 | U105: 6500.22 | W105: TRUE | AA105: =IF(C104>1,IF(int_method=2,'Client Cost HIDE'!$B$172*C104,'Client Cost HIDE'!$B$172*'Client Cost HIDE'!$B$12),0) -> 0 | AB105: =IF(B105>'Client Cost HIDE'!$B$22,AA105,0)+AB104-E104 -> 0
B106: 100 | C106: 0 | D106: =IF(AND(B106>='Client Cost HIDE'!$D$152,B106<='Client Cost HIDE'!$B$14),IF(amortized=1,'Client Cost HIDE'!$B$12/'Client Cost HIDE'!$D$151,-PPMT('Client Cost HIDE'!$B$172,$B106-'Client Cost HIDE'!$D$152+1,'Client Cost HIDE'!$D$151,'Client Cost HIDE'!$B$12)),0) -> 0 | E106: =IF(OR('Client Cost HIDE'!$E$152>B106,C105<1),0,AB106) -> 0 | F106: =IF(indexing,D106*(1+'Client Cost HIDE'!$B$175)^(B106-$B$6)-D106,0) -> 0 | G106: =IF('Client Cost HIDE'!$C$32<1,'Client Cost HIDE'!$C$32*D106,IF(C105>1,'Client Cost HIDE'!$C$32,0)) -> 0 | H106: =SUM(E106:G106)*'Client Cost HIDE'!$B$28 -> 0 | I106: 0 | J106: 0 | K106: 0 | L106: =IF('Client Cost HIDE'!$C$39<1,'Client Cost HIDE'!$C$39*D106,IF(C106>1,'Client Cost HIDE'!$C$39,0)) -> 0 | M106: =IF(O105>0,O105*'Client Cost HIDE'!$A$177,0) -> 0 | N106: =IF('Client Cost HIDE'!$B$14=B106,O105+L106+M106,0) -> 0 | O106: 0 | P106: 0 | Q106: =IF(int_method=1,'Rep Schedule - Basic'!Q105,'Rep Schedule - Basic'!C106) -> 0 | S106: =IF(C106=0,0,C106-SUM($G$6:G106)-O105) -> 0 | T106: 0 | U106: 6500.22 | W106: TRUE | AA106: =IF(C105>1,IF(int_method=2,'Client Cost HIDE'!$B$172*C105,'Client Cost HIDE'!$B$172*'Client Cost HIDE'!$B$12),0) -> 0 | AB106: =IF(B106>'Client Cost HIDE'!$B$22,AA106,0)+AB105-E105 -> 0
B107: 101 | C107: 0 | D107: =IF(AND(B107>='Client Cost HIDE'!$D$152,B107<='Client Cost HIDE'!$B$14),IF(amortized=1,'Client Cost HIDE'!$B$12/'Client Cost HIDE'!$D$151,-PPMT('Client Cost HIDE'!$B$172,$B107-'Client Cost HIDE'!$D$152+1,'Client Cost HIDE'!$D$151,'Client Cost HIDE'!$B$12)),0) -> 0 | E107: =IF(OR('Client Cost HIDE'!$E$152>B107,C106<1),0,AB107) -> 0 | F107: =IF(indexing,D107*(1+'Client Cost HIDE'!$B$175)^(B107-$B$6)-D107,0) -> 0 | G107: =IF('Client Cost HIDE'!$C$32<1,'Client Cost HIDE'!$C$32*D107,IF(C106>1,'Client Cost HIDE'!$C$32,0)) -> 0 | H107: =SUM(E107:G107)*'Client Cost HIDE'!$B$28 -> 0 | I107: 0 | J107: 0 | K107: 0 | L107: =IF('Client Cost HIDE'!$C$39<1,'Client Cost HIDE'!$C$39*D107,IF(C107>1,'Client Cost HIDE'!$C$39,0)) -> 0 | M107: =IF(O106>0,O106*'Client Cost HIDE'!$A$177,0) -> 0 | N107: =IF('Client Cost HIDE'!$B$14=B107,O106+L107+M107,0) -> 0 | O107: 0 | P107: 0 | Q107: =IF(int_method=1,'Rep Schedule - Basic'!Q106,'Rep Schedule - Basic'!C107) -> 0 | S107: =IF(C107=0,0,C107-SUM($G$6:G107)-O106) -> 0 | T107: 0 | U107: 6500.22 | W107: TRUE | AA107: =IF(C106>1,IF(int_method=2,'Client Cost HIDE'!$B$172*C106,'Client Cost HIDE'!$B$172*'Client Cost HIDE'!$B$12),0) -> 0 | AB107: =IF(B107>'Client Cost HIDE'!$B$22,AA107,0)+AB106-E106 -> 0
B108: 102 | C108: 0 | D108: =IF(AND(B108>='Client Cost HIDE'!$D$152,B108<='Client Cost HIDE'!$B$14),IF(amortized=1,'Client Cost HIDE'!$B$12/'Client Cost HIDE'!$D$151,-PPMT('Client Cost HIDE'!$B$172,$B108-'Client Cost HIDE'!$D$152+1,'Client Cost HIDE'!$D$151,'Client Cost HIDE'!$B$12)),0) -> 0 | E108: =IF(OR('Client Cost HIDE'!$E$152>B108,C107<1),0,AB108) -> 0 | F108: =IF(indexing,D108*(1+'Client Cost HIDE'!$B$175)^(B108-$B$6)-D108,0) -> 0 | G108: =IF('Client Cost HIDE'!$C$32<1,'Client Cost HIDE'!$C$32*D108,IF(C107>1,'Client Cost HIDE'!$C$32,0)) -> 0 | H108: =SUM(E108:G108)*'Client Cost HIDE'!$B$28 -> 0 | I108: 0 | J108: 0 | K108: 0 | L108: =IF('Client Cost HIDE'!$C$39<1,'Client Cost HIDE'!$C$39*D108,IF(C108>1,'Client Cost HIDE'!$C$39,0)) -> 0 | M108: =IF(O107>0,O107*'Client Cost HIDE'!$A$177,0) -> 0 | N108: =IF('Client Cost HIDE'!$B$14=B108,O107+L108+M108,0) -> 0 | O108: 0 | P108: 0 | Q108: =IF(int_method=1,'Rep Schedule - Basic'!Q107,'Rep Schedule - Basic'!C108) -> 0 | S108: =IF(C108=0,0,C108-SUM($G$6:G108)-O107) -> 0 | T108: 0 | U108: 6500.22 | W108: TRUE | AA108: =IF(C107>1,IF(int_method=2,'Client Cost HIDE'!$B$172*C107,'Client Cost HIDE'!$B$172*'Client Cost HIDE'!$B$12),0) -> 0 | AB108: =IF(B108>'Client Cost HIDE'!$B$22,AA108,0)+AB107-E107 -> 0
B109: 103 | C109: 0 | D109: =IF(AND(B109>='Client Cost HIDE'!$D$152,B109<='Client Cost HIDE'!$B$14),IF(amortized=1,'Client Cost HIDE'!$B$12/'Client Cost HIDE'!$D$151,-PPMT('Client Cost HIDE'!$B$172,$B109-'Client Cost HIDE'!$D$152+1,'Client Cost HIDE'!$D$151,'Client Cost HIDE'!$B$12)),0) -> 0 | E109: =IF(OR('Client Cost HIDE'!$E$152>B109,C108<1),0,AB109) -> 0 | F109: =IF(indexing,D109*(1+'Client Cost HIDE'!$B$175)^(B109-$B$6)-D109,0) -> 0 | G109: =IF('Client Cost HIDE'!$C$32<1,'Client Cost HIDE'!$C$32*D109,IF(C108>1,'Client Cost HIDE'!$C$32,0)) -> 0 | H109: =SUM(E109:G109)*'Client Cost HIDE'!$B$28 -> 0 | I109: 0 | J109: 0 | K109: 0 | L109: =IF('Client Cost HIDE'!$C$39<1,'Client Cost HIDE'!$C$39*D109,IF(C109>1,'Client Cost HIDE'!$C$39,0)) -> 0 | M109: =IF(O108>0,O108*'Client Cost HIDE'!$A$177,0) -> 0 | N109: =IF('Client Cost HIDE'!$B$14=B109,O108+L109+M109,0) -> 0 | O109: 0 | P109: 0 | Q109: =IF(int_method=1,'Rep Schedule - Basic'!Q108,'Rep Schedule - Basic'!C109) -> 0 | S109: =IF(C109=0,0,C109-SUM($G$6:G109)-O108) -> 0 | T109: 0 | U109: 6500.22 | W109: TRUE | AA109: =IF(C108>1,IF(int_method=2,'Client Cost HIDE'!$B$172*C108,'Client Cost HIDE'!$B$172*'Client Cost HIDE'!$B$12),0) -> 0 | AB109: =IF(B109>'Client Cost HIDE'!$B$22,AA109,0)+AB108-E108 -> 0
B110: 104 | C110: 0 | D110: =IF(AND(B110>='Client Cost HIDE'!$D$152,B110<='Client Cost HIDE'!$B$14),IF(amortized=1,'Client Cost HIDE'!$B$12/'Client Cost HIDE'!$D$151,-PPMT('Client Cost HIDE'!$B$172,$B110-'Client Cost HIDE'!$D$152+1,'Client Cost HIDE'!$D$151,'Client Cost HIDE'!$B$12)),0) -> 0 | E110: =IF(OR('Client Cost HIDE'!$E$152>B110,C109<1),0,AB110) -> 0 | F110: =IF(indexing,D110*(1+'Client Cost HIDE'!$B$175)^(B110-$B$6)-D110,0) -> 0 | G110: =IF('Client Cost HIDE'!$C$32<1,'Client Cost HIDE'!$C$32*D110,IF(C109>1,'Client Cost HIDE'!$C$32,0)) -> 0 | H110: =SUM(E110:G110)*'Client Cost HIDE'!$B$28 -> 0 | I110: 0 | J110: 0 | K110: 0 | L110: =IF('Client Cost HIDE'!$C$39<1,'Client Cost HIDE'!$C$39*D110,IF(C110>1,'Client Cost HIDE'!$C$39,0)) -> 0 | M110: =IF(O109>0,O109*'Client Cost HIDE'!$A$177,0) -> 0 | N110: =IF('Client Cost HIDE'!$B$14=B110,O109+L110+M110,0) -> 0 | O110: 0 | P110: 0 | Q110: =IF(int_method=1,'Rep Schedule - Basic'!Q109,'Rep Schedule - Basic'!C110) -> 0 | S110: =IF(C110=0,0,C110-SUM($G$6:G110)-O109) -> 0 | T110: 0 | U110: 6500.22 | W110: TRUE | AA110: =IF(C109>1,IF(int_method=2,'Client Cost HIDE'!$B$172*C109,'Client Cost HIDE'!$B$172*'Client Cost HIDE'!$B$12),0) -> 0 | AB110: =IF(B110>'Client Cost HIDE'!$B$22,AA110,0)+AB109-E109 -> 0
B111: 105 | C111: 0 | D111: =IF(AND(B111>='Client Cost HIDE'!$D$152,B111<='Client Cost HIDE'!$B$14),IF(amortized=1,'Client Cost HIDE'!$B$12/'Client Cost HIDE'!$D$151,-PPMT('Client Cost HIDE'!$B$172,$B111-'Client Cost HIDE'!$D$152+1,'Client Cost HIDE'!$D$151,'Client Cost HIDE'!$B$12)),0) -> 0 | E111: =IF(OR('Client Cost HIDE'!$E$152>B111,C110<1),0,AB111) -> 0 | F111: =IF(indexing,D111*(1+'Client Cost HIDE'!$B$175)^(B111-$B$6)-D111,0) -> 0 | G111: =IF('Client Cost HIDE'!$C$32<1,'Client Cost HIDE'!$C$32*D111,IF(C110>1,'Client Cost HIDE'!$C$32,0)) -> 0 | H111: =SUM(E111:G111)*'Client Cost HIDE'!$B$28 -> 0 | I111: 0 | J111: 0 | K111: 0 | L111: =IF('Client Cost HIDE'!$C$39<1,'Client Cost HIDE'!$C$39*D111,IF(C111>1,'Client Cost HIDE'!$C$39,0)) -> 0 | M111: =IF(O110>0,O110*'Client Cost HIDE'!$A$177,0) -> 0 | N111: =IF('Client Cost HIDE'!$B$14=B111,O110+L111+M111,0) -> 0 | O111: 0 | P111: 0 | Q111: =IF(int_method=1,'Rep Schedule - Basic'!Q110,'Rep Schedule - Basic'!C111) -> 0 | S111: =IF(C111=0,0,C111-SUM($G$6:G111)-O110) -> 0 | T111: 0 | U111: 6500.22 | W111: TRUE | AA111: =IF(C110>1,IF(int_method=2,'Client Cost HIDE'!$B$172*C110,'Client Cost HIDE'!$B$172*'Client Cost HIDE'!$B$12),0) -> 0 | AB111: =IF(B111>'Client Cost HIDE'!$B$22,AA111,0)+AB110-E110 -> 0
B112: 106 | C112: 0 | D112: =IF(AND(B112>='Client Cost HIDE'!$D$152,B112<='Client Cost HIDE'!$B$14),IF(amortized=1,'Client Cost HIDE'!$B$12/'Client Cost HIDE'!$D$151,-PPMT('Client Cost HIDE'!$B$172,$B112-'Client Cost HIDE'!$D$152+1,'Client Cost HIDE'!$D$151,'Client Cost HIDE'!$B$12)),0) -> 0 | E112: =IF(OR('Client Cost HIDE'!$E$152>B112,C111<1),0,AB112) -> 0 | F112: =IF(indexing,D112*(1+'Client Cost HIDE'!$B$175)^(B112-$B$6)-D112,0) -> 0 | G112: =IF('Client Cost HIDE'!$C$32<1,'Client Cost HIDE'!$C$32*D112,IF(C111>1,'Client Cost HIDE'!$C$32,0)) -> 0 | H112: =SUM(E112:G112)*'Client Cost HIDE'!$B$28 -> 0 | I112: 0 | J112: 0 | K112: 0 | L112: =IF('Client Cost HIDE'!$C$39<1,'Client Cost HIDE'!$C$39*D112,IF(C112>1,'Client Cost HIDE'!$C$39,0)) -> 0 | M112: =IF(O111>0,O111*'Client Cost HIDE'!$A$177,0) -> 0 | N112: =IF('Client Cost HIDE'!$B$14=B112,O111+L112+M112,0) -> 0 | O112: 0 | P112: 0 | Q112: =IF(int_method=1,'Rep Schedule - Basic'!Q111,'Rep Schedule - Basic'!C112) -> 0 | S112: =IF(C112=0,0,C112-SUM($G$6:G112)-O111) -> 0 | T112: 0 | U112: 6500.22 | W112: TRUE | AA112: =IF(C111>1,IF(int_method=2,'Client Cost HIDE'!$B$172*C111,'Client Cost HIDE'!$B$172*'Client Cost HIDE'!$B$12),0) -> 0 | AB112: =IF(B112>'Client Cost HIDE'!$B$22,AA112,0)+AB111-E111 -> 0
B113: 107 | C113: 0 | D113: =IF(AND(B113>='Client Cost HIDE'!$D$152,B113<='Client Cost HIDE'!$B$14),IF(amortized=1,'Client Cost HIDE'!$B$12/'Client Cost HIDE'!$D$151,-PPMT('Client Cost HIDE'!$B$172,$B113-'Client Cost HIDE'!$D$152+1,'Client Cost HIDE'!$D$151,'Client Cost HIDE'!$B$12)),0) -> 0 | E113: =IF(OR('Client Cost HIDE'!$E$152>B113,C112<1),0,AB113) -> 0 | F113: =IF(indexing,D113*(1+'Client Cost HIDE'!$B$175)^(B113-$B$6)-D113,0) -> 0 | G113: =IF('Client Cost HIDE'!$C$32<1,'Client Cost HIDE'!$C$32*D113,IF(C112>1,'Client Cost HIDE'!$C$32,0)) -> 0 | H113: =SUM(E113:G113)*'Client Cost HIDE'!$B$28 -> 0 | I113: 0 | J113: 0 | K113: 0 | L113: =IF('Client Cost HIDE'!$C$39<1,'Client Cost HIDE'!$C$39*D113,IF(C113>1,'Client Cost HIDE'!$C$39,0)) -> 0 | M113: =IF(O112>0,O112*'Client Cost HIDE'!$A$177,0) -> 0 | N113: =IF('Client Cost HIDE'!$B$14=B113,O112+L113+M113,0) -> 0 | O113: 0 | P113: 0 | Q113: =IF(int_method=1,'Rep Schedule - Basic'!Q112,'Rep Schedule - Basic'!C113) -> 0 | S113: =IF(C113=0,0,C113-SUM($G$6:G113)-O112) -> 0 | T113: 0 | U113: 6500.22 | W113: TRUE | AA113: =IF(C112>1,IF(int_method=2,'Client Cost HIDE'!$B$172*C112,'Client Cost HIDE'!$B$172*'Client Cost HIDE'!$B$12),0) -> 0 | AB113: =IF(B113>'Client Cost HIDE'!$B$22,AA113,0)+AB112-E112 -> 0
B114: 108 | C114: 0 | D114: =IF(AND(B114>='Client Cost HIDE'!$D$152,B114<='Client Cost HIDE'!$B$14),IF(amortized=1,'Client Cost HIDE'!$B$12/'Client Cost HIDE'!$D$151,-PPMT('Client Cost HIDE'!$B$172,$B114-'Client Cost HIDE'!$D$152+1,'Client Cost HIDE'!$D$151,'Client Cost HIDE'!$B$12)),0) -> 0 | E114: =IF(OR('Client Cost HIDE'!$E$152>B114,C113<1),0,AB114) -> 0 | F114: =IF(indexing,D114*(1+'Client Cost HIDE'!$B$175)^(B114-$B$6)-D114,0) -> 0 | G114: =IF('Client Cost HIDE'!$C$32<1,'Client Cost HIDE'!$C$32*D114,IF(C113>1,'Client Cost HIDE'!$C$32,0)) -> 0 | H114: =SUM(E114:G114)*'Client Cost HIDE'!$B$28 -> 0 | I114: 0 | J114: 0 | K114: 0 | L114: =IF('Client Cost HIDE'!$C$39<1,'Client Cost HIDE'!$C$39*D114,IF(C114>1,'Client Cost HIDE'!$C$39,0)) -> 0 | M114: =IF(O113>0,O113*'Client Cost HIDE'!$A$177,0) -> 0 | N114: =IF('Client Cost HIDE'!$B$14=B114,O113+L114+M114,0) -> 0 | O114: 0 | P114: 0 | Q114: =IF(int_method=1,'Rep Schedule - Basic'!Q113,'Rep Schedule - Basic'!C114) -> 0 | S114: =IF(C114=0,0,C114-SUM($G$6:G114)-O113) -> 0 | T114: 0 | U114: 6500.22 | W114: TRUE | AA114: =IF(C113>1,IF(int_method=2,'Client Cost HIDE'!$B$172*C113,'Client Cost HIDE'!$B$172*'Client Cost HIDE'!$B$12),0) -> 0 | AB114: =IF(B114>'Client Cost HIDE'!$B$22,AA114,0)+AB113-E113 -> 0
B115: 109 | C115: 0 | D115: =IF(AND(B115>='Client Cost HIDE'!$D$152,B115<='Client Cost HIDE'!$B$14),IF(amortized=1,'Client Cost HIDE'!$B$12/'Client Cost HIDE'!$D$151,-PPMT('Client Cost HIDE'!$B$172,$B115-'Client Cost HIDE'!$D$152+1,'Client Cost HIDE'!$D$151,'Client Cost HIDE'!$B$12)),0) -> 0 | E115: =IF(OR('Client Cost HIDE'!$E$152>B115,C114<1),0,AB115) -> 0 | F115: =IF(indexing,D115*(1+'Client Cost HIDE'!$B$175)^(B115-$B$6)-D115,0) -> 0 | G115: =IF('Client Cost HIDE'!$C$32<1,'Client Cost HIDE'!$C$32*D115,IF(C114>1,'Client Cost HIDE'!$C$32,0)) -> 0 | H115: =SUM(E115:G115)*'Client Cost HIDE'!$B$28 -> 0 | I115: 0 | J115: 0 | K115: 0 | L115: =IF('Client Cost HIDE'!$C$39<1,'Client Cost HIDE'!$C$39*D115,IF(C115>1,'Client Cost HIDE'!$C$39,0)) -> 0 | M115: =IF(O114>0,O114*'Client Cost HIDE'!$A$177,0) -> 0 | N115: =IF('Client Cost HIDE'!$B$14=B115,O114+L115+M115,0) -> 0 | O115: 0 | P115: 0 | Q115: =IF(int_method=1,'Rep Schedule - Basic'!Q114,'Rep Schedule - Basic'!C115) -> 0 | S115: =IF(C115=0,0,C115-SUM($G$6:G115)-O114) -> 0 | T115: 0 | U115: 6500.22 | W115: TRUE | AA115: =IF(C114>1,IF(int_method=2,'Client Cost HIDE'!$B$172*C114,'Client Cost HIDE'!$B$172*'Client Cost HIDE'!$B$12),0) -> 0 | AB115: =IF(B115>'Client Cost HIDE'!$B$22,AA115,0)+AB114-E114 -> 0
B116: 110 | C116: 0 | D116: =IF(AND(B116>='Client Cost HIDE'!$D$152,B116<='Client Cost HIDE'!$B$14),IF(amortized=1,'Client Cost HIDE'!$B$12/'Client Cost HIDE'!$D$151,-PPMT('Client Cost HIDE'!$B$172,$B116-'Client Cost HIDE'!$D$152+1,'Client Cost HIDE'!$D$151,'Client Cost HIDE'!$B$12)),0) -> 0 | E116: =IF(OR('Client Cost HIDE'!$E$152>B116,C115<1),0,AB116) -> 0 | F116: =IF(indexing,D116*(1+'Client Cost HIDE'!$B$175)^(B116-$B$6)-D116,0) -> 0 | G116: =IF('Client Cost HIDE'!$C$32<1,'Client Cost HIDE'!$C$32*D116,IF(C115>1,'Client Cost HIDE'!$C$32,0)) -> 0 | H116: =SUM(E116:G116)*'Client Cost HIDE'!$B$28 -> 0 | I116: 0 | J116: 0 | K116: 0 | L116: =IF('Client Cost HIDE'!$C$39<1,'Client Cost HIDE'!$C$39*D116,IF(C116>1,'Client Cost HIDE'!$C$39,0)) -> 0 | M116: =IF(O115>0,O115*'Client Cost HIDE'!$A$177,0) -> 0 | N116: =IF('Client Cost HIDE'!$B$14=B116,O115+L116+M116,0) -> 0 | O116: 0 | P116: 0 | Q116: =IF(int_method=1,'Rep Schedule - Basic'!Q115,'Rep Schedule - Basic'!C116) -> 0 | S116: =IF(C116=0,0,C116-SUM($G$6:G116)-O115) -> 0 | T116: 0 | U116: 6500.22 | W116: TRUE | AA116: =IF(C115>1,IF(int_method=2,'Client Cost HIDE'!$B$172*C115,'Client Cost HIDE'!$B$172*'Client Cost HIDE'!$B$12),0) -> 0 | AB116: =IF(B116>'Client Cost HIDE'!$B$22,AA116,0)+AB115-E115 -> 0
B117: 111 | C117: 0 | D117: =IF(AND(B117>='Client Cost HIDE'!$D$152,B117<='Client Cost HIDE'!$B$14),IF(amortized=1,'Client Cost HIDE'!$B$12/'Client Cost HIDE'!$D$151,-PPMT('Client Cost HIDE'!$B$172,$B117-'Client Cost HIDE'!$D$152+1,'Client Cost HIDE'!$D$151,'Client Cost HIDE'!$B$12)),0) -> 0 | E117: =IF(OR('Client Cost HIDE'!$E$152>B117,C116<1),0,AB117) -> 0 | F117: =IF(indexing,D117*(1+'Client Cost HIDE'!$B$175)^(B117-$B$6)-D117,0) -> 0 | G117: =IF('Client Cost HIDE'!$C$32<1,'Client Cost HIDE'!$C$32*D117,IF(C116>1,'Client Cost HIDE'!$C$32,0)) -> 0 | H117: =SUM(E117:G117)*'Client Cost HIDE'!$B$28 -> 0 | I117: 0 | J117: 0 | K117: 0 | L117: =IF('Client Cost HIDE'!$C$39<1,'Client Cost HIDE'!$C$39*D117,IF(C117>1,'Client Cost HIDE'!$C$39,0)) -> 0 | M117: =IF(O116>0,O116*'Client Cost HIDE'!$A$177,0) -> 0 | N117: =IF('Client Cost HIDE'!$B$14=B117,O116+L117+M117,0) -> 0 | O117: 0 | P117: 0 | Q117: =IF(int_method=1,'Rep Schedule - Basic'!Q116,'Rep Schedule - Basic'!C117) -> 0 | S117: =IF(C117=0,0,C117-SUM($G$6:G117)-O116) -> 0 | T117: 0 | U117: 6500.22 | W117: TRUE | AA117: =IF(C116>1,IF(int_method=2,'Client Cost HIDE'!$B$172*C116,'Client Cost HIDE'!$B$172*'Client Cost HIDE'!$B$12),0) -> 0 | AB117: =IF(B117>'Client Cost HIDE'!$B$22,AA117,0)+AB116-E116 -> 0
B118: 112 | C118: 0 | D118: =IF(AND(B118>='Client Cost HIDE'!$D$152,B118<='Client Cost HIDE'!$B$14),IF(amortized=1,'Client Cost HIDE'!$B$12/'Client Cost HIDE'!$D$151,-PPMT('Client Cost HIDE'!$B$172,$B118-'Client Cost HIDE'!$D$152+1,'Client Cost HIDE'!$D$151,'Client Cost HIDE'!$B$12)),0) -> 0 | E118: =IF(OR('Client Cost HIDE'!$E$152>B118,C117<1),0,AB118) -> 0 | F118: =IF(indexing,D118*(1+'Client Cost HIDE'!$B$175)^(B118-$B$6)-D118,0) -> 0 | G118: =IF('Client Cost HIDE'!$C$32<1,'Client Cost HIDE'!$C$32*D118,IF(C117>1,'Client Cost HIDE'!$C$32,0)) -> 0 | H118: =SUM(E118:G118)*'Client Cost HIDE'!$B$28 -> 0 | I118: 0 | J118: 0 | K118: 0 | L118: =IF('Client Cost HIDE'!$C$39<1,'Client Cost HIDE'!$C$39*D118,IF(C118>1,'Client Cost HIDE'!$C$39,0)) -> 0 | M118: =IF(O117>0,O117*'Client Cost HIDE'!$A$177,0) -> 0 | N118: =IF('Client Cost HIDE'!$B$14=B118,O117+L118+M118,0) -> 0 | O118: 0 | P118: 0 | Q118: =IF(int_method=1,'Rep Schedule - Basic'!Q117,'Rep Schedule - Basic'!C118) -> 0 | S118: =IF(C118=0,0,C118-SUM($G$6:G118)-O117) -> 0 | T118: 0 | U118: 6500.22 | W118: TRUE | AA118: =IF(C117>1,IF(int_method=2,'Client Cost HIDE'!$B$172*C117,'Client Cost HIDE'!$B$172*'Client Cost HIDE'!$B$12),0) -> 0 | AB118: =IF(B118>'Client Cost HIDE'!$B$22,AA118,0)+AB117-E117 -> 0
B119: 113 | C119: 0 | D119: =IF(AND(B119>='Client Cost HIDE'!$D$152,B119<='Client Cost HIDE'!$B$14),IF(amortized=1,'Client Cost HIDE'!$B$12/'Client Cost HIDE'!$D$151,-PPMT('Client Cost HIDE'!$B$172,$B119-'Client Cost HIDE'!$D$152+1,'Client Cost HIDE'!$D$151,'Client Cost HIDE'!$B$12)),0) -> 0 | E119: =IF(OR('Client Cost HIDE'!$E$152>B119,C118<1),0,AB119) -> 0 | F119: =IF(indexing,D119*(1+'Client Cost HIDE'!$B$175)^(B119-$B$6)-D119,0) -> 0 | G119: =IF('Client Cost HIDE'!$C$32<1,'Client Cost HIDE'!$C$32*D119,IF(C118>1,'Client Cost HIDE'!$C$32,0)) -> 0 | H119: =SUM(E119:G119)*'Client Cost HIDE'!$B$28 -> 0 | I119: 0 | J119: 0 | K119: 0 | L119: =IF('Client Cost HIDE'!$C$39<1,'Client Cost HIDE'!$C$39*D119,IF(C119>1,'Client Cost HIDE'!$C$39,0)) -> 0 | M119: =IF(O118>0,O118*'Client Cost HIDE'!$A$177,0) -> 0 | N119: =IF('Client Cost HIDE'!$B$14=B119,O118+L119+M119,0) -> 0 | O119: 0 | P119: 0 | Q119: =IF(int_method=1,'Rep Schedule - Basic'!Q118,'Rep Schedule - Basic'!C119) -> 0 | S119: =IF(C119=0,0,C119-SUM($G$6:G119)-O118) -> 0 | T119: 0 | U119: 6500.22 | W119: TRUE | AA119: =IF(C118>1,IF(int_method=2,'Client Cost HIDE'!$B$172*C118,'Client Cost HIDE'!$B$172*'Client Cost HIDE'!$B$12),0) -> 0 | AB119: =IF(B119>'Client Cost HIDE'!$B$22,AA119,0)+AB118-E118 -> 0
B120: 114 | C120: 0 | D120: =IF(AND(B120>='Client Cost HIDE'!$D$152,B120<='Client Cost HIDE'!$B$14),IF(amortized=1,'Client Cost HIDE'!$B$12/'Client Cost HIDE'!$D$151,-PPMT('Client Cost HIDE'!$B$172,$B120-'Client Cost HIDE'!$D$152+1,'Client Cost HIDE'!$D$151,'Client Cost HIDE'!$B$12)),0) -> 0 | E120: =IF(OR('Client Cost HIDE'!$E$152>B120,C119<1),0,AB120) -> 0 | F120: =IF(indexing,D120*(1+'Client Cost HIDE'!$B$175)^(B120-$B$6)-D120,0) -> 0 | G120: =IF('Client Cost HIDE'!$C$32<1,'Client Cost HIDE'!$C$32*D120,IF(C119>1,'Client Cost HIDE'!$C$32,0)) -> 0 | H120: =SUM(E120:G120)*'Client Cost HIDE'!$B$28 -> 0 | I120: 0 | J120: 0 | K120: 0 | L120: =IF('Client Cost HIDE'!$C$39<1,'Client Cost HIDE'!$C$39*D120,IF(C120>1,'Client Cost HIDE'!$C$39,0)) -> 0 | M120: =IF(O119>0,O119*'Client Cost HIDE'!$A$177,0) -> 0 | N120: =IF('Client Cost HIDE'!$B$14=B120,O119+L120+M120,0) -> 0 | O120: 0 | P120: 0 | Q120: =IF(int_method=1,'Rep Schedule - Basic'!Q119,'Rep Schedule - Basic'!C120) -> 0 | S120: =IF(C120=0,0,C120-SUM($G$6:G120)-O119) -> 0 | T120: 0 | U120: 6500.22 | W120: TRUE | AA120: =IF(C119>1,IF(int_method=2,'Client Cost HIDE'!$B$172*C119,'Client Cost HIDE'!$B$172*'Client Cost HIDE'!$B$12),0) -> 0 | AB120: =IF(B120>'Client Cost HIDE'!$B$22,AA120,0)+AB119-E119 -> 0
B121: 115 | C121: 0 | D121: =IF(AND(B121>='Client Cost HIDE'!$D$152,B121<='Client Cost HIDE'!$B$14),IF(amortized=1,'Client Cost HIDE'!$B$12/'Client Cost HIDE'!$D$151,-PPMT('Client Cost HIDE'!$B$172,$B121-'Client Cost HIDE'!$D$152+1,'Client Cost HIDE'!$D$151,'Client Cost HIDE'!$B$12)),0) -> 0 | E121: =IF(OR('Client Cost HIDE'!$E$152>B121,C120<1),0,AB121) -> 0 | F121: =IF(indexing,D121*(1+'Client Cost HIDE'!$B$175)^(B121-$B$6)-D121,0) -> 0 | G121: =IF('Client Cost HIDE'!$C$32<1,'Client Cost HIDE'!$C$32*D121,IF(C120>1,'Client Cost HIDE'!$C$32,0)) -> 0 | H121: =SUM(E121:G121)*'Client Cost HIDE'!$B$28 -> 0 | I121: 0 | J121: 0 | K121: 0 | L121: =IF('Client Cost HIDE'!$C$39<1,'Client Cost HIDE'!$C$39*D121,IF(C121>1,'Client Cost HIDE'!$C$39,0)) -> 0 | M121: =IF(O120>0,O120*'Client Cost HIDE'!$A$177,0) -> 0 | N121: =IF('Client Cost HIDE'!$B$14=B121,O120+L121+M121,0) -> 0 | O121: 0 | P121: 0 | Q121: =IF(int_method=1,'Rep Schedule - Basic'!Q120,'Rep Schedule - Basic'!C121) -> 0 | S121: =IF(C121=0,0,C121-SUM($G$6:G121)-O120) -> 0 | T121: 0 | U121: 6500.22 | W121: TRUE | AA121: =IF(C120>1,IF(int_method=2,'Client Cost HIDE'!$B$172*C120,'Client Cost HIDE'!$B$172*'Client Cost HIDE'!$B$12),0) -> 0 | AB121: =IF(B121>'Client Cost HIDE'!$B$22,AA121,0)+AB120-E120 -> 0
B122: 116 | C122: 0 | D122: =IF(AND(B122>='Client Cost HIDE'!$D$152,B122<='Client Cost HIDE'!$B$14),IF(amortized=1,'Client Cost HIDE'!$B$12/'Client Cost HIDE'!$D$151,-PPMT('Client Cost HIDE'!$B$172,$B122-'Client Cost HIDE'!$D$152+1,'Client Cost HIDE'!$D$151,'Client Cost HIDE'!$B$12)),0) -> 0 | E122: =IF(OR('Client Cost HIDE'!$E$152>B122,C121<1),0,AB122) -> 0 | F122: =IF(indexing,D122*(1+'Client Cost HIDE'!$B$175)^(B122-$B$6)-D122,0) -> 0 | G122: =IF('Client Cost HIDE'!$C$32<1,'Client Cost HIDE'!$C$32*D122,IF(C121>1,'Client Cost HIDE'!$C$32,0)) -> 0 | H122: =SUM(E122:G122)*'Client Cost HIDE'!$B$28 -> 0 | I122: 0 | J122: 0 | K122: 0 | L122: =IF('Client Cost HIDE'!$C$39<1,'Client Cost HIDE'!$C$39*D122,IF(C122>1,'Client Cost HIDE'!$C$39,0)) -> 0 | M122: =IF(O121>0,O121*'Client Cost HIDE'!$A$177,0) -> 0 | N122: =IF('Client Cost HIDE'!$B$14=B122,O121+L122+M122,0) -> 0 | O122: 0 | P122: 0 | Q122: =IF(int_method=1,'Rep Schedule - Basic'!Q121,'Rep Schedule - Basic'!C122) -> 0 | S122: =IF(C122=0,0,C122-SUM($G$6:G122)-O121) -> 0 | T122: 0 | U122: 6500.22 | W122: TRUE | AA122: =IF(C121>1,IF(int_method=2,'Client Cost HIDE'!$B$172*C121,'Client Cost HIDE'!$B$172*'Client Cost HIDE'!$B$12),0) -> 0 | AB122: =IF(B122>'Client Cost HIDE'!$B$22,AA122,0)+AB121-E121 -> 0
B123: 117 | C123: 0 | D123: =IF(AND(B123>='Client Cost HIDE'!$D$152,B123<='Client Cost HIDE'!$B$14),IF(amortized=1,'Client Cost HIDE'!$B$12/'Client Cost HIDE'!$D$151,-PPMT('Client Cost HIDE'!$B$172,$B123-'Client Cost HIDE'!$D$152+1,'Client Cost HIDE'!$D$151,'Client Cost HIDE'!$B$12)),0) -> 0 | E123: =IF(OR('Client Cost HIDE'!$E$152>B123,C122<1),0,AB123) -> 0 | F123: =IF(indexing,D123*(1+'Client Cost HIDE'!$B$175)^(B123-$B$6)-D123,0) -> 0 | G123: =IF('Client Cost HIDE'!$C$32<1,'Client Cost HIDE'!$C$32*D123,IF(C122>1,'Client Cost HIDE'!$C$32,0)) -> 0 | H123: =SUM(E123:G123)*'Client Cost HIDE'!$B$28 -> 0 | I123: 0 | J123: 0 | K123: 0 | L123: =IF('Client Cost HIDE'!$C$39<1,'Client Cost HIDE'!$C$39*D123,IF(C123>1,'Client Cost HIDE'!$C$39,0)) -> 0 | M123: =IF(O122>0,O122*'Client Cost HIDE'!$A$177,0) -> 0 | N123: =IF('Client Cost HIDE'!$B$14=B123,O122+L123+M123,0) -> 0 | O123: 0 | P123: 0 | Q123: =IF(int_method=1,'Rep Schedule - Basic'!Q122,'Rep Schedule - Basic'!C123) -> 0 | S123: =IF(C123=0,0,C123-SUM($G$6:G123)-O122) -> 0 | T123: 0 | U123: 6500.22 | W123: TRUE | AA123: =IF(C122>1,IF(int_method=2,'Client Cost HIDE'!$B$172*C122,'Client Cost HIDE'!$B$172*'Client Cost HIDE'!$B$12),0) -> 0 | AB123: =IF(B123>'Client Cost HIDE'!$B$22,AA123,0)+AB122-E122 -> 0
B124: 118 | C124: 0 | D124: =IF(AND(B124>='Client Cost HIDE'!$D$152,B124<='Client Cost HIDE'!$B$14),IF(amortized=1,'Client Cost HIDE'!$B$12/'Client Cost HIDE'!$D$151,-PPMT('Client Cost HIDE'!$B$172,$B124-'Client Cost HIDE'!$D$152+1,'Client Cost HIDE'!$D$151,'Client Cost HIDE'!$B$12)),0) -> 0 | E124: =IF(OR('Client Cost HIDE'!$E$152>B124,C123<1),0,AB124) -> 0 | F124: =IF(indexing,D124*(1+'Client Cost HIDE'!$B$175)^(B124-$B$6)-D124,0) -> 0 | G124: =IF('Client Cost HIDE'!$C$32<1,'Client Cost HIDE'!$C$32*D124,IF(C123>1,'Client Cost HIDE'!$C$32,0)) -> 0 | H124: =SUM(E124:G124)*'Client Cost HIDE'!$B$28 -> 0 | I124: 0 | J124: 0 | K124: 0 | L124: =IF('Client Cost HIDE'!$C$39<1,'Client Cost HIDE'!$C$39*D124,IF(C124>1,'Client Cost HIDE'!$C$39,0)) -> 0 | M124: =IF(O123>0,O123*'Client Cost HIDE'!$A$177,0) -> 0 | N124: =IF('Client Cost HIDE'!$B$14=B124,O123+L124+M124,0) -> 0 | O124: 0 | P124: 0 | Q124: =IF(int_method=1,'Rep Schedule - Basic'!Q123,'Rep Schedule - Basic'!C124) -> 0 | S124: =IF(C124=0,0,C124-SUM($G$6:G124)-O123) -> 0 | T124: 0 | U124: 6500.22 | W124: TRUE | AA124: =IF(C123>1,IF(int_method=2,'Client Cost HIDE'!$B$172*C123,'Client Cost HIDE'!$B$172*'Client Cost HIDE'!$B$12),0) -> 0 | AB124: =IF(B124>'Client Cost HIDE'!$B$22,AA124,0)+AB123-E123 -> 0
B125: 119 | C125: 0 | D125: =IF(AND(B125>='Client Cost HIDE'!$D$152,B125<='Client Cost HIDE'!$B$14),IF(amortized=1,'Client Cost HIDE'!$B$12/'Client Cost HIDE'!$D$151,-PPMT('Client Cost HIDE'!$B$172,$B125-'Client Cost HIDE'!$D$152+1,'Client Cost HIDE'!$D$151,'Client Cost HIDE'!$B$12)),0) -> 0 | E125: =IF(OR('Client Cost HIDE'!$E$152>B125,C124<1),0,AB125) -> 0 | F125: =IF(indexing,D125*(1+'Client Cost HIDE'!$B$175)^(B125-$B$6)-D125,0) -> 0 | G125: =IF('Client Cost HIDE'!$C$32<1,'Client Cost HIDE'!$C$32*D125,IF(C124>1,'Client Cost HIDE'!$C$32,0)) -> 0 | H125: =SUM(E125:G125)*'Client Cost HIDE'!$B$28 -> 0 | I125: 0 | J125: 0 | K125: 0 | L125: =IF('Client Cost HIDE'!$C$39<1,'Client Cost HIDE'!$C$39*D125,IF(C125>1,'Client Cost HIDE'!$C$39,0)) -> 0 | M125: =IF(O124>0,O124*'Client Cost HIDE'!$A$177,0) -> 0 | N125: =IF('Client Cost HIDE'!$B$14=B125,O124+L125+M125,0) -> 0 | O125: 0 | P125: 0 | Q125: =IF(int_method=1,'Rep Schedule - Basic'!Q124,'Rep Schedule - Basic'!C125) -> 0 | S125: =IF(C125=0,0,C125-SUM($G$6:G125)-O124) -> 0 | T125: 0 | U125: 6500.22 | W125: TRUE | AA125: =IF(C124>1,IF(int_method=2,'Client Cost HIDE'!$B$172*C124,'Client Cost HIDE'!$B$172*'Client Cost HIDE'!$B$12),0) -> 0 | AB125: =IF(B125>'Client Cost HIDE'!$B$22,AA125,0)+AB124-E124 -> 0
B126: 120 | C126: 0 | D126: =IF(AND(B126>='Client Cost HIDE'!$D$152,B126<='Client Cost HIDE'!$B$14),IF(amortized=1,'Client Cost HIDE'!$B$12/'Client Cost HIDE'!$D$151,-PPMT('Client Cost HIDE'!$B$172,$B126-'Client Cost HIDE'!$D$152+1,'Client Cost HIDE'!$D$151,'Client Cost HIDE'!$B$12)),0) -> 0 | E126: =IF(OR('Client Cost HIDE'!$E$152>B126,C125<1),0,AB126) -> 0 | F126: =IF(indexing,D126*(1+'Client Cost HIDE'!$B$175)^(B126-$B$6)-D126,0) -> 0 | G126: =IF('Client Cost HIDE'!$C$32<1,'Client Cost HIDE'!$C$32*D126,IF(C125>1,'Client Cost HIDE'!$C$32,0)) -> 0 | H126: =SUM(E126:G126)*'Client Cost HIDE'!$B$28 -> 0 | I126: 0 | J126: 0 | K126: 0 | L126: =IF('Client Cost HIDE'!$C$39<1,'Client Cost HIDE'!$C$39*D126,IF(C126>1,'Client Cost HIDE'!$C$39,0)) -> 0 | M126: =IF(O125>0,O125*'Client Cost HIDE'!$A$177,0) -> 0 | N126: =IF('Client Cost HIDE'!$B$14=B126,O125+L126+M126,0) -> 0 | O126: 0 | P126: 0 | Q126: =IF(int_method=1,'Rep Schedule - Basic'!Q125,'Rep Schedule - Basic'!C126) -> 0 | S126: =IF(C126=0,0,C126-SUM($G$6:G126)-O125) -> 0 | T126: 0 | U126: 6500.22 | W126: TRUE | AA126: =IF(C125>1,IF(int_method=2,'Client Cost HIDE'!$B$172*C125,'Client Cost HIDE'!$B$172*'Client Cost HIDE'!$B$12),0) -> 0 | AB126: =IF(B126>'Client Cost HIDE'!$B$22,AA126,0)+AB125-E125 -> 0
D127: =SUM(D7:D126) -> 1000 | E127: =SUM(E7:E126) -> 65.0022 | F127: =SUM(F7:F126) -> 0 | G127: =SUM(G6:G126) -> 0 | H127: =SUM(H6:H126) -> 0 | I127: =IF(term<=$B126,IF(AND(I6,term>0),IRR(I6:I126,SeedIRR)*INDEX('Client Cost HIDE'!$E164:$E166,'Client Cost HIDE'!$A164),0),0) -> 0.1200039028 | J127: =IF(term<=$B126,IF(AND(J6,term>0),IRR(J6:J126,SeedIRR)*INDEX('Client Cost HIDE'!$E164:$E166,'Client Cost HIDE'!$A164),0),0) -> 0.1200039028 | K127: =IF(term<=$B126,IF(AND(K6,term>0),IRR(K6:K126,SeedIRR)*INDEX('Client Cost HIDE'!$E164:$E166,'Client Cost HIDE'!$A164),0),0) -> 0.1200039028 | L127: =SUM(L6:L126) -> 0 | M127: =SUM(M6:M126) -> 0 | N127: =SUM(N6:N126) -> 0 | P127: =IF(term<=B126,IF(AND(J6,term>0),IRR(P6:P126,SeedIRR)*INDEX('Client Cost HIDE'!E164:E166,'Client Cost HIDE'!A164),0),0) -> 0.1200039028 | T127: =SUM(T6:T126) -> 0 | U127: =U126 -> 6500.22
C177: =-MAX(C6:C127,ABS(MIN(C6:C127))) -> -1000 | D177: =-MAX(D6:D127,ABS(MIN(D6:D127))) -> -1000 | E177: =-MAX(E6:E127,ABS(MIN(E6:E127))) -> -65.0022 | F177: =-MAX(F6:F127,ABS(MIN(F6:F127))) -> 0 | G177: =-MAX(G6:G127,ABS(MIN(G6:G127))) -> 0 | J177: =-MAX(J6:J127,ABS(MIN(J6:J127))) -> -1000 | L177: =-MAX(L6:L127,ABS(MIN(L6:L127))) -> 0 | M177: =-MAX(M6:M127,ABS(MIN(M6:M127))) -> 0 | N177: =-MAX(N6:N127,ABS(MIN(N6:N127))) -> 0 | O177: =-MAX(O6:O127,ABS(MIN(O6:O127))) -> 0 | P177: =-MAX(P6:P127,ABS(MIN(P6:P127))) -> -1000

Sheet Pricing - Advanced
B1: =Translations!A3 -> Calculation of Transparent Pricing | I1: =Translations!A208 -> Display EIR values | AA1: FALSE
B3: =Translations!A4 -> Basic Loan Conditions | F3: =Translations!A6 -> Amortization: | W3: APR
B4: =Translations!A5 -> Loan Amount: | E4: 1000 | F4: =Translations!A10 -> Interest: | J4: =Translations!A257 -> APR Method | K4: US-APR | W4: =J11 -> 0.8676749258 | X4: =Translations!A10 -> Interest:
B5: =Translations!A13 -> Term & Repay Freq. | E5: 16 | J5: =Translations!A25 -> Days/per (t): | K5: =IF(APR_365,1,DaysPeriod) -> 7 | V5: =IF(AND(ISBLANK(E14),ISBLANK(E15)),"","up-front") ->  | W5: =J14 -> 0.8676749258 | X5: ="+ "&Translations!A205 -> + Fees
F6: =IF(IntPmt=1,Translations!A23,"") -> Int Pmt | G6: =IF(IntPmt=1,Translations!A24,"") -> Int Calc | H6: =IF(Amort=3,"",Translations!A195) -> Balloon | J6: =Translations!A222 -> Per/Mon (m) | K6: =IF(APR_365,30,H121) -> 4.333333333 | V6: =IF(AND(ISBLANK(F14),ISBLANK(F15)),"","ongoing") ->  | Z6: Prepayment
B7: =IF(AND(IntPmt=2,Amort=3),"",Translations!A26&" ("&F121&")") -> Grace or Prepay (Weeks) | J7: =Translations!A35 -> Per/Yr (n): | K7: =IF(APR_365,'Rep Schedule - Advanced'!M220,O121) -> 52 | V7: =IF(AND(ISBLANK(E16),ISBLANK(E17)),"","up-front") ->  | W7: =J16 -> 0.8676749258 | X7: ="+ "&Translations!A199 -> + Insurance (%)
B9: =Translations!A39 -> Loan Pricing | H9: =Translations!A36 -> Period | I9: =Translations!A223 -> MPR (nom) | J9: =Translations!A37 -> APR (nom) | K9: =Translations!A38 -> EIR (comp) | V9: =IF(AND(ISBLANK(F16),ISBLANK(F17)),"","ongoing") ->  | Z9: Seed number for IRR
B10: =Translations!$A$40 -> Nominal interest Rate (%) | E10: 0.04 | H10: i | I10: i * m | J10: i * n | K10: (1 + i)n - 1 | V10: =IF(ISNUMBER(#REF!),IF(#REF!>0,"on fees",""),"") ->  | W10: =J18 -> 0.8676749258 | X10: ="+ "&Translations!A207 -> + Taxes | Z10: =IF(SUM(E20:F20)<0.5,0.01,0.3) -> 0.01
B11: =Translations!A160 -> Nominal Annual & Method | E11: =E10*O123 -> 0.48 | H11: =IF(APR_365=TRUE,'Rep Schedule - Advanced'!$M$204,'Rep Schedule - Advanced'!$M$195) -> 0.01668605627 | I11: ='Rep Schedule - Advanced'!$M$213 -> 0.07230624382 | J11: ='Rep Schedule - Advanced'!M214 -> 0.8676749258 | K11: ='Rep Schedule - Advanced'!M215 -> 1.369975157 | V11: =IF(ISNUMBER(#REF!),IF(#REF!>0,"on interest",""),"") ->  | Z11: Try changing this if APR does not calculate properly. The default figure for this should be 0.01
W12: =J20 -> 1.04867079 | X12: ="+ "&Translations!A50 -> + Security Deposit (%)
B13: =IF(SUM(Z14:Z15)>0,"Note! Using S.Africa fee limits",LblOk) ->  | E13: =Translations!A44 -> Upfront | F13: =Translations!A45 -> Ongoing | G13: =Translations!A46 -> Increment | H13: =IF(ManualMode=TRUE,Translations!A100,LblOk) -> 
B14: =Translations!A47 -> Fee (%) | G14: =J14-J11 -> 0 | H14: =IF(APR_365=TRUE,'Rep Schedule - Advanced'!$P$204,'Rep Schedule - Advanced'!$P$195) -> 0.01668605627 | I14: ='Rep Schedule - Advanced'!P213 -> 0.07230624382 | J14: ='Rep Schedule - Advanced'!P214 -> 0.8676749258 | K14: ='Rep Schedule - Advanced'!P215 -> 1.369975157 | AA14: Threshold for when % upfront starts
B15: =Translations!A48 -> Fee (fixed amount) | H15: =IF(APR_365=TRUE,'Rep Schedule - Advanced'!$M$204,'Rep Schedule - Advanced'!$M$195) -> 0.01668605627 | AA15: Maximum amount for upfront fees
B16: =Translations!A199 -> Insurance (%) | G16: =J16-J14 -> 0 | H16: =IF(APR_365=TRUE,'Rep Schedule - Advanced'!$T$204,'Rep Schedule - Advanced'!$T$195) -> 0.01668605627 | I16: ='Rep Schedule - Advanced'!T213 -> 0.07230624382 | J16: ='Rep Schedule - Advanced'!T214 -> 0.8676749258 | K16: ='Rep Schedule - Advanced'!T215 -> 1.369975157
B17: =Translations!A200 -> Insurance (fixed amount) | H17: =IF(APR_365=TRUE,'Rep Schedule - Advanced'!$M$204,'Rep Schedule - Advanced'!$M$195) -> 0.01668605627 | Z17: =cost_1 -> 1000 | AA17: Loan Amount
B18: =Translations!A49 -> Value-Added Tax (%) | E18: On Fees: | G18: =J18-J16 -> 0 | H18: =IF(APR_365=TRUE,'Rep Schedule - Advanced'!$W$204,'Rep Schedule - Advanced'!$W$195) -> 0.01668605627 | I18: ='Rep Schedule - Advanced'!W213 -> 0.07230624382 | J18: ='Rep Schedule - Advanced'!W214 -> 0.8676749258 | K18: ='Rep Schedule - Advanced'!W215 -> 1.369975157 | L18: =Translations!A84 -> Total Financial Cost to the Client | P18: =Translations!A196 -> Transparency Index | S18: =E11/J20*100 -> 45.77222942 | Z18: =term -> 16 | AA18: =F121&" Term" -> Weeks Term
E19: On Interest: | H19: =IF(APR_365=TRUE,'Rep Schedule - Advanced'!$M$204,'Rep Schedule - Advanced'!$M$195) -> 0.01668605627 | L19: =Translations!A85 -> Total Cost (less Sec.Dep. int): | O19: =SUM(G25:J25)-L25 -> 147.6923077 | P19: =Translations!A81&" "&term&" "&INDEX(G112:G120,E112)&Translations!A82 -> in 16 Weeks, or ….. | R19: =O19*INDEX(J112:J120,E112)/term -> 480 | S19: =Translations!A83 -> in 1 year | V19: =IF(AND(ISBLANK(E20),ISBLANK(E21)),"","up-front") -> up-front | Z19: =E22 -> 0 | AA19: Int Paid on Savings
B20: =Translations!A50 -> Security Deposit (%) | E20: 0.1 | G20: =J20-J18 -> 0.1809958644 | H20: =IF(APR_365=TRUE,'Rep Schedule - Advanced'!$AC$204,'Rep Schedule - Advanced'!$AC$195) -> 0.02016674597 | I20: ='Rep Schedule - Advanced'!AC213 -> 0.08738923252 | J20: ='Rep Schedule - Advanced'!AC214 -> 1.04867079 | K20: ='Rep Schedule - Advanced'!AC215 -> 1.832299709 | L20: =Translations!A86 -> Avg net loan balance: | O20: ='Rep Schedule - Advanced'!AK195 -> 431.25 | P20: =Translations!A177&" "&TEXT(O20/E4,"00%")&" "&Translations!A89 -> which is 43% of original loan amount | V20: =IF(AND(ISBLANK(F20),ISBLANK(F21)),"","ongoing") -> 
B21: =Translations!A51 -> Security Deposit (fixed) | H21: =IF(APR_365=TRUE,'Rep Schedule - Advanced'!$M$204,'Rep Schedule - Advanced'!$M$195) -> 0.01668605627 | L21: =Translations!A87 -> Client Breakeven Point: | N21: =IF(R19>0,O20/R19,0) -> 0.8984375 | O21: =Translations!A90 -> Years until total loan cost equals the avg loan balance
B22: =Translations!A52 -> Interest Paid on Deposit (%) | F22: =IF(OR(ISERR(I20),I20<-0.01),Translations!A98,".") -> . | L22: =Translations!A88 -> Negative Net Balance for: | N22: =IF('Rep Schedule - Advanced'!AI189>0,'Rep Schedule - Advanced'!AI189+1,0) -> 2 | O22: =INDEX(G112:G120,E112)&Translations!A91 -> Weeks, which is…. | Q22: =IF(term>0,N22/term,"") -> 0.125 | R22: =Translations!A92 -> % of loan term | Y22: Single Loan | AA22: One Year Cycle
B24: =Translations!A99 -> Repayment Schedule | D24: ='Rep Schedule - Advanced'!G5 -> Principal Disbursed | E24: ='Rep Schedule - Advanced'!H5 -> Principal Paid | F24: ='Rep Schedule - Advanced'!J5 -> Balance | G24: ='Rep Schedule - Advanced'!K5 -> Interest Paid | H24: ='Rep Schedule - Advanced'!N5 -> Fees Paid | I24: ='Rep Schedule - Advanced'!R5 -> Insurance Paid | J24: ='Rep Schedule - Advanced'!U5 -> Taxes | K24: ='Rep Schedule - Advanced'!X5 -> Security Deposit | L24: ='Rep Schedule - Advanced'!Y5 -> Interest Paid | M24: ='Rep Schedule - Advanced'!Z5 -> Deposit Withdr. | N24: ='Rep Schedule - Advanced'!AB5 -> Deposit Balance | O24: =Translations!A101 -> Divisor | P24: =Translations!A75 -> Inflows (Prin+Int) | Q24: =Translations!A76 -> Outflows (Prin+Int) | R24: ='Rep Schedule - Advanced'!Q5 -> Period APR | S24: =Translations!A198 -> Cumulative Total Paid | Y24: Net Bal | Z24: Avg Bal | AA24: =Y24 -> Net Bal | AB24: =Z24 -> Avg Bal | AC24: Total Paid
C25: =C87 -> Totals | D25: 1000 | E25: 1000 | F25: 0 | G25: 147.6923077 | H25: 0 | I25: 0 | J25: =J87 -> 0 | K25: 100 | L25: 0 | M25: 100 | N25: 0 | O25: 0 | P25: 1000 | Q25: 1000 | R25: 0 | Y25: ='Rep Schedule - Advanced'!AH6 -> 900 | Z25: =IF(Y25<>0,AVERAGE(Y$25:Y25),Z24) -> 900 | AA25: =Y25 -> 900
B26: ='Rep Schedule - Advanced'!B6 -> 0 | C26: ='Rep Schedule - Advanced'!E6 -> 2013-01-01 | D26: ='Rep Schedule - Advanced'!G6 -> 1000 | E26: ='Rep Schedule - Advanced'!H6 -> 0 | F26: ='Rep Schedule - Advanced'!J6 -> 1000 | G26: ='Rep Schedule - Advanced'!K6 -> 0 | H26: ='Rep Schedule - Advanced'!N6 -> 0 | I26: ='Rep Schedule - Advanced'!R6 -> 0 | J26: ='Rep Schedule - Advanced'!U6 -> 0 | K26: ='Rep Schedule - Advanced'!X6 -> 100 | L26: ='Rep Schedule - Advanced'!Y6 -> 0 | M26: ='Rep Schedule - Advanced'!Z6 -> 0 | N26: ='Rep Schedule - Advanced'!AB6 -> 100 | O26: ='Rep Schedule - Advanced'!BI6 -> 1 | P26: ='Rep Schedule - Advanced'!BK6 -> 1000 | Q26: ='Rep Schedule - Advanced'!BL6 -> 0 | S26: =S25+SUM(G26:J26) -> 0 | Y26: ='Rep Schedule - Advanced'!AH7 -> 837.5 | Z26: =IF(Y26<>0,AVERAGE(Y$25:Y26),Z25) -> 868.75 | AA26: =IF($B27<=term,Y26,INDEX($Y$26:$Y$86,$B27-term)) -> 837.5 | AD26: ='Rep Schedule - Advanced'!AN6 -> x
B27: ='Rep Schedule - Advanced'!B7 -> 1 | C27: ='Rep Schedule - Advanced'!E7 -> 2013-01-08 | D27: ='Rep Schedule - Advanced'!G7 -> 0 | E27: ='Rep Schedule - Advanced'!H7 -> 62.5 | F27: ='Rep Schedule - Advanced'!J7 -> 937.5 | G27: ='Rep Schedule - Advanced'!K7 -> 9.230769231 | H27: ='Rep Schedule - Advanced'!N7 -> 0 | I27: ='Rep Schedule - Advanced'!R7 -> 0 | J27: ='Rep Schedule - Advanced'!U7 -> 0 | K27: ='Rep Schedule - Advanced'!X7 -> 0 | L27: ='Rep Schedule - Advanced'!Y7 -> 0 | M27: ='Rep Schedule - Advanced'!Z7 -> 0 | N27: ='Rep Schedule - Advanced'!AB7 -> 100 | O27: ='Rep Schedule - Advanced'!BI7 -> 1.016686056 | P27: ='Rep Schedule - Advanced'!BK7 -> 0 | Q27: ='Rep Schedule - Advanced'!BL7 -> 70.5535094 | R27: ='Rep Schedule - Advanced'!Q7 -> 0.4816483516 | S27: 9.230769231 | X27: =E27+G27+J27 -> 71.73076923 | Y27: ='Rep Schedule - Advanced'!AH8 -> 775 | Z27: =IF(Y27<>0,AVERAGE(Y$25:Y27),Z26) -> 837.5 | AA27: 775 | AD27: ='Rep Schedule - Advanced'!AN7 -> x
B28: ='Rep Schedule - Advanced'!B8 -> 2 | C28: ='Rep Schedule - Advanced'!E8 -> 2013-01-15 | D28: ='Rep Schedule - Advanced'!G8 -> 0 | E28: ='Rep Schedule - Advanced'!H8 -> 62.5 | F28: ='Rep Schedule - Advanced'!J8 -> 875 | G28: ='Rep Schedule - Advanced'!K8 -> 9.230769231 | H28: ='Rep Schedule - Advanced'!N8 -> 0 | I28: ='Rep Schedule - Advanced'!R8 -> 0 | J28: ='Rep Schedule - Advanced'!U8 -> 0 | K28: ='Rep Schedule - Advanced'!X8 -> 0 | L28: ='Rep Schedule - Advanced'!Y8 -> 0 | M28: ='Rep Schedule - Advanced'!Z8 -> 0 | N28: ='Rep Schedule - Advanced'!AB8 -> 100 | O28: ='Rep Schedule - Advanced'!BI8 -> 1.033650537 | P28: ='Rep Schedule - Advanced'!BK8 -> 0 | Q28: ='Rep Schedule - Advanced'!BL8 -> 69.395571 | R28: ='Rep Schedule - Advanced'!Q8 -> 0.5137582418 | S28: 18.46153846 | X28: =E28+G28+J28 -> 71.73076923 | Y28: ='Rep Schedule - Advanced'!AH9 -> 712.5 | Z28: =IF(Y28<>0,AVERAGE(Y$25:Y28),Z27) -> 806.25 | AA28: 712.5 | AD28: ='Rep Schedule - Advanced'!AN8 -> x
B29: ='Rep Schedule - Advanced'!B9 -> 3 | C29: ='Rep Schedule - Advanced'!E9 -> 2013-01-22 | D29: ='Rep Schedule - Advanced'!G9 -> 0 | E29: ='Rep Schedule - Advanced'!H9 -> 62.5 | F29: ='Rep Schedule - Advanced'!J9 -> 812.5 | G29: ='Rep Schedule - Advanced'!K9 -> 9.230769231 | H29: ='Rep Schedule - Advanced'!N9 -> 0 | I29: ='Rep Schedule - Advanced'!R9 -> 0 | J29: ='Rep Schedule - Advanced'!U9 -> 0 | K29: ='Rep Schedule - Advanced'!X9 -> 0 | L29: ='Rep Schedule - Advanced'!Y9 -> 0 | M29: ='Rep Schedule - Advanced'!Z9 -> 0 | N29: ='Rep Schedule - Advanced'!AB9 -> 100 | O29: ='Rep Schedule - Advanced'!BI9 -> 1.050898088 | P29: ='Rep Schedule - Advanced'!BK9 -> 0 | Q29: ='Rep Schedule - Advanced'!BL9 -> 68.25663692 | R29: ='Rep Schedule - Advanced'!Q9 -> 0.550455259 | S29: 27.69230769 | X29: =E29+G29+J29 -> 71.73076923 | Y29: ='Rep Schedule - Advanced'!AH10 -> 650 | Z29: =IF(Y29<>0,AVERAGE(Y$25:Y29),Z28) -> 775 | AA29: 650 | AD29: ='Rep Schedule - Advanced'!AN9 -> x
B30: ='Rep Schedule - Advanced'!B10 -> 4 | C30: ='Rep Schedule - Advanced'!E10 -> 2013-01-29 | D30: ='Rep Schedule - Advanced'!G10 -> 0 | E30: ='Rep Schedule - Advanced'!H10 -> 62.5 | F30: ='Rep Schedule - Advanced'!J10 -> 750 | G30: ='Rep Schedule - Advanced'!K10 -> 9.230769231 | H30: ='Rep Schedule - Advanced'!N10 -> 0 | I30: ='Rep Schedule - Advanced'!R10 -> 0 | J30: ='Rep Schedule - Advanced'!U10 -> 0 | K30: ='Rep Schedule - Advanced'!X10 -> 0 | L30: ='Rep Schedule - Advanced'!Y10 -> 0 | M30: ='Rep Schedule - Advanced'!Z10 -> 0 | N30: ='Rep Schedule - Advanced'!AB10 -> 100 | O30: ='Rep Schedule - Advanced'!BI10 -> 1.068433433 | P30: ='Rep Schedule - Advanced'!BK10 -> 0 | Q30: ='Rep Schedule - Advanced'!BL10 -> 67.13639525 | R30: ='Rep Schedule - Advanced'!Q10 -> 0.5927979713 | S30: 36.92307692 | X30: =E30+G30+J30 -> 71.73076923 | Y30: ='Rep Schedule - Advanced'!AH11 -> 587.5 | Z30: =IF(Y30<>0,AVERAGE(Y$25:Y30),Z29) -> 743.75 | AA30: 587.5 | AD30: ='Rep Schedule - Advanced'!AN10 -> x
B31: ='Rep Schedule - Advanced'!B11 -> 5 | C31: ='Rep Schedule - Advanced'!E11 -> 2013-02-05 | D31: ='Rep Schedule - Advanced'!G11 -> 0 | E31: ='Rep Schedule - Advanced'!H11 -> 62.5 | F31: ='Rep Schedule - Advanced'!J11 -> 687.5 | G31: ='Rep Schedule - Advanced'!K11 -> 9.230769231 | H31: ='Rep Schedule - Advanced'!N11 -> 0 | I31: ='Rep Schedule - Advanced'!R11 -> 0 | J31: ='Rep Schedule - Advanced'!U11 -> 0 | K31: ='Rep Schedule - Advanced'!X11 -> 0 | L31: ='Rep Schedule - Advanced'!Y11 -> 0 | M31: ='Rep Schedule - Advanced'!Z11 -> 0 | N31: ='Rep Schedule - Advanced'!AB11 -> 100 | O31: ='Rep Schedule - Advanced'!BI11 -> 1.086261373 | P31: ='Rep Schedule - Advanced'!BK11 -> 0 | Q31: ='Rep Schedule - Advanced'!BL11 -> 66.03453921 | R31: ='Rep Schedule - Advanced'!Q11 -> 0.6421978022 | S31: 46.15384615 | Y31: ='Rep Schedule - Advanced'!AH12 -> 525 | Z31: =IF(Y31<>0,AVERAGE(Y$25:Y31),Z30) -> 712.5 | AA31: 525 | AD31: ='Rep Schedule - Advanced'!AN11 -> x
B32: ='Rep Schedule - Advanced'!B12 -> 6 | C32: ='Rep Schedule - Advanced'!E12 -> 2013-02-12 | D32: ='Rep Schedule - Advanced'!G12 -> 0 | E32: ='Rep Schedule - Advanced'!H12 -> 62.5 | F32: ='Rep Schedule - Advanced'!J12 -> 625 | G32: ='Rep Schedule - Advanced'!K12 -> 9.230769231 | H32: ='Rep Schedule - Advanced'!N12 -> 0 | I32: ='Rep Schedule - Advanced'!R12 -> 0 | J32: ='Rep Schedule - Advanced'!U12 -> 0 | K32: ='Rep Schedule - Advanced'!X12 -> 0 | L32: ='Rep Schedule - Advanced'!Y12 -> 0 | M32: ='Rep Schedule - Advanced'!Z12 -> 0 | N32: ='Rep Schedule - Advanced'!AB12 -> 100 | O32: ='Rep Schedule - Advanced'!BI12 -> 1.104386791 | P32: ='Rep Schedule - Advanced'!BK12 -> 0 | Q32: ='Rep Schedule - Advanced'!BL12 -> 64.95076706 | R32: ='Rep Schedule - Advanced'!Q12 -> 0.7005794206 | S32: 55.38461538 | Y32: ='Rep Schedule - Advanced'!AH13 -> 462.5 | Z32: =IF(Y32<>0,AVERAGE(Y$25:Y32),Z31) -> 681.25 | AA32: 462.5 | AD32: ='Rep Schedule - Advanced'!AN12 -> x
B33: ='Rep Schedule - Advanced'!B13 -> 7 | C33: ='Rep Schedule - Advanced'!E13 -> 2013-02-19 | D33: ='Rep Schedule - Advanced'!G13 -> 0 | E33: ='Rep Schedule - Advanced'!H13 -> 62.5 | F33: ='Rep Schedule - Advanced'!J13 -> 562.5 | G33: ='Rep Schedule - Advanced'!K13 -> 9.230769231 | H33: ='Rep Schedule - Advanced'!N13 -> 0 | I33: ='Rep Schedule - Advanced'!R13 -> 0 | J33: ='Rep Schedule - Advanced'!U13 -> 0 | K33: ='Rep Schedule - Advanced'!X13 -> 0 | L33: ='Rep Schedule - Advanced'!Y13 -> 0 | M33: ='Rep Schedule - Advanced'!Z13 -> 0 | N33: ='Rep Schedule - Advanced'!AB13 -> 100 | O33: ='Rep Schedule - Advanced'!BI13 -> 1.122814652 | P33: ='Rep Schedule - Advanced'!BK13 -> 0 | Q33: ='Rep Schedule - Advanced'!BL13 -> 63.88478199 | R33: ='Rep Schedule - Advanced'!Q13 -> 0.7706373626 | S33: 64.61538462 | Y33: ='Rep Schedule - Advanced'!AH14 -> 400 | Z33: =IF(Y33<>0,AVERAGE(Y$25:Y33),Z32) -> 650 | AA33: 400 | AD33: ='Rep Schedule - Advanced'!AN13 -> x
B34: ='Rep Schedule - Advanced'!B14 -> 8 | C34: ='Rep Schedule - Advanced'!E14 -> 2013-02-26 | D34: ='Rep Schedule - Advanced'!G14 -> 0 | E34: ='Rep Schedule - Advanced'!H14 -> 62.5 | F34: ='Rep Schedule - Advanced'!J14 -> 500 | G34: ='Rep Schedule - Advanced'!K14 -> 9.230769231 | H34: ='Rep Schedule - Advanced'!N14 -> 0 | I34: ='Rep Schedule - Advanced'!R14 -> 0 | J34: ='Rep Schedule - Advanced'!U14 -> 0 | K34: ='Rep Schedule - Advanced'!X14 -> 0 | L34: ='Rep Schedule - Advanced'!Y14 -> 0 | M34: ='Rep Schedule - Advanced'!Z14 -> 0 | N34: ='Rep Schedule - Advanced'!AB14 -> 100 | O34: ='Rep Schedule - Advanced'!BI14 -> 1.14155 | P34: ='Rep Schedule - Advanced'!BK14 -> 0 | Q34: ='Rep Schedule - Advanced'!BL14 -> 62.83629209 | R34: ='Rep Schedule - Advanced'!Q14 -> 0.8562637363 | S34: 73.84615385 | Y34: ='Rep Schedule - Advanced'!AH15 -> 337.5 | Z34: =IF(Y34<>0,AVERAGE(Y$25:Y34),Z33) -> 618.75 | AA34: 337.5 | AD34: ='Rep Schedule - Advanced'!AN14 -> x
B35: ='Rep Schedule - Advanced'!B15 -> 9 | C35: ='Rep Schedule - Advanced'!E15 -> 2013-03-05 | D35: ='Rep Schedule - Advanced'!G15 -> 0 | E35: ='Rep Schedule - Advanced'!H15 -> 62.5 | F35: ='Rep Schedule - Advanced'!J15 -> 437.5 | G35: ='Rep Schedule - Advanced'!K15 -> 9.230769231 | H35: ='Rep Schedule - Advanced'!N15 -> 0 | I35: ='Rep Schedule - Advanced'!R15 -> 0 | J35: ='Rep Schedule - Advanced'!U15 -> 0 | K35: ='Rep Schedule - Advanced'!X15 -> 0 | L35: ='Rep Schedule - Advanced'!Y15 -> 0 | M35: ='Rep Schedule - Advanced'!Z15 -> 0 | N35: ='Rep Schedule - Advanced'!AB15 -> 100 | O35: ='Rep Schedule - Advanced'!BI15 -> 1.160597968 | P35: ='Rep Schedule - Advanced'!BK15 -> 0 | Q35: ='Rep Schedule - Advanced'!BL15 -> 61.80501021 | R35: ='Rep Schedule - Advanced'!Q15 -> 0.9632967033 | S35: 83.07692308 | Y35: ='Rep Schedule - Advanced'!AH16 -> 275 | Z35: =IF(Y35<>0,AVERAGE(Y$25:Y35),Z34) -> 587.5 | AA35: 275 | AD35: ='Rep Schedule - Advanced'!AN15 -> x
B36: ='Rep Schedule - Advanced'!B16 -> 10 | C36: ='Rep Schedule - Advanced'!E16 -> 2013-03-12 | D36: ='Rep Schedule - Advanced'!G16 -> 0 | E36: ='Rep Schedule - Advanced'!H16 -> 62.5 | F36: ='Rep Schedule - Advanced'!J16 -> 375 | G36: ='Rep Schedule - Advanced'!K16 -> 9.230769231 | H36: ='Rep Schedule - Advanced'!N16 -> 0 | I36: ='Rep Schedule - Advanced'!R16 -> 0 | J36: ='Rep Schedule - Advanced'!U16 -> 0 | K36: ='Rep Schedule - Advanced'!X16 -> 0 | L36: ='Rep Schedule - Advanced'!Y16 -> 0 | M36: ='Rep Schedule - Advanced'!Z16 -> 0 | N36: ='Rep Schedule - Advanced'!AB16 -> 100 | O36: ='Rep Schedule - Advanced'!BI16 -> 1.179963771 | P36: ='Rep Schedule - Advanced'!BK16 -> 0 | Q36: ='Rep Schedule - Advanced'!BL16 -> 60.79065394 | R36: ='Rep Schedule - Advanced'!Q16 -> 1.100910518 | S36: 92.30769231 | Y36: ='Rep Schedule - Advanced'!AH17 -> 212.5 | Z36: =IF(Y36<>0,AVERAGE(Y$25:Y36),Z35) -> 556.25 | AA36: 212.5 | AD36: ='Rep Schedule - Advanced'!AN16 -> x
B37: ='Rep Schedule - Advanced'!B17 -> 11 | C37: ='Rep Schedule - Advanced'!E17 -> 2013-03-19 | D37: ='Rep Schedule - Advanced'!G17 -> 0 | E37: ='Rep Schedule - Advanced'!H17 -> 62.5 | F37: ='Rep Schedule - Advanced'!J17 -> 312.5 | G37: ='Rep Schedule - Advanced'!K17 -> 9.230769231 | H37: ='Rep Schedule - Advanced'!N17 -> 0 | I37: ='Rep Schedule - Advanced'!R17 -> 0 | J37: ='Rep Schedule - Advanced'!U17 -> 0 | K37: ='Rep Schedule - Advanced'!X17 -> 0 | L37: ='Rep Schedule - Advanced'!Y17 -> 0 | M37: ='Rep Schedule - Advanced'!Z17 -> 0 | N37: ='Rep Schedule - Advanced'!AB17 -> 100 | O37: ='Rep Schedule - Advanced'!BI17 -> 1.199652712 | P37: ='Rep Schedule - Advanced'!BK17 -> 0 | Q37: ='Rep Schedule - Advanced'!BL17 -> 59.79294548 | R37: ='Rep Schedule - Advanced'!Q17 -> 1.284395604 | S37: 101.5384615 | Y37: ='Rep Schedule - Advanced'!AH18 -> 150 | Z37: =IF(Y37<>0,AVERAGE(Y$25:Y37),Z36) -> 525 | AA37: 150 | AD37: ='Rep Schedule - Advanced'!AN17 -> x
B38: ='Rep Schedule - Advanced'!B18 -> 12 | C38: ='Rep Schedule - Advanced'!E18 -> 2013-03-26 | D38: ='Rep Schedule - Advanced'!G18 -> 0 | E38: ='Rep Schedule - Advanced'!H18 -> 62.5 | F38: ='Rep Schedule - Advanced'!J18 -> 250 | G38: ='Rep Schedule - Advanced'!K18 -> 9.230769231 | H38: ='Rep Schedule - Advanced'!N18 -> 0 | I38: ='Rep Schedule - Advanced'!R18 -> 0 | J38: ='Rep Schedule - Advanced'!U18 -> 0 | K38: ='Rep Schedule - Advanced'!X18 -> 0 | L38: ='Rep Schedule - Advanced'!Y18 -> 0 | M38: ='Rep Schedule - Advanced'!Z18 -> 0 | N38: ='Rep Schedule - Advanced'!AB18 -> 100 | O38: ='Rep Schedule - Advanced'!BI18 -> 1.219670185 | P38: ='Rep Schedule - Advanced'!BK18 -> 0 | Q38: ='Rep Schedule - Advanced'!BL18 -> 58.81161162 | R38: ='Rep Schedule - Advanced'!Q18 -> 1.541274725 | S38: 110.7692308 | Y38: ='Rep Schedule - Advanced'!AH19 -> 87.5 | Z38: =IF(Y38<>0,AVERAGE(Y$25:Y38),Z37) -> 493.75 | AA38: 87.5 | AD38: ='Rep Schedule - Advanced'!AN18 -> x
B39: ='Rep Schedule - Advanced'!B19 -> 13 | C39: ='Rep Schedule - Advanced'!E19 -> 2013-04-02 | D39: ='Rep Schedule - Advanced'!G19 -> 0 | E39: ='Rep Schedule - Advanced'!H19 -> 62.5 | F39: ='Rep Schedule - Advanced'!J19 -> 187.5 | G39: ='Rep Schedule - Advanced'!K19 -> 9.230769231 | H39: ='Rep Schedule - Advanced'!N19 -> 0 | I39: ='Rep Schedule - Advanced'!R19 -> 0 | J39: ='Rep Schedule - Advanced'!U19 -> 0 | K39: ='Rep Schedule - Advanced'!X19 -> 0 | L39: ='Rep Schedule - Advanced'!Y19 -> 0 | M39: ='Rep Schedule - Advanced'!Z19 -> 0 | N39: ='Rep Schedule - Advanced'!AB19 -> 100 | O39: ='Rep Schedule - Advanced'!BI19 -> 1.24002167 | P39: ='Rep Schedule - Advanced'!BK19 -> 0 | Q39: ='Rep Schedule - Advanced'!BL19 -> 57.84638361 | R39: ='Rep Schedule - Advanced'!Q19 -> 1.926593407 | S39: 120 | Y39: ='Rep Schedule - Advanced'!AH20 -> 25 | Z39: =IF(Y39<>0,AVERAGE(Y$25:Y39),Z38) -> 462.5 | AA39: 25 | AD39: ='Rep Schedule - Advanced'!AN19 -> x
B40: ='Rep Schedule - Advanced'!B20 -> 14 | C40: ='Rep Schedule - Advanced'!E20 -> 2013-04-09 | D40: ='Rep Schedule - Advanced'!G20 -> 0 | E40: ='Rep Schedule - Advanced'!H20 -> 62.5 | F40: ='Rep Schedule - Advanced'!J20 -> 125 | G40: ='Rep Schedule - Advanced'!K20 -> 9.230769231 | H40: ='Rep Schedule - Advanced'!N20 -> 0 | I40: ='Rep Schedule - Advanced'!R20 -> 0 | J40: ='Rep Schedule - Advanced'!U20 -> 0 | K40: ='Rep Schedule - Advanced'!X20 -> 0 | L40: ='Rep Schedule - Advanced'!Y20 -> 0 | M40: ='Rep Schedule - Advanced'!Z20 -> 0 | N40: ='Rep Schedule - Advanced'!AB20 -> 100 | O40: ='Rep Schedule - Advanced'!BI20 -> 1.260712742 | P40: ='Rep Schedule - Advanced'!BK20 -> 0 | Q40: ='Rep Schedule - Advanced'!BL20 -> 56.89699712 | R40: ='Rep Schedule - Advanced'!Q20 -> 2.568791209 | S40: 129.2307692 | Y40: ='Rep Schedule - Advanced'!AH21 -> -37.5 | Z40: =IF(Y40<>0,AVERAGE(Y$25:Y40),Z39) -> 431.25 | AA40: -37.5 | AD40: ='Rep Schedule - Advanced'!AN20 -> x
B41: ='Rep Schedule - Advanced'!B21 -> 15 | C41: ='Rep Schedule - Advanced'!E21 -> 2013-04-16 | D41: ='Rep Schedule - Advanced'!G21 -> 0 | E41: ='Rep Schedule - Advanced'!H21 -> 62.5 | F41: ='Rep Schedule - Advanced'!J21 -> 62.5 | G41: ='Rep Schedule - Advanced'!K21 -> 9.230769231 | H41: ='Rep Schedule - Advanced'!N21 -> 0 | I41: ='Rep Schedule - Advanced'!R21 -> 0 | J41: ='Rep Schedule - Advanced'!U21 -> 0 | K41: ='Rep Schedule - Advanced'!X21 -> 0 | L41: ='Rep Schedule - Advanced'!Y21 -> 0 | M41: ='Rep Schedule - Advanced'!Z21 -> 0 | N41: ='Rep Schedule - Advanced'!AB21 -> 100 | O41: ='Rep Schedule - Advanced'!BI21 -> 1.281749065 | P41: ='Rep Schedule - Advanced'!BK21 -> 0 | Q41: ='Rep Schedule - Advanced'!BL21 -> 55.96319214 | R41: ='Rep Schedule - Advanced'!Q21 -> 3.853186813 | S41: 138.4615385 | Y41: ='Rep Schedule - Advanced'!AH22 -> 0 | Z41: =IF(Y41<>0,AVERAGE(Y$25:Y41),Z40) -> 431.25 | AA41: 0 | AD41: ='Rep Schedule - Advanced'!AN21 -> x
B42: ='Rep Schedule - Advanced'!B22 -> 16 | C42: ='Rep Schedule - Advanced'!E22 -> 2013-04-23 | D42: ='Rep Schedule - Advanced'!G22 -> 0 | E42: ='Rep Schedule - Advanced'!H22 -> 62.5 | F42: ='Rep Schedule - Advanced'!J22 -> 0 | G42: ='Rep Schedule - Advanced'!K22 -> 9.230769231 | H42: ='Rep Schedule - Advanced'!N22 -> 0 | I42: ='Rep Schedule - Advanced'!R22 -> 0 | J42: ='Rep Schedule - Advanced'!U22 -> 0 | K42: ='Rep Schedule - Advanced'!X22 -> 0 | L42: ='Rep Schedule - Advanced'!Y22 -> 0 | M42: ='Rep Schedule - Advanced'!Z22 -> 100 | N42: ='Rep Schedule - Advanced'!AB22 -> 0 | O42: ='Rep Schedule - Advanced'!BI22 -> 1.303136403 | P42: ='Rep Schedule - Advanced'!BK22 -> 0 | Q42: ='Rep Schedule - Advanced'!BL22 -> 55.04471297 | R42: ='Rep Schedule - Advanced'!Q22 -> 7.706373626 | S42: 147.6923077 | Y42: ='Rep Schedule - Advanced'!AH23 -> 0 | Z42: =IF(Y42<>0,AVERAGE(Y$25:Y42),Z41) -> 431.25 | AA42: 837.5 | AD42: ='Rep Schedule - Advanced'!AN22 -> x
B43: ='Rep Schedule - Advanced'!B23 -> 17 | C43: ='Rep Schedule - Advanced'!E23 -> 2013-04-30 | D43: ='Rep Schedule - Advanced'!G23 -> 0 | E43: ='Rep Schedule - Advanced'!H23 -> 0 | F43: ='Rep Schedule - Advanced'!J23 -> 0 | G43: ='Rep Schedule - Advanced'!K23 -> 0 | H43: ='Rep Schedule - Advanced'!N23 -> 0 | I43: ='Rep Schedule - Advanced'!R23 -> 0 | J43: ='Rep Schedule - Advanced'!U23 -> 0 | K43: ='Rep Schedule - Advanced'!X23 -> 0 | L43: ='Rep Schedule - Advanced'!Y23 -> 0 | M43: ='Rep Schedule - Advanced'!Z23 -> 0 | N43: ='Rep Schedule - Advanced'!AB23 -> 0 | O43: ='Rep Schedule - Advanced'!BI23 -> 1.32488061 | P43: ='Rep Schedule - Advanced'!BK23 -> 0 | Q43: ='Rep Schedule - Advanced'!BL23 -> 0 | R43: ='Rep Schedule - Advanced'!Q23 -> 0 | S43: 147.6923077 | Y43: ='Rep Schedule - Advanced'!AH24 -> 0 | Z43: =IF(Y43<>0,AVERAGE(Y$25:Y43),Z42) -> 431.25 | AA43: 775 | AD43: ='Rep Schedule - Advanced'!AN23 -> TRUE
B44: ='Rep Schedule - Advanced'!B24 -> 18 | C44: ='Rep Schedule - Advanced'!E24 -> 2013-05-07 | D44: ='Rep Schedule - Advanced'!G24 -> 0 | E44: ='Rep Schedule - Advanced'!H24 -> 0 | F44: ='Rep Schedule - Advanced'!J24 -> 0 | G44: ='Rep Schedule - Advanced'!K24 -> 0 | H44: ='Rep Schedule - Advanced'!N24 -> 0 | I44: ='Rep Schedule - Advanced'!R24 -> 0 | J44: ='Rep Schedule - Advanced'!U24 -> 0 | K44: ='Rep Schedule - Advanced'!X24 -> 0 | L44: ='Rep Schedule - Advanced'!Y24 -> 0 | M44: ='Rep Schedule - Advanced'!Z24 -> 0 | N44: ='Rep Schedule - Advanced'!AB24 -> 0 | O44: ='Rep Schedule - Advanced'!BI24 -> 1.346987642 | P44: ='Rep Schedule - Advanced'!BK24 -> 0 | Q44: ='Rep Schedule - Advanced'!BL24 -> 0 | R44: ='Rep Schedule - Advanced'!Q24 -> 0 | S44: 147.6923077 | Y44: ='Rep Schedule - Advanced'!AH25 -> 0 | Z44: =IF(Y44<>0,AVERAGE(Y$25:Y44),Z43) -> 431.25 | AA44: 712.5 | AD44: ='Rep Schedule - Advanced'!AN24 -> TRUE
B45: ='Rep Schedule - Advanced'!B25 -> 19 | C45: ='Rep Schedule - Advanced'!E25 -> 2013-05-14 | D45: ='Rep Schedule - Advanced'!G25 -> 0 | E45: ='Rep Schedule - Advanced'!H25 -> 0 | F45: ='Rep Schedule - Advanced'!J25 -> 0 | G45: ='Rep Schedule - Advanced'!K25 -> 0 | H45: ='Rep Schedule - Advanced'!N25 -> 0 | I45: ='Rep Schedule - Advanced'!R25 -> 0 | J45: ='Rep Schedule - Advanced'!U25 -> 0 | K45: ='Rep Schedule - Advanced'!X25 -> 0 | L45: ='Rep Schedule - Advanced'!Y25 -> 0 | M45: ='Rep Schedule - Advanced'!Z25 -> 0 | N45: ='Rep Schedule - Advanced'!AB25 -> 0 | O45: ='Rep Schedule - Advanced'!BI25 -> 1.369463554 | P45: ='Rep Schedule - Advanced'!BK25 -> 0 | Q45: ='Rep Schedule - Advanced'!BL25 -> 0 | R45: ='Rep Schedule - Advanced'!Q25 -> 0 | S45: 147.6923077 | Y45: ='Rep Schedule - Advanced'!AH26 -> 0 | Z45: =IF(Y45<>0,AVERAGE(Y$25:Y45),Z44) -> 431.25 | AA45: 650 | AD45: ='Rep Schedule - Advanced'!AN25 -> TRUE
B46: ='Rep Schedule - Advanced'!B26 -> 20 | C46: ='Rep Schedule - Advanced'!E26 -> 2013-05-21 | D46: ='Rep Schedule - Advanced'!G26 -> 0 | E46: ='Rep Schedule - Advanced'!H26 -> 0 | F46: ='Rep Schedule - Advanced'!J26 -> 0 | G46: ='Rep Schedule - Advanced'!K26 -> 0 | H46: ='Rep Schedule - Advanced'!N26 -> 0 | I46: ='Rep Schedule - Advanced'!R26 -> 0 | J46: ='Rep Schedule - Advanced'!U26 -> 0 | K46: ='Rep Schedule - Advanced'!X26 -> 0 | L46: ='Rep Schedule - Advanced'!Y26 -> 0 | M46: ='Rep Schedule - Advanced'!Z26 -> 0 | N46: ='Rep Schedule - Advanced'!AB26 -> 0 | O46: ='Rep Schedule - Advanced'!BI26 -> 1.3923145 | P46: ='Rep Schedule - Advanced'!BK26 -> 0 | Q46: ='Rep Schedule - Advanced'!BL26 -> 0 | R46: ='Rep Schedule - Advanced'!Q26 -> 0 | S46: 147.6923077 | Y46: ='Rep Schedule - Advanced'!AH27 -> 0 | Z46: =IF(Y46<>0,AVERAGE(Y$25:Y46),Z45) -> 431.25 | AA46: 587.5 | AD46: ='Rep Schedule - Advanced'!AN26 -> TRUE
B47: ='Rep Schedule - Advanced'!B27 -> 21 | C47: ='Rep Schedule - Advanced'!E27 -> 2013-05-28 | D47: ='Rep Schedule - Advanced'!G27 -> 0 | E47: ='Rep Schedule - Advanced'!H27 -> 0 | F47: ='Rep Schedule - Advanced'!J27 -> 0 | G47: ='Rep Schedule - Advanced'!K27 -> 0 | H47: ='Rep Schedule - Advanced'!N27 -> 0 | I47: ='Rep Schedule - Advanced'!R27 -> 0 | J47: ='Rep Schedule - Advanced'!U27 -> 0 | K47: ='Rep Schedule - Advanced'!X27 -> 0 | L47: ='Rep Schedule - Advanced'!Y27 -> 0 | M47: ='Rep Schedule - Advanced'!Z27 -> 0 | N47: ='Rep Schedule - Advanced'!AB27 -> 0 | O47: ='Rep Schedule - Advanced'!BI27 -> 1.415546738 | P47: ='Rep Schedule - Advanced'!BK27 -> 0 | Q47: ='Rep Schedule - Advanced'!BL27 -> 0 | R47: ='Rep Schedule - Advanced'!Q27 -> 0 | S47: 147.6923077 | Y47: ='Rep Schedule - Advanced'!AH28 -> 0 | Z47: =IF(Y47<>0,AVERAGE(Y$25:Y47),Z46) -> 431.25 | AA47: 525 | AD47: ='Rep Schedule - Advanced'!AN27 -> TRUE
B48: ='Rep Schedule - Advanced'!B28 -> 22 | C48: ='Rep Schedule - Advanced'!E28 -> 2013-06-04 | D48: ='Rep Schedule - Advanced'!G28 -> 0 | E48: ='Rep Schedule - Advanced'!H28 -> 0 | F48: ='Rep Schedule - Advanced'!J28 -> 0 | G48: ='Rep Schedule - Advanced'!K28 -> 0 | H48: ='Rep Schedule - Advanced'!N28 -> 0 | I48: ='Rep Schedule - Advanced'!R28 -> 0 | J48: ='Rep Schedule - Advanced'!U28 -> 0 | K48: ='Rep Schedule - Advanced'!X28 -> 0 | L48: ='Rep Schedule - Advanced'!Y28 -> 0 | M48: ='Rep Schedule - Advanced'!Z28 -> 0 | N48: ='Rep Schedule - Advanced'!AB28 -> 0 | O48: ='Rep Schedule - Advanced'!BI28 -> 1.43916663 | P48: ='Rep Schedule - Advanced'!BK28 -> 0 | Q48: ='Rep Schedule - Advanced'!BL28 -> 0 | R48: ='Rep Schedule - Advanced'!Q28 -> 0 | S48: 147.6923077 | Y48: ='Rep Schedule - Advanced'!AH29 -> 0 | Z48: =IF(Y48<>0,AVERAGE(Y$25:Y48),Z47) -> 431.25 | AA48: 462.5 | AD48: ='Rep Schedule - Advanced'!AN28 -> TRUE
B49: ='Rep Schedule - Advanced'!B29 -> 23 | C49: ='Rep Schedule - Advanced'!E29 -> 2013-06-11 | D49: ='Rep Schedule - Advanced'!G29 -> 0 | E49: ='Rep Schedule - Advanced'!H29 -> 0 | F49: ='Rep Schedule - Advanced'!J29 -> 0 | G49: ='Rep Schedule - Advanced'!K29 -> 0 | H49: ='Rep Schedule - Advanced'!N29 -> 0 | I49: ='Rep Schedule - Advanced'!R29 -> 0 | J49: ='Rep Schedule - Advanced'!U29 -> 0 | K49: ='Rep Schedule - Advanced'!X29 -> 0 | L49: ='Rep Schedule - Advanced'!Y29 -> 0 | M49: ='Rep Schedule - Advanced'!Z29 -> 0 | N49: ='Rep Schedule - Advanced'!AB29 -> 0 | O49: ='Rep Schedule - Advanced'!BI29 -> 1.463180646 | P49: ='Rep Schedule - Advanced'!BK29 -> 0 | Q49: ='Rep Schedule - Advanced'!BL29 -> 0 | R49: ='Rep Schedule - Advanced'!Q29 -> 0 | S49: 147.6923077 | Y49: ='Rep Schedule - Advanced'!AH30 -> 0 | Z49: =IF(Y49<>0,AVERAGE(Y$25:Y49),Z48) -> 431.25 | AA49: 400 | AD49: ='Rep Schedule - Advanced'!AN29 -> TRUE
B50: ='Rep Schedule - Advanced'!B30 -> 24 | C50: ='Rep Schedule - Advanced'!E30 -> 2013-06-18 | D50: ='Rep Schedule - Advanced'!G30 -> 0 | E50: ='Rep Schedule - Advanced'!H30 -> 0 | F50: ='Rep Schedule - Advanced'!J30 -> 0 | G50: ='Rep Schedule - Advanced'!K30 -> 0 | H50: ='Rep Schedule - Advanced'!N30 -> 0 | I50: ='Rep Schedule - Advanced'!R30 -> 0 | J50: ='Rep Schedule - Advanced'!U30 -> 0 | K50: ='Rep Schedule - Advanced'!X30 -> 0 | L50: ='Rep Schedule - Advanced'!Y30 -> 0 | M50: ='Rep Schedule - Advanced'!Z30 -> 0 | N50: ='Rep Schedule - Advanced'!AB30 -> 0 | O50: ='Rep Schedule - Advanced'!BI30 -> 1.48759536 | P50: ='Rep Schedule - Advanced'!BK30 -> 0 | Q50: ='Rep Schedule - Advanced'!BL30 -> 0 | R50: ='Rep Schedule - Advanced'!Q30 -> 0 | S50: 147.6923077 | Y50: ='Rep Schedule - Advanced'!AH31 -> 0 | Z50: =IF(Y50<>0,AVERAGE(Y$25:Y50),Z49) -> 431.25 | AA50: 337.5 | AD50: ='Rep Schedule - Advanced'!AN30 -> TRUE
B51: ='Rep Schedule - Advanced'!B31 -> 25 | C51: ='Rep Schedule - Advanced'!E31 -> 2013-06-25 | D51: ='Rep Schedule - Advanced'!G31 -> 0 | E51: ='Rep Schedule - Advanced'!H31 -> 0 | F51: ='Rep Schedule - Advanced'!J31 -> 0 | G51: ='Rep Schedule - Advanced'!K31 -> 0 | H51: ='Rep Schedule - Advanced'!N31 -> 0 | I51: ='Rep Schedule - Advanced'!R31 -> 0 | J51: ='Rep Schedule - Advanced'!U31 -> 0 | K51: ='Rep Schedule - Advanced'!X31 -> 0 | L51: ='Rep Schedule - Advanced'!Y31 -> 0 | M51: ='Rep Schedule - Advanced'!Z31 -> 0 | N51: ='Rep Schedule - Advanced'!AB31 -> 0 | O51: ='Rep Schedule - Advanced'!BI31 -> 1.51241746 | P51: ='Rep Schedule - Advanced'!BK31 -> 0 | Q51: ='Rep Schedule - Advanced'!BL31 -> 0 | R51: ='Rep Schedule - Advanced'!Q31 -> 0 | S51: 147.6923077 | Y51: ='Rep Schedule - Advanced'!AH32 -> 0 | Z51: =IF(Y51<>0,AVERAGE(Y$25:Y51),Z50) -> 431.25 | AA51: 275 | AD51: ='Rep Schedule - Advanced'!AN31 -> TRUE
B52: ='Rep Schedule - Advanced'!B32 -> 26 | C52: ='Rep Schedule - Advanced'!E32 -> 2013-07-02 | D52: ='Rep Schedule - Advanced'!G32 -> 0 | E52: ='Rep Schedule - Advanced'!H32 -> 0 | F52: ='Rep Schedule - Advanced'!J32 -> 0 | G52: ='Rep Schedule - Advanced'!K32 -> 0 | H52: ='Rep Schedule - Advanced'!N32 -> 0 | I52: ='Rep Schedule - Advanced'!R32 -> 0 | J52: ='Rep Schedule - Advanced'!U32 -> 0 | K52: ='Rep Schedule - Advanced'!X32 -> 0 | L52: ='Rep Schedule - Advanced'!Y32 -> 0 | M52: ='Rep Schedule - Advanced'!Z32 -> 0 | N52: ='Rep Schedule - Advanced'!AB32 -> 0 | O52: ='Rep Schedule - Advanced'!BI32 -> 1.537653743 | P52: ='Rep Schedule - Advanced'!BK32 -> 0 | Q52: ='Rep Schedule - Advanced'!BL32 -> 0 | R52: ='Rep Schedule - Advanced'!Q32 -> 0 | S52: 147.6923077 | Y52: ='Rep Schedule - Advanced'!AH33 -> 0 | Z52: =IF(Y52<>0,AVERAGE(Y$25:Y52),Z51) -> 431.25 | AA52: 212.5 | AD52: ='Rep Schedule - Advanced'!AN32 -> TRUE
B53: ='Rep Schedule - Advanced'!B33 -> 27 | C53: ='Rep Schedule - Advanced'!E33 -> 2013-07-09 | D53: ='Rep Schedule - Advanced'!G33 -> 0 | E53: ='Rep Schedule - Advanced'!H33 -> 0 | F53: ='Rep Schedule - Advanced'!J33 -> 0 | G53: ='Rep Schedule - Advanced'!K33 -> 0 | H53: ='Rep Schedule - Advanced'!N33 -> 0 | I53: ='Rep Schedule - Advanced'!R33 -> 0 | J53: ='Rep Schedule - Advanced'!U33 -> 0 | K53: ='Rep Schedule - Advanced'!X33 -> 0 | L53: ='Rep Schedule - Advanced'!Y33 -> 0 | M53: ='Rep Schedule - Advanced'!Z33 -> 0 | N53: ='Rep Schedule - Advanced'!AB33 -> 0 | O53: ='Rep Schedule - Advanced'!BI33 -> 1.56331112 | P53: ='Rep Schedule - Advanced'!BK33 -> 0 | Q53: ='Rep Schedule - Advanced'!BL33 -> 0 | R53: ='Rep Schedule - Advanced'!Q33 -> 0 | S53: 147.6923077 | Y53: ='Rep Schedule - Advanced'!AH34 -> 0 | Z53: =IF(Y53<>0,AVERAGE(Y$25:Y53),Z52) -> 431.25 | AA53: 150 | AD53: ='Rep Schedule - Advanced'!AN33 -> TRUE
B54: ='Rep Schedule - Advanced'!B34 -> 28 | C54: ='Rep Schedule - Advanced'!E34 -> 2013-07-16 | D54: ='Rep Schedule - Advanced'!G34 -> 0 | E54: ='Rep Schedule - Advanced'!H34 -> 0 | F54: ='Rep Schedule - Advanced'!J34 -> 0 | G54: ='Rep Schedule - Advanced'!K34 -> 0 | H54: ='Rep Schedule - Advanced'!N34 -> 0 | I54: ='Rep Schedule - Advanced'!R34 -> 0 | J54: ='Rep Schedule - Advanced'!U34 -> 0 | K54: ='Rep Schedule - Advanced'!X34 -> 0 | L54: ='Rep Schedule - Advanced'!Y34 -> 0 | M54: ='Rep Schedule - Advanced'!Z34 -> 0 | N54: ='Rep Schedule - Advanced'!AB34 -> 0 | O54: ='Rep Schedule - Advanced'!BI34 -> 1.589396617 | P54: ='Rep Schedule - Advanced'!BK34 -> 0 | Q54: ='Rep Schedule - Advanced'!BL34 -> 0 | R54: ='Rep Schedule - Advanced'!Q34 -> 0 | S54: 147.6923077 | Y54: ='Rep Schedule - Advanced'!AH35 -> 0 | Z54: =IF(Y54<>0,AVERAGE(Y$25:Y54),Z53) -> 431.25 | AA54: 87.5 | AD54: ='Rep Schedule - Advanced'!AN34 -> TRUE
B55: ='Rep Schedule - Advanced'!B35 -> 29 | C55: ='Rep Schedule - Advanced'!E35 -> 2013-07-23 | D55: ='Rep Schedule - Advanced'!G35 -> 0 | E55: ='Rep Schedule - Advanced'!H35 -> 0 | F55: ='Rep Schedule - Advanced'!J35 -> 0 | G55: ='Rep Schedule - Advanced'!K35 -> 0 | H55: ='Rep Schedule - Advanced'!N35 -> 0 | I55: ='Rep Schedule - Advanced'!R35 -> 0 | J55: ='Rep Schedule - Advanced'!U35 -> 0 | K55: ='Rep Schedule - Advanced'!X35 -> 0 | L55: ='Rep Schedule - Advanced'!Y35 -> 0 | M55: ='Rep Schedule - Advanced'!Z35 -> 0 | N55: ='Rep Schedule - Advanced'!AB35 -> 0 | O55: ='Rep Schedule - Advanced'!BI35 -> 1.615917379 | P55: ='Rep Schedule - Advanced'!BK35 -> 0 | Q55: ='Rep Schedule - Advanced'!BL35 -> 0 | R55: ='Rep Schedule - Advanced'!Q35 -> 0 | S55: 147.6923077 | Y55: ='Rep Schedule - Advanced'!AH36 -> 0 | Z55: =IF(Y55<>0,AVERAGE(Y$25:Y55),Z54) -> 431.25 | AA55: 25 | AD55: ='Rep Schedule - Advanced'!AN35 -> TRUE
B56: ='Rep Schedule - Advanced'!B36 -> 30 | C56: ='Rep Schedule - Advanced'!E36 -> 2013-07-30 | D56: ='Rep Schedule - Advanced'!G36 -> 0 | E56: ='Rep Schedule - Advanced'!H36 -> 0 | F56: ='Rep Schedule - Advanced'!J36 -> 0 | G56: ='Rep Schedule - Advanced'!K36 -> 0 | H56: ='Rep Schedule - Advanced'!N36 -> 0 | I56: ='Rep Schedule - Advanced'!R36 -> 0 | J56: ='Rep Schedule - Advanced'!U36 -> 0 | K56: ='Rep Schedule - Advanced'!X36 -> 0 | L56: ='Rep Schedule - Advanced'!Y36 -> 0 | M56: ='Rep Schedule - Advanced'!Z36 -> 0 | N56: ='Rep Schedule - Advanced'!AB36 -> 0 | O56: ='Rep Schedule - Advanced'!BI36 -> 1.642880667 | P56: ='Rep Schedule - Advanced'!BK36 -> 0 | Q56: ='Rep Schedule - Advanced'!BL36 -> 0 | R56: ='Rep Schedule - Advanced'!Q36 -> 0 | S56: 147.6923077 | Y56: ='Rep Schedule - Advanced'!AH37 -> 0 | Z56: =IF(Y56<>0,AVERAGE(Y$25:Y56),Z55) -> 431.25 | AA56: -37.5 | AD56: ='Rep Schedule - Advanced'!AN36 -> TRUE
B57: ='Rep Schedule - Advanced'!B37 -> 31 | C57: ='Rep Schedule - Advanced'!E37 -> 2013-08-06 | D57: ='Rep Schedule - Advanced'!G37 -> 0 | E57: ='Rep Schedule - Advanced'!H37 -> 0 | F57: ='Rep Schedule - Advanced'!J37 -> 0 | G57: ='Rep Schedule - Advanced'!K37 -> 0 | H57: ='Rep Schedule - Advanced'!N37 -> 0 | I57: ='Rep Schedule - Advanced'!R37 -> 0 | J57: ='Rep Schedule - Advanced'!U37 -> 0 | K57: ='Rep Schedule - Advanced'!X37 -> 0 | L57: ='Rep Schedule - Advanced'!Y37 -> 0 | M57: ='Rep Schedule - Advanced'!Z37 -> 0 | N57: ='Rep Schedule - Advanced'!AB37 -> 0 | O57: ='Rep Schedule - Advanced'!BI37 -> 1.670293866 | P57: ='Rep Schedule - Advanced'!BK37 -> 0 | Q57: ='Rep Schedule - Advanced'!BL37 -> 0 | R57: ='Rep Schedule - Advanced'!Q37 -> 0 | S57: 147.6923077 | Y57: ='Rep Schedule - Advanced'!AH38 -> 0 | Z57: =IF(Y57<>0,AVERAGE(Y$25:Y57),Z56) -> 431.25 | AA57: 0 | AD57: ='Rep Schedule - Advanced'!AN37 -> TRUE
B58: ='Rep Schedule - Advanced'!B38 -> 32 | C58: ='Rep Schedule - Advanced'!E38 -> 2013-08-13 | D58: ='Rep Schedule - Advanced'!G38 -> 0 | E58: ='Rep Schedule - Advanced'!H38 -> 0 | F58: ='Rep Schedule - Advanced'!J38 -> 0 | G58: ='Rep Schedule - Advanced'!K38 -> 0 | H58: ='Rep Schedule - Advanced'!N38 -> 0 | I58: ='Rep Schedule - Advanced'!R38 -> 0 | J58: ='Rep Schedule - Advanced'!U38 -> 0 | K58: ='Rep Schedule - Advanced'!X38 -> 0 | L58: ='Rep Schedule - Advanced'!Y38 -> 0 | M58: ='Rep Schedule - Advanced'!Z38 -> 0 | N58: ='Rep Schedule - Advanced'!AB38 -> 0 | O58: ='Rep Schedule - Advanced'!BI38 -> 1.698164484 | P58: ='Rep Schedule - Advanced'!BK38 -> 0 | Q58: ='Rep Schedule - Advanced'!BL38 -> 0 | R58: ='Rep Schedule - Advanced'!Q38 -> 0 | S58: =S57+SUM(G58:J58) -> 147.6923077 | Y58: ='Rep Schedule - Advanced'!AH39 -> 0 | Z58: =IF(Y58<>0,AVERAGE(Y$25:Y58),Z57) -> 431.25 | AA58: =IF($B59<=term,Y58,INDEX($Y$26:$Y$86,$B59-term)) -> 0 | AD58: ='Rep Schedule - Advanced'!AN38 -> TRUE
B59: ='Rep Schedule - Advanced'!B39 -> 33 | C59: ='Rep Schedule - Advanced'!E39 -> 2013-08-20 | D59: ='Rep Schedule - Advanced'!G39 -> 0 | E59: ='Rep Schedule - Advanced'!H39 -> 0 | F59: ='Rep Schedule - Advanced'!J39 -> 0 | G59: ='Rep Schedule - Advanced'!K39 -> 0 | H59: ='Rep Schedule - Advanced'!N39 -> 0 | I59: ='Rep Schedule - Advanced'!R39 -> 0 | J59: ='Rep Schedule - Advanced'!U39 -> 0 | K59: ='Rep Schedule - Advanced'!X39 -> 0 | L59: ='Rep Schedule - Advanced'!Y39 -> 0 | M59: ='Rep Schedule - Advanced'!Z39 -> 0 | N59: ='Rep Schedule - Advanced'!AB39 -> 0 | O59: ='Rep Schedule - Advanced'!BI39 -> 1.726500152 | P59: ='Rep Schedule - Advanced'!BK39 -> 0 | Q59: ='Rep Schedule - Advanced'!BL39 -> 0 | R59: ='Rep Schedule - Advanced'!Q39 -> 0 | S59: 147.6923077 | Y59: ='Rep Schedule - Advanced'!AH40 -> 0 | Z59: =IF(Y59<>0,AVERAGE(Y$25:Y59),Z58) -> 431.25 | AA59: 0 | AD59: ='Rep Schedule - Advanced'!AN39 -> TRUE
B60: ='Rep Schedule - Advanced'!B40 -> 34 | C60: ='Rep Schedule - Advanced'!E40 -> 2013-08-27 | D60: ='Rep Schedule - Advanced'!G40 -> 0 | E60: ='Rep Schedule - Advanced'!H40 -> 0 | F60: ='Rep Schedule - Advanced'!J40 -> 0 | G60: ='Rep Schedule - Advanced'!K40 -> 0 | H60: ='Rep Schedule - Advanced'!N40 -> 0 | I60: ='Rep Schedule - Advanced'!R40 -> 0 | J60: ='Rep Schedule - Advanced'!U40 -> 0 | K60: ='Rep Schedule - Advanced'!X40 -> 0 | L60: ='Rep Schedule - Advanced'!Y40 -> 0 | M60: ='Rep Schedule - Advanced'!Z40 -> 0 | N60: ='Rep Schedule - Advanced'!AB40 -> 0 | O60: ='Rep Schedule - Advanced'!BI40 -> 1.75530863 | P60: ='Rep Schedule - Advanced'!BK40 -> 0 | Q60: ='Rep Schedule - Advanced'!BL40 -> 0 | R60: ='Rep Schedule - Advanced'!Q40 -> 0 | S60: 147.6923077 | Y60: ='Rep Schedule - Advanced'!AH41 -> 0 | Z60: =IF(Y60<>0,AVERAGE(Y$25:Y60),Z59) -> 431.25 | AA60: 0 | AD60: ='Rep Schedule - Advanced'!AN40 -> TRUE
B61: ='Rep Schedule - Advanced'!B41 -> 35 | C61: ='Rep Schedule - Advanced'!E41 -> 2013-09-03 | D61: ='Rep Schedule - Advanced'!G41 -> 0 | E61: ='Rep Schedule - Advanced'!H41 -> 0 | F61: ='Rep Schedule - Advanced'!J41 -> 0 | G61: ='Rep Schedule - Advanced'!K41 -> 0 | H61: ='Rep Schedule - Advanced'!N41 -> 0 | I61: ='Rep Schedule - Advanced'!R41 -> 0 | J61: ='Rep Schedule - Advanced'!U41 -> 0 | K61: ='Rep Schedule - Advanced'!X41 -> 0 | L61: ='Rep Schedule - Advanced'!Y41 -> 0 | M61: ='Rep Schedule - Advanced'!Z41 -> 0 | N61: ='Rep Schedule - Advanced'!AB41 -> 0 | O61: ='Rep Schedule - Advanced'!BI41 -> 1.784597809 | P61: ='Rep Schedule - Advanced'!BK41 -> 0 | Q61: ='Rep Schedule - Advanced'!BL41 -> 0 | R61: ='Rep Schedule - Advanced'!Q41 -> 0 | S61: 147.6923077 | Y61: ='Rep Schedule - Advanced'!AH42 -> 0 | Z61: =IF(Y61<>0,AVERAGE(Y$25:Y61),Z60) -> 431.25 | AA61: 0 | AD61: ='Rep Schedule - Advanced'!AN41 -> TRUE
B62: ='Rep Schedule - Advanced'!B42 -> 36 | C62: ='Rep Schedule - Advanced'!E42 -> 2013-09-10 | D62: ='Rep Schedule - Advanced'!G42 -> 0 | E62: ='Rep Schedule - Advanced'!H42 -> 0 | F62: ='Rep Schedule - Advanced'!J42 -> 0 | G62: ='Rep Schedule - Advanced'!K42 -> 0 | H62: ='Rep Schedule - Advanced'!N42 -> 0 | I62: ='Rep Schedule - Advanced'!R42 -> 0 | J62: ='Rep Schedule - Advanced'!U42 -> 0 | K62: ='Rep Schedule - Advanced'!X42 -> 0 | L62: ='Rep Schedule - Advanced'!Y42 -> 0 | M62: ='Rep Schedule - Advanced'!Z42 -> 0 | N62: ='Rep Schedule - Advanced'!AB42 -> 0 | O62: ='Rep Schedule - Advanced'!BI42 -> 1.814375708 | P62: ='Rep Schedule - Advanced'!BK42 -> 0 | Q62: ='Rep Schedule - Advanced'!BL42 -> 0 | R62: ='Rep Schedule - Advanced'!Q42 -> 0 | S62: 147.6923077 | Y62: ='Rep Schedule - Advanced'!AH43 -> 0 | Z62: =IF(Y62<>0,AVERAGE(Y$25:Y62),Z61) -> 431.25 | AA62: 0 | AD62: ='Rep Schedule - Advanced'!AN42 -> TRUE
B63: ='Rep Schedule - Advanced'!B43 -> 37 | C63: ='Rep Schedule - Advanced'!E43 -> 2013-09-17 | D63: ='Rep Schedule - Advanced'!G43 -> 0 | E63: ='Rep Schedule - Advanced'!H43 -> 0 | F63: ='Rep Schedule - Advanced'!J43 -> 0 | G63: ='Rep Schedule - Advanced'!K43 -> 0 | H63: ='Rep Schedule - Advanced'!N43 -> 0 | I63: ='Rep Schedule - Advanced'!R43 -> 0 | J63: ='Rep Schedule - Advanced'!U43 -> 0 | K63: ='Rep Schedule - Advanced'!X43 -> 0 | L63: ='Rep Schedule - Advanced'!Y43 -> 0 | M63: ='Rep Schedule - Advanced'!Z43 -> 0 | N63: ='Rep Schedule - Advanced'!AB43 -> 0 | O63: ='Rep Schedule - Advanced'!BI43 -> 1.844650484 | P63: ='Rep Schedule - Advanced'!BK43 -> 0 | Q63: ='Rep Schedule - Advanced'!BL43 -> 0 | R63: ='Rep Schedule - Advanced'!Q43 -> 0 | S63: 147.6923077 | Y63: ='Rep Schedule - Advanced'!AH44 -> 0 | Z63: =IF(Y63<>0,AVERAGE(Y$25:Y63),Z62) -> 431.25 | AA63: 0 | AD63: ='Rep Schedule - Advanced'!AN43 -> TRUE
B64: ='Rep Schedule - Advanced'!B44 -> 38 | C64: ='Rep Schedule - Advanced'!E44 -> 2013-09-24 | D64: ='Rep Schedule - Advanced'!G44 -> 0 | E64: ='Rep Schedule - Advanced'!H44 -> 0 | F64: ='Rep Schedule - Advanced'!J44 -> 0 | G64: ='Rep Schedule - Advanced'!K44 -> 0 | H64: ='Rep Schedule - Advanced'!N44 -> 0 | I64: ='Rep Schedule - Advanced'!R44 -> 0 | J64: ='Rep Schedule - Advanced'!U44 -> 0 | K64: ='Rep Schedule - Advanced'!X44 -> 0 | L64: ='Rep Schedule - Advanced'!Y44 -> 0 | M64: ='Rep Schedule - Advanced'!Z44 -> 0 | N64: ='Rep Schedule - Advanced'!AB44 -> 0 | O64: ='Rep Schedule - Advanced'!BI44 -> 1.875430425 | P64: ='Rep Schedule - Advanced'!BK44 -> 0 | Q64: ='Rep Schedule - Advanced'!BL44 -> 0 | R64: ='Rep Schedule - Advanced'!Q44 -> 0 | S64: 147.6923077 | Y64: ='Rep Schedule - Advanced'!AH45 -> 0 | Z64: =IF(Y64<>0,AVERAGE(Y$25:Y64),Z63) -> 431.25 | AA64: 0 | AD64: ='Rep Schedule - Advanced'!AN44 -> TRUE
B65: ='Rep Schedule - Advanced'!B45 -> 39 | C65: ='Rep Schedule - Advanced'!E45 -> 2013-10-01 | D65: ='Rep Schedule - Advanced'!G45 -> 0 | E65: ='Rep Schedule - Advanced'!H45 -> 0 | F65: ='Rep Schedule - Advanced'!J45 -> 0 | G65: ='Rep Schedule - Advanced'!K45 -> 0 | H65: ='Rep Schedule - Advanced'!N45 -> 0 | I65: ='Rep Schedule - Advanced'!R45 -> 0 | J65: ='Rep Schedule - Advanced'!U45 -> 0 | K65: ='Rep Schedule - Advanced'!X45 -> 0 | L65: ='Rep Schedule - Advanced'!Y45 -> 0 | M65: ='Rep Schedule - Advanced'!Z45 -> 0 | N65: ='Rep Schedule - Advanced'!AB45 -> 0 | O65: ='Rep Schedule - Advanced'!BI45 -> 1.906723963 | P65: ='Rep Schedule - Advanced'!BK45 -> 0 | Q65: ='Rep Schedule - Advanced'!BL45 -> 0 | R65: ='Rep Schedule - Advanced'!Q45 -> 0 | S65: 147.6923077 | Y65: ='Rep Schedule - Advanced'!AH46 -> 0 | Z65: =IF(Y65<>0,AVERAGE(Y$25:Y65),Z64) -> 431.25 | AA65: 0 | AD65: ='Rep Schedule - Advanced'!AN45 -> TRUE
B66: ='Rep Schedule - Advanced'!B46 -> 40 | C66: ='Rep Schedule - Advanced'!E46 -> 2013-10-08 | D66: ='Rep Schedule - Advanced'!G46 -> 0 | E66: ='Rep Schedule - Advanced'!H46 -> 0 | F66: ='Rep Schedule - Advanced'!J46 -> 0 | G66: ='Rep Schedule - Advanced'!K46 -> 0 | H66: ='Rep Schedule - Advanced'!N46 -> 0 | I66: ='Rep Schedule - Advanced'!R46 -> 0 | J66: ='Rep Schedule - Advanced'!U46 -> 0 | K66: ='Rep Schedule - Advanced'!X46 -> 0 | L66: ='Rep Schedule - Advanced'!Y46 -> 0 | M66: ='Rep Schedule - Advanced'!Z46 -> 0 | N66: ='Rep Schedule - Advanced'!AB46 -> 0 | O66: ='Rep Schedule - Advanced'!BI46 -> 1.938539666 | P66: ='Rep Schedule - Advanced'!BK46 -> 0 | Q66: ='Rep Schedule - Advanced'!BL46 -> 0 | R66: ='Rep Schedule - Advanced'!Q46 -> 0 | S66: 147.6923077 | Y66: ='Rep Schedule - Advanced'!AH47 -> 0 | Z66: =IF(Y66<>0,AVERAGE(Y$25:Y66),Z65) -> 431.25 | AA66: 0 | AD66: ='Rep Schedule - Advanced'!AN46 -> TRUE
B67: ='Rep Schedule - Advanced'!B47 -> 41 | C67: ='Rep Schedule - Advanced'!E47 -> 2013-10-15 | D67: ='Rep Schedule - Advanced'!G47 -> 0 | E67: ='Rep Schedule - Advanced'!H47 -> 0 | F67: ='Rep Schedule - Advanced'!J47 -> 0 | G67: ='Rep Schedule - Advanced'!K47 -> 0 | H67: ='Rep Schedule - Advanced'!N47 -> 0 | I67: ='Rep Schedule - Advanced'!R47 -> 0 | J67: ='Rep Schedule - Advanced'!U47 -> 0 | K67: ='Rep Schedule - Advanced'!X47 -> 0 | L67: ='Rep Schedule - Advanced'!Y47 -> 0 | M67: ='Rep Schedule - Advanced'!Z47 -> 0 | N67: ='Rep Schedule - Advanced'!AB47 -> 0 | O67: ='Rep Schedule - Advanced'!BI47 -> 1.970886248 | P67: ='Rep Schedule - Advanced'!BK47 -> 0 | Q67: ='Rep Schedule - Advanced'!BL47 -> 0 | R67: ='Rep Schedule - Advanced'!Q47 -> 0 | S67: 147.6923077 | Y67: ='Rep Schedule - Advanced'!AH48 -> 0 | Z67: =IF(Y67<>0,AVERAGE(Y$25:Y67),Z66) -> 431.25 | AA67: 0 | AD67: ='Rep Schedule - Advanced'!AN47 -> TRUE
B68: ='Rep Schedule - Advanced'!B48 -> 42 | C68: ='Rep Schedule - Advanced'!E48 -> 2013-10-22 | D68: ='Rep Schedule - Advanced'!G48 -> 0 | E68: ='Rep Schedule - Advanced'!H48 -> 0 | F68: ='Rep Schedule - Advanced'!J48 -> 0 | G68: ='Rep Schedule - Advanced'!K48 -> 0 | H68: ='Rep Schedule - Advanced'!N48 -> 0 | I68: ='Rep Schedule - Advanced'!R48 -> 0 | J68: ='Rep Schedule - Advanced'!U48 -> 0 | K68: ='Rep Schedule - Advanced'!X48 -> 0 | L68: ='Rep Schedule - Advanced'!Y48 -> 0 | M68: ='Rep Schedule - Advanced'!Z48 -> 0 | N68: ='Rep Schedule - Advanced'!AB48 -> 0 | O68: ='Rep Schedule - Advanced'!BI48 -> 2.003772567 | P68: ='Rep Schedule - Advanced'!BK48 -> 0 | Q68: ='Rep Schedule - Advanced'!BL48 -> 0 | R68: ='Rep Schedule - Advanced'!Q48 -> 0 | S68: 147.6923077 | Y68: ='Rep Schedule - Advanced'!AH49 -> 0 | Z68: =IF(Y68<>0,AVERAGE(Y$25:Y68),Z67) -> 431.25 | AA68: 0 | AD68: ='Rep Schedule - Advanced'!AN48 -> TRUE
B69: ='Rep Schedule - Advanced'!B49 -> 43 | C69: ='Rep Schedule - Advanced'!E49 -> 2013-10-29 | D69: ='Rep Schedule - Advanced'!G49 -> 0 | E69: ='Rep Schedule - Advanced'!H49 -> 0 | F69: ='Rep Schedule - Advanced'!J49 -> 0 | G69: ='Rep Schedule - Advanced'!K49 -> 0 | H69: ='Rep Schedule - Advanced'!N49 -> 0 | I69: ='Rep Schedule - Advanced'!R49 -> 0 | J69: ='Rep Schedule - Advanced'!U49 -> 0 | K69: ='Rep Schedule - Advanced'!X49 -> 0 | L69: ='Rep Schedule - Advanced'!Y49 -> 0 | M69: ='Rep Schedule - Advanced'!Z49 -> 0 | N69: ='Rep Schedule - Advanced'!AB49 -> 0 | O69: ='Rep Schedule - Advanced'!BI49 -> 2.037207629 | P69: ='Rep Schedule - Advanced'!BK49 -> 0 | Q69: ='Rep Schedule - Advanced'!BL49 -> 0 | R69: ='Rep Schedule - Advanced'!Q49 -> 0 | S69: 147.6923077 | Y69: ='Rep Schedule - Advanced'!AH50 -> 0 | Z69: =IF(Y69<>0,AVERAGE(Y$25:Y69),Z68) -> 431.25 | AA69: 0 | AD69: ='Rep Schedule - Advanced'!AN49 -> TRUE
B70: ='Rep Schedule - Advanced'!B50 -> 44 | C70: ='Rep Schedule - Advanced'!E50 -> 2013-11-05 | D70: ='Rep Schedule - Advanced'!G50 -> 0 | E70: ='Rep Schedule - Advanced'!H50 -> 0 | F70: ='Rep Schedule - Advanced'!J50 -> 0 | G70: ='Rep Schedule - Advanced'!K50 -> 0 | H70: ='Rep Schedule - Advanced'!N50 -> 0 | I70: ='Rep Schedule - Advanced'!R50 -> 0 | J70: ='Rep Schedule - Advanced'!U50 -> 0 | K70: ='Rep Schedule - Advanced'!X50 -> 0 | L70: ='Rep Schedule - Advanced'!Y50 -> 0 | M70: ='Rep Schedule - Advanced'!Z50 -> 0 | N70: ='Rep Schedule - Advanced'!AB50 -> 0 | O70: ='Rep Schedule - Advanced'!BI50 -> 2.07120059 | P70: ='Rep Schedule - Advanced'!BK50 -> 0 | Q70: ='Rep Schedule - Advanced'!BL50 -> 0 | R70: ='Rep Schedule - Advanced'!Q50 -> 0 | S70: 147.6923077 | Y70: ='Rep Schedule - Advanced'!AH51 -> 0 | Z70: =IF(Y70<>0,AVERAGE(Y$25:Y70),Z69) -> 431.25 | AA70: 0 | AD70: ='Rep Schedule - Advanced'!AN50 -> TRUE
B71: ='Rep Schedule - Advanced'!B51 -> 45 | C71: ='Rep Schedule - Advanced'!E51 -> 2013-11-12 | D71: ='Rep Schedule - Advanced'!G51 -> 0 | E71: ='Rep Schedule - Advanced'!H51 -> 0 | F71: ='Rep Schedule - Advanced'!J51 -> 0 | G71: ='Rep Schedule - Advanced'!K51 -> 0 | H71: ='Rep Schedule - Advanced'!N51 -> 0 | I71: ='Rep Schedule - Advanced'!R51 -> 0 | J71: ='Rep Schedule - Advanced'!U51 -> 0 | K71: ='Rep Schedule - Advanced'!X51 -> 0 | L71: ='Rep Schedule - Advanced'!Y51 -> 0 | M71: ='Rep Schedule - Advanced'!Z51 -> 0 | N71: ='Rep Schedule - Advanced'!AB51 -> 0 | O71: ='Rep Schedule - Advanced'!BI51 -> 2.105760759 | P71: ='Rep Schedule - Advanced'!BK51 -> 0 | Q71: ='Rep Schedule - Advanced'!BL51 -> 0 | R71: ='Rep Schedule - Advanced'!Q51 -> 0 | S71: 147.6923077 | Y71: ='Rep Schedule - Advanced'!AH52 -> 0 | Z71: =IF(Y71<>0,AVERAGE(Y$25:Y71),Z70) -> 431.25 | AA71: 0 | AD71: ='Rep Schedule - Advanced'!AN51 -> TRUE
B72: ='Rep Schedule - Advanced'!B52 -> 46 | C72: ='Rep Schedule - Advanced'!E52 -> 2013-11-19 | D72: ='Rep Schedule - Advanced'!G52 -> 0 | E72: ='Rep Schedule - Advanced'!H52 -> 0 | F72: ='Rep Schedule - Advanced'!J52 -> 0 | G72: ='Rep Schedule - Advanced'!K52 -> 0 | H72: ='Rep Schedule - Advanced'!N52 -> 0 | I72: ='Rep Schedule - Advanced'!R52 -> 0 | J72: ='Rep Schedule - Advanced'!U52 -> 0 | K72: ='Rep Schedule - Advanced'!X52 -> 0 | L72: ='Rep Schedule - Advanced'!Y52 -> 0 | M72: ='Rep Schedule - Advanced'!Z52 -> 0 | N72: ='Rep Schedule - Advanced'!AB52 -> 0 | O72: ='Rep Schedule - Advanced'!BI52 -> 2.140897602 | P72: ='Rep Schedule - Advanced'!BK52 -> 0 | Q72: ='Rep Schedule - Advanced'!BL52 -> 0 | R72: ='Rep Schedule - Advanced'!Q52 -> 0 | S72: 147.6923077 | Y72: ='Rep Schedule - Advanced'!AH53 -> 0 | Z72: =IF(Y72<>0,AVERAGE(Y$25:Y72),Z71) -> 431.25 | AA72: 0 | AD72: ='Rep Schedule - Advanced'!AN52 -> TRUE
B73: ='Rep Schedule - Advanced'!B53 -> 47 | C73: ='Rep Schedule - Advanced'!E53 -> 2013-11-26 | D73: ='Rep Schedule - Advanced'!G53 -> 0 | E73: ='Rep Schedule - Advanced'!H53 -> 0 | F73: ='Rep Schedule - Advanced'!J53 -> 0 | G73: ='Rep Schedule - Advanced'!K53 -> 0 | H73: ='Rep Schedule - Advanced'!N53 -> 0 | I73: ='Rep Schedule - Advanced'!R53 -> 0 | J73: ='Rep Schedule - Advanced'!U53 -> 0 | K73: ='Rep Schedule - Advanced'!X53 -> 0 | L73: ='Rep Schedule - Advanced'!Y53 -> 0 | M73: ='Rep Schedule - Advanced'!Z53 -> 0 | N73: ='Rep Schedule - Advanced'!AB53 -> 0 | O73: ='Rep Schedule - Advanced'!BI53 -> 2.17662074 | P73: ='Rep Schedule - Advanced'!BK53 -> 0 | Q73: ='Rep Schedule - Advanced'!BL53 -> 0 | R73: ='Rep Schedule - Advanced'!Q53 -> 0 | S73: 147.6923077 | Y73: ='Rep Schedule - Advanced'!AH54 -> 0 | Z73: =IF(Y73<>0,AVERAGE(Y$25:Y73),Z72) -> 431.25 | AA73: 0 | AD73: ='Rep Schedule - Advanced'!AN53 -> TRUE
B74: ='Rep Schedule - Advanced'!B54 -> 48 | C74: ='Rep Schedule - Advanced'!E54 -> 2013-12-03 | D74: ='Rep Schedule - Advanced'!G54 -> 0 | E74: ='Rep Schedule - Advanced'!H54 -> 0 | F74: ='Rep Schedule - Advanced'!J54 -> 0 | G74: ='Rep Schedule - Advanced'!K54 -> 0 | H74: ='Rep Schedule - Advanced'!N54 -> 0 | I74: ='Rep Schedule - Advanced'!R54 -> 0 | J74: ='Rep Schedule - Advanced'!U54 -> 0 | K74: ='Rep Schedule - Advanced'!X54 -> 0 | L74: ='Rep Schedule - Advanced'!Y54 -> 0 | M74: ='Rep Schedule - Advanced'!Z54 -> 0 | N74: ='Rep Schedule - Advanced'!AB54 -> 0 | O74: ='Rep Schedule - Advanced'!BI54 -> 2.212939956 | P74: ='Rep Schedule - Advanced'!BK54 -> 0 | Q74: ='Rep Schedule - Advanced'!BL54 -> 0 | R74: ='Rep Schedule - Advanced'!Q54 -> 0 | S74: 147.6923077 | Y74: ='Rep Schedule - Advanced'!AH55 -> 0 | Z74: =IF(Y74<>0,AVERAGE(Y$25:Y74),Z73) -> 431.25 | AA74: 0 | AD74: ='Rep Schedule - Advanced'!AN54 -> TRUE
B75: ='Rep Schedule - Advanced'!B55 -> 49 | C75: ='Rep Schedule - Advanced'!E55 -> 2013-12-10 | D75: ='Rep Schedule - Advanced'!G55 -> 0 | E75: ='Rep Schedule - Advanced'!H55 -> 0 | F75: ='Rep Schedule - Advanced'!J55 -> 0 | G75: ='Rep Schedule - Advanced'!K55 -> 0 | H75: ='Rep Schedule - Advanced'!N55 -> 0 | I75: ='Rep Schedule - Advanced'!R55 -> 0 | J75: ='Rep Schedule - Advanced'!U55 -> 0 | K75: ='Rep Schedule - Advanced'!X55 -> 0 | L75: ='Rep Schedule - Advanced'!Y55 -> 0 | M75: ='Rep Schedule - Advanced'!Z55 -> 0 | N75: ='Rep Schedule - Advanced'!AB55 -> 0 | O75: ='Rep Schedule - Advanced'!BI55 -> 2.249865197 | P75: ='Rep Schedule - Advanced'!BK55 -> 0 | Q75: ='Rep Schedule - Advanced'!BL55 -> 0 | R75: ='Rep Schedule - Advanced'!Q55 -> 0 | S75: 147.6923077 | Y75: ='Rep Schedule - Advanced'!AH56 -> 0 | Z75: =IF(Y75<>0,AVERAGE(Y$25:Y75),Z74) -> 431.25 | AA75: 0 | AD75: ='Rep Schedule - Advanced'!AN55 -> TRUE
B76: ='Rep Schedule - Advanced'!B56 -> 50 | C76: ='Rep Schedule - Advanced'!E56 -> 2013-12-17 | D76: ='Rep Schedule - Advanced'!G56 -> 0 | E76: ='Rep Schedule - Advanced'!H56 -> 0 | F76: ='Rep Schedule - Advanced'!J56 -> 0 | G76: ='Rep Schedule - Advanced'!K56 -> 0 | H76: ='Rep Schedule - Advanced'!N56 -> 0 | I76: ='Rep Schedule - Advanced'!R56 -> 0 | J76: ='Rep Schedule - Advanced'!U56 -> 0 | K76: ='Rep Schedule - Advanced'!X56 -> 0 | L76: ='Rep Schedule - Advanced'!Y56 -> 0 | M76: ='Rep Schedule - Advanced'!Z56 -> 0 | N76: ='Rep Schedule - Advanced'!AB56 -> 0 | O76: ='Rep Schedule - Advanced'!BI56 -> 2.287406574 | P76: ='Rep Schedule - Advanced'!BK56 -> 0 | Q76: ='Rep Schedule - Advanced'!BL56 -> 0 | R76: ='Rep Schedule - Advanced'!Q56 -> 0 | S76: 147.6923077 | Y76: ='Rep Schedule - Advanced'!AH57 -> 0 | Z76: =IF(Y76<>0,AVERAGE(Y$25:Y76),Z75) -> 431.25 | AA76: 0 | AD76: ='Rep Schedule - Advanced'!AN56 -> TRUE
B77: ='Rep Schedule - Advanced'!B57 -> 51 | C77: ='Rep Schedule - Advanced'!E57 -> 2013-12-24 | D77: ='Rep Schedule - Advanced'!G57 -> 0 | E77: ='Rep Schedule - Advanced'!H57 -> 0 | F77: ='Rep Schedule - Advanced'!J57 -> 0 | G77: ='Rep Schedule - Advanced'!K57 -> 0 | H77: ='Rep Schedule - Advanced'!N57 -> 0 | I77: ='Rep Schedule - Advanced'!R57 -> 0 | J77: ='Rep Schedule - Advanced'!U57 -> 0 | K77: ='Rep Schedule - Advanced'!X57 -> 0 | L77: ='Rep Schedule - Advanced'!Y57 -> 0 | M77: ='Rep Schedule - Advanced'!Z57 -> 0 | N77: ='Rep Schedule - Advanced'!AB57 -> 0 | O77: ='Rep Schedule - Advanced'!BI57 -> 2.325574369 | P77: ='Rep Schedule - Advanced'!BK57 -> 0 | Q77: ='Rep Schedule - Advanced'!BL57 -> 0 | R77: ='Rep Schedule - Advanced'!Q57 -> 0 | S77: 147.6923077 | Y77: ='Rep Schedule - Advanced'!AH58 -> 0 | Z77: =IF(Y77<>0,AVERAGE(Y$25:Y77),Z76) -> 431.25 | AA77: 0 | AD77: ='Rep Schedule - Advanced'!AN57 -> TRUE
B78: ='Rep Schedule - Advanced'!B58 -> 52 | C78: ='Rep Schedule - Advanced'!E58 -> 2013-12-31 | D78: ='Rep Schedule - Advanced'!G58 -> 0 | E78: ='Rep Schedule - Advanced'!H58 -> 0 | F78: ='Rep Schedule - Advanced'!J58 -> 0 | G78: ='Rep Schedule - Advanced'!K58 -> 0 | H78: ='Rep Schedule - Advanced'!N58 -> 0 | I78: ='Rep Schedule - Advanced'!R58 -> 0 | J78: ='Rep Schedule - Advanced'!U58 -> 0 | K78: ='Rep Schedule - Advanced'!X58 -> 0 | L78: ='Rep Schedule - Advanced'!Y58 -> 0 | M78: ='Rep Schedule - Advanced'!Z58 -> 0 | N78: ='Rep Schedule - Advanced'!AB58 -> 0 | O78: ='Rep Schedule - Advanced'!BI58 -> 2.364379033 | P78: ='Rep Schedule - Advanced'!BK58 -> 0 | Q78: ='Rep Schedule - Advanced'!BL58 -> 0 | R78: ='Rep Schedule - Advanced'!Q58 -> 0 | S78: 147.6923077 | Y78: ='Rep Schedule - Advanced'!AH59 -> 0 | Z78: =IF(Y78<>0,AVERAGE(Y$25:Y78),Z77) -> 431.25 | AA78: 0 | AD78: ='Rep Schedule - Advanced'!AN58 -> TRUE
B79: ='Rep Schedule - Advanced'!B59 -> 53 | C79: ='Rep Schedule - Advanced'!E59 -> 2014-01-07 | D79: ='Rep Schedule - Advanced'!G59 -> 0 | E79: ='Rep Schedule - Advanced'!H59 -> 0 | F79: ='Rep Schedule - Advanced'!J59 -> 0 | G79: ='Rep Schedule - Advanced'!K59 -> 0 | H79: ='Rep Schedule - Advanced'!N59 -> 0 | I79: ='Rep Schedule - Advanced'!R59 -> 0 | J79: ='Rep Schedule - Advanced'!U59 -> 0 | K79: ='Rep Schedule - Advanced'!X59 -> 0 | L79: ='Rep Schedule - Advanced'!Y59 -> 0 | M79: ='Rep Schedule - Advanced'!Z59 -> 0 | N79: ='Rep Schedule - Advanced'!AB59 -> 0 | O79: ='Rep Schedule - Advanced'!BI59 -> 2.403831195 | P79: ='Rep Schedule - Advanced'!BK59 -> 0 | Q79: ='Rep Schedule - Advanced'!BL59 -> 0 | R79: ='Rep Schedule - Advanced'!Q59 -> 0 | S79: 147.6923077 | Y79: ='Rep Schedule - Advanced'!AH60 -> 0 | Z79: =IF(Y79<>0,AVERAGE(Y$25:Y79),Z78) -> 431.25 | AA79: 0 | AD79: ='Rep Schedule - Advanced'!AN59 -> TRUE
B80: ='Rep Schedule - Advanced'!B60 -> 54 | C80: ='Rep Schedule - Advanced'!E60 -> 2014-01-14 | D80: ='Rep Schedule - Advanced'!G60 -> 0 | E80: ='Rep Schedule - Advanced'!H60 -> 0 | F80: ='Rep Schedule - Advanced'!J60 -> 0 | G80: ='Rep Schedule - Advanced'!K60 -> 0 | H80: ='Rep Schedule - Advanced'!N60 -> 0 | I80: ='Rep Schedule - Advanced'!R60 -> 0 | J80: ='Rep Schedule - Advanced'!U60 -> 0 | K80: ='Rep Schedule - Advanced'!X60 -> 0 | L80: ='Rep Schedule - Advanced'!Y60 -> 0 | M80: ='Rep Schedule - Advanced'!Z60 -> 0 | N80: ='Rep Schedule - Advanced'!AB60 -> 0 | O80: ='Rep Schedule - Advanced'!BI60 -> 2.443941658 | P80: ='Rep Schedule - Advanced'!BK60 -> 0 | Q80: ='Rep Schedule - Advanced'!BL60 -> 0 | R80: ='Rep Schedule - Advanced'!Q60 -> 0 | S80: 147.6923077 | Y80: ='Rep Schedule - Advanced'!AH61 -> 0 | Z80: =IF(Y80<>0,AVERAGE(Y$25:Y80),Z79) -> 431.25 | AA80: 0 | AD80: ='Rep Schedule - Advanced'!AN60 -> TRUE
B81: ='Rep Schedule - Advanced'!B61 -> 55 | C81: ='Rep Schedule - Advanced'!E61 -> 2014-01-21 | D81: ='Rep Schedule - Advanced'!G61 -> 0 | E81: ='Rep Schedule - Advanced'!H61 -> 0 | F81: ='Rep Schedule - Advanced'!J61 -> 0 | G81: ='Rep Schedule - Advanced'!K61 -> 0 | H81: ='Rep Schedule - Advanced'!N61 -> 0 | I81: ='Rep Schedule - Advanced'!R61 -> 0 | J81: ='Rep Schedule - Advanced'!U61 -> 0 | K81: ='Rep Schedule - Advanced'!X61 -> 0 | L81: ='Rep Schedule - Advanced'!Y61 -> 0 | M81: ='Rep Schedule - Advanced'!Z61 -> 0 | N81: ='Rep Schedule - Advanced'!AB61 -> 0 | O81: ='Rep Schedule - Advanced'!BI61 -> 2.484721406 | P81: ='Rep Schedule - Advanced'!BK61 -> 0 | Q81: ='Rep Schedule - Advanced'!BL61 -> 0 | R81: ='Rep Schedule - Advanced'!Q61 -> 0 | S81: 147.6923077 | Y81: ='Rep Schedule - Advanced'!AH62 -> 0 | Z81: =IF(Y81<>0,AVERAGE(Y$25:Y81),Z80) -> 431.25 | AA81: 0 | AD81: ='Rep Schedule - Advanced'!AN61 -> TRUE
B82: ='Rep Schedule - Advanced'!B62 -> 56 | C82: ='Rep Schedule - Advanced'!E62 -> 2014-01-28 | D82: ='Rep Schedule - Advanced'!G62 -> 0 | E82: ='Rep Schedule - Advanced'!H62 -> 0 | F82: ='Rep Schedule - Advanced'!J62 -> 0 | G82: ='Rep Schedule - Advanced'!K62 -> 0 | H82: ='Rep Schedule - Advanced'!N62 -> 0 | I82: ='Rep Schedule - Advanced'!R62 -> 0 | J82: ='Rep Schedule - Advanced'!U62 -> 0 | K82: ='Rep Schedule - Advanced'!X62 -> 0 | L82: ='Rep Schedule - Advanced'!Y62 -> 0 | M82: ='Rep Schedule - Advanced'!Z62 -> 0 | N82: ='Rep Schedule - Advanced'!AB62 -> 0 | O82: ='Rep Schedule - Advanced'!BI62 -> 2.526181607 | P82: ='Rep Schedule - Advanced'!BK62 -> 0 | Q82: ='Rep Schedule - Advanced'!BL62 -> 0 | R82: ='Rep Schedule - Advanced'!Q62 -> 0 | S82: 147.6923077 | Y82: ='Rep Schedule - Advanced'!AH63 -> 0 | Z82: =IF(Y82<>0,AVERAGE(Y$25:Y82),Z81) -> 431.25 | AA82: 0 | AD82: ='Rep Schedule - Advanced'!AN62 -> TRUE
B83: ='Rep Schedule - Advanced'!B63 -> 57 | C83: ='Rep Schedule - Advanced'!E63 -> 2014-02-04 | D83: ='Rep Schedule - Advanced'!G63 -> 0 | E83: ='Rep Schedule - Advanced'!H63 -> 0 | F83: ='Rep Schedule - Advanced'!J63 -> 0 | G83: ='Rep Schedule - Advanced'!K63 -> 0 | H83: ='Rep Schedule - Advanced'!N63 -> 0 | I83: ='Rep Schedule - Advanced'!R63 -> 0 | J83: ='Rep Schedule - Advanced'!U63 -> 0 | K83: ='Rep Schedule - Advanced'!X63 -> 0 | L83: ='Rep Schedule - Advanced'!Y63 -> 0 | M83: ='Rep Schedule - Advanced'!Z63 -> 0 | N83: ='Rep Schedule - Advanced'!AB63 -> 0 | O83: ='Rep Schedule - Advanced'!BI63 -> 2.568333615 | P83: ='Rep Schedule - Advanced'!BK63 -> 0 | Q83: ='Rep Schedule - Advanced'!BL63 -> 0 | R83: ='Rep Schedule - Advanced'!Q63 -> 0 | S83: 147.6923077 | Y83: ='Rep Schedule - Advanced'!AH64 -> 0 | Z83: =IF(Y83<>0,AVERAGE(Y$25:Y83),Z82) -> 431.25 | AA83: 0 | AD83: ='Rep Schedule - Advanced'!AN63 -> TRUE
B84: ='Rep Schedule - Advanced'!B64 -> 58 | C84: ='Rep Schedule - Advanced'!E64 -> 2014-02-11 | D84: ='Rep Schedule - Advanced'!G64 -> 0 | E84: ='Rep Schedule - Advanced'!H64 -> 0 | F84: ='Rep Schedule - Advanced'!J64 -> 0 | G84: ='Rep Schedule - Advanced'!K64 -> 0 | H84: ='Rep Schedule - Advanced'!N64 -> 0 | I84: ='Rep Schedule - Advanced'!R64 -> 0 | J84: ='Rep Schedule - Advanced'!U64 -> 0 | K84: ='Rep Schedule - Advanced'!X64 -> 0 | L84: ='Rep Schedule - Advanced'!Y64 -> 0 | M84: ='Rep Schedule - Advanced'!Z64 -> 0 | N84: ='Rep Schedule - Advanced'!AB64 -> 0 | O84: ='Rep Schedule - Advanced'!BI64 -> 2.611188974 | P84: ='Rep Schedule - Advanced'!BK64 -> 0 | Q84: ='Rep Schedule - Advanced'!BL64 -> 0 | R84: ='Rep Schedule - Advanced'!Q64 -> 0 | S84: 147.6923077 | Y84: ='Rep Schedule - Advanced'!AH65 -> 0 | Z84: =IF(Y84<>0,AVERAGE(Y$25:Y84),Z83) -> 431.25 | AA84: 0 | AD84: ='Rep Schedule - Advanced'!AN64 -> TRUE
B85: ='Rep Schedule - Advanced'!B65 -> 59 | C85: ='Rep Schedule - Advanced'!E65 -> 2014-02-18 | D85: ='Rep Schedule - Advanced'!G65 -> 0 | E85: ='Rep Schedule - Advanced'!H65 -> 0 | F85: ='Rep Schedule - Advanced'!J65 -> 0 | G85: ='Rep Schedule - Advanced'!K65 -> 0 | H85: ='Rep Schedule - Advanced'!N65 -> 0 | I85: ='Rep Schedule - Advanced'!R65 -> 0 | J85: ='Rep Schedule - Advanced'!U65 -> 0 | K85: ='Rep Schedule - Advanced'!X65 -> 0 | L85: ='Rep Schedule - Advanced'!Y65 -> 0 | M85: ='Rep Schedule - Advanced'!Z65 -> 0 | N85: ='Rep Schedule - Advanced'!AB65 -> 0 | O85: ='Rep Schedule - Advanced'!BI65 -> 2.654759421 | P85: ='Rep Schedule - Advanced'!BK65 -> 0 | Q85: ='Rep Schedule - Advanced'!BL65 -> 0 | R85: ='Rep Schedule - Advanced'!Q65 -> 0 | S85: 147.6923077 | Y85: ='Rep Schedule - Advanced'!AH66 -> 0 | Z85: =IF(Y85<>0,AVERAGE(Y$25:Y85),Z84) -> 431.25 | AA85: 0 | AD85: ='Rep Schedule - Advanced'!AN65 -> TRUE
B86: ='Rep Schedule - Advanced'!B66 -> 60 | C86: ='Rep Schedule - Advanced'!E66 -> 2014-02-25 | D86: ='Rep Schedule - Advanced'!G66 -> 0 | E86: ='Rep Schedule - Advanced'!H66 -> 0 | F86: ='Rep Schedule - Advanced'!J66 -> 0 | G86: ='Rep Schedule - Advanced'!K66 -> 0 | H86: ='Rep Schedule - Advanced'!N66 -> 0 | I86: ='Rep Schedule - Advanced'!R66 -> 0 | J86: ='Rep Schedule - Advanced'!U66 -> 0 | K86: ='Rep Schedule - Advanced'!X66 -> 0 | L86: ='Rep Schedule - Advanced'!Y66 -> 0 | M86: ='Rep Schedule - Advanced'!Z66 -> 0 | N86: ='Rep Schedule - Advanced'!AB66 -> 0 | O86: ='Rep Schedule - Advanced'!BI66 -> 2.699056886 | P86: ='Rep Schedule - Advanced'!BK66 -> 0 | Q86: ='Rep Schedule - Advanced'!BL66 -> 0 | R86: ='Rep Schedule - Advanced'!Q66 -> 0 | S86: 147.6923077 | Y86: ='Rep Schedule - Advanced'!AH67 -> 0 | Z86: =IF(Y86<>0,AVERAGE(Y$25:Y86),Z85) -> 431.25 | AA86: 0 | AD86: ='Rep Schedule - Advanced'!AN66 -> TRUE
C87: =Translations!A102 -> Totals | D87: ='Rep Schedule - Advanced'!G189 -> 1000 | E87: ='Rep Schedule - Advanced'!H189 -> 1000 | F87: ='Rep Schedule - Advanced'!J189 -> 0 | G87: ='Rep Schedule - Advanced'!K189 -> 147.6923077 | H87: ='Rep Schedule - Advanced'!N189 -> 0 | I87: ='Rep Schedule - Advanced'!R189 -> 0 | J87: ='Rep Schedule - Advanced'!U189 -> 0 | K87: ='Rep Schedule - Advanced'!X189 -> 100 | L87: ='Rep Schedule - Advanced'!Y189 -> 0 | M87: ='Rep Schedule - Advanced'!Z189 -> 100 | N87: ='Rep Schedule - Advanced'!AB189 -> 0 | P87: ='Rep Schedule - Advanced'!BK3 -> 1000 | Q87: ='Rep Schedule - Advanced'!BL3 -> 1000 | R87: ='Rep Schedule - Advanced'!Q67 -> 0 | AD87: x
AD88: =TRUE -> TRUE
D103: Dropdowns | F103: NOTE: Do not put ANYTHING else in column "C" because DROPDOWNS will possibly destroy it!!!!!
D104: Interest DropDn | E104: 1 | F104: =Translations!A11 -> Multiple installments
F105: =Translations!A12 -> Single end-term payment
D107: Amortization DropDn | E107: 1 | F107: =Translations!A7 -> Equal principal payments | J107: =CalcAPRs(J20) -> 0 | K107: <---Function to recalc APRs
F108: =Translations!A8 -> Equal installments (amortized)
F109: =Translations!A9 -> Single end-term principal payment
H110: MPR | I110: 30 | J110: APR (nominal) | M110: EU-Formula | N110: 365.25
F111: Frequency | H111: N | I111: T | J111: N | K111: T | M111: N | N111: MonthDay
D112: Repay Frequency DropDn | E112: 2 | F112: =Translations!A27 -> Daily | G112: =Translations!A14 -> Days | H112: =J112/12 -> 30.41666667 | I112: 1 | J112: 365 | K112: 1 | L112: =Translations!A152 -> Per day | M112: =N110 -> 365.25 | N112: FALSE | R112: =$I$110/S112 -> 
F113: =Translations!A28 -> Weekly | G113: =Translations!A15 -> Weeks | H113: =J113/12 -> 4.333333333 | I113: 7 | J113: 52 | K113: 7 | L113: =Translations!A153 -> Per week | M113: =$N$110/K113 -> 52.17857143 | N113: FALSE
F114: =Translations!A29 -> Bi-weekly | G114: =Translations!A16 -> 2-wk periods | H114: 2.166666667 | I114: 14 | J114: 26 | K114: 14 | L114: =Translations!A154 -> Per two weeks (14 days) | M114: 26.08928571 | N114: FALSE
F115: =Translations!A164 -> Every 15 days (exactly) | G115: =Translations!A173 -> 15-day periods | H115: 2.027777778 | I115: 15 | J115: =J112/15 -> 24.33333333 | K115: 15 | L115: =Translations!A174 -> Per 15 days | M115: 24.35 | N115: FALSE
F116: =Translations!A30 -> Every four weeks | G116: =Translations!A17 -> 4-wk periods | H116: 1.083333333 | I116: 28 | J116: 13 | K116: 28 | L116: =Translations!A155 -> Per four weeks | M116: 13.04464286 | N116: FALSE
F117: =Translations!A31 -> Monthly | G117: =Translations!A18 -> Months | H117: 1 | I117: 30 | J117: 12 | K117: 30 | L117: =Translations!A156 -> Per month | M117: 12.175 | N117: TRUE
F118: =Translations!A32 -> Quarterly | G118: =Translations!A19 -> Quarters | H118: 0.3333333333 | I118: 90 | J118: 4 | K118: 90 | L118: =Translations!A157 -> Per quarter | M118: =M117/3 -> 4.058333333 | N118: TRUE
F119: =Translations!A33 -> Semi-annually | G119: =Translations!A20 -> Half-years | H119: 0.1666666667 | I119: 180 | J119: 2 | K119: 180 | L119: =Translations!A158 -> Per half-year | M119: 2 | N119: TRUE
F120: =Translations!A34 -> Annually | G120: =Translations!A21 -> Years | H120: 0.08333333333 | I120: 360 | J120: 1 | K120: 360 | L120: =Translations!A159 -> Per year | M120: 1 | N120: TRUE
F121: =INDEX($G112:$G120,$E112) -> Weeks | G121: PERIODS/Yr--> | H121: =INDEX($H$112:$H$120,$E$112) -> 4.333333333 | I121: =INDEX($I$112:$I$120,$E$112) -> 7 | J121: =INDEX($J$112:$J$120,$E$112) -> 52 | K121: =INDEX($K$112:$K$120,$E$112) -> 7 | M121: =INDEX($M$112:$M$120,$E$112) -> 52.17857143 | N121: =INDEX($N$112:$N$120,$E$112) -> FALSE | O121: =IF($E$125=TRUE,M121,J121) -> 52 | P121: <---N used in formulas
D123: Interest Rate Period | E123: 6 | J123: =INDEX($J$112:$J$120,$E$123) -> 12 | K123: =INDEX($K$112:$K$120,$E$123) -> 30 | L123: =INDEX($L112:$L120,$E123) -> Per month | M123: =INDEX($M$112:$M$120,$E$123) -> 12.175 | O123: =IF($E$125=TRUE,M123,J123) -> 12
I124: TERM-> | J124: =term*I121 -> 112 | K124: days
D125: Compounding | E125: FALSE | J125: =J124/I110 -> 3.733333333 | K125: months
D126: Exact Days | E126: TRUE
I127: =INDEX(J112:J120,E112) -> 52 | J127: Divisor for savigns interest
I128: =E22/I127 -> 0 | J128: Periodic savings interest rate
D130: =Translations!A42 -> Initial amount, or "flat" | E130: 1 | F130: =IF('Int Graph'!d13="Balance",2,1)
D131: =Translations!A43 -> Declining balance

Sheet Rep Schedule - Advanced
B1: =Translations!A53 -> Repayment Schedule | H1: =Translations!A55 -> The following table shows the repayment schedule and cashflow for the loan given the conditions indicated on the companion sheet with the Interest Rate Graph. | AF1: Columns used to create the graph | AJ1: used for avg loan bal; can replace with AVG OFFSET | AP1: =TRUE -> TRUE | AV1: From here to RIGHT ---->> is not USED. Is ALTERNATIVE means of discounting | BE1: Principal and Interest | BP1: Principal and Interest AND FEES | BW1: Principal and Interest, Fees AND VAT | CI1: Incl Savings | CR1: 2 | CS1: =IF(CR1=1,CI5,IF(CR1=2,CK5,DF5)) -> US Divisor | CT1: FALSE | CU1: Manual? | DE1: Principal and Interest | DJ1: =BP1 -> Principal and Interest AND FEES | DO1: Principal and Interest and Fees and VAT
AN2: Used to hide rows | CJ2: =IF(ExactDays=FALSE,'Pricing - Advanced'!$K$20,CJ3) -> 0.1565287626 | CM2: =SUM(CM6:CM189) -> 1095.304767 | CN2: =SUM(CN6:CN189) -> 1218.849831 | CR2: days -> | CS2: ='Pricing - Advanced'!K121 -> 7 | DG2: <-- estimated int for period | DL2: <-- estimated APR | DQ2: <-- estimated APR
E3: 2013-01-01 | F3: =Translations!A176 -> <-- Disbursment Date | J3: Maturity: | K3: =INDEX(E6:J188,MATCH(0,J6:J188,0),1) -> 2013-04-23 | M3: Days: | N3: =K3-E3 -> 112 | AQ3: Interest Calcs for "grace" options | BG3: =SUM(BG6:BG188) -> 1000 | BH3: =SUM(BH6:BH188) -> 1147.692308 | BK3: =SUM(BK6:BK188) -> 1000 | BL3: =SUM(BL6:BL188) -> 1000 | BP3: =SUM(BP6:BP188) -> 1000 | BQ3: =SUM(BQ6:BQ188) -> 1147.692308 | BT3: =SUM(BT6:BT188) -> 1000 | BU3: =SUM(BU6:BU188) -> 1000 | BY3: =SUM(BY6:BY188) -> 1000 | BZ3: =SUM(BZ6:BZ188) -> 0 | CC3: =SUM(CC6:CC188) ->  | CD3: =SUM(CD6:CD188) ->  | CJ3: 0.1565287626 | CK3: <-- estimated APR | CR3: =DaysPeriod/30 -> 0.2333333333 | CS3: <--number month increment | DF3: =IF(UseManualCalcs=FALSE,IF(DiscountType=3,M215,M197),DF2) -> 0.8676749258 | DG3: EIR/APR from Rep CashFlow | DK3: =IF(UseManualCalcs=FALSE,IF(DiscountType=3,P215,P197),DK2) -> 0.8676749258 | DL3: EIR from Rep CashFlow | DP3: =IF(UseManualCalcs=FALSE,IF(DiscountType=3,W215,W197),DP2) -> 0.8676749258
B4: =Translations!A175 -> Payment Date | G4: =Translations!A56 -> Loan Cost and Cashflow | K4: =Translations!A204 -> Interest | N4: =Translations!A205 -> Fees | R4: =Translations!A206 -> Insurance | U4: =Translations!A207 -> Taxes | X4: =Translations!A57 -> Security Deposit | AF4: Int Charged to: | AG4: Savings Balance | AH4: Cash Balance (GRAPHED) | AI4: Negative Balance | AJ4: Cum Daily Balance | AK4: Cum Daily CASH Balance | AN4: Active Row? | AQ4: Interest Calculations | AS4: Disb date? -> | AT4: =IF(ISBLANK(E6),FALSE,TRUE) -> TRUE | AW4: Inflows | AY4: Outflows | BG4: Nominal Values | BK4: Discounted Values | BP4: Nominal Values | BT4: Discounted Values | BY4: Nominal Values | CC4: Discounted Values | CJ4: =CN2-CM2 -> 123.5450637 | CK4: <<<TARGET TO ZERO for goal seek | CR4: ='Pricing - Advanced'!$O$121 -> 52 | CS4: <-- periods per year | DF4: =BK3-BL3 -> -7.958078641e-10 | DG4: <-- Difference between inflow&outflow | DK4: =#REF!-#REF! ->  | DL4: <<<TARGET TO ZERO for goal seek | DP4: =#REF!-#REF! ->  | DQ4: <<<TARGET TO ZERO for goal seek
B5: =Translations!A59 -> Period # | C5: =Translations!$A$14 -> Days | D5: =Translations!A179 -> OR Date | E5: =Translations!A60 -> Date | F5: ="# "&Translations!$A$14 -> # Days | G5: =Translations!A61 -> Principal Disbursed | H5: =Translations!A62 -> Principal Paid | I5: =L5 -> Override | J5: =Translations!A63 -> Balance | K5: =Translations!A64 -> Interest Paid | L5: =Translations!A162 -> Override | M5: =Translations!A65 -> Cashflow incl. Interest | N5: =Translations!A66 -> Fees Paid | O5: =L5 -> Override | P5: =Translations!A67 -> Cashflow incl. Fees | Q5: =Translations!A197 -> Period APR | R5: =Translations!A201 -> Insurance Paid | S5: =O5 -> Override | T5: =Translations!A202 -> Cashflow incl. insurance | U5: =Translations!A172 -> Taxes | V5: =O5 -> Override | W5: =Translations!A69 -> Cashflow Incl. Taxes | X5: =Translations!A70 -> Security Deposit | Y5: =Translations!A71 -> Interest Paid | Z5: =Translations!A72 -> Deposit Withdr. | AA5: =V5 -> Override | AB5: =Translations!A73 -> Deposit Balance | AC5: =Translations!A74 -> Cashflow incl. Sec.Dep. | AQ5: Interest for period | AR5: Interest accrued | AS5: Date Calc | AT5: Exact days | AW5: Disburse | AX5: Disb + Sav | AY5: Prin + Int | AZ5: + Fees | BA5: + Ins | BB5: + VAT | BC5: + Savings | BE5: Period | BF5: Days | BG5: Inflow | BH5: Outflow | BI5: Divisor | BJ5: % | BK5: =BG5 -> Inflow | BL5: =BH5 -> Outflow | BN5: Period | BO5: Days | BP5: Inflow | BQ5: Outflow | BR5: Divisor | BS5: % | BT5: =BP5 -> Inflow | BU5: =BQ5 -> Outflow | BW5: Period | BX5: Days | BY5: Inflow | BZ5: Outflow | CA5: Divisor | CB5: % | CC5: =BY5 -> Inflow | CD5: =BZ5 -> Outflow | CI5: EU Divisor | CJ5: =DP5 -> EU Exact Days | CK5: US Divisor | CL5: Divisor Used | CM5: Disburse | CN5: Repay | DE5: EU Divisor | DF5: EU Exact Days | DG5: US Divisor | DH5: Divisor Used | DJ5: EU Divisor | DK5: =DF5 -> EU Exact Days | DL5: US Divisor | DM5: Divisor Used | DO5: EU Divisor | DP5: =DK5 -> EU Exact Days | DQ5: US Divisor
B6: 0 | E6: =IF(ISBLANK(E3),DATE(2009,1,1),E3) -> 2013-01-01 | G6: =LoanAmt -> 1000 | J6: =G6 -> 1000 | M6: =IF(AND(ManualMode=TRUE,NOT(ISBLANK(L6))),I6+L6,J6) -> 1000 | N6: =IF(OR(ManualMode=FALSE,ISBLANK(O6)),IF(J6>'Pricing - Advanced'!Z14,(J6-'Pricing - Advanced'!Z14)*'Pricing - Advanced'!E14,0)+'Pricing - Advanced'!E15,"N/A") -> 0 | P6: =IF(AND(ManualMode=TRUE,NOT(ISBLANK(O6))),M6-O6,M6-N6) -> 1000 | Q6: =IF(ManualMode=TRUE,0,IF(J6,(K6+N6)/J6*(365/N3),0)) -> 0 | R6: =IF(OR(ManualMode=FALSE,ISBLANK(S6)),'Pricing - Advanced'!E16*J6+'Pricing - Advanced'!E17,"N/A") -> 0 | T6: =IF(AND(ManualMode=TRUE,NOT(ISBLANK(S6))),P6-S6,P6-R6) -> 1000 | U6: =IF(OR(ManualMode=FALSE,ISBLANK(V6)),SUM(K6:L6)*'Pricing - Advanced'!$F$19+SUM(N6,O6)*'Pricing - Advanced'!$F$18,"N/A") -> 0 | W6: =IF(AND(ManualMode=TRUE,NOT(ISBLANK(V6))),T6-V6,T6-U6) -> 1000 | X6: =J6*'Pricing - Advanced'!E20+'Pricing - Advanced'!E21 -> 100 | AB6: =IF(AND(ManualMode=TRUE,NOT(ISBLANK(AA6))),AA6,X6+Y6-Z6) -> 100 | AC6: =IF(AND(ManualMode=TRUE,NOT(ISBLANK(AA6)),AN6="x"),W6-AA6,W6-X6+Z6) -> 900 | AF6: =J6 -> 1000 | AG6: =IF(AB6>0,AB6,NA()) -> 100 | AH6: =J6-SUM(N6,AB6) -> 900 | AI6: =IF(AND(AH6<0,B6<=term),1,0) -> 0 | AN6: x | AS6: =IF(ISBLANK($E$6),DATE(2009,1,1),E6) -> 2013-01-01 | AT6: =B6*'Pricing - Advanced'!$K$5 -> 0 | AW6: =G6 -> 1000 | AX6: =G6+Z6 -> 1000 | AY6: =IF(ManualMode=FALSE,H6+K6,SUM(H6,I6,K6,L6)) -> 0 | AZ6: =AY6+IF(ISNUMBER(N6),N6,O6) -> 0 | BA6: =AZ6+IF(ISNUMBER(R6),R6,S6) -> 0 | BB6: =BA6+IF(ISNUMBER(U6),U6,V6) -> 0 | BC6: =BB6+X6 -> 100 | BE6: =B6 -> 0 | BF6: 0 | BG6: =AW6 -> 1000 | BH6: =AY6 -> 0 | BI6: =DH6 -> 1 | BK6: =BG6/$BI6 -> 1000 | BL6: =BH6/$BI6 -> 0 | BN6: =BE6 -> 0 | BO6: =BF6 -> 0 | BP6: =AW6 -> 1000 | BQ6: =AZ6 -> 0 | BR6: =DM6 -> 1 | BT6: =$AW6/BR6 -> 1000 | BU6: =$AZ6/BR6 -> 0 | BW6: =BN6 -> 0 | BX6: =BO6 -> 0 | BY6: =AW6 -> 1000 | BZ6: =BB6 -> 0 | CA6: =IF($CR$1=1,DO6,IF($CR$1=2,DQ6,DP6)) -> 1 | CC6: =$AW6/CA6 -> 1000 | CD6: =$BB6/CA6 -> 0 | CI6: =(1+CJ$2)^($B6/$CR$4) -> 1 | CJ6: =(1+CJ$2)^($AT6/DaysYr) -> 1 | CK6: 1 | CL6: =IF($CR$1=1,CI6,IF($CR$1=2,CK6,CJ6)) -> 1 | CM6: =$AX6/CL6 -> 1000 | CN6: =BC6/CL6 -> 100 | CX6: The disbursment date is used for default "first payment" date | DE6: =(1+DF$3)^($B6/$CR$4) -> 1 | DF6: =(1+DF$3)^($BF6/DaysYr) -> 1 | DG6: 1 | DH6: =IF($CR$1=1,DE6,IF($CR$1=2,DG6,DF6)) -> 1 | DJ6: =(1+DK$3)^($B6/$CR$4) -> 1 | DK6: =(1+DK$3)^($AT6/DaysYr) -> 1 | DL6: 1 | DM6: =IF($CR$1=1,DJ6,IF($CR$1=2,DL6,DK6)) -> 1 | DO6: =(1+DP$3)^($B6/$CR$4) -> 1 | DP6: =(1+DP$3)^($AT6/DaysYr) -> 1 | DQ6: 1
B7: 1 | E7: =IF(ManualDates="x",IF(NOT(ISBLANK(D7)),D7,IF(C7=0,AS7,E6+C7)),AS7) -> 2013-01-08 | F7: =E7-E6 -> 7 | H7: =IF(AND(ManualMode=TRUE,NOT(ISBLANK(I7))),"N/A",IF(B7=PrepayPeriod,J6,IF(AND(B7>=FirstPmt,B7<=PrepayPeriod),IF(AND(B7<$AG$230,amortized=1),LoanAmt/$AG$228,-PPMT($AG$231,$B7-FirstPmt+1,$AG$228,LoanAmt)),0))) -> 62.5 | J7: =IF(AN7<>"x",0,IF(AND(ManualMode=TRUE,NOT(ISBLANK(I7))),J6-I7,IF(J6+G7-H7>1,(J6+G7-H7),0))) -> 937.5 | K7: =IF(AND(ManualMode=TRUE,NOT(ISBLANK(L7))),"N/A",IF(OR($AH$229>B7,J6<1),0,AR7)) -> 9.230769231 | M7: =IF(AN7="x",IF(ManualMode=FALSE,-H7-K7,IF(ISBLANK(I7),-H7,-I7)+IF(ISBLANK(L7),-K7,-L7)),0) -> -71.73076923 | N7: =IF(OR(ManualMode=FALSE,ISBLANK(O7)),IF(FeeOngoPerc<1,FeeOngoPerc*SUM(H7:I7),IF(J6>1,FeeOngoPerc,0))+IF(FeeOngoFix<1,FeeOngoFix*SUM(H7:I7),IF(J6>1,FeeOngoFix,0)),"N/A") -> 0 | P7: =IF(AND(ManualMode=TRUE,NOT(ISBLANK(O7)),AN7="x"),M7-O7,M7-N7) -> -71.73076923 | Q7: =IF(J6>0.01,IF(ManualMode=FALSE,SUM(K7,N7),SUM(K7,L7,N7,O7))/J6*(365.25/(AT7-AT6)),0) -> 0.4816483516 | R7: =IF(J7>0,IF(OR(ManualMode=FALSE,ISBLANK(S7)),'Pricing - Advanced'!$F$16*J7+'Pricing - Advanced'!$F$17,"N/A"),0) -> 0 | T7: =IF(AND(ManualMode=TRUE,NOT(ISBLANK(S7)),AN7="x"),P7-S7,P7-R7) -> -71.73076923 | U7: =IF(OR(ManualMode=FALSE,ISBLANK(V7)),SUM(K7:L7)*'Pricing - Advanced'!$F$19+SUM(N7,O7)*'Pricing - Advanced'!$F$18,"N/A") -> 0 | W7: =IF(AND(ManualMode=TRUE,NOT(ISBLANK(V7)),AN7="x"),T7-V7,T7-U7) -> -71.73076923 | X7: ='Pricing - Advanced'!$F$20*SUM(H7:I7)+IF(J7>1,'Pricing - Advanced'!$F$21,0) -> 0 | Y7: =IF(AND(FullTerm>=B7,AB6>0),AB6*'Pricing - Advanced'!$I$128,0) -> 0 | Z7: =IF(FullTerm=B7,AB6+X7+Y7,0) -> 0 | AB7: =IF(AND(ManualMode=TRUE,NOT(ISBLANK(AA7)),AN7="x"),AB6+AA7,AB6+X7+Y7-Z7) -> 100 | AC7: -71.73076923 | AF7: =IF(int_method=1,AF6,IF(J7>0,J7,NA())) -> 1000 | AG7: 100 | AH7: =IF(J7=0,0,J7-SUM($N$6:N7)-AB6) -> 837.5 | AI7: 0 | AJ7: =AJ6+J6*(E7-E6) -> 7000 | AK7: =AK6+AH6*(E7-E6) -> 6300 | AN7: x | AQ7: =IF(J6>1,IF(int_method=2,$AG$231*J6,$AG$231*'Pricing - Advanced'!$E$4),0) -> 9.230769231 | AR7: =IF(B7>$AI$235,AQ7,0)+AR6-IF(ManualMode=TRUE,SUM(K6:L6),K6) -> 9.230769231 | AS7: =IF(SameDay,EDATE(AS6,$CR$3),AS6+DaysPeriod) -> 2013-01-08 | AT7: =IF($AT$4=FALSE,B7*'Pricing - Advanced'!$K$5,AT6+E7-E6) -> 7 | AW7: =G7 -> 0 | AX7: 0 | AY7: 71.73076923 | AZ7: 71.73076923 | BA7: =AZ7+IF(ISNUMBER(R7),R7,S7) -> 71.73076923 | BB7: =BA7+IF(ISNUMBER(U7),U7,V7) -> 71.73076923 | BC7: 71.73076923 | BE7: 1 | BF7: =E7-$E$6 -> 7 | BG7: 0 | BH7: 71.73076923 | BI7: 1.016686056 | BJ7: =BI7/BI6-1 -> 0.01668605627 | BK7: =BG7/$BI7 -> 0 | BL7: 70.5535094 | BN7: 1 | BO7: 7 | BP7: 0 | BQ7: 71.73076923 | BR7: =DM7 -> 1.016686056 | BS7: =BR7/BR6-1 -> 0.01668605627 | BT7: 0 | BU7: 70.5535094 | CA7: =IF($CR$1=1,DO7,IF($CR$1=2,DQ7,DP7)) -> 1.016686056 | CB7: =CA7/CA6-1 -> 0.01668605627 | CC7: 0 | CD7: 70.5535094 | CI7: 1.002800512 | CJ7: 1.002790914 | CK7: =CK6*(1+CJ$2/PeriodsYr) -> 1.003010169 | CL7: 1.003010169 | CM7: =$AX7/CL7 -> 0 | CN7: 71.51549554 | CX7: If there is a first payment date entered, then all future dates cascade from this date | DE7: 1.012085802 | DF7: 1.012044193 | DG7: =DG6*(1+DF$3/PeriodsYr) -> 1.016686056 | DH7: 1.016686056 | DJ7: 1.012085802 | DK7: 1.012044193 | DL7: =DL6*(1+DK$3/PeriodsYr) -> 1.016686056 | DM7: =IF($CR$1=1,DJ7,IF($CR$1=2,DL7,DK7)) -> 1.016686056 | DO7: 1.012085802 | DP7: 1.012044193 | DQ7: =DQ6*(1+DP$3/PeriodsYr) -> 1.016686056
B8: 2 | E8: 2013-01-15 | F8: =IF(AN8="x",E8-E7,0) -> 7 | H8: 62.5 | J8: 875 | K8: 9.230769231 | M8: -71.73076923 | N8: 0 | P8: -71.73076923 | Q8: 0.5137582418 | R8: =IF(J8>0,IF(OR(ManualMode=FALSE,ISBLANK(S8)),'Pricing - Advanced'!$F$16*J8+'Pricing - Advanced'!$F$17,"N/A"),0) -> 0 | T8: -71.73076923 | U8: =IF(OR(ManualMode=FALSE,ISBLANK(V8)),SUM(K8:L8)*'Pricing - Advanced'!$F$19+SUM(N8,O8)*'Pricing - Advanced'!$F$18,"N/A") -> 0 | W8: -71.73076923 | X8: ='Pricing - Advanced'!$F$20*SUM(H8:I8)+IF(J8>1,'Pricing - Advanced'!$F$21,0) -> 0 | Y8: =IF(AND(FullTerm>=B8,AB7>0),AB7*'Pricing - Advanced'!$I$128,0) -> 0 | Z8: 0 | AB8: 100 | AC8: -71.73076923 | AF8: 1000 | AG8: 100 | AH8: =IF(J8=0,0,J8-SUM($N$6:N8)-AB7) -> 775 | AI8: 0 | AJ8: =AJ7+J7*(E8-E7) -> 13562.5 | AK8: =AK7+AH7*(E8-E7) -> 12162.5 | AN8: =IF(B8<=term,"x",TRUE) -> x | AQ8: =IF(J7>1,IF(int_method=2,$AG$231*J7,$AG$231*'Pricing - Advanced'!$E$4),0) -> 9.230769231 | AR8: 9.230769231 | AS8: =IF(SameDay,EDATE(E7,$CR$3),E7+DaysPeriod) -> 2013-01-15 | AT8: =IF($AT$4=FALSE,B8*'Pricing - Advanced'!$K$5,AT7+E8-E7) -> 14 | AW8: 0 | AX8: 0 | AY8: 71.73076923 | AZ8: 71.73076923 | BA8: 71.73076923 | BB8: 71.73076923 | BC8: 71.73076923 | BE8: 2 | BF8: 14 | BG8: 0 | BH8: 71.73076923 | BI8: 1.033650537 | BJ8: =BI8/BI7-1 -> 0.01668605627 | BK8: 0 | BL8: 69.395571 | BN8: 2 | BO8: 14 | BP8: 0 | BQ8: 71.73076923 | BR8: 1.033650537 | BS8: =BR8/BR7-1 -> 0.01668605627 | BT8: 0 | BU8: 69.395571 | CI8: 1.005608866 | CJ8: 1.005589617 | CK8: 1.006029398 | CL8: 1.006029398 | CM8: 0 | CN8: 71.30086791 | DE8: 1.024317671 | DF8: 1.024233448 | DG8: 1.033650537 | DH8: 1.033650537 | DJ8: 1.024317671 | DK8: 1.024233448 | DL8: 1.033650537 | DM8: =IF($CR$1=1,DJ8,IF($CR$1=2,DL8,DK8)) -> 1.033650537 | DO8: 1.024317671 | DP8: 1.024233448 | DQ8: 1.033650537
B9: 3 | E9: 2013-01-22 | F9: 7 | H9: 62.5 | J9: 812.5 | K9: 9.230769231 | M9: -71.73076923 | N9: 0 | P9: -71.73076923 | Q9: 0.550455259 | R9: =IF(J9>0,IF(OR(ManualMode=FALSE,ISBLANK(S9)),'Pricing - Advanced'!$F$16*J9+'Pricing - Advanced'!$F$17,"N/A"),0) -> 0 | T9: -71.73076923 | U9: =IF(OR(ManualMode=FALSE,ISBLANK(V9)),SUM(K9:L9)*'Pricing - Advanced'!$F$19+SUM(N9,O9)*'Pricing - Advanced'!$F$18,"N/A") -> 0 | W9: -71.73076923 | X9: ='Pricing - Advanced'!$F$20*SUM(H9:I9)+IF(J9>1,'Pricing - Advanced'!$F$21,0) -> 0 | Y9: =IF(AND(FullTerm>=B9,AB8>0),AB8*'Pricing - Advanced'!$I$128,0) -> 0 | Z9: 0 | AB9: 100 | AC9: -71.73076923 | AF9: 1000 | AG9: 100 | AH9: =IF(J9=0,0,J9-SUM($N$6:N9)-AB8) -> 712.5 | AI9: 0 | AJ9: 19687.5 | AK9: 17587.5 | AN9: x | AQ9: =IF(J8>1,IF(int_method=2,$AG$231*J8,$AG$231*'Pricing - Advanced'!$E$4),0) -> 9.230769231 | AR9: 9.230769231 | AS9: 2013-01-22 | AT9: =IF($AT$4=FALSE,B9*'Pricing - Advanced'!$K$5,AT8+E9-E8) -> 21 | AW9: 0 | AX9: 0 | AY9: 71.73076923 | AZ9: 71.73076923 | BA9: 71.73076923 | BB9: 71.73076923 | BC9: 71.73076923 | BE9: 3 | BF9: 21 | BG9: 0 | BH9: 71.73076923 | BI9: 1.050898088 | BJ9: 0.01668605627 | BK9: 0 | BL9: 68.25663692 | BN9: 3 | BO9: 21 | BP9: 0 | BQ9: 71.73076923 | BR9: 1.050898088 | BS9: 0.01668605627 | BT9: 0 | BU9: 68.25663692 | CI9: 1.008425086 | CJ9: 1.008396132 | CK9: 1.009057716 | CL9: 1.009057716 | CM9: 0 | CN9: 71.08688441 | DE9: 1.036697371 | DF9: 1.036569513 | DG9: 1.050898088 | DH9: 1.050898088 | DJ9: 1.036697371 | DK9: 1.036569513 | DL9: 1.050898088 | DM9: =IF($CR$1=1,DJ9,IF($CR$1=2,DL9,DK9)) -> 1.050898088 | DO9: 1.036697371 | DP9: 1.036569513 | DQ9: 1.050898088
B10: 4 | E10: 2013-01-29 | F10: 7 | H10: 62.5 | J10: 750 | K10: 9.230769231 | M10: -71.73076923 | N10: 0 | P10: -71.73076923 | Q10: 0.5927979713 | R10: =IF(J10>0,IF(OR(ManualMode=FALSE,ISBLANK(S10)),'Pricing - Advanced'!$F$16*J10+'Pricing - Advanced'!$F$17,"N/A"),0) -> 0 | T10: -71.73076923 | U10: =IF(OR(ManualMode=FALSE,ISBLANK(V10)),SUM(K10:L10)*'Pricing - Advanced'!$F$19+SUM(N10,O10)*'Pricing - Advanced'!$F$18,"N/A") -> 0 | W10: -71.73076923 | X10: ='Pricing - Advanced'!$F$20*SUM(H10:I10)+IF(J10>1,'Pricing - Advanced'!$F$21,0) -> 0 | Y10: =IF(AND(FullTerm>=B10,AB9>0),AB9*'Pricing - Advanced'!$I$128,0) -> 0 | Z10: 0 | AB10: 100 | AC10: -71.73076923 | AF10: 1000 | AG10: 100 | AH10: =IF(J10=0,0,J10-SUM($N$6:N10)-AB9) -> 650 | AI10: 0 | AJ10: 25375 | AK10: 22575 | AN10: x | AQ10: =IF(J9>1,IF(int_method=2,$AG$231*J9,$AG$231*'Pricing - Advanced'!$E$4),0) -> 9.230769231 | AR10: 9.230769231 | AS10: 2013-01-29 | AT10: =IF($AT$4=FALSE,B10*'Pricing - Advanced'!$K$5,AT9+E10-E9) -> 28 | AW10: 0 | AX10: 0 | AY10: 71.73076923 | AZ10: 71.73076923 | BA10: 71.73076923 | BB10: 71.73076923 | BC10: 71.73076923 | BE10: 4 | BF10: 28 | BG10: 0 | BH10: 71.73076923 | BI10: 1.068433433 | BJ10: 0.01668605627 | BK10: 0 | BL10: 67.13639525 | BN10: 4 | BO10: 28 | BP10: 0 | BQ10: 71.73076923 | BR10: 1.068433433 | BS10: 0.01668605627 | BT10: 0 | BU10: 67.13639525 | CI10: 1.011249192 | CJ10: 1.011210479 | CK10: 1.01209515 | CL10: 1.01209515 | CM10: 0 | CN10: 70.8735431 | CX10: =IF(ISBLANK($E$6),"",IF(ManualDates="x",IF(NOT(ISBLANK(D8)),D8,IF(C8=0,CY8,E7+C8)),CY8)) | DE10: 1.049226691 | DF10: 1.049054156 | DG10: 1.068433433 | DH10: 1.068433433 | DJ10: 1.049226691 | DK10: 1.049054156 | DL10: 1.068433433 | DM10: =IF($CR$1=1,DJ10,IF($CR$1=2,DL10,DK10)) -> 1.068433433 | DO10: 1.049226691 | DP10: 1.049054156 | DQ10: 1.068433433
B11: 5 | E11: 2013-02-05 | F11: 7 | H11: 62.5 | J11: 687.5 | K11: 9.230769231 | M11: -71.73076923 | N11: 0 | P11: -71.73076923 | Q11: 0.6421978022 | R11: =IF(J11>0,IF(OR(ManualMode=FALSE,ISBLANK(S11)),'Pricing - Advanced'!$F$16*J11+'Pricing - Advanced'!$F$17,"N/A"),0) -> 0 | T11: -71.73076923 | U11: =IF(OR(ManualMode=FALSE,ISBLANK(V11)),SUM(K11:L11)*'Pricing - Advanced'!$F$19+SUM(N11,O11)*'Pricing - Advanced'!$F$18,"N/A") -> 0 | W11: -71.73076923 | X11: ='Pricing - Advanced'!$F$20*SUM(H11:I11)+IF(J11>1,'Pricing - Advanced'!$F$21,0) -> 0 | Y11: =IF(AND(FullTerm>=B11,AB10>0),AB10*'Pricing - Advanced'!$I$128,0) -> 0 | Z11: 0 | AB11: 100 | AC11: -71.73076923 | AF11: 1000 | AG11: 100 | AH11: =IF(J11=0,0,J11-SUM($N$6:N11)-AB10) -> 587.5 | AI11: 0 | AJ11: 30625 | AK11: 27125 | AN11: x | AQ11: =IF(J10>1,IF(int_method=2,$AG$231*J10,$AG$231*'Pricing - Advanced'!$E$4),0) -> 9.230769231 | AR11: 9.230769231 | AS11: 2013-02-05 | AT11: =IF($AT$4=FALSE,B11*'Pricing - Advanced'!$K$5,AT10+E11-E10) -> 35 | AW11: 0 | AX11: 0 | AY11: 71.73076923 | AZ11: 71.73076923 | BA11: 71.73076923 | BB11: 71.73076923 | BC11: 71.73076923 | BE11: 5 | BF11: 35 | BG11: 0 | BH11: 71.73076923 | BI11: 1.086261373 | BJ11: 0.01668605627 | BK11: 0 | BL11: 66.03453921 | BN11: 5 | BO11: 35 | BP11: 0 | BQ11: 71.73076923 | BR11: 1.086261373 | BS11: 0.01668605627 | BT11: 0 | BU11: 66.03453921 | CI11: 1.014081207 | CJ11: 1.01403268 | CK11: 1.015141727 | CL11: 1.015141727 | CM11: 0 | CN11: 70.66084206 | CX11: if DATE entered, use date | DE11: 1.061907437 | DF11: 1.061689166 | DG11: 1.086261373 | DH11: 1.086261373 | DJ11: 1.061907437 | DK11: 1.061689166 | DL11: 1.086261373 | DM11: 1.086261373 | DO11: 1.061907437 | DP11: 1.061689166 | DQ11: 1.086261373
B12: 6 | E12: 2013-02-12 | F12: 7 | H12: 62.5 | J12: 625 | K12: 9.230769231 | M12: -71.73076923 | N12: 0 | P12: -71.73076923 | Q12: 0.7005794206 | R12: =IF(J12>0,IF(OR(ManualMode=FALSE,ISBLANK(S12)),'Pricing - Advanced'!$F$16*J12+'Pricing - Advanced'!$F$17,"N/A"),0) -> 0 | T12: -71.73076923 | U12: =IF(OR(ManualMode=FALSE,ISBLANK(V12)),SUM(K12:L12)*'Pricing - Advanced'!$F$19+SUM(N12,O12)*'Pricing - Advanced'!$F$18,"N/A") -> 0 | W12: -71.73076923 | X12: ='Pricing - Advanced'!$F$20*SUM(H12:I12)+IF(J12>1,'Pricing - Advanced'!$F$21,0) -> 0 | Y12: =IF(AND(FullTerm>=B12,AB11>0),AB11*'Pricing - Advanced'!$I$128,0) -> 0 | Z12: 0 | AB12: 100 | AC12: -71.73076923 | AF12: 1000 | AG12: 100 | AH12: =IF(J12=0,0,J12-SUM($N$6:N12)-AB11) -> 525 | AI12: 0 | AJ12: 35437.5 | AK12: 31237.5 | AN12: x | AQ12: =IF(J11>1,IF(int_method=2,$AG$231*J11,$AG$231*'Pricing - Advanced'!$E$4),0) -> 9.230769231 | AR12: 9.230769231 | AS12: 2013-02-12 | AT12: =IF($AT$4=FALSE,B12*'Pricing - Advanced'!$K$5,AT11+E12-E11) -> 42 | AW12: 0 | AX12: 0 | AY12: 71.73076923 | AZ12: 71.73076923 | BA12: 71.73076923 | BB12: 71.73076923 | BC12: 71.73076923 | BE12: 6 | BF12: 42 | BG12: 0 | BH12: 71.73076923 | BI12: 1.104386791 | BJ12: 0.01668605627 | BK12: 0 | BL12: 64.95076706 | BN12: 6 | BO12: 42 | BP12: 0 | BQ12: 71.73076923 | BR12: 1.104386791 | BS12: 0.01668605627 | BT12: 0 | BU12: 64.95076706 | CI12: 1.016921153 | CJ12: 1.016862758 | CK12: 1.018197475 | CL12: 1.018197475 | CM12: 0 | CN12: 70.44877936 | CX12: ELSEIF DAYS entered, use prev+days | DE12: 1.07474144 | DF12: 1.074476355 | DG12: 1.104386791 | DH12: 1.104386791 | DJ12: 1.07474144 | DK12: 1.074476355 | DL12: 1.104386791 | DM12: 1.104386791 | DO12: 1.07474144 | DP12: 1.074476355 | DQ12: 1.104386791
B13: 7 | E13: 2013-02-19 | F13: 7 | H13: 62.5 | J13: 562.5 | K13: 9.230769231 | M13: -71.73076923 | N13: 0 | P13: -71.73076923 | Q13: 0.7706373626 | R13: =IF(J13>0,IF(OR(ManualMode=FALSE,ISBLANK(S13)),'Pricing - Advanced'!$F$16*J13+'Pricing - Advanced'!$F$17,"N/A"),0) -> 0 | T13: -71.73076923 | U13: =IF(OR(ManualMode=FALSE,ISBLANK(V13)),SUM(K13:L13)*'Pricing - Advanced'!$F$19+SUM(N13,O13)*'Pricing - Advanced'!$F$18,"N/A") -> 0 | W13: -71.73076923 | X13: ='Pricing - Advanced'!$F$20*SUM(H13:I13)+IF(J13>1,'Pricing - Advanced'!$F$21,0) -> 0 | Y13: =IF(AND(FullTerm>=B13,AB12>0),AB12*'Pricing - Advanced'!$I$128,0) -> 0 | Z13: 0 | AB13: 100 | AC13: -71.73076923 | AF13: 1000 | AG13: 100 | AH13: =IF(J13=0,0,J13-SUM($N$6:N13)-AB12) -> 462.5 | AI13: 0 | AJ13: 39812.5 | AK13: 34912.5 | AN13: x | AQ13: =IF(J12>1,IF(int_method=2,$AG$231*J12,$AG$231*'Pricing - Advanced'!$E$4),0) -> 9.230769231 | AR13: 9.230769231 | AS13: 2013-02-19 | AT13: =IF($AT$4=FALSE,B13*'Pricing - Advanced'!$K$5,AT12+E13-E12) -> 49 | AW13: 0 | AX13: 0 | AY13: 71.73076923 | AZ13: 71.73076923 | BA13: 71.73076923 | BB13: 71.73076923 | BC13: 71.73076923 | BE13: 7 | BF13: 49 | BG13: 0 | BH13: 71.73076923 | BI13: 1.122814652 | BJ13: 0.01668605627 | BK13: 0 | BL13: 63.88478199 | BN13: 7 | BO13: 49 | BP13: 0 | BQ13: 71.73076923 | BR13: 1.122814652 | BS13: 0.01668605627 | BT13: 0 | BU13: 63.88478199 | CI13: 1.019769053 | CJ13: 1.019700735 | CK13: 1.021262421 | CL13: 1.021262421 | CM13: 0 | CN13: 70.23735309 | DE13: 1.087730552 | DF13: 1.087417555 | DG13: 1.122814652 | DH13: 1.122814652 | DJ13: 1.087730552 | DK13: 1.087417555 | DL13: 1.122814652 | DM13: 1.122814652 | DO13: 1.087730552 | DP13: 1.087417555 | DQ13: 1.122814652
B14: 8 | E14: 2013-02-26 | F14: 7 | H14: 62.5 | J14: 500 | K14: 9.230769231 | M14: -71.73076923 | N14: 0 | P14: -71.73076923 | Q14: 0.8562637363 | R14: =IF(J14>0,IF(OR(ManualMode=FALSE,ISBLANK(S14)),'Pricing - Advanced'!$F$16*J14+'Pricing - Advanced'!$F$17,"N/A"),0) -> 0 | T14: -71.73076923 | U14: =IF(OR(ManualMode=FALSE,ISBLANK(V14)),SUM(K14:L14)*'Pricing - Advanced'!$F$19+SUM(N14,O14)*'Pricing - Advanced'!$F$18,"N/A") -> 0 | W14: -71.73076923 | X14: ='Pricing - Advanced'!$F$20*SUM(H14:I14)+IF(J14>1,'Pricing - Advanced'!$F$21,0) -> 0 | Y14: =IF(AND(FullTerm>=B14,AB13>0),AB13*'Pricing - Advanced'!$I$128,0) -> 0 | Z14: 0 | AB14: 100 | AC14: -71.73076923 | AF14: 1000 | AG14: 100 | AH14: =IF(J14=0,0,J14-SUM($N$6:N14)-AB13) -> 400 | AI14: 0 | AJ14: 43750 | AK14: 38150 | AN14: x | AQ14: =IF(J13>1,IF(int_method=2,$AG$231*J13,$AG$231*'Pricing - Advanced'!$E$4),0) -> 9.230769231 | AR14: 9.230769231 | AS14: 2013-02-26 | AT14: =IF($AT$4=FALSE,B14*'Pricing - Advanced'!$K$5,AT13+E14-E13) -> 56 | AW14: 0 | AX14: 0 | AY14: 71.73076923 | AZ14: 71.73076923 | BA14: 71.73076923 | BB14: 71.73076923 | BC14: 71.73076923 | BE14: 8 | BF14: 56 | BG14: 0 | BH14: 71.73076923 | BI14: 1.14155 | BJ14: 0.01668605627 | BK14: 0 | BL14: 62.83629209 | BN14: 8 | BO14: 56 | BP14: 0 | BQ14: 71.73076923 | BR14: 1.14155 | BS14: 0.01668605627 | BT14: 0 | BU14: 62.83629209 | CI14: 1.022624928 | CJ14: 1.022546632 | CK14: 1.024336592 | CL14: 1.024336592 | CM14: 0 | CN14: 70.02656134 | DE14: 1.100876649 | DF14: 1.100514621 | DG14: 1.14155 | DH14: 1.14155 | DJ14: 1.100876649 | DK14: 1.100514621 | DL14: 1.14155 | DM14: 1.14155 | DO14: 1.100876649 | DP14: 1.100514621 | DQ14: 1.14155
B15: 9 | E15: 2013-03-05 | F15: 7 | H15: 62.5 | J15: 437.5 | K15: 9.230769231 | M15: -71.73076923 | N15: 0 | P15: -71.73076923 | Q15: 0.9632967033 | R15: =IF(J15>0,IF(OR(ManualMode=FALSE,ISBLANK(S15)),'Pricing - Advanced'!$F$16*J15+'Pricing - Advanced'!$F$17,"N/A"),0) -> 0 | T15: -71.73076923 | U15: =IF(OR(ManualMode=FALSE,ISBLANK(V15)),SUM(K15:L15)*'Pricing - Advanced'!$F$19+SUM(N15,O15)*'Pricing - Advanced'!$F$18,"N/A") -> 0 | W15: -71.73076923 | X15: ='Pricing - Advanced'!$F$20*SUM(H15:I15)+IF(J15>1,'Pricing - Advanced'!$F$21,0) -> 0 | Y15: =IF(AND(FullTerm>=B15,AB14>0),AB14*'Pricing - Advanced'!$I$128,0) -> 0 | Z15: 0 | AB15: 100 | AC15: -71.73076923 | AF15: 1000 | AG15: 100 | AH15: =IF(J15=0,0,J15-SUM($N$6:N15)-AB14) -> 337.5 | AI15: 0 | AJ15: 47250 | AK15: 40950 | AN15: x | AQ15: =IF(J14>1,IF(int_method=2,$AG$231*J14,$AG$231*'Pricing - Advanced'!$E$4),0) -> 9.230769231 | AR15: 9.230769231 | AS15: 2013-03-05 | AT15: =IF($AT$4=FALSE,B15*'Pricing - Advanced'!$K$5,AT14+E15-E14) -> 63 | AW15: 0 | AX15: 0 | AY15: 71.73076923 | AZ15: 71.73076923 | BA15: 71.73076923 | BB15: 71.73076923 | BC15: 71.73076923 | BE15: 9 | BF15: 63 | BG15: 0 | BH15: 71.73076923 | BI15: 1.160597968 | BJ15: 0.01668605627 | BK15: 0 | BL15: 61.80501021 | BN15: 9 | BO15: 63 | BP15: 0 | BQ15: 71.73076923 | BR15: 1.160597968 | BS15: 0.01668605627 | BT15: 0 | BU15: 61.80501021 | CI15: 1.025488801 | CJ15: 1.025400472 | CK15: 1.027420018 | CL15: 1.027420018 | CM15: 0 | CN15: 69.81640221 | DE15: 1.114181626 | DF15: 1.113769431 | DG15: 1.160597968 | DH15: 1.160597968 | DJ15: 1.114181626 | DK15: 1.113769431 | DL15: 1.160597968 | DM15: 1.160597968 | DO15: 1.114181626 | DP15: 1.113769431 | DQ15: 1.160597968
B16: 10 | E16: 2013-03-12 | F16: 7 | H16: 62.5 | J16: 375 | K16: 9.230769231 | M16: -71.73076923 | N16: 0 | P16: -71.73076923 | Q16: 1.100910518 | R16: =IF(J16>0,IF(OR(ManualMode=FALSE,ISBLANK(S16)),'Pricing - Advanced'!$F$16*J16+'Pricing - Advanced'!$F$17,"N/A"),0) -> 0 | T16: -71.73076923 | U16: =IF(OR(ManualMode=FALSE,ISBLANK(V16)),SUM(K16:L16)*'Pricing - Advanced'!$F$19+SUM(N16,O16)*'Pricing - Advanced'!$F$18,"N/A") -> 0 | W16: -71.73076923 | X16: ='Pricing - Advanced'!$F$20*SUM(H16:I16)+IF(J16>1,'Pricing - Advanced'!$F$21,0) -> 0 | Y16: =IF(AND(FullTerm>=B16,AB15>0),AB15*'Pricing - Advanced'!$I$128,0) -> 0 | Z16: 0 | AB16: 100 | AC16: -71.73076923 | AF16: 1000 | AG16: 100 | AH16: =IF(J16=0,0,J16-SUM($N$6:N16)-AB15) -> 275 | AI16: 0 | AJ16: 50312.5 | AK16: 43312.5 | AN16: x | AQ16: =IF(J15>1,IF(int_method=2,$AG$231*J15,$AG$231*'Pricing - Advanced'!$E$4),0) -> 9.230769231 | AR16: 9.230769231 | AS16: 2013-03-12 | AT16: =IF($AT$4=FALSE,B16*'Pricing - Advanced'!$K$5,AT15+E16-E15) -> 70 | AW16: 0 | AX16: 0 | AY16: 71.73076923 | AZ16: 71.73076923 | BA16: 71.73076923 | BB16: 71.73076923 | BC16: 71.73076923 | BE16: 10 | BF16: 70 | BG16: 0 | BH16: 71.73076923 | BI16: 1.179963771 | BJ16: 0.01668605627 | BK16: 0 | BL16: 60.79065394 | BN16: 10 | BO16: 70 | BP16: 0 | BQ16: 71.73076923 | BR16: 1.179963771 | BS16: 0.01668605627 | BT16: 0 | BU16: 60.79065394 | CI16: 1.028360694 | CJ16: 1.028262276 | CK16: 1.030512726 | CL16: 1.030512726 | CM16: 0 | CN16: 69.60687379 | DE16: 1.127647405 | DF16: 1.127183885 | DG16: 1.179963771 | DH16: 1.179963771 | DJ16: 1.127647405 | DK16: 1.127183885 | DL16: 1.179963771 | DM16: 1.179963771 | DO16: 1.127647405 | DP16: 1.127183885 | DQ16: 1.179963771
B17: 11 | E17: 2013-03-19 | F17: 7 | H17: 62.5 | J17: 312.5 | K17: 9.230769231 | M17: -71.73076923 | N17: 0 | P17: -71.73076923 | Q17: 1.284395604 | R17: =IF(J17>0,IF(OR(ManualMode=FALSE,ISBLANK(S17)),'Pricing - Advanced'!$F$16*J17+'Pricing - Advanced'!$F$17,"N/A"),0) -> 0 | T17: -71.73076923 | U17: =IF(OR(ManualMode=FALSE,ISBLANK(V17)),SUM(K17:L17)*'Pricing - Advanced'!$F$19+SUM(N17,O17)*'Pricing - Advanced'!$F$18,"N/A") -> 0 | W17: -71.73076923 | X17: ='Pricing - Advanced'!$F$20*SUM(H17:I17)+IF(J17>1,'Pricing - Advanced'!$F$21,0) -> 0 | Y17: =IF(AND(FullTerm>=B17,AB16>0),AB16*'Pricing - Advanced'!$I$128,0) -> 0 | Z17: 0 | AB17: 100 | AC17: -71.73076923 | AF17: 1000 | AG17: 100 | AH17: =IF(J17=0,0,J17-SUM($N$6:N17)-AB16) -> 212.5 | AI17: 0 | AJ17: 52937.5 | AK17: 45237.5 | AN17: x | AQ17: =IF(J16>1,IF(int_method=2,$AG$231*J16,$AG$231*'Pricing - Advanced'!$E$4),0) -> 9.230769231 | AR17: 9.230769231 | AS17: 2013-03-19 | AT17: =IF($AT$4=FALSE,B17*'Pricing - Advanced'!$K$5,AT16+E17-E16) -> 77 | AW17: 0 | AX17: 0 | AY17: 71.73076923 | AZ17: 71.73076923 | BA17: 71.73076923 | BB17: 71.73076923 | BC17: 71.73076923 | BE17: 11 | BF17: 77 | BG17: 0 | BH17: 71.73076923 | BI17: 1.199652712 | BJ17: 0.01668605627 | BK17: 0 | BL17: 59.79294548 | BN17: 11 | BO17: 77 | BP17: 0 | BQ17: 71.73076923 | BR17: 1.199652712 | BS17: 0.01668605627 | BT17: 0 | BU17: 59.79294548 | CI17: 1.031240631 | CJ17: 1.031132068 | CK17: 1.033614743 | CL17: 1.033614743 | CM17: 0 | CN17: 69.39797419 | DE17: 1.141275928 | DF17: 1.140759905 | DG17: 1.199652712 | DH17: 1.199652712 | DJ17: 1.141275928 | DK17: 1.140759905 | DL17: 1.199652712 | DM17: 1.199652712 | DO17: 1.141275928 | DP17: 1.140759905 | DQ17: 1.199652712
B18: 12 | E18: 2013-03-26 | F18: 7 | H18: 62.5 | J18: 250 | K18: 9.230769231 | M18: -71.73076923 | N18: 0 | P18: -71.73076923 | Q18: 1.541274725 | R18: =IF(J18>0,IF(OR(ManualMode=FALSE,ISBLANK(S18)),'Pricing - Advanced'!$F$16*J18+'Pricing - Advanced'!$F$17,"N/A"),0) -> 0 | T18: -71.73076923 | U18: =IF(OR(ManualMode=FALSE,ISBLANK(V18)),SUM(K18:L18)*'Pricing - Advanced'!$F$19+SUM(N18,O18)*'Pricing - Advanced'!$F$18,"N/A") -> 0 | W18: -71.73076923 | X18: ='Pricing - Advanced'!$F$20*SUM(H18:I18)+IF(J18>1,'Pricing - Advanced'!$F$21,0) -> 0 | Y18: =IF(AND(FullTerm>=B18,AB17>0),AB17*'Pricing - Advanced'!$I$128,0) -> 0 | Z18: 0 | AB18: 100 | AC18: -71.73076923 | AF18: 1000 | AG18: 100 | AH18: =IF(J18=0,0,J18-SUM($N$6:N18)-AB17) -> 150 | AI18: 0 | AJ18: 55125 | AK18: 46725 | AN18: x | AQ18: =IF(J17>1,IF(int_method=2,$AG$231*J17,$AG$231*'Pricing - Advanced'!$E$4),0) -> 9.230769231 | AR18: 9.230769231 | AS18: 2013-03-26 | AT18: =IF($AT$4=FALSE,B18*'Pricing - Advanced'!$K$5,AT17+E18-E17) -> 84 | AW18: 0 | AX18: 0 | AY18: 71.73076923 | AZ18: 71.73076923 | BA18: 71.73076923 | BB18: 71.73076923 | BC18: 71.73076923 | BE18: 12 | BF18: 84 | BG18: 0 | BH18: 71.73076923 | BI18: 1.219670185 | BJ18: =BI18/BI17-1 -> 0.01668605627 | BK18: =BG18/$BI18 -> 0 | BL18: =BH18/$BI18 -> 58.81161162 | BN18: 12 | BO18: 84 | BP18: 0 | BQ18: 71.73076923 | BR18: 1.219670185 | BS18: 0.01668605627 | BT18: 0 | BU18: 58.81161162 | CI18: 1.034128632 | CJ18: 1.034009869 | CK18: 1.036726097 | CL18: 1.036726097 | CM18: 0 | CN18: 69.18970153 | DE18: 1.155069163 | DF18: 1.154499437 | DG18: 1.219670185 | DH18: 1.219670185 | DJ18: 1.155069163 | DK18: 1.154499437 | DL18: 1.219670185 | DM18: 1.219670185 | DO18: 1.155069163 | DP18: 1.154499437 | DQ18: 1.219670185
B19: 13 | E19: 2013-04-02 | F19: =IF(AN19="x",E19-E18,0) -> 7 | H19: 62.5 | J19: 187.5 | K19: 9.230769231 | M19: -71.73076923 | N19: 0 | P19: -71.73076923 | Q19: 1.926593407 | R19: =IF(J19>0,IF(OR(ManualMode=FALSE,ISBLANK(S19)),'Pricing - Advanced'!$F$16*J19+'Pricing - Advanced'!$F$17,"N/A"),0) -> 0 | T19: -71.73076923 | U19: =IF(OR(ManualMode=FALSE,ISBLANK(V19)),SUM(K19:L19)*'Pricing - Advanced'!$F$19+SUM(N19,O19)*'Pricing - Advanced'!$F$18,"N/A") -> 0 | W19: -71.73076923 | X19: ='Pricing - Advanced'!$F$20*SUM(H19:I19)+IF(J19>1,'Pricing - Advanced'!$F$21,0) -> 0 | Y19: =IF(AND(FullTerm>=B19,AB18>0),AB18*'Pricing - Advanced'!$I$128,0) -> 0 | Z19: 0 | AB19: 100 | AC19: -71.73076923 | AF19: 1000 | AG19: 100 | AH19: =IF(J19=0,0,J19-SUM($N$6:N19)-AB18) -> 87.5 | AI19: 0 | AJ19: 56875 | AK19: 47775 | AN19: x | AQ19: =IF(J18>1,IF(int_method=2,$AG$231*J18,$AG$231*'Pricing - Advanced'!$E$4),0) -> 9.230769231 | AR19: 9.230769231 | AS19: 2013-04-02 | AT19: =IF($AT$4=FALSE,B19*'Pricing - Advanced'!$K$5,AT18+E19-E18) -> 91 | AW19: 0 | AX19: 0 | AY19: 71.73076923 | AZ19: 71.73076923 | BA19: 71.73076923 | BB19: 71.73076923 | BC19: 71.73076923 | BE19: 13 | BF19: 91 | BG19: 0 | BH19: 71.73076923 | BI19: 1.24002167 | BJ19: 0.01668605627 | BK19: 0 | BL19: 57.84638361 | BN19: 13 | BO19: 91 | BP19: 0 | BQ19: 71.73076923 | BR19: 1.24002167 | BS19: 0.01668605627 | BT19: 0 | BU19: 57.84638361 | CI19: 1.037024721 | CJ19: 1.036895702 | CK19: 1.039846817 | CL19: 1.039846817 | CM19: 0 | CN19: 68.98205392 | DE19: 1.1690291 | DF19: 1.168404451 | DG19: 1.24002167 | DH19: 1.24002167 | DJ19: 1.1690291 | DK19: 1.168404451 | DL19: 1.24002167 | DM19: 1.24002167 | DO19: 1.1690291 | DP19: 1.168404451 | DQ19: 1.24002167
B20: 14 | E20: 2013-04-09 | F20: 7 | H20: 62.5 | J20: 125 | K20: 9.230769231 | M20: -71.73076923 | N20: 0 | P20: -71.73076923 | Q20: 2.568791209 | R20: =IF(J20>0,IF(OR(ManualMode=FALSE,ISBLANK(S20)),'Pricing - Advanced'!$F$16*J20+'Pricing - Advanced'!$F$17,"N/A"),0) -> 0 | T20: -71.73076923 | U20: =IF(OR(ManualMode=FALSE,ISBLANK(V20)),SUM(K20:L20)*'Pricing - Advanced'!$F$19+SUM(N20,O20)*'Pricing - Advanced'!$F$18,"N/A") -> 0 | W20: -71.73076923 | X20: ='Pricing - Advanced'!$F$20*SUM(H20:I20)+IF(J20>1,'Pricing - Advanced'!$F$21,0) -> 0 | Y20: =IF(AND(FullTerm>=B20,AB19>0),AB19*'Pricing - Advanced'!$I$128,0) -> 0 | Z20: 0 | AB20: 100 | AC20: -71.73076923 | AF20: 1000 | AG20: 100 | AH20: =IF(J20=0,0,J20-SUM($N$6:N20)-AB19) -> 25 | AI20: 0 | AJ20: 58187.5 | AK20: 48387.5 | AN20: x | AQ20: =IF(J19>1,IF(int_method=2,$AG$231*J19,$AG$231*'Pricing - Advanced'!$E$4),0) -> 9.230769231 | AR20: 9.230769231 | AS20: 2013-04-09 | AT20: =IF($AT$4=FALSE,B20*'Pricing - Advanced'!$K$5,AT19+E20-E19) -> 98 | AW20: 0 | AX20: 0 | AY20: 71.73076923 | AZ20: 71.73076923 | BA20: 71.73076923 | BB20: 71.73076923 | BC20: 71.73076923 | BE20: 14 | BF20: 98 | BG20: 0 | BH20: 71.73076923 | BI20: 1.260712742 | BJ20: 0.01668605627 | BK20: 0 | BL20: 56.89699712 | BN20: 14 | BO20: 98 | BP20: 0 | BQ20: 71.73076923 | BR20: 1.260712742 | BS20: 0.01668605627 | BT20: 0 | BU20: 56.89699712 | CI20: 1.039928921 | CJ20: 1.039789589 | CK20: 1.042976932 | CL20: 1.042976932 | CM20: 0 | CN20: 68.7750295 | DE20: 1.183157755 | DF20: 1.182476939 | DG20: 1.260712742 | DH20: 1.260712742 | DJ20: 1.183157755 | DK20: 1.182476939 | DL20: 1.260712742 | DM20: 1.260712742 | DO20: 1.183157755 | DP20: 1.182476939 | DQ20: 1.260712742
B21: 15 | E21: 2013-04-16 | F21: 7 | H21: 62.5 | J21: 62.5 | K21: 9.230769231 | M21: -71.73076923 | N21: 0 | P21: -71.73076923 | Q21: 3.853186813 | R21: =IF(J21>0,IF(OR(ManualMode=FALSE,ISBLANK(S21)),'Pricing - Advanced'!$F$16*J21+'Pricing - Advanced'!$F$17,"N/A"),0) -> 0 | T21: -71.73076923 | U21: =IF(OR(ManualMode=FALSE,ISBLANK(V21)),SUM(K21:L21)*'Pricing - Advanced'!$F$19+SUM(N21,O21)*'Pricing - Advanced'!$F$18,"N/A") -> 0 | W21: -71.73076923 | X21: ='Pricing - Advanced'!$F$20*SUM(H21:I21)+IF(J21>1,'Pricing - Advanced'!$F$21,0) -> 0 | Y21: =IF(AND(FullTerm>=B21,AB20>0),AB20*'Pricing - Advanced'!$I$128,0) -> 0 | Z21: 0 | AB21: 100 | AC21: -71.73076923 | AF21: 1000 | AG21: 100 | AH21: =IF(J21=0,0,J21-SUM($N$6:N21)-AB20) -> -37.5 | AI21: 1 | AJ21: 59062.5 | AK21: 48562.5 | AN21: x | AQ21: =IF(J20>1,IF(int_method=2,$AG$231*J20,$AG$231*'Pricing - Advanced'!$E$4),0) -> 9.230769231 | AR21: 9.230769231 | AS21: 2013-04-16 | AT21: =IF($AT$4=FALSE,B21*'Pricing - Advanced'!$K$5,AT20+E21-E20) -> 105 | AW21: 0 | AX21: 0 | AY21: 71.73076923 | AZ21: 71.73076923 | BA21: 71.73076923 | BB21: 71.73076923 | BC21: 71.73076923 | BE21: 15 | BF21: 105 | BG21: 0 | BH21: 71.73076923 | BI21: 1.281749065 | BJ21: 0.01668605627 | BK21: 0 | BL21: 55.96319214 | BN21: 15 | BO21: 105 | BP21: 0 | BQ21: 71.73076923 | BR21: 1.281749065 | BS21: 0.01668605627 | BT21: 0 | BU21: 55.96319214 | CI21: 1.042841254 | CJ21: 1.042691552 | CK21: 1.046116468 | CL21: 1.046116468 | CM21: 0 | CN21: 68.56862638 | DE21: 1.197457165 | DF21: 1.196718919 | DG21: 1.281749065 | DH21: 1.281749065 | DJ21: 1.197457165 | DK21: 1.196718919 | DL21: 1.281749065 | DM21: 1.281749065 | DO21: 1.197457165 | DP21: 1.196718919 | DQ21: 1.281749065
B22: 16 | E22: 2013-04-23 | F22: 7 | H22: 62.5 | J22: 0 | K22: 9.230769231 | M22: -71.73076923 | N22: 0 | P22: -71.73076923 | Q22: 7.706373626 | R22: =IF(J22>0,IF(OR(ManualMode=FALSE,ISBLANK(S22)),'Pricing - Advanced'!$F$16*J22+'Pricing - Advanced'!$F$17,"N/A"),0) -> 0 | T22: -71.73076923 | U22: =IF(OR(ManualMode=FALSE,ISBLANK(V22)),SUM(K22:L22)*'Pricing - Advanced'!$F$19+SUM(N22,O22)*'Pricing - Advanced'!$F$18,"N/A") -> 0 | W22: -71.73076923 | X22: ='Pricing - Advanced'!$F$20*SUM(H22:I22)+IF(J22>1,'Pricing - Advanced'!$F$21,0) -> 0 | Y22: =IF(AND(FullTerm>=B22,AB21>0),AB21*'Pricing - Advanced'!$I$128,0) -> 0 | Z22: 100 | AB22: 0 | AC22: 28.26923077 | AF22: 1000 | AH22: =IF(J22=0,0,J22-SUM($N$6:N22)-AB21) -> 0 | AI22: 0 | AJ22: 59500 | AK22: 48300 | AN22: x | AQ22: =IF(J21>1,IF(int_method=2,$AG$231*J21,$AG$231*'Pricing - Advanced'!$E$4),0) -> 9.230769231 | AR22: 9.230769231 | AS22: 2013-04-23 | AT22: =IF($AT$4=FALSE,B22*'Pricing - Advanced'!$K$5,AT21+E22-E21) -> 112 | AW22: 0 | AX22: 100 | AY22: 71.73076923 | AZ22: 71.73076923 | BA22: 71.73076923 | BB22: 71.73076923 | BC22: 71.73076923 | BE22: 16 | BF22: 112 | BG22: 0 | BH22: 71.73076923 | BI22: 1.303136403 | BJ22: 0.01668605627 | BK22: 0 | BL22: 55.04471297 | BN22: 16 | BO22: 112 | BP22: 0 | BQ22: 71.73076923 | BR22: 1.303136403 | BS22: 0.01668605627 | BT22: 0 | BU22: 55.04471297 | CI22: 1.045761743 | CJ22: 1.045601615 | CK22: 1.049265455 | CL22: 1.049265455 | CM22: 95.3047673 | CN22: 68.3628427 | DE22: 1.211929395 | DF22: 1.211132432 | DG22: 1.303136403 | DH22: 1.303136403 | DJ22: 1.211929395 | DK22: 1.211132432 | DL22: 1.303136403 | DM22: 1.303136403 | DO22: 1.211929395 | DP22: 1.211132432 | DQ22: 1.303136403
B23: 17 | E23: 2013-04-30 | F23: 0 | H23: 0 | J23: 0 | K23: 0 | M23: 0 | N23: 0 | P23: 0 | Q23: 0 | R23: =IF(J23>0,IF(OR(ManualMode=FALSE,ISBLANK(S23)),'Pricing - Advanced'!$F$16*J23+'Pricing - Advanced'!$F$17,"N/A"),0) -> 0 | T23: 0 | U23: =IF(OR(ManualMode=FALSE,ISBLANK(V23)),SUM(K23:L23)*'Pricing - Advanced'!$F$19+SUM(N23,O23)*'Pricing - Advanced'!$F$18,"N/A") -> 0 | W23: 0 | X23: ='Pricing - Advanced'!$F$20*SUM(H23:I23)+IF(J23>1,'Pricing - Advanced'!$F$21,0) -> 0 | Y23: =IF(AND(FullTerm>=B23,AB22>0),AB22*'Pricing - Advanced'!$I$128,0) -> 0 | Z23: 0 | AB23: 0 | AC23: 0 | AF23: 1000 | AH23: =IF(J23=0,0,J23-SUM($N$6:N23)-AB22) -> 0 | AI23: 0 | AJ23: 59500 | AK23: 48300 | AN23: TRUE | AQ23: =IF(J22>1,IF(int_method=2,$AG$231*J22,$AG$231*'Pricing - Advanced'!$E$4),0) -> 0 | AR23: 0 | AS23: 2013-04-30 | AT23: =IF($AT$4=FALSE,B23*'Pricing - Advanced'!$K$5,AT22+E23-E22) -> 119 | AW23: 0 | AX23: 0 | AY23: 0 | AZ23: 0 | BA23: 0 | BB23: 0 | BC23: 0 | BE23: 17 | BF23: 119 | BG23: 0 | BH23: 0 | BI23: 1.32488061 | BJ23: 0.01668605627 | BK23: 0 | BL23: 0 | BN23: 17 | BO23: 119 | BP23: 0 | BQ23: 0 | BR23: 1.32488061 | BS23: 0.01668605627 | BT23: 0 | BU23: 0 | CI23: 1.048690411 | CJ23: 1.048519799 | CK23: 1.052423921 | CL23: 1.052423921 | CM23: 0 | CN23: 0 | DE23: 1.226576534 | DF23: 1.225719544 | DG23: 1.32488061 | DH23: 1.32488061 | DJ23: 1.226576534 | DK23: 1.225719544 | DL23: 1.32488061 | DM23: 1.32488061 | DO23: 1.226576534 | DP23: 1.225719544 | DQ23: 1.32488061
B24: 18 | E24: 2013-05-07 | F24: 0 | H24: 0 | J24: 0 | K24: 0 | M24: 0 | N24: 0 | P24: 0 | Q24: 0 | R24: =IF(J24>0,IF(OR(ManualMode=FALSE,ISBLANK(S24)),'Pricing - Advanced'!$F$16*J24+'Pricing - Advanced'!$F$17,"N/A"),0) -> 0 | T24: 0 | U24: =IF(OR(ManualMode=FALSE,ISBLANK(V24)),SUM(K24:L24)*'Pricing - Advanced'!$F$19+SUM(N24,O24)*'Pricing - Advanced'!$F$18,"N/A") -> 0 | W24: 0 | X24: ='Pricing - Advanced'!$F$20*SUM(H24:I24)+IF(J24>1,'Pricing - Advanced'!$F$21,0) -> 0 | Y24: =IF(AND(FullTerm>=B24,AB23>0),AB23*'Pricing - Advanced'!$I$128,0) -> 0 | Z24: 0 | AB24: 0 | AC24: 0 | AF24: 1000 | AH24: =IF(J24=0,0,J24-SUM($N$6:N24)-AB23) -> 0 | AI24: 0 | AJ24: 59500 | AK24: 48300 | AN24: TRUE | AQ24: =IF(J23>1,IF(int_method=2,$AG$231*J23,$AG$231*'Pricing - Advanced'!$E$4),0) -> 0 | AR24: 0 | AS24: 2013-05-07 | AT24: =IF($AT$4=FALSE,B24*'Pricing - Advanced'!$K$5,AT23+E24-E23) -> 126 | AW24: 0 | AX24: 0 | AY24: 0 | AZ24: 0 | BA24: 0 | BB24: 0 | BC24: 0 | BE24: 18 | BF24: 126 | BG24: 0 | BH24: 0 | BI24: 1.346987642 | BJ24: 0.01668605627 | BK24: 0 | BL24: 0 | BN24: 18 | BO24: 126 | BP24: 0 | BQ24: 0 | BR24: 1.346987642 | BS24: 0.01668605627 | BT24: 0 | BU24: 0 | CI24: 1.051627281 | CJ24: 1.051446128 | CK24: 1.055591894 | CL24: 1.055591894 | CM24: 0 | CN24: 0 | DE24: 1.241400696 | DF24: 1.240482347 | DG24: 1.346987642 | DH24: 1.346987642 | DJ24: 1.241400696 | DK24: 1.240482347 | DL24: 1.346987642 | DM24: 1.346987642 | DO24: 1.241400696 | DP24: 1.240482347 | DQ24: 1.346987642
B25: 19 | E25: 2013-05-14 | F25: 0 | H25: 0 | J25: 0 | K25: 0 | M25: 0 | N25: 0 | P25: 0 | Q25: 0 | R25: =IF(J25>0,IF(OR(ManualMode=FALSE,ISBLANK(S25)),'Pricing - Advanced'!$F$16*J25+'Pricing - Advanced'!$F$17,"N/A"),0) -> 0 | T25: 0 | U25: =IF(OR(ManualMode=FALSE,ISBLANK(V25)),SUM(K25:L25)*'Pricing - Advanced'!$F$19+SUM(N25,O25)*'Pricing - Advanced'!$F$18,"N/A") -> 0 | W25: 0 | X25: ='Pricing - Advanced'!$F$20*SUM(H25:I25)+IF(J25>1,'Pricing - Advanced'!$F$21,0) -> 0 | Y25: =IF(AND(FullTerm>=B25,AB24>0),AB24*'Pricing - Advanced'!$I$128,0) -> 0 | Z25: 0 | AB25: 0 | AC25: 0 | AF25: 1000 | AH25: =IF(J25=0,0,J25-SUM($N$6:N25)-AB24) -> 0 | AI25: 0 | AJ25: 59500 | AK25: 48300 | AN25: TRUE | AQ25: =IF(J24>1,IF(int_method=2,$AG$231*J24,$AG$231*'Pricing - Advanced'!$E$4),0) -> 0 | AR25: 0 | AS25: 2013-05-14 | AT25: =IF($AT$4=FALSE,B25*'Pricing - Advanced'!$K$5,AT24+E25-E24) -> 133 | AW25: 0 | AX25: 0 | AY25: 0 | AZ25: 0 | BA25: 0 | BB25: 0 | BC25: 0 | BE25: 19 | BF25: 133 | BG25: 0 | BH25: 0 | BI25: 1.369463554 | BJ25: 0.01668605627 | BK25: 0 | BL25: 0 | BN25: 19 | BO25: 133 | BP25: 0 | BQ25: 0 | BR25: 1.369463554 | BS25: 0.01668605627 | BT25: 0 | BU25: 0 | CI25: 1.054572376 | CJ25: 1.054380623 | CK25: 1.058769403 | CL25: 1.058769403 | CM25: 0 | CN25: 0 | DE25: 1.256404019 | DF25: 1.255422955 | DG25: 1.369463554 | DH25: 1.369463554 | DJ25: 1.256404019 | DK25: 1.255422955 | DL25: 1.369463554 | DM25: 1.369463554 | DO25: 1.256404019 | DP25: 1.255422955 | DQ25: 1.369463554
B26: 20 | E26: 2013-05-21 | F26: 0 | H26: 0 | J26: 0 | K26: 0 | M26: 0 | N26: 0 | P26: 0 | Q26: 0 | R26: =IF(J26>0,IF(OR(ManualMode=FALSE,ISBLANK(S26)),'Pricing - Advanced'!$F$16*J26+'Pricing - Advanced'!$F$17,"N/A"),0) -> 0 | T26: 0 | U26: =IF(OR(ManualMode=FALSE,ISBLANK(V26)),SUM(K26:L26)*'Pricing - Advanced'!$F$19+SUM(N26,O26)*'Pricing - Advanced'!$F$18,"N/A") -> 0 | W26: 0 | X26: ='Pricing - Advanced'!$F$20*SUM(H26:I26)+IF(J26>1,'Pricing - Advanced'!$F$21,0) -> 0 | Y26: =IF(AND(FullTerm>=B26,AB25>0),AB25*'Pricing - Advanced'!$I$128,0) -> 0 | Z26: 0 | AB26: 0 | AC26: 0 | AF26: 1000 | AH26: =IF(J26=0,0,J26-SUM($N$6:N26)-AB25) -> 0 | AI26: 0 | AJ26: 59500 | AK26: 48300 | AN26: TRUE | AQ26: =IF(J25>1,IF(int_method=2,$AG$231*J25,$AG$231*'Pricing - Advanced'!$E$4),0) -> 0 | AR26: 0 | AS26: 2013-05-21 | AT26: =IF($AT$4=FALSE,B26*'Pricing - Advanced'!$K$5,AT25+E26-E25) -> 140 | AW26: 0 | AX26: 0 | AY26: 0 | AZ26: 0 | BA26: 0 | BB26: 0 | BC26: 0 | BE26: 20 | BF26: 140 | BG26: 0 | BH26: 0 | BI26: 1.3923145 | BJ26: 0.01668605627 | BK26: 0 | BL26: 0 | BN26: 20 | BO26: 140 | BP26: 0 | BQ26: 0 | BR26: 1.3923145 | BS26: 0.01668605627 | BT26: 0 | BU26: 0 | CI26: 1.057525718 | CJ26: 1.057323309 | CK26: 1.061956478 | CL26: 1.061956478 | CM26: 0 | CN26: 0 | DE26: 1.271588669 | DF26: 1.270543511 | DG26: 1.3923145 | DH26: 1.3923145 | DJ26: 1.271588669 | DK26: 1.270543511 | DL26: 1.3923145 | DM26: 1.3923145 | DO26: 1.271588669 | DP26: 1.270543511 | DQ26: 1.3923145
B27: 21 | E27: 2013-05-28 | F27: 0 | H27: 0 | J27: 0 | K27: 0 | M27: 0 | N27: 0 | P27: 0 | Q27: 0 | R27: =IF(J27>0,IF(OR(ManualMode=FALSE,ISBLANK(S27)),'Pricing - Advanced'!$F$16*J27+'Pricing - Advanced'!$F$17,"N/A"),0) -> 0 | T27: 0 | U27: =IF(OR(ManualMode=FALSE,ISBLANK(V27)),SUM(K27:L27)*'Pricing - Advanced'!$F$19+SUM(N27,O27)*'Pricing - Advanced'!$F$18,"N/A") -> 0 | W27: 0 | X27: ='Pricing - Advanced'!$F$20*SUM(H27:I27)+IF(J27>1,'Pricing - Advanced'!$F$21,0) -> 0 | Y27: =IF(AND(FullTerm>=B27,AB26>0),AB26*'Pricing - Advanced'!$I$128,0) -> 0 | Z27: 0 | AB27: 0 | AC27: 0 | AF27: 1000 | AH27: =IF(J27=0,0,J27-SUM($N$6:N27)-AB26) -> 0 | AI27: 0 | AJ27: 59500 | AK27: 48300 | AN27: TRUE | AQ27: =IF(J26>1,IF(int_method=2,$AG$231*J26,$AG$231*'Pricing - Advanced'!$E$4),0) -> 0 | AR27: 0 | AS27: 2013-05-28 | AT27: =IF($AT$4=FALSE,B27*'Pricing - Advanced'!$K$5,AT26+E27-E26) -> 147 | AW27: 0 | AX27: 0 | AY27: 0 | AZ27: 0 | BA27: 0 | BB27: 0 | BC27: 0 | BE27: 21 | BF27: 147 | BG27: 0 | BH27: 0 | BI27: 1.415546738 | BJ27: 0.01668605627 | BK27: 0 | BL27: 0 | BN27: 21 | BO27: 147 | BP27: 0 | BQ27: 0 | BR27: 1.415546738 | BS27: 0.01668605627 | BT27: 0 | BU27: 0 | CI27: 1.060487331 | CJ27: 1.060274208 | CK27: 1.065153146 | CL27: 1.065153146 | CM27: 0 | CN27: 0 | DE27: 1.286956838 | DF27: 1.285846182 | DG27: 1.415546738 | DH27: 1.415546738 | DJ27: 1.286956838 | DK27: 1.285846182 | DL27: 1.415546738 | DM27: 1.415546738 | DO27: 1.286956838 | DP27: 1.285846182 | DQ27: 1.415546738
B28: 22 | E28: 2013-06-04 | F28: 0 | H28: 0 | J28: 0 | K28: 0 | M28: 0 | N28: 0 | P28: 0 | Q28: 0 | R28: =IF(J28>0,IF(OR(ManualMode=FALSE,ISBLANK(S28)),'Pricing - Advanced'!$F$16*J28+'Pricing - Advanced'!$F$17,"N/A"),0) -> 0 | T28: 0 | U28: =IF(OR(ManualMode=FALSE,ISBLANK(V28)),SUM(K28:L28)*'Pricing - Advanced'!$F$19+SUM(N28,O28)*'Pricing - Advanced'!$F$18,"N/A") -> 0 | W28: 0 | X28: ='Pricing - Advanced'!$F$20*SUM(H28:I28)+IF(J28>1,'Pricing - Advanced'!$F$21,0) -> 0 | Y28: =IF(AND(FullTerm>=B28,AB27>0),AB27*'Pricing - Advanced'!$I$128,0) -> 0 | Z28: 0 | AB28: 0 | AC28: 0 | AF28: 1000 | AH28: =IF(J28=0,0,J28-SUM($N$6:N28)-AB27) -> 0 | AI28: 0 | AJ28: 59500 | AK28: 48300 | AN28: TRUE | AQ28: =IF(J27>1,IF(int_method=2,$AG$231*J27,$AG$231*'Pricing - Advanced'!$E$4),0) -> 0 | AR28: 0 | AS28: 2013-06-04 | AT28: =IF($AT$4=FALSE,B28*'Pricing - Advanced'!$K$5,AT27+E28-E27) -> 154 | AW28: 0 | AX28: 0 | AY28: 0 | AZ28: 0 | BA28: 0 | BB28: 0 | BC28: 0 | BE28: 22 | BF28: 154 | BG28: 0 | BH28: 0 | BI28: 1.43916663 | BJ28: 0.01668605627 | BK28: 0 | BL28: 0 | BN28: 22 | BO28: 154 | BP28: 0 | BQ28: 0 | BR28: 1.43916663 | BS28: 0.01668605627 | BT28: 0 | BU28: 0 | CI28: 1.063457238 | CJ28: 1.063233342 | CK28: 1.068359436 | CL28: 1.068359436 | CM28: 0 | CN28: 0 | DE28: 1.302510744 | DF28: 1.301333161 | DG28: 1.43916663 | DH28: 1.43916663 | DJ28: 1.302510744 | DK28: 1.301333161 | DL28: 1.43916663 | DM28: 1.43916663 | DO28: 1.302510744 | DP28: 1.301333161 | DQ28: 1.43916663
B29: 23 | E29: 2013-06-11 | F29: 0 | H29: 0 | J29: 0 | K29: 0 | M29: 0 | N29: 0 | P29: 0 | Q29: 0 | R29: =IF(J29>0,IF(OR(ManualMode=FALSE,ISBLANK(S29)),'Pricing - Advanced'!$F$16*J29+'Pricing - Advanced'!$F$17,"N/A"),0) -> 0 | T29: 0 | U29: =IF(OR(ManualMode=FALSE,ISBLANK(V29)),SUM(K29:L29)*'Pricing - Advanced'!$F$19+SUM(N29,O29)*'Pricing - Advanced'!$F$18,"N/A") -> 0 | W29: 0 | X29: ='Pricing - Advanced'!$F$20*SUM(H29:I29)+IF(J29>1,'Pricing - Advanced'!$F$21,0) -> 0 | Y29: =IF(AND(FullTerm>=B29,AB28>0),AB28*'Pricing - Advanced'!$I$128,0) -> 0 | Z29: 0 | AB29: 0 | AC29: 0 | AF29: 1000 | AH29: =IF(J29=0,0,J29-SUM($N$6:N29)-AB28) -> 0 | AI29: 0 | AJ29: 59500 | AK29: 48300 | AN29: TRUE | AQ29: =IF(J28>1,IF(int_method=2,$AG$231*J28,$AG$231*'Pricing - Advanced'!$E$4),0) -> 0 | AR29: 0 | AS29: 2013-06-11 | AT29: =IF($AT$4=FALSE,B29*'Pricing - Advanced'!$K$5,AT28+E29-E28) -> 161 | AW29: 0 | AX29: 0 | AY29: 0 | AZ29: 0 | BA29: 0 | BB29: 0 | BC29: 0 | BE29: 23 | BF29: 161 | BG29: 0 | BH29: 0 | BI29: 1.463180646 | BJ29: 0.01668605627 | BK29: 0 | BL29: 0 | BN29: 23 | BO29: 161 | BP29: 0 | BQ29: 0 | BR29: 1.463180646 | BS29: 0.01668605627 | BT29: 0 | BU29: 0 | CI29: 1.066435462 | CJ29: 1.066200735 | CK29: 1.071575378 | CL29: 1.071575378 | CM29: 0 | CN29: 0 | DE29: 1.318252631 | DF29: 1.317006668 | DG29: 1.463180646 | DH29: 1.463180646 | DJ29: 1.318252631 | DK29: 1.317006668 | DL29: 1.463180646 | DM29: 1.463180646 | DO29: 1.318252631 | DP29: 1.317006668 | DQ29: 1.463180646
B30: 24 | E30: 2013-06-18 | F30: 0 | H30: 0 | J30: 0 | K30: 0 | M30: 0 | N30: 0 | P30: 0 | Q30: 0 | R30: =IF(J30>0,IF(OR(ManualMode=FALSE,ISBLANK(S30)),'Pricing - Advanced'!$F$16*J30+'Pricing - Advanced'!$F$17,"N/A"),0) -> 0 | T30: 0 | U30: =IF(OR(ManualMode=FALSE,ISBLANK(V30)),SUM(K30:L30)*'Pricing - Advanced'!$F$19+SUM(N30,O30)*'Pricing - Advanced'!$F$18,"N/A") -> 0 | W30: 0 | X30: ='Pricing - Advanced'!$F$20*SUM(H30:I30)+IF(J30>1,'Pricing - Advanced'!$F$21,0) -> 0 | Y30: =IF(AND(FullTerm>=B30,AB29>0),AB29*'Pricing - Advanced'!$I$128,0) -> 0 | Z30: 0 | AB30: 0 | AC30: 0 | AF30: 1000 | AH30: =IF(J30=0,0,J30-SUM($N$6:N30)-AB29) -> 0 | AI30: 0 | AJ30: 59500 | AK30: 48300 | AN30: TRUE | AQ30: =IF(J29>1,IF(int_method=2,$AG$231*J29,$AG$231*'Pricing - Advanced'!$E$4),0) -> 0 | AR30: 0 | AS30: 2013-06-18 | AT30: =IF($AT$4=FALSE,B30*'Pricing - Advanced'!$K$5,AT29+E30-E29) -> 168 | AW30: 0 | AX30: 0 | AY30: 0 | AZ30: 0 | BA30: 0 | BB30: 0 | BC30: 0 | BE30: 24 | BF30: 168 | BG30: 0 | BH30: 0 | BI30: 1.48759536 | BJ30: 0.01668605627 | BK30: 0 | BL30: 0 | BN30: 24 | BO30: 168 | BP30: 0 | BQ30: 0 | BR30: 1.48759536 | BS30: 0.01668605627 | BT30: 0 | BU30: 0 | CI30: 1.069422027 | CJ30: 1.069176409 | CK30: 1.074801 | CL30: 1.074801 | CM30: 0 | CN30: 0 | DE30: 1.334184771 | DF30: 1.33286895 | DG30: 1.48759536 | DH30: 1.48759536 | DJ30: 1.334184771 | DK30: 1.33286895 | DL30: 1.48759536 | DM30: 1.48759536 | DO30: 1.334184771 | DP30: 1.33286895 | DQ30: 1.48759536
B31: 25 | E31: 2013-06-25 | F31: 0 | H31: 0 | J31: 0 | K31: 0 | M31: 0 | N31: 0 | P31: 0 | Q31: 0 | R31: =IF(J31>0,IF(OR(ManualMode=FALSE,ISBLANK(S31)),'Pricing - Advanced'!$F$16*J31+'Pricing - Advanced'!$F$17,"N/A"),0) -> 0 | T31: 0 | U31: =IF(OR(ManualMode=FALSE,ISBLANK(V31)),SUM(K31:L31)*'Pricing - Advanced'!$F$19+SUM(N31,O31)*'Pricing - Advanced'!$F$18,"N/A") -> 0 | W31: 0 | X31: ='Pricing - Advanced'!$F$20*SUM(H31:I31)+IF(J31>1,'Pricing - Advanced'!$F$21,0) -> 0 | Y31: =IF(AND(FullTerm>=B31,AB30>0),AB30*'Pricing - Advanced'!$I$128,0) -> 0 | Z31: 0 | AB31: 0 | AC31: 0 | AF31: 1000 | AH31: =IF(J31=0,0,J31-SUM($N$6:N31)-AB30) -> 0 | AI31: 0 | AJ31: 59500 | AK31: 48300 | AN31: TRUE | AQ31: =IF(J30>1,IF(int_method=2,$AG$231*J30,$AG$231*'Pricing - Advanced'!$E$4),0) -> 0 | AR31: 0 | AS31: 2013-06-25 | AT31: =IF($AT$4=FALSE,B31*'Pricing - Advanced'!$K$5,AT30+E31-E30) -> 175 | AW31: 0 | AX31: 0 | AY31: 0 | AZ31: 0 | BA31: 0 | BB31: 0 | BC31: 0 | BE31: 25 | BF31: 175 | BG31: 0 | BH31: 0 | BI31: 1.51241746 | BJ31: 0.01668605627 | BK31: 0 | BL31: 0 | BN31: 25 | BO31: 175 | BP31: 0 | BQ31: 0 | BR31: 1.51241746 | BS31: 0.01668605627 | BT31: 0 | BU31: 0 | CI31: 1.072416956 | CJ31: 1.072160389 | CK31: 1.078036333 | CL31: 1.078036333 | CM31: 0 | CN31: 0 | DE31: 1.350309464 | DF31: 1.34892228 | DG31: 1.51241746 | DH31: 1.51241746 | DJ31: 1.350309464 | DK31: 1.34892228 | DL31: 1.51241746 | DM31: 1.51241746 | DO31: 1.350309464 | DP31: 1.34892228 | DQ31: 1.51241746
B32: 26 | E32: 2013-07-02 | F32: 0 | H32: 0 | J32: 0 | K32: 0 | M32: 0 | N32: 0 | P32: 0 | Q32: 0 | R32: =IF(J32>0,IF(OR(ManualMode=FALSE,ISBLANK(S32)),'Pricing - Advanced'!$F$16*J32+'Pricing - Advanced'!$F$17,"N/A"),0) -> 0 | T32: 0 | U32: =IF(OR(ManualMode=FALSE,ISBLANK(V32)),SUM(K32:L32)*'Pricing - Advanced'!$F$19+SUM(N32,O32)*'Pricing - Advanced'!$F$18,"N/A") -> 0 | W32: 0 | X32: ='Pricing - Advanced'!$F$20*SUM(H32:I32)+IF(J32>1,'Pricing - Advanced'!$F$21,0) -> 0 | Y32: =IF(AND(FullTerm>=B32,AB31>0),AB31*'Pricing - Advanced'!$I$128,0) -> 0 | Z32: 0 | AB32: 0 | AC32: 0 | AF32: 1000 | AH32: =IF(J32=0,0,J32-SUM($N$6:N32)-AB31) -> 0 | AI32: 0 | AJ32: 59500 | AK32: 48300 | AN32: TRUE | AQ32: =IF(J31>1,IF(int_method=2,$AG$231*J31,$AG$231*'Pricing - Advanced'!$E$4),0) -> 0 | AR32: 0 | AS32: 2013-07-02 | AT32: =IF($AT$4=FALSE,B32*'Pricing - Advanced'!$K$5,AT31+E32-E31) -> 182 | AW32: 0 | AX32: 0 | AY32: 0 | AZ32: 0 | BA32: 0 | BB32: 0 | BC32: 0 | BE32: 26 | BF32: 182 | BG32: 0 | BH32: 0 | BI32: 1.537653743 | BJ32: 0.01668605627 | BK32: 0 | BL32: 0 | BN32: 26 | BO32: 182 | BP32: 0 | BQ32: 0 | BR32: 1.537653743 | BS32: 0.01668605627 | BT32: 0 | BU32: 0 | CI32: 1.075420273 | CJ32: 1.075152696 | CK32: 1.081281404 | CL32: 1.081281404 | CM32: 0 | CN32: 0 | DE32: 1.366629037 | DF32: 1.36516896 | DG32: 1.537653743 | DH32: 1.537653743 | DJ32: 1.366629037 | DK32: 1.36516896 | DL32: 1.537653743 | DM32: 1.537653743 | DO32: 1.366629037 | DP32: 1.36516896 | DQ32: 1.537653743
B33: 27 | E33: 2013-07-09 | F33: 0 | H33: 0 | J33: 0 | K33: 0 | M33: 0 | N33: 0 | P33: 0 | Q33: 0 | R33: =IF(J33>0,IF(OR(ManualMode=FALSE,ISBLANK(S33)),'Pricing - Advanced'!$F$16*J33+'Pricing - Advanced'!$F$17,"N/A"),0) -> 0 | T33: 0 | U33: =IF(OR(ManualMode=FALSE,ISBLANK(V33)),SUM(K33:L33)*'Pricing - Advanced'!$F$19+SUM(N33,O33)*'Pricing - Advanced'!$F$18,"N/A") -> 0 | W33: 0 | X33: ='Pricing - Advanced'!$F$20*SUM(H33:I33)+IF(J33>1,'Pricing - Advanced'!$F$21,0) -> 0 | Y33: =IF(AND(FullTerm>=B33,AB32>0),AB32*'Pricing - Advanced'!$I$128,0) -> 0 | Z33: 0 | AB33: 0 | AC33: 0 | AF33: 1000 | AH33: =IF(J33=0,0,J33-SUM($N$6:N33)-AB32) -> 0 | AI33: 0 | AJ33: 59500 | AK33: 48300 | AN33: TRUE | AQ33: =IF(J32>1,IF(int_method=2,$AG$231*J32,$AG$231*'Pricing - Advanced'!$E$4),0) -> 0 | AR33: 0 | AS33: 2013-07-09 | AT33: =IF($AT$4=FALSE,B33*'Pricing - Advanced'!$K$5,AT32+E33-E32) -> 189 | AW33: 0 | AX33: 0 | AY33: 0 | AZ33: 0 | BA33: 0 | BB33: 0 | BC33: 0 | BE33: 27 | BF33: 189 | BG33: 0 | BH33: 0 | BI33: 1.56331112 | BJ33: 0.01668605627 | BK33: 0 | BL33: 0 | BN33: 27 | BO33: 189 | BP33: 0 | BQ33: 0 | BR33: 1.56331112 | BS33: 0.01668605627 | BT33: 0 | BU33: 0 | CI33: 1.078432 | CJ33: 1.078153355 | CK33: 1.084536243 | CL33: 1.084536243 | CM33: 0 | CN33: 0 | DE33: 1.383145845 | DF33: 1.381611318 | DG33: 1.56331112 | DH33: 1.56331112 | DJ33: 1.383145845 | DK33: 1.381611318 | DL33: 1.56331112 | DM33: 1.56331112 | DO33: 1.383145845 | DP33: 1.381611318 | DQ33: 1.56331112
B34: 28 | E34: 2013-07-16 | F34: 0 | H34: 0 | J34: 0 | K34: 0 | M34: 0 | N34: 0 | P34: 0 | Q34: 0 | R34: =IF(J34>0,IF(OR(ManualMode=FALSE,ISBLANK(S34)),'Pricing - Advanced'!$F$16*J34+'Pricing - Advanced'!$F$17,"N/A"),0) -> 0 | T34: 0 | U34: =IF(OR(ManualMode=FALSE,ISBLANK(V34)),SUM(K34:L34)*'Pricing - Advanced'!$F$19+SUM(N34,O34)*'Pricing - Advanced'!$F$18,"N/A") -> 0 | W34: 0 | X34: ='Pricing - Advanced'!$F$20*SUM(H34:I34)+IF(J34>1,'Pricing - Advanced'!$F$21,0) -> 0 | Y34: =IF(AND(FullTerm>=B34,AB33>0),AB33*'Pricing - Advanced'!$I$128,0) -> 0 | Z34: 0 | AB34: 0 | AC34: 0 | AF34: 1000 | AH34: =IF(J34=0,0,J34-SUM($N$6:N34)-AB33) -> 0 | AI34: 0 | AJ34: 59500 | AK34: 48300 | AN34: TRUE | AQ34: =IF(J33>1,IF(int_method=2,$AG$231*J33,$AG$231*'Pricing - Advanced'!$E$4),0) -> 0 | AR34: 0 | AS34: 2013-07-16 | AT34: =IF($AT$4=FALSE,B34*'Pricing - Advanced'!$K$5,AT33+E34-E33) -> 196 | AW34: 0 | AX34: 0 | AY34: 0 | AZ34: 0 | BA34: 0 | BB34: 0 | BC34: 0 | BE34: 28 | BF34: 196 | BG34: 0 | BH34: 0 | BI34: 1.589396617 | BJ34: 0.01668605627 | BK34: 0 | BL34: 0 | BN34: 28 | BO34: 196 | BP34: 0 | BQ34: 0 | BR34: 1.589396617 | BS34: 0.01668605627 | BT34: 0 | BU34: 0 | CI34: 1.081452161 | CJ34: 1.081162389 | CK34: 1.08780088 | CL34: 1.08780088 | CM34: 0 | CN34: 0 | DE34: 1.399862272 | DF34: 1.398251711 | DG34: 1.589396617 | DH34: 1.589396617 | DJ34: 1.399862272 | DK34: 1.398251711 | DL34: 1.589396617 | DM34: 1.589396617 | DO34: 1.399862272 | DP34: 1.398251711 | DQ34: 1.589396617
B35: 29 | E35: 2013-07-23 | F35: 0 | H35: 0 | J35: 0 | K35: 0 | M35: 0 | N35: 0 | P35: 0 | Q35: 0 | R35: =IF(J35>0,IF(OR(ManualMode=FALSE,ISBLANK(S35)),'Pricing - Advanced'!$F$16*J35+'Pricing - Advanced'!$F$17,"N/A"),0) -> 0 | T35: 0 | U35: =IF(OR(ManualMode=FALSE,ISBLANK(V35)),SUM(K35:L35)*'Pricing - Advanced'!$F$19+SUM(N35,O35)*'Pricing - Advanced'!$F$18,"N/A") -> 0 | W35: 0 | X35: ='Pricing - Advanced'!$F$20*SUM(H35:I35)+IF(J35>1,'Pricing - Advanced'!$F$21,0) -> 0 | Y35: =IF(AND(FullTerm>=B35,AB34>0),AB34*'Pricing - Advanced'!$I$128,0) -> 0 | Z35: 0 | AB35: 0 | AC35: 0 | AF35: 1000 | AH35: =IF(J35=0,0,J35-SUM($N$6:N35)-AB34) -> 0 | AI35: 0 | AJ35: 59500 | AK35: 48300 | AN35: TRUE | AQ35: =IF(J34>1,IF(int_method=2,$AG$231*J34,$AG$231*'Pricing - Advanced'!$E$4),0) -> 0 | AR35: 0 | AS35: 2013-07-23 | AT35: =IF($AT$4=FALSE,B35*'Pricing - Advanced'!$K$5,AT34+E35-E34) -> 203 | AW35: 0 | AX35: 0 | AY35: 0 | AZ35: 0 | BA35: 0 | BB35: 0 | BC35: 0 | BE35: 29 | BF35: 203 | BG35: 0 | BH35: 0 | BI35: 1.615917379 | BJ35: 0.01668605627 | BK35: 0 | BL35: 0 | BN35: 29 | BO35: 203 | BP35: 0 | BQ35: 0 | BR35: 1.615917379 | BS35: 0.01668605627 | BT35: 0 | BU35: 0 | CI35: 1.08448078 | CJ35: 1.08417982 | CK35: 1.091075344 | CL35: 1.091075344 | CM35: 0 | CN35: 0 | DE35: 1.416780731 | DF35: 1.415092524 | DG35: 1.615917379 | DH35: 1.615917379 | DJ35: 1.416780731 | DK35: 1.415092524 | DL35: 1.615917379 | DM35: 1.615917379 | DO35: 1.416780731 | DP35: 1.415092524 | DQ35: 1.615917379
B36: 30 | E36: 2013-07-30 | F36: 0 | H36: 0 | J36: 0 | K36: 0 | M36: 0 | N36: 0 | P36: 0 | Q36: 0 | R36: =IF(J36>0,IF(OR(ManualMode=FALSE,ISBLANK(S36)),'Pricing - Advanced'!$F$16*J36+'Pricing - Advanced'!$F$17,"N/A"),0) -> 0 | T36: 0 | U36: =IF(OR(ManualMode=FALSE,ISBLANK(V36)),SUM(K36:L36)*'Pricing - Advanced'!$F$19+SUM(N36,O36)*'Pricing - Advanced'!$F$18,"N/A") -> 0 | W36: 0 | X36: ='Pricing - Advanced'!$F$20*SUM(H36:I36)+IF(J36>1,'Pricing - Advanced'!$F$21,0) -> 0 | Y36: =IF(AND(FullTerm>=B36,AB35>0),AB35*'Pricing - Advanced'!$I$128,0) -> 0 | Z36: 0 | AB36: 0 | AC36: 0 | AF36: 1000 | AH36: =IF(J36=0,0,J36-SUM($N$6:N36)-AB35) -> 0 | AI36: 0 | AJ36: 59500 | AK36: 48300 | AN36: TRUE | AQ36: =IF(J35>1,IF(int_method=2,$AG$231*J35,$AG$231*'Pricing - Advanced'!$E$4),0) -> 0 | AR36: 0 | AS36: 2013-07-30 | AT36: =IF($AT$4=FALSE,B36*'Pricing - Advanced'!$K$5,AT35+E36-E35) -> 210 | AW36: 0 | AX36: 0 | AY36: 0 | AZ36: 0 | BA36: 0 | BB36: 0 | BC36: 0 | BE36: 30 | BF36: 210 | BG36: 0 | BH36: 0 | BI36: 1.642880667 | BJ36: 0.01668605627 | BK36: 0 | BL36: 0 | BN36: 30 | BO36: 210 | BP36: 0 | BQ36: 0 | BR36: 1.642880667 | BS36: 0.01668605627 | BT36: 0 | BU36: 0 | CI36: 1.087517882 | CJ36: 1.087205673 | CK36: 1.094359664 | CL36: 1.094359664 | CM36: 0 | CN36: 0 | DE36: 1.433903662 | DF36: 1.432136171 | DG36: 1.642880667 | DH36: 1.642880667 | DJ36: 1.433903662 | DK36: 1.432136171 | DL36: 1.642880667 | DM36: 1.642880667 | DO36: 1.433903662 | DP36: 1.432136171 | DQ36: 1.642880667
B37: 31 | E37: 2013-08-06 | F37: 0 | H37: 0 | J37: 0 | K37: 0 | M37: 0 | N37: 0 | P37: 0 | Q37: 0 | R37: =IF(J37>0,IF(OR(ManualMode=FALSE,ISBLANK(S37)),'Pricing - Advanced'!$F$16*J37+'Pricing - Advanced'!$F$17,"N/A"),0) -> 0 | T37: 0 | U37: =IF(OR(ManualMode=FALSE,ISBLANK(V37)),SUM(K37:L37)*'Pricing - Advanced'!$F$19+SUM(N37,O37)*'Pricing - Advanced'!$F$18,"N/A") -> 0 | W37: 0 | X37: ='Pricing - Advanced'!$F$20*SUM(H37:I37)+IF(J37>1,'Pricing - Advanced'!$F$21,0) -> 0 | Y37: =IF(AND(FullTerm>=B37,AB36>0),AB36*'Pricing - Advanced'!$I$128,0) -> 0 | Z37: 0 | AB37: 0 | AC37: 0 | AF37: 1000 | AH37: =IF(J37=0,0,J37-SUM($N$6:N37)-AB36) -> 0 | AI37: 0 | AJ37: 59500 | AK37: 48300 | AN37: TRUE | AQ37: =IF(J36>1,IF(int_method=2,$AG$231*J36,$AG$231*'Pricing - Advanced'!$E$4),0) -> 0 | AR37: 0 | AS37: 2013-08-06 | AT37: =IF($AT$4=FALSE,B37*'Pricing - Advanced'!$K$5,AT36+E37-E36) -> 217 | AW37: 0 | AX37: 0 | AY37: 0 | AZ37: 0 | BA37: 0 | BB37: 0 | BC37: 0 | BE37: 31 | BF37: 217 | BG37: 0 | BH37: 0 | BI37: 1.670293866 | BJ37: 0.01668605627 | BK37: 0 | BL37: 0 | BN37: 31 | BO37: 217 | BP37: 0 | BQ37: 0 | BR37: 1.670293866 | BS37: 0.01668605627 | BT37: 0 | BU37: 0 | CI37: 1.090563488 | CJ37: 1.09023997 | CK37: 1.097653871 | CL37: 1.097653871 | CM37: 0 | CN37: 0 | DE37: 1.451233538 | DF37: 1.449385094 | DG37: 1.670293866 | DH37: 1.670293866 | DJ37: 1.451233538 | DK37: 1.449385094 | DL37: 1.670293866 | DM37: 1.670293866 | DO37: 1.451233538 | DP37: 1.449385094 | DQ37: 1.670293866
B38: 32 | E38: 2013-08-13 | F38: 0 | H38: 0 | J38: 0 | K38: 0 | M38: 0 | N38: 0 | P38: 0 | Q38: 0 | R38: =IF(J38>0,IF(OR(ManualMode=FALSE,ISBLANK(S38)),'Pricing - Advanced'!$F$16*J38+'Pricing - Advanced'!$F$17,"N/A"),0) -> 0 | T38: 0 | U38: =IF(OR(ManualMode=FALSE,ISBLANK(V38)),SUM(K38:L38)*'Pricing - Advanced'!$F$19+SUM(N38,O38)*'Pricing - Advanced'!$F$18,"N/A") -> 0 | W38: 0 | X38: ='Pricing - Advanced'!$F$20*SUM(H38:I38)+IF(J38>1,'Pricing - Advanced'!$F$21,0) -> 0 | Y38: =IF(AND(FullTerm>=B38,AB37>0),AB37*'Pricing - Advanced'!$I$128,0) -> 0 | Z38: 0 | AB38: 0 | AC38: =IF(AND(ManualMode=TRUE,NOT(ISBLANK(AA38)),AN38="x"),W38-AA38,W38-X38+Z38) -> 0 | AF38: 1000 | AG38: =IF(AB38>0,AB38,NA()) ->  | AH38: =IF(J38=0,0,J38-SUM($N$6:N38)-AB37) -> 0 | AI38: =IF(AND(AH38<0,B38<=term),1,0) -> 0 | AJ38: 59500 | AK38: 48300 | AN38: TRUE | AQ38: =IF(J37>1,IF(int_method=2,$AG$231*J37,$AG$231*'Pricing - Advanced'!$E$4),0) -> 0 | AR38: 0 | AS38: 2013-08-13 | AT38: =IF($AT$4=FALSE,B38*'Pricing - Advanced'!$K$5,AT37+E38-E37) -> 224 | AW38: 0 | AX38: =G38+Z38 -> 0 | AY38: =IF(ManualMode=FALSE,H38+K38,SUM(H38,I38,K38,L38)) -> 0 | AZ38: =AY38+IF(ISNUMBER(N38),N38,O38) -> 0 | BA38: 0 | BB38: 0 | BC38: =BB38+X38 -> 0 | BE38: =B38 -> 32 | BF38: 224 | BG38: =AW38 -> 0 | BH38: =AY38 -> 0 | BI38: =DH38 -> 1.698164484 | BJ38: 0.01668605627 | BK38: 0 | BL38: 0 | BN38: =BE38 -> 32 | BO38: =BF38 -> 224 | BP38: =AW38 -> 0 | BQ38: =AZ38 -> 0 | BR38: 1.698164484 | BS38: 0.01668605627 | BT38: =$AW38/BR38 -> 0 | BU38: =$AZ38/BR38 -> 0 | CC38: =$AW38/CA38 ->  | CD38: =$BB38/CA38 ->  | CI38: =(1+CJ$2)^($B38/$CR$4) -> 1.093617624 | CJ38: =(1+CJ$2)^($AT38/DaysYr) -> 1.093282736 | CK38: 1.100957994 | CL38: =IF($CR$1=1,CI38,IF($CR$1=2,CK38,CJ38)) -> 1.100957994 | CM38: 0 | CN38: =BC38/CL38 -> 0 | DE38: =(1+DF$3)^($B38/$CR$4) -> 1.46877286 | DF38: =(1+DF$3)^($BF38/DaysYr) -> 1.466841768 | DG38: 1.698164484 | DH38: =IF($CR$1=1,DE38,IF($CR$1=2,DG38,DF38)) -> 1.698164484 | DJ38: =(1+DK$3)^($B38/$CR$4) -> 1.46877286 | DK38: =(1+DK$3)^($AT38/DaysYr) -> 1.466841768 | DL38: 1.698164484 | DM38: 1.698164484 | DO38: =(1+DP$3)^($B38/$CR$4) -> 1.46877286 | DP38: =(1+DP$3)^($AT38/DaysYr) -> 1.466841768 | DQ38: 1.698164484
B39: 33 | E39: =IF(ManualDates="x",IF(NOT(ISBLANK(D39)),D39,IF(C39=0,AS39,E38+C39)),AS39) -> 2013-08-20 | F39: 0 | H39: =IF(AND(ManualMode=TRUE,NOT(ISBLANK(I39))),"N/A",IF(B39=PrepayPeriod,J38,IF(AND(B39>=FirstPmt,B39<=PrepayPeriod),IF(AND(B39<$AG$230,amortized=1),LoanAmt/$AG$228,-PPMT($AG$231,$B39-FirstPmt+1,$AG$228,LoanAmt)),0))) -> 0 | J39: =IF(AN39<>"x",0,IF(AND(ManualMode=TRUE,NOT(ISBLANK(I39))),J38-I39,IF(J38+G39-H39>1,(J38+G39-H39),0))) -> 0 | K39: =IF(AND(ManualMode=TRUE,NOT(ISBLANK(L39))),"N/A",IF(OR($AH$229>B39,J38<1),0,AR39)) -> 0 | M39: =IF(AN39="x",IF(ManualMode=FALSE,-H39-K39,IF(ISBLANK(I39),-H39,-I39)+IF(ISBLANK(L39),-K39,-L39)),0) -> 0 | N39: =IF(OR(ManualMode=FALSE,ISBLANK(O39)),IF(FeeOngoPerc<1,FeeOngoPerc*SUM(H39:I39),IF(J38>1,FeeOngoPerc,0))+IF(FeeOngoFix<1,FeeOngoFix*SUM(H39:I39),IF(J38>1,FeeOngoFix,0)),"N/A") -> 0 | P39: =IF(AND(ManualMode=TRUE,NOT(ISBLANK(O39)),AN39="x"),M39-O39,M39-N39) -> 0 | Q39: =IF(J38>0.01,IF(ManualMode=FALSE,SUM(K39,N39),SUM(K39,L39,N39,O39))/J38*(365.25/(AT39-AT38)),0) -> 0 | R39: =IF(J39>0,IF(OR(ManualMode=FALSE,ISBLANK(S39)),'Pricing - Advanced'!$F$16*J39+'Pricing - Advanced'!$F$17,"N/A"),0) -> 0 | T39: =IF(AND(ManualMode=TRUE,NOT(ISBLANK(S39)),AN39="x"),P39-S39,P39-R39) -> 0 | U39: =IF(OR(ManualMode=FALSE,ISBLANK(V39)),SUM(K39:L39)*'Pricing - Advanced'!$F$19+SUM(N39,O39)*'Pricing - Advanced'!$F$18,"N/A") -> 0 | W39: =IF(AND(ManualMode=TRUE,NOT(ISBLANK(V39)),AN39="x"),T39-V39,T39-U39) -> 0 | X39: ='Pricing - Advanced'!$F$20*SUM(H39:I39)+IF(J39>1,'Pricing - Advanced'!$F$21,0) -> 0 | Y39: =IF(AND(FullTerm>=B39,AB38>0),AB38*'Pricing - Advanced'!$I$128,0) -> 0 | Z39: =IF(FullTerm=B39,AB38+X39+Y39,0) -> 0 | AB39: =IF(AND(ManualMode=TRUE,NOT(ISBLANK(AA39)),AN39="x"),AB38+AA39,AB38+X39+Y39-Z39) -> 0 | AC39: 0 | AF39: =IF(int_method=1,AF38,IF(J39>0,J39,NA())) -> 1000 | AH39: =IF(J39=0,0,J39-SUM($N$6:N39)-AB38) -> 0 | AI39: 0 | AJ39: 59500 | AK39: 48300 | AN39: TRUE | AQ39: =IF(J38>1,IF(int_method=2,$AG$231*J38,$AG$231*'Pricing - Advanced'!$E$4),0) -> 0 | AR39: =IF(B39>$AI$235,AQ39,0)+AR38-IF(ManualMode=TRUE,SUM(K38:L38),K38) -> 0 | AS39: 2013-08-20 | AT39: =IF($AT$4=FALSE,B39*'Pricing - Advanced'!$K$5,AT38+E39-E38) -> 231 | AW39: 0 | AX39: 0 | AY39: 0 | AZ39: 0 | BA39: 0 | BB39: 0 | BC39: 0 | BE39: 33 | BF39: =E39-$E$6 -> 231 | BG39: 0 | BH39: 0 | BI39: 1.726500152 | BJ39: 0.01668605627 | BK39: 0 | BL39: 0 | BN39: 33 | BO39: 231 | BP39: 0 | BQ39: 0 | BR39: 1.726500152 | BS39: 0.01668605627 | BT39: 0 | BU39: 0 | CI39: 1.096680313 | CJ39: 1.096333995 | CK39: =CK38*(1+CJ$2/PeriodsYr) -> 1.104272064 | CL39: 1.104272064 | CM39: 0 | CN39: 0 | DE39: 1.486524158 | DF39: 1.484508693 | DG39: =DG38*(1+DF$3/PeriodsYr) -> 1.726500152 | DH39: 1.726500152 | DJ39: 1.486524158 | DK39: 1.484508693 | DL39: =DL38*(1+DK$3/PeriodsYr) -> 1.726500152 | DM39: 1.726500152 | DO39: 1.486524158 | DP39: 1.484508693 | DQ39: =DQ38*(1+DP$3/PeriodsYr) -> 1.726500152
B40: 34 | E40: 2013-08-27 | F40: 0 | H40: 0 | J40: 0 | K40: 0 | M40: 0 | N40: 0 | P40: 0 | Q40: 0 | R40: =IF(J40>0,IF(OR(ManualMode=FALSE,ISBLANK(S40)),'Pricing - Advanced'!$F$16*J40+'Pricing - Advanced'!$F$17,"N/A"),0) -> 0 | T40: 0 | U40: =IF(OR(ManualMode=FALSE,ISBLANK(V40)),SUM(K40:L40)*'Pricing - Advanced'!$F$19+SUM(N40,O40)*'Pricing - Advanced'!$F$18,"N/A") -> 0 | W40: 0 | X40: ='Pricing - Advanced'!$F$20*SUM(H40:I40)+IF(J40>1,'Pricing - Advanced'!$F$21,0) -> 0 | Y40: =IF(AND(FullTerm>=B40,AB39>0),AB39*'Pricing - Advanced'!$I$128,0) -> 0 | Z40: 0 | AB40: 0 | AC40: 0 | AF40: 1000 | AH40: =IF(J40=0,0,J40-SUM($N$6:N40)-AB39) -> 0 | AI40: 0 | AJ40: 59500 | AK40: 48300 | AN40: =IF(B40<=term,"x",TRUE) -> TRUE | AQ40: =IF(J39>1,IF(int_method=2,$AG$231*J39,$AG$231*'Pricing - Advanced'!$E$4),0) -> 0 | AR40: 0 | AS40: =IF(SameDay,EDATE(E39,$CR$3),E39+DaysPeriod) -> 2013-08-27 | AT40: =IF($AT$4=FALSE,B40*'Pricing - Advanced'!$K$5,AT39+E40-E39) -> 238 | AW40: 0 | AX40: 0 | AY40: 0 | AZ40: 0 | BA40: 0 | BB40: 0 | BC40: 0 | BE40: 34 | BF40: 238 | BG40: 0 | BH40: 0 | BI40: 1.75530863 | BJ40: 0.01668605627 | BK40: 0 | BL40: 0 | BN40: 34 | BO40: 238 | BP40: 0 | BQ40: 0 | BR40: 1.75530863 | BS40: 0.01668605627 | BT40: 0 | BU40: 0 | CI40: 1.099751579 | CJ40: 1.099393769 | CK40: 1.107596109 | CL40: 1.107596109 | CM40: 0 | CN40: 0 | DE40: 1.504489995 | DF40: 1.502388401 | DG40: 1.75530863 | DH40: 1.75530863 | DJ40: 1.504489995 | DK40: 1.502388401 | DL40: 1.75530863 | DM40: 1.75530863 | DO40: 1.504489995 | DP40: 1.502388401 | DQ40: 1.75530863
B41: 35 | E41: 2013-09-03 | F41: 0 | H41: 0 | J41: 0 | K41: 0 | M41: 0 | N41: 0 | P41: 0 | Q41: 0 | R41: =IF(J41>0,IF(OR(ManualMode=FALSE,ISBLANK(S41)),'Pricing - Advanced'!$F$16*J41+'Pricing - Advanced'!$F$17,"N/A"),0) -> 0 | T41: 0 | U41: =IF(OR(ManualMode=FALSE,ISBLANK(V41)),SUM(K41:L41)*'Pricing - Advanced'!$F$19+SUM(N41,O41)*'Pricing - Advanced'!$F$18,"N/A") -> 0 | W41: 0 | X41: ='Pricing - Advanced'!$F$20*SUM(H41:I41)+IF(J41>1,'Pricing - Advanced'!$F$21,0) -> 0 | Y41: =IF(AND(FullTerm>=B41,AB40>0),AB40*'Pricing - Advanced'!$I$128,0) -> 0 | Z41: 0 | AB41: 0 | AC41: 0 | AF41: 1000 | AH41: =IF(J41=0,0,J41-SUM($N$6:N41)-AB40) -> 0 | AI41: 0 | AJ41: 59500 | AK41: 48300 | AN41: TRUE | AQ41: =IF(J40>1,IF(int_method=2,$AG$231*J40,$AG$231*'Pricing - Advanced'!$E$4),0) -> 0 | AR41: 0 | AS41: 2013-09-03 | AT41: =IF($AT$4=FALSE,B41*'Pricing - Advanced'!$K$5,AT40+E41-E40) -> 245 | AW41: 0 | AX41: 0 | AY41: 0 | AZ41: 0 | BA41: 0 | BB41: 0 | BC41: 0 | BE41: 35 | BF41: 245 | BG41: 0 | BH41: 0 | BI41: 1.784597809 | BJ41: 0.01668605627 | BK41: 0 | BL41: 0 | BN41: 35 | BO41: 245 | BP41: 0 | BQ41: 0 | BR41: 1.784597809 | BS41: 0.01668605627 | BT41: 0 | BU41: 0 | CI41: 1.102831446 | CJ41: 1.102462082 | CK41: 1.110930159 | CL41: 1.110930159 | CM41: 0 | CN41: 0 | DE41: 1.522672963 | DF41: 1.520483456 | DG41: 1.784597809 | DH41: 1.784597809 | DJ41: 1.522672963 | DK41: 1.520483456 | DL41: 1.784597809 | DM41: 1.784597809 | DO41: 1.522672963 | DP41: 1.520483456 | DQ41: 1.784597809
B42: 36 | E42: 2013-09-10 | F42: 0 | H42: 0 | J42: 0 | K42: 0 | M42: 0 | N42: 0 | P42: 0 | Q42: 0 | R42: =IF(J42>0,IF(OR(ManualMode=FALSE,ISBLANK(S42)),'Pricing - Advanced'!$F$16*J42+'Pricing - Advanced'!$F$17,"N/A"),0) -> 0 | T42: 0 | U42: =IF(OR(ManualMode=FALSE,ISBLANK(V42)),SUM(K42:L42)*'Pricing - Advanced'!$F$19+SUM(N42,O42)*'Pricing - Advanced'!$F$18,"N/A") -> 0 | W42: 0 | X42: ='Pricing - Advanced'!$F$20*SUM(H42:I42)+IF(J42>1,'Pricing - Advanced'!$F$21,0) -> 0 | Y42: =IF(AND(FullTerm>=B42,AB41>0),AB41*'Pricing - Advanced'!$I$128,0) -> 0 | Z42: 0 | AB42: 0 | AC42: 0 | AF42: 1000 | AH42: =IF(J42=0,0,J42-SUM($N$6:N42)-AB41) -> 0 | AI42: 0 | AJ42: 59500 | AK42: 48300 | AN42: TRUE | AQ42: =IF(J41>1,IF(int_method=2,$AG$231*J41,$AG$231*'Pricing - Advanced'!$E$4),0) -> 0 | AR42: 0 | AS42: 2013-09-10 | AT42: =IF($AT$4=FALSE,B42*'Pricing - Advanced'!$K$5,AT41+E42-E41) -> 252 | AW42: 0 | AX42: 0 | AY42: 0 | AZ42: 0 | BA42: 0 | BB42: 0 | BC42: 0 | BE42: 36 | BF42: 252 | BG42: 0 | BH42: 0 | BI42: 1.814375708 | BJ42: 0.01668605627 | BK42: 0 | BL42: 0 | BN42: 36 | BO42: 252 | BP42: 0 | BQ42: 0 | BR42: 1.814375708 | BS42: 0.01668605627 | BT42: 0 | BU42: 0 | CI42: 1.105919938 | CJ42: 1.105538959 | CK42: 1.114274246 | CL42: 1.114274246 | CM42: 0 | CN42: 0 | DE42: 1.541075687 | DF42: 1.538796452 | DG42: 1.814375708 | DH42: 1.814375708 | DJ42: 1.541075687 | DK42: 1.538796452 | DL42: 1.814375708 | DM42: 1.814375708 | DO42: 1.541075687 | DP42: 1.538796452 | DQ42: 1.814375708
